Workbook

Sheet Visor
A1: Programa de Apoyo al Empleo Formal - PAEF
A2: Reporte por sector económico - consolidado postulaciones de mayo 2020 a marzo 2021 y errores operativos
A4: Seleccione el sector económico | D4: Agricultura, ganadería, caza, silvicultura y pesca | N4: =IFERROR(VLOOKUP(D4,Hoja4!$C$2:$D$23,2,FALSE),"") -> A
E8: Total Empleadores beneficiados | I8: % | K8: Total Empleadores beneficiados | O8: % | Q8: Recursos asociados
B10: General | E10: =Hoja4!I24 -> 142999 | I10: =E10/$E$10 -> 1 | K10: =Hoja4!K24 -> 4151854 | O10: =K10/$K$10 -> 1 | Q10: =Hoja4!M24/1000000 -> 6861509.042
B11: ="Sección "&N4 -> Sección A | E11: =VLOOKUP(N4,Hoja4!$H$1:$M$24,2,FALSE) -> 3403 | I11: =E11/$E$10 -> 0.02379736921 | K11: =VLOOKUP(N4,Hoja4!$H$1:$M$24,4,FALSE) -> 160790 | O11: =K11/$K$10 -> 0.03872727702 | Q11: =VLOOKUP(N4,Hoja4!$H$1:$M$24,6,FALSE)/1000000 -> 237824.842
B30: Empleadores | E30: Natural | H30: Jurídica | L30: Recurso | O30: Natural | R30: Jurídica
B31: ="Total sección "&N4 -> Total sección A | E31: =COUNTIFS(insumos2!$AD$1:$AD$399999,"Aprobado con subsidio",insumos2!$AA$1:$AA$399999,"Natural") -> 417 | H31: =COUNTIFS(insumos2!$AD$1:$AD$399999,"Aprobado con subsidio",insumos2!$AA$1:$AA$399999,"Jurídica") -> 2986 | L31: ="Total sección "&N4 -> Total sección A | O31: =SUMIFS(insumos1!$K$2:$K$372158,insumos1!$H$2:$H$372158,Visor!N4,insumos1!$I$2:$I$372158,"Natural")/1000000 -> 7748.326 | R31: =SUMIFS(insumos1!$K$2:$K$372158,insumos1!$H$2:$H$372158,Visor!N4,insumos1!$I$2:$I$372158,"Jurídica")/1000000 -> 230076.516
B32: ="% sección "&N4 -> % sección A | E32: =E31/(E31+H31) -> 0.1225389362 | H32: =H31/(E31+H31) -> 0.8774610638 | L32: ="% sección "&N4 -> % sección A | O32: =O31/(O31+R31) -> 0.03257996908 | R32: =R31/(O31+R31) -> 0.9674200309
B33: ="% general" -> % general | E33: =COUNTIFS(insumos2!$G$2:$G$400000,"Natural",insumos2!$J$2:$J$400000,"Aprobado con subsidio")/COUNTIF(insumos2!$J$2:$J$400000,"Aprobado con subsidio") -> 0.1607144106 | H33: =COUNTIFS(insumos2!$G$2:$G$400000,"Jurídica",insumos2!$J$2:$J$400000,"Aprobado con subsidio")/COUNTIF(insumos2!$J$2:$J$400000,"Aprobado con subsidio") -> 0.8392855894 | L33: ="% general" -> % general | O33: =SUMIFS(insumos1!$K$2:$K$400000,insumos1!$I$2:$I$400000,"Natural")/SUM(insumos1!$K$2:$K$400000) -> 0.05641586474 | R33: =SUMIFS(insumos1!$K$2:$K$400000,insumos1!$I$2:$I$400000,"Jurídica")/SUM(insumos1!$K$2:$K$400000) -> 0.9435841353
C36: Tamaño | E36: Empleadores | H36: % | J36: Empleados | N36: % | P36: Monto
C37: Micro | E37: =COUNTIFS(insumos2!$AD$2:$AD$399999,"Aprobado con subsidio",insumos2!$AE$2:$AE$399999,"MICRO") -> 1770 | H37: =E37/$E$42 -> 0.5201292977 | J37: =SUMIFS(insumos2!$Y$2:$Y$399999,insumos2!$AD$2:$AD$399999,"Aprobado con subsidio",insumos2!$AE$2:$AE$399999,"MICRO") -> 9370 | N37: =J37/$J$42 -> 0.05827476833 | P37: =SUMIFS(insumos1!$K$2:$K$400000,insumos1!$H$2:$H$400000,Visor!N4,insumos1!$J$2:$J$400000,"MICRO")/1000000 -> 16865.942
C38: Pequeña | E38: =COUNTIFS(insumos2!$AD$2:$AD$399999,"Aprobado con subsidio",insumos2!$AE$2:$AE$399999,"PEQUEÑA") -> 1136 | H38: 0.3338230973 | J38: =SUMIFS(insumos2!$Y$2:$Y$399999,insumos2!$AD$2:$AD$399999,"Aprobado con subsidio",insumos2!$AE$2:$AE$399999,"PEQUEÑA") -> 24010 | N38: 0.1493252068 | P38: =SUMIFS(insumos1!$K$2:$K$400000,insumos1!$H$2:$H$400000,Visor!N4,insumos1!$J$2:$J$400000,"PEQUEÑA")/1000000 -> 40056.292
C39: Mediana | E39: =COUNTIFS(insumos2!$AD$2:$AD$399999,"Aprobado con subsidio",insumos2!$AE$2:$AE$399999,"MEDIANA") -> 326 | H39: 0.09579782545 | J39: =SUMIFS(insumos2!$Y$2:$Y$399999,insumos2!$AD$2:$AD$399999,"Aprobado con subsidio",insumos2!$AE$2:$AE$399999,"MEDIANA") -> 28512 | N39: 0.1773244605 | P39: =SUMIFS(insumos1!$K$2:$K$400000,insumos1!$H$2:$H$400000,Visor!N4,insumos1!$J$2:$J$400000,"MEDIANA")/1000000 -> 43921.172
C40: Grande | E40: =COUNTIFS(insumos2!$AD$2:$AD$399999,"Aprobado con subsidio",insumos2!$AE$2:$AE$399999,"GRANDE") -> 113 | H40: 0.03320599471 | J40: =SUMIFS(insumos2!$Y$2:$Y$399999,insumos2!$AD$2:$AD$399999,"Aprobado con subsidio",insumos2!$AE$2:$AE$399999,"GRANDE") -> 33549 | N40: 0.2086510355 | P40: =SUMIFS(insumos1!$K$2:$K$400000,insumos1!$H$2:$H$400000,Visor!N4,insumos1!$J$2:$J$400000,"GRANDE")/1000000 -> 55613.036
C41: Muy grande | E41: =COUNTIFS(insumos2!$AD$2:$AD$399999,"Aprobado con subsidio",insumos2!$AE$2:$AE$399999,"MUY GRANDE") -> 58 | H41: 0.0170437849 | J41: =SUMIFS(insumos2!$Y$2:$Y$399999,insumos2!$AD$2:$AD$399999,"Aprobado con subsidio",insumos2!$AE$2:$AE$399999,"MUY GRANDE") -> 65349 | N41: 0.4064245289 | P41: =SUMIFS(insumos1!$K$2:$K$400000,insumos1!$H$2:$H$400000,Visor!N4,insumos1!$J$2:$J$400000,"MUY GRANDE")/1000000 -> 81368.4
C42: Total | E42: =COUNTIFS(insumos2!$AD$2:$AD$399999,"Aprobado con subsidio") -> 3403 | H42: 1 | J42: =SUMIFS(insumos2!$Y$2:$Y$399999,insumos2!$AD$2:$AD$399999,"Aprobado con subsidio") -> 160790 | N42: 1 | P42: =P41+P40+P39+P37+P38 -> 237824.842
B44: Tamaño | C44: ="Sección "&N4 -> Sección A | D44: general | E44: ="Sección "&N4 -> Sección A | F44: general
B45: Micro | C45: =H37 -> 0.5201292977 | D45: 0.6376801371 | E45: =N37 -> 0.05827476833 | F45: 0.104427293
B46: Pequeña | C46: =H38 -> 0.3338230973 | D46: 0.2743797922 | E46: =N38 -> 0.1493252068 | F46: 0.1894298344
B47: Mediana | C47: =H39 -> 0.09579782545 | D47: 0.06616490439 | E47: =N39 -> 0.1773244605 | F47: 0.1934365931
B48: Grande | C48: =H40 -> 0.03320599471 | D48: 0.01371264116 | E48: =N40 -> 0.2086510355 | F48: 0.1301781558
B49: Muy Grande | C49: =H41 -> 0.0170437849 | D49: 0.008062525129 | E49: =N41 -> 0.4064245289 | F49: 0.3835281237
G61: Actividad económica | J61: =D4 -> Agricultura, ganadería, caza, silvicultura y pesca | U61: =N4 -> A
A66: Distribución Departamental | K66: Distribución en los principales municipios del País
A67: Departamento | D67: Empleadores | F67: % | G67: Empleados | I67: % | K67: Departamento | M67: Municipio | P67: Empleadores | R67: % | S67: Empleados | U67: %
A68: =insumos2!AU2 -> Antioquia | D68: =insumos2!AV2 -> 845 | F68: =D68/$D$96 -> 0.2483103144 | G68: =insumos2!AW2 -> 29130 | I68: =G68/$G$96 -> 0.1811679831 | K68: =insumos2!BD2 -> Bogotá | M68: =insumos2!BE2 -> Bogotá, d.c. | P68: =insumos2!BF2 -> 688 | R68: =P68/$P$96 -> 0.2021745519 | S68: =insumos2!BG2 -> 66054 | U68: =S68/$S$96 -> 0.4108091299
A69: =insumos2!AU3 -> Bogotá | D69: =insumos2!AV3 -> 688 | F69: 0.2021745519 | G69: =insumos2!AW3 -> 66054 | I69: 0.4108091299 | K69: =insumos2!BD3 -> Antioquia | M69: =insumos2!BE3 -> Medellín | P69: =insumos2!BF3 -> 381 | R69: =P69/$P$96 -> 0.1119600353 | S69: =insumos2!BG3 -> 14694 | U69: =S69/$S$96 -> 0.09138628024
A70: =insumos2!AU4 -> Valle del cauca | D70: =insumos2!AV4 -> 373 | F70: 0.1096091684 | G70: =insumos2!AW4 -> 17691 | I70: 0.1100254991 | K70: =insumos2!BD4 -> Valle del cauca | M70: =insumos2!BE4 -> Cali | P70: =insumos2!BF4 -> 194 | R70: 0.05700852189 | S70: =insumos2!BG4 -> 7164 | U70: 0.04455500964
A71: =insumos2!AU5 -> Cundinamarca | D71: =insumos2!AV5 -> 319 | F71: 0.09374081693 | G71: =insumos2!AW5 -> 16867 | I71: 0.1049008023 | K71: =insumos2!BD5 -> Atlántico | M71: =insumos2!BE5 -> Barranquilla | P71: =insumos2!BF5 -> 121 | R71: 0.03555686159 | S71: =insumos2!BG5 -> 3214 | U71: 0.01998880527
A72: =insumos2!AU6 -> Santander | D72: =insumos2!AV6 -> 173 | F72: 0.05083749633 | G72: =insumos2!AW6 -> 9964 | I72: 0.06196902792 | K72: =insumos2!BD6 -> Santander | M72: =insumos2!BE6 -> Bucaramanga | P72: =insumos2!BF6 -> 88 | R72: 0.0258595357 | S72: =insumos2!BG6 -> 2742 | U72: 0.01705329933
A73: =insumos2!AU7 -> Atlántico | D73: =insumos2!AV7 -> 131 | F73: 0.0384954452 | G73: =insumos2!AW7 -> 4309 | I73: 0.02679893028 | K73: =insumos2!BD7 -> Risaralda | M73: =insumos2!BE7 -> Pereira | P73: =insumos2!BF7 -> 61 | R73: 0.01792535998 | S73: =insumos2!BG7 -> 1120 | U73: 0.006965607314
A74: =insumos2!AU8 -> Meta | D74: =insumos2!AV8 -> 95 | F74: 0.02791654423 | G74: =insumos2!AW8 -> 1919 | I74: 0.01193482182 | K74: =insumos2!BD8 -> Magdalena | M74: =insumos2!BE8 -> Santa marta | P74: =insumos2!BF8 -> 60 | R74: 0.01763150162 | S74: =insumos2!BG8 -> 2086 | U74: 0.01297344362
A75: =insumos2!AU9 -> Risaralda | D75: =insumos2!AV9 -> 79 | F75: 0.02321481046 | G75: =insumos2!AW9 -> 1816 | I75: 0.01129423472 | K75: =insumos2!BD9 -> Antioquia | M75: =insumos2!BE9 -> Rionegro | P75: =insumos2!BF9 -> 55 | R75: 0.01616220981 | S75: =insumos2!BG9 -> 3960 | U75: 0.02462839729
A76: =insumos2!AU10 -> Magdalena | D76: =insumos2!AV10 -> 75 | F76: 0.02203937702 | G76: =insumos2!AW10 -> 2225 | I76: 0.01383792524 | K76: =insumos2!BD10 -> Antioquia | M76: =insumos2!BE10 -> El carmen de vib | P76: =insumos2!BF10 -> 55 | R76: 0.01616220981 | S76: =insumos2!BG10 -> 1815 | U76: 0.01128801542
A77: =insumos2!AU11 -> Cesar | D77: =insumos2!AV11 -> 72 | F77: 0.02115780194 | G77: =insumos2!AW11 -> 1094 | I77: 0.006803905716 | K77: =insumos2!BD11 -> Meta | M77: =insumos2!BE11 -> Villavicencio | P77: =insumos2!BF11 -> 50 | R77: 0.01469291801 | S77: =insumos2!BG11 -> 865 | U77: 0.005379687792
A78: =insumos2!AU12 -> Caldas | D78: =insumos2!AV12 -> 67 | F78: 0.01968851014 | G78: =insumos2!AW12 -> 1275 | I78: 0.007929597612 | K78: =insumos2!BD12 -> Cesar | M78: =insumos2!BE12 -> Valledupar | P78: =insumos2!BF12 -> 47 | R78: 0.01381134293 | S78: =insumos2!BG12 -> 565 | U78: 0.003513900118
A79: =insumos2!AU13 -> Tolima | D79: =insumos2!AV13 -> 55 | F79: 0.01616220981 | G79: =insumos2!AW13 -> 1851 | I79: 0.01151190994 | K79: =insumos2!BD13 -> Antioquia | M79: =insumos2!BE13 -> La ceja | P79: =insumos2!BF13 -> 47 | R79: 0.01381134293 | S79: =insumos2!BG13 -> 1375 | U79: 0.008551526836
A80: =insumos2!AU14 -> Bolívar | D80: =insumos2!AV14 -> 53 | F80: 0.01557449309 | G80: =insumos2!AW14 -> 1304 | I80: 0.008109957087 | K80: =insumos2!BD14 -> Antioquia | M80: =insumos2!BE14 -> Envigado | P80: =insumos2!BF14 -> 45 | R80: 0.01322362621 | S80: =insumos2!BG14 -> 1653 | U80: 0.01028049008
A81: =insumos2!AU15 -> Córdoba | D81: =insumos2!AV15 -> 51 | F81: 0.01498677637 | G81: =insumos2!AW15 -> 771 | I81: 0.004795074321 | K81: =insumos2!BD15 -> Cundinamarca | M81: =insumos2!BE15 -> Chía | P81: =insumos2!BF15 -> 42 | R81: 0.01234205113 | S81: =insumos2!BG15 -> 3350 | U81: 0.02083462902
A82: =insumos2!AU16 -> Norte de stder | D82: =insumos2!AV16 -> 49 | F82: 0.01439905965 | G82: =insumos2!AW16 -> 938 | I82: 0.005833696125 | K82: =insumos2!BD16 -> Córdoba | M82: =insumos2!BE16 -> Montería | P82: =insumos2!BF16 -> 41 | R82: 0.01204819277 | S82: =insumos2!BG16 -> 590 | U82: 0.003669382424
A83: =insumos2!AU17 -> Huila | D83: =insumos2!AV17 -> 49 | F83: 0.01439905965 | G83: =insumos2!AW17 -> 726 | I83: 0.00451520617 | K83: =insumos2!BD17 -> Bolívar | M83: =insumos2!BE17 -> Cartagena de ind | P83: =insumos2!BF17 -> 40 | R83: 0.01175433441 | S83: =insumos2!BG17 -> 1024 | U83: 0.006368555258
A84: =insumos2!AU18 -> Quindío | D84: =insumos2!AV18 -> 44 | F84: 0.01292976785 | G84: =insumos2!AW18 -> 439 | I84: 0.002730269295 | K84: =insumos2!BD18 -> Caldas | M84: =insumos2!BE18 -> Manizales | P84: =insumos2!BF18 -> 39 | R84: 0.01146047605 | S84: =insumos2!BG18 -> 637 | U84: 0.00396168916
A85: =insumos2!AU19 -> Boyacá | D85: =insumos2!AV19 -> 35 | F85: 0.01028504261 | G85: =insumos2!AW19 -> 346 | I85: 0.002151875117 | K85: =insumos2!BD19 -> Valle del cauca | M85: =insumos2!BE19 -> Palmira | P85: =insumos2!BF19 -> 38 | R85: 0.01116661769 | S85: =insumos2!BG19 -> 2652 | U85: 0.01649356303
A86: =insumos2!AU20 -> Cauca | D86: =insumos2!AV20 -> 29 | F86: 0.008521892448 | G86: =insumos2!AW20 -> 247 | I86: 0.001536165184 | K86: =insumos2!BD20 -> Tolima | M86: =insumos2!BE20 -> Ibagué | P86: =insumos2!BF20 -> 35 | R86: 0.01028504261 | S86: =insumos2!BG20 -> 1558 | U86: 0.009689657317
A87: =insumos2!AU21 -> Nariño | D87: =insumos2!AV21 -> 28 | F87: 0.008228034088 | G87: =insumos2!AW21 -> 934 | I87: 0.005808818956 | K87: =insumos2!BD21 -> Santander | M87: =insumos2!BE21 -> Floridablanca | P87: =insumos2!BF21 -> 32 | R87: 0.009403467529 | S87: =insumos2!BG21 -> 4820 | U87: 0.02997698862
A88: =insumos2!AU22 -> Casanare | D88: =insumos2!AV22 -> 27 | F88: 0.007934175727 | G88: =insumos2!AW22 -> 319 | I88: 0.001983954226 | K88: =insumos2!BD22 -> Cundinamarca | M88: =insumos2!BE22 -> Facatativá | P88: =insumos2!BF22 -> 29 | R88: 0.008521892448 | S88: =insumos2!BG22 -> 2837 | U88: 0.0176441321
A89: =insumos2!AU23 -> Sucre | D89: =insumos2!AV23 -> 25 | F89: 0.007346459007 | G89: =insumos2!AW23 -> 276 | I89: 0.001716524659 | K89: =insumos2!BD23 -> Quindío | M89: =insumos2!BE23 -> Armenia | P89: =insumos2!BF23 -> 28 | R89: 0.008228034088 | S89: =insumos2!BG23 -> 319 | U89: 0.001983954226
A90: =insumos2!AU24 -> Arauca | D90: =insumos2!AV24 -> 13 | F90: 0.003820158684 | G90: =insumos2!AW24 -> 31 | I90: 0.0001927980596 | K90: =insumos2!BD24 -> Huila | M90: =insumos2!BE24 -> Neiva | P90: =insumos2!BF24 -> 26 | R90: 0.007640317367 | S90: =insumos2!BG24 -> 308 | U90: 0.001915542011
A91: =insumos2!AU25 -> Caquetá | D91: =insumos2!AV25 -> 13 | F91: 0.003820158684 | G91: =insumos2!AW25 -> 79 | I91: 0.0004913240873 | K91: =insumos2!BD25 -> Cundinamarca | M91: =insumos2!BE25 -> Zipaquirá | P91: =insumos2!BF25 -> 25 | R91: 0.007346459007 | S91: =insumos2!BG25 -> 1006 | U91: 0.006256607998
A92: =insumos2!AU26 -> La guajira | D92: =insumos2!AV26 -> 5 | F92: 0.001469291801 | G92: =insumos2!AW26 -> 27 | I92: 0.0001679208906 | K92: =insumos2!BD26 -> Norte de stder | M92: =insumos2!BE26 -> Cucuta | P92: =insumos2!BF26 -> 23 | R92: 0.006758742286 | S92: =insumos2!BG26 -> 655 | U92: 0.00407363642
A93: =insumos2!AU27 -> Guaviare | D93: =insumos2!AV27 -> 5 | F93: 0.001469291801 | G93: =insumos2!AW27 -> 17 | I93: 0.0001057279682 | K93: =insumos2!BD27 -> Cundinamarca | M93: =insumos2!BE27 -> Madrid | P93: =insumos2!BF27 -> 20 | R93: 0.005877167205 | S93: =insumos2!BG27 -> 1325 | U93: 0.008240562224
A94: =insumos2!AU28 -> Chocó | D94: =insumos2!AV28 -> 2 | F94: 0.0005877167205 | G94: =insumos2!AW28 -> 22 | I94: 0.0001368244294 | K94: =insumos2!BD28 -> Valle del cauca | M94: =insumos2!BE28 -> Tuluá | P94: =insumos2!BF28 -> 19 | R94: 0.005583308845 | S94: =insumos2!BG28 -> 541 | U94: 0.003364637104
A95: =insumos2!AU29 -> Otros | D95: =insumos2!AV29 -> 3 | F95: 0.0008815750808 | G95: =insumos2!AW29 -> 119 | I95: 0.0007400957771 | K95: =insumos2!BD29 -> Otros | M95: =insumos2!BE29 -> Otros | P95: =insumos2!BF29 -> 1074 | R95: 0.3156038789 | S95: =insumos2!BG29 -> 31861 | U95: 0.1981528702
A96: =insumos2!AU30 -> Total | D96: =insumos2!AV30 -> 3403 | F96: 1 | G96: =insumos2!AW30 -> 160790 | I96: 1 | K96: =insumos2!BD30 -> Total | P96: =insumos2!BF30 -> 3403 | R96: 1 | S96: =insumos2!BG30 -> 160790 | U96: 1
G127: Actividad económica | J127: =J61 -> Agricultura, ganadería, caza, silvicultura y pesca | U127: =U61 -> A
B131: Sexo | D131: ="Total empleadores sección "&N4 -> Total empleadores sección A | G131: %
B133: Hombres | D133: =VLOOKUP(N4,Hoja4!$H$2:$P$23,7,FALSE) -> 105169 | G133: =D133/$D$136 -> 0.6540767461
B134: Mujeres | D134: =VLOOKUP(N4,Hoja4!$H$2:$P$23,8,FALSE) -> 55599 | G134: =D134/$D$136 -> 0.3457864295
B135: No disponible | D135: =VLOOKUP(N4,Hoja4!$H$2:$P$23,9,FALSE) -> 22 | G135: =D135/$D$136 -> 0.0001368244294
B136: Total | D136: =D135+D134+D133 -> 160790 | G136: =D136/$D$136 -> 1
B139: ="Para la Sección "&U127&" hay "&ROUND(VLOOKUP(U127,Hoja4!$H$2:$R$23,11,FALSE),0)&" mujeres por cada 100 hombres beneficiados del PAEF." -> Para la Sección A hay 53 mujeres por cada 100 hombres beneficiados del PAEF.
B152: ="Grupo o División de la sección "&U127 -> Grupo o División de la sección A | I152: Empleadores | M152: % | O152: Empleados | S152: %
B153: =IF(insumos2!BL2=0,"",insumos2!BL2) -> Agricultura, ganadería, caza y actividades de servicios conexas | I153: =IF(insumos2!BL2=0,"",insumos2!BM2) -> 3117 | M153: =IFERROR(I153/insumos2!$BJ$28,"") -> 0.915956509 | O153: =IF(insumos2!BN2=0,"",insumos2!BN2) -> 152852 | S153: =IFERROR(O153/insumos2!$BK$28,"") -> 0.9506312582
B154: =IF(insumos2!BL3=0,"",insumos2!BL3) -> Silvicultura y extracción de madera | I154: =IF(insumos2!BL3=0,"",insumos2!BM3) -> 167 | M154: =IFERROR(I154/insumos2!$BJ$28,"") -> 0.04907434617 | O154: =IF(insumos2!BN3=0,"",insumos2!BN3) -> 6141 | S154: =IFERROR(O154/insumos2!$BK$28,"") -> 0.03819267367
B155: =IF(insumos2!BL4=0,"",insumos2!BL4) -> Pesca y acuicultura | I155: =IF(insumos2!BL4=0,"",insumos2!BM4) -> 119 | M155: =IFERROR(I155/insumos2!$BJ$28,"") -> 0.03496914487 | O155: =IF(insumos2!BN4=0,"",insumos2!BN4) -> 1797 | S155: =IFERROR(O155/insumos2!$BK$28,"") -> 0.01117606816
B156: =IF(insumos2!BL5=0,"",insumos2!BL5) ->  | I156: =IF(insumos2!BL5=0,"",insumos2!BM5) ->  | M156: =IFERROR(I156/insumos2!$BJ$28,"") ->  | O156: =IF(insumos2!BN5=0,"",insumos2!BN5) ->  | S156: =IFERROR(O156/insumos2!$BK$28,"") -> 
B157: =IF(insumos2!BL6=0,"",insumos2!BL6) ->  | I157: =IF(insumos2!BL6=0,"",insumos2!BM6) ->  | M157: =IFERROR(I157/insumos2!$BJ$28,"") ->  | O157: =IF(insumos2!BN6=0,"",insumos2!BN6) ->  | S157: =IFERROR(O157/insumos2!$BK$28,"") -> 
B158: =IF(insumos2!BL7=0,"",insumos2!BL7) ->  | I158: =IF(insumos2!BL7=0,"",insumos2!BM7) ->  | M158: =IFERROR(I158/insumos2!$BJ$28,"") ->  | O158: =IF(insumos2!BN7=0,"",insumos2!BN7) ->  | S158: =IFERROR(O158/insumos2!$BK$28,"") -> 
B159: =IF(insumos2!BL8=0,"",insumos2!BL8) ->  | I159: =IF(insumos2!BL8=0,"",insumos2!BM8) ->  | M159: =IFERROR(I159/insumos2!$BJ$28,"") ->  | O159: =IF(insumos2!BN8=0,"",insumos2!BN8) ->  | S159: =IFERROR(O159/insumos2!$BK$28,"") -> 
B160: =IF(insumos2!BL9=0,"",insumos2!BL9) ->  | I160: =IF(insumos2!BL9=0,"",insumos2!BM9) ->  | M160: =IFERROR(I160/insumos2!$BJ$28,"") ->  | O160: =IF(insumos2!BN9=0,"",insumos2!BN9) ->  | S160: =IFERROR(O160/insumos2!$BK$28,"") -> 
B161: =IF(insumos2!BL10=0,"",insumos2!BL10) ->  | I161: =IF(insumos2!BL10=0,"",insumos2!BM10) ->  | M161: =IFERROR(I161/insumos2!$BJ$28,"") ->  | O161: =IF(insumos2!BN10=0,"",insumos2!BN10) ->  | S161: =IFERROR(O161/insumos2!$BK$28,"") -> 
B162: =IF(insumos2!BL11=0,"",insumos2!BL11) ->  | I162: =IF(insumos2!BL11=0,"",insumos2!BM11) ->  | M162: =IFERROR(I162/insumos2!$BJ$28,"") ->  | O162: =IF(insumos2!BN11=0,"",insumos2!BN11) ->  | S162: =IFERROR(O162/insumos2!$BK$28,"") -> 
B163: =IF(insumos2!BL12=0,"",insumos2!BL12) ->  | I163: =IF(insumos2!BL12=0,"",insumos2!BM12) ->  | M163: =IFERROR(I163/insumos2!$BJ$28,"") ->  | O163: =IF(insumos2!BN12=0,"",insumos2!BN12) ->  | S163: =IFERROR(O163/insumos2!$BK$28,"") -> 
B164: =IF(insumos2!BL13=0,"",insumos2!BL13) ->  | I164: =IF(insumos2!BL13=0,"",insumos2!BM13) ->  | M164: =IFERROR(I164/insumos2!$BJ$28,"") ->  | O164: =IF(insumos2!BN13=0,"",insumos2!BN13) ->  | S164: =IFERROR(O164/insumos2!$BK$28,"") -> 
B165: =IF(insumos2!BL14=0,"",insumos2!BL14) ->  | I165: =IF(insumos2!BL14=0,"",insumos2!BM14) ->  | M165: =IFERROR(I165/insumos2!$BJ$28,"") ->  | O165: =IF(insumos2!BN14=0,"",insumos2!BN14) ->  | S165: =IFERROR(O165/insumos2!$BK$28,"") -> 
B166: =IF(insumos2!BL15=0,"",insumos2!BL15) ->  | I166: =IF(insumos2!BL15=0,"",insumos2!BM15) ->  | M166: =IFERROR(I166/insumos2!$BJ$28,"") ->  | O166: =IF(insumos2!BN15=0,"",insumos2!BN15) ->  | S166: =IFERROR(O166/insumos2!$BK$28,"") -> 
B167: =IF(insumos2!BL16=0,"",insumos2!BL16) ->  | I167: =IF(insumos2!BL16=0,"",insumos2!BM16) ->  | M167: =IFERROR(I167/insumos2!$BJ$28,"") ->  | O167: =IF(insumos2!BN16=0,"",insumos2!BN16) ->  | S167: =IFERROR(O167/insumos2!$BK$28,"") -> 
B168: =IF(insumos2!BL17=0,"",insumos2!BL17) ->  | I168: =IF(insumos2!BL17=0,"",insumos2!BM17) ->  | M168: =IFERROR(I168/insumos2!$BJ$28,"") ->  | O168: =IF(insumos2!BN17=0,"",insumos2!BN17) ->  | S168: =IFERROR(O168/insumos2!$BK$28,"") -> 
B169: =IF(insumos2!BL18=0,"",insumos2!BL18) ->  | I169: =IF(insumos2!BL18=0,"",insumos2!BM18) ->  | M169: =IFERROR(I169/insumos2!$BJ$28,"") ->  | O169: =IF(insumos2!BN18=0,"",insumos2!BN18) ->  | S169: =IFERROR(O169/insumos2!$BK$28,"") -> 
B170: =IF(insumos2!BL19=0,"",insumos2!BL19) ->  | I170: =IF(insumos2!BL19=0,"",insumos2!BM19) ->  | M170: =IFERROR(I170/insumos2!$BJ$28,"") ->  | O170: =IF(insumos2!BN19=0,"",insumos2!BN19) ->  | S170: =IFERROR(O170/insumos2!$BK$28,"") -> 
B171: =IF(insumos2!BL20=0,"",insumos2!BL20) ->  | I171: =IF(insumos2!BL20=0,"",insumos2!BM20) ->  | M171: =IFERROR(I171/insumos2!$BJ$28,"") ->  | O171: =IF(insumos2!BN20=0,"",insumos2!BN20) ->  | S171: =IFERROR(O171/insumos2!$BK$28,"") -> 
B172: =IF(insumos2!BL21=0,"",insumos2!BL21) ->  | I172: =IF(insumos2!BL21=0,"",insumos2!BM21) ->  | M172: =IFERROR(I172/insumos2!$BJ$28,"") ->  | O172: =IF(insumos2!BN21=0,"",insumos2!BN21) ->  | S172: =IFERROR(O172/insumos2!$BK$28,"") -> 
B173: =IF(insumos2!BL22=0,"",insumos2!BL22) ->  | I173: =IF(insumos2!BL22=0,"",insumos2!BM22) ->  | M173: =IFERROR(I173/insumos2!$BJ$28,"") ->  | O173: =IF(insumos2!BN22=0,"",insumos2!BN22) ->  | S173: =IFERROR(O173/insumos2!$BK$28,"") -> 
B174: =IF(insumos2!BL23=0,"",insumos2!BL23) ->  | I174: =IF(insumos2!BL23=0,"",insumos2!BM23) ->  | M174: =IFERROR(I174/insumos2!$BJ$28,"") ->  | O174: =IF(insumos2!BN23=0,"",insumos2!BN23) ->  | S174: =IFERROR(O174/insumos2!$BK$28,"") -> 
B175: =IF(insumos2!BL24=0,"",insumos2!BL24) ->  | I175: =IF(insumos2!BL24=0,"",insumos2!BM24) ->  | M175: =IFERROR(I175/insumos2!$BJ$28,"") ->  | O175: =IF(insumos2!BN24=0,"",insumos2!BN24) ->  | S175: =IFERROR(O175/insumos2!$BK$28,"") -> 
B176: =IF(insumos2!BL25=0,"",insumos2!BL25) ->  | I176: =IF(insumos2!BL25=0,"",insumos2!BM25) ->  | M176: =IFERROR(I176/insumos2!$BJ$28,"") ->  | O176: =IF(insumos2!BN25=0,"",insumos2!BN25) ->  | S176: =IFERROR(O176/insumos2!$BK$28,"") -> 
B177: =IF(insumos2!BL26=0,"",insumos2!BL26) ->  | I177: =IF(insumos2!BL26=0,"",insumos2!BM26) ->  | M177: =IFERROR(I177/insumos2!$BJ$28,"") ->  | O177: =IF(insumos2!BN26=0,"",insumos2!BN26) ->  | S177: =IFERROR(O177/insumos2!$BK$28,"") -> 
B180: Postulaciones recibidas en la sección | F180: Cantidad | I180: % | L180: Empleados postulados en la sección | P180: Cantidad | S180: %
B181: Total solicitudes | F181: =COUNT(insumos2!$Y$2:$Y$399999) -> 3920 | I181: =F181/$F$181 -> 1 | L181: Total empleados | P181: =SUM(insumos2!$Y$2:$Z$399999) -> 182365 | S181: =P181/$P$181 -> 1
B182: Empleadores con beneficiados | F182: =COUNTIFS(insumos2!$AD$2:$AD$399999,"Aprobado con subsidio") -> 3403 | I182: =F182/$F$181 -> 0.8681122449 | L182: Conformidad | P182: =SUMIFS(insumos2!$Y$2:$Y$399999,insumos2!$AD$2:$AD$399999,"Aprobado con subsidio") -> 160790 | S182: =P182/$P$181 -> 0.8816933074
B183: Empleadores sin beneficio | F183: =F181-F182 -> 517 | I183: =F183/$F$181 -> 0.1318877551 | L183: No conformidad | P183: =P181-P182 -> 21575 | S183: =P183/$P$181 -> 0.1183066926

Sheet insumos1 (hidden)
A1: Ciclo | B1: DIVIPOLA1 | C1: MpioNOM | D1: Depto | E1: DeptoNOM | F1: NOM_AECONOMICA1 | G1: SECTOR_ECONOMICO1 | H1: actividad | I1: TIPO_PERSONA1 | J1: SIZE1 | K1: Suma de RECURSOS1 | Q1: Suma de Suma de RECURSOS1 | R1: Etiquetas de columna
A2: 2 | B2: 5001 | C2: MEDELLÍN | D2: 5 | E2: ANTIOQUIA | F2: ACTIVIDADES ARTÍSTICAS, DE ENTRETENIMIENTO Y RECREACIÓN | G2: 9002 | H2: R | I2: Jurídica | J2: MICRO | K2: 702000 | Q2: Etiquetas de fila | R2: 1 | S2: 2 | T2: 3 | U2: 4 | V2: 5 | W2: 6 | X2: 7 | Y2: 8 | Z2: 9 | AA2: 10 | AB2: 11 | AC2: EO_SA | AD2: EO_TOTAL | AE2: Total general
A3: 2 | B3: 5001 | C3: MEDELLÍN | D3: 5 | E3: ANTIOQUIA | F3: ACTIVIDADES ARTÍSTICAS, DE ENTRETENIMIENTO Y RECREACIÓN | G3: 9002 | H3: R | I3: Jurídica | J3: PEQUEÑA | K3: 9126000 | Q3: ACTIVIDADES ARTÍSTICAS, DE ENTRETENIMIENTO Y RECREACIÓN | R3: 15487875000 | S3: 15599142000 | T3: 12897144000 | U3: 11213397000 | V3: 13012425000 | W3: 11462866000 | X3: 11571104000 | Y3: 11202419000 | Z3: 11060261000 | AA3: 11675829000 | AB3: 10661911000 | AC3: 4176688000 | AD3: 240608000 | AE3: 140261669000
A4: 2 | B4: 5001 | C4: MEDELLÍN | D4: 5 | E4: ANTIOQUIA | F4: ACTIVIDADES ARTÍSTICAS, DE ENTRETENIMIENTO Y RECREACIÓN | G4: 9003 | H4: R | I4: Jurídica | J4: MICRO | K4: 351000 | Q4: ACTIVIDADES DE ATENCIÓN DE LA SALUD HUMANA Y DE ASISTENCIA SOCIAL | R4: 63169470000 | S4: 59343570000 | T4: 43074720000 | U4: 34766199000 | V4: 33470467000 | W4: 26348770000 | X4: 24864742000 | Y4: 21808556000 | Z4: 21944785000 | AA4: 22446095000 | AB4: 19709237000 | AC4: 4906018000 | AD4: 788808000 | AE4: 376641437000
A5: 2 | B5: 5001 | C5: MEDELLÍN | D5: 5 | E5: ANTIOQUIA | F5: ACTIVIDADES ARTÍSTICAS, DE ENTRETENIMIENTO Y RECREACIÓN | G5: 9004 | H5: R | I5: Jurídica | J5: MICRO | K5: 22464000 | Q5: ACTIVIDADES DE LOS HOGARES INDIVIDUALES EN CALIDAD DE EMPLEADORES; ACTIVIDADES NO DIFERENCIADAS DE LOS HOGARES INDIVIDUALES COMO PRODUCTORES DE BIENES Y SERVICIOS PARA USO PROPIO | R5: 53703000 | S5: 64233000 | T5: 50544000 | U5: 59319000 | V5: 45995000 | W5: 48629000 | X5: 47840000 | Y5: 51263000 | Z5: 66816000 | AA5: 50743000 | AB5: 73898000 | AC5: 2195000 | AE5: 615178000
A6: 2 | B6: 5001 | C6: MEDELLÍN | D6: 5 | E6: ANTIOQUIA | F6: ACTIVIDADES ARTÍSTICAS, DE ENTRETENIMIENTO Y RECREACIÓN | G6: 9004 | H6: R | I6: Jurídica | J6: PEQUEÑA | K6: 3861000 | Q6: ACTIVIDADES DE ORGANIZACIONES Y ENTIDADES EXTRATERRITORIALES | R6: 6669000 | S6: 37206000 | T6: 15444000 | U6: 15093000 | V6: 12992000 | W6: 7550000 | X6: 7550000 | Y6: 10536000 | Z6: 4994000 | AA6: 20239000 | AD6: 11583000 | AE6: 149856000
A7: 2 | B7: 5001 | C7: MEDELLÍN | D7: 5 | E7: ANTIOQUIA | F7: ACTIVIDADES ARTÍSTICAS, DE ENTRETENIMIENTO Y RECREACIÓN | G7: 9005 | H7: R | I7: Jurídica | J7: GRANDE | K7: 48438000 | Q7: ACTIVIDADES DE SERVICIOS ADMINISTRATIVOS Y DE APOYO | R7: 133808922000 | S7: 147424914000 | T7: 135768204000 | U7: 117859833000 | V7: 122010438000 | W7: 117864897000 | X7: 111245264000 | Y7: 83641688000 | Z7: 78337356000 | AA7: 86002923000 | AB7: 73768010000 | AC7: 17959704000 | AD7: 3059624000 | AE7: 1228751777000
A8: 2 | B8: 5001 | C8: MEDELLÍN | D8: 5 | E8: ANTIOQUIA | F8: ACTIVIDADES ARTÍSTICAS, DE ENTRETENIMIENTO Y RECREACIÓN | G8: 9005 | H8: R | I8: Jurídica | J8: MICRO | K8: 2106000 | Q8: ACTIVIDADES FINANCIERAS Y DE SEGUROS | R8: 7252011000 | S8: 7563348000 | T8: 5637060000 | U8: 4417335000 | V8: 4775651000 | W8: 4210516000 | X8: 4417323000 | Y8: 3828825000 | Z8: 3185105000 | AA8: 3331751000 | AB8: 2588258000 | AC8: 705981000 | AD8: 137419000 | AE8: 52050583000
A9: 2 | B9: 5001 | C9: MEDELLÍN | D9: 5 | E9: ANTIOQUIA | F9: ACTIVIDADES ARTÍSTICAS, DE ENTRETENIMIENTO Y RECREACIÓN | G9: 9006 | H9: R | I9: Jurídica | J9: MICRO | K9: 17199000 | Q9: ACTIVIDADES INMOBILIARIAS | R9: 8052642000 | S9: 8673561000 | T9: 7076511000 | U9: 7244991000 | V9: 7637814000 | W9: 7404676000 | X9: 7099201000 | Y9: 5951076000 | Z9: 6224999000 | AA9: 6208288000 | AB9: 5656808000 | AC9: 1884147000 | AD9: 361989000 | AE9: 79476703000
A10: 2 | B10: 5001 | C10: MEDELLÍN | D10: 5 | E10: ANTIOQUIA | F10: ACTIVIDADES ARTÍSTICAS, DE ENTRETENIMIENTO Y RECREACIÓN | G10: 9006 | H10: R | I10: Jurídica | J10: PEQUEÑA | K10: 12987000 | Q10: ACTIVIDADES PROFESIONALES, CIENTÍFICAS Y TÉCNICAS | R10: 38787255000 | S10: 44501535000 | T10: 42058926000 | U10: 36757422000 | V10: 42561024000 | W10: 38047358000 | X10: 33171472000 | Y10: 27017263000 | Z10: 31363570000 | AA10: 31329788000 | AB10: 28294315000 | AC10: 9064014000 | AD10: 914818000 | AE10: 403868760000
A11: 2 | B11: 5001 | C11: MEDELLÍN | D11: 5 | E11: ANTIOQUIA | F11: ACTIVIDADES ARTÍSTICAS, DE ENTRETENIMIENTO Y RECREACIÓN | G11: 9007 | H11: R | I11: Jurídica | J11: MEDIANA | K11: 19305000 | Q11: ADMINISTRACIÓN PÚBLICA Y DEFENSA; PLANES DE SEGURIDAD SOCIAL DE AFILIACIÓN OBLIGATORIA | R11: 841698000 | S11: 1175499000 | T11: 4308876000 | U11: 1197261000 | V11: 5325234000 | W11: 5334473000 | X11: 5320268000 | Y11: 4800503000 | Z11: 4359920000 | AA11: 870291000 | AB11: 1102633000 | AC11: 3123248000 | AD11: 13571000 | AE11: 37773475000
A12: 2 | B12: 5001 | C12: MEDELLÍN | D12: 5 | E12: ANTIOQUIA | F12: ACTIVIDADES ARTÍSTICAS, DE ENTRETENIMIENTO Y RECREACIÓN | G12: 9007 | H12: R | I12: Jurídica | J12: MICRO | K12: 17550000 | Q12: AGRICULTURA, GANADERÍA, CAZA, SILVICULTURA Y PESCA | R12: 29879577000 | S12: 31821309000 | T12: 29911167000 | U12: 23507172000 | V12: 21901099000 | W12: 17863871000 | X12: 17712151000 | Y12: 14413350000 | Z12: 17532894000 | AA12: 12241882000 | AB12: 10714729000 | AC12: 8590335000 | AD12: 1735306000 | AE12: 237824842000
A13: 2 | B13: 5001 | C13: MEDELLÍN | D13: 5 | E13: ANTIOQUIA | F13: ACTIVIDADES ARTÍSTICAS, DE ENTRETENIMIENTO Y RECREACIÓN | G13: 9007 | H13: R | I13: Jurídica | J13: PEQUEÑA | K13: 31941000 | Q13: ALOJAMIENTO Y SERVICIOS DE COMIDA | R13: 37098594000 | S13: 36363951000 | T13: 33191262000 | U13: 30448548000 | V13: 33634135000 | W13: 31534904000 | X13: 27308304000 | Y13: 25650039000 | Z13: 27754359000 | AA13: 30925183000 | AB13: 25833243000 | AC13: 2046446000 | AD13: 3845766000 | AE13: 345634734000
A14: 2 | B14: 5001 | C14: MEDELLÍN | D14: 5 | E14: ANTIOQUIA | F14: ACTIVIDADES ARTÍSTICAS, DE ENTRETENIMIENTO Y RECREACIÓN | G14: 9007 | H14: R | I14: Natural | J14: MICRO | K14: 1755000 | Q14: COMERCIO AL POR MAYOR Y AL POR MENOR; REPARACIÓN DE VEHÍCULOS AUTOMOTORES Y MOTOCICLETAS | R14: 160029324000 | S14: 151233966000 | T14: 120997773000 | U14: 106466724000 | V14: 101776309000 | W14: 83140825000 | X14: 77206118000 | Y14: 63588260000 | Z14: 66304104000 | AA14: 85241054000 | AC14: 12259238000 | AE14: 1028243695000
A15: 2 | B15: 5001 | C15: MEDELLÍN | D15: 5 | E15: ANTIOQUIA | F15: ACTIVIDADES ARTÍSTICAS, DE ENTRETENIMIENTO Y RECREACIÓN | G15: 9008 | H15: R | I15: Jurídica | J15: MICRO | K15: 9477000 | Q15: COMERCIO AL POR MAYOR Y AL POR MENOR; REPARACIÓN DE VEHÍCULOS AUTOMOTORES Y MOTOCICLETAS. | AB15: 64540497000 | AD15: 2221938000 | AE15: 66762435000
A16: 2 | B16: 5001 | C16: MEDELLÍN | D16: 5 | E16: ANTIOQUIA | F16: ACTIVIDADES ARTÍSTICAS, DE ENTRETENIMIENTO Y RECREACIÓN | G16: 9008 | H16: R | I16: Jurídica | J16: PEQUEÑA | K16: 4212000 | Q16: CONSTRUCCIÓN | R16: 59637006000 | S16: 68136822000 | T16: 64444653000 | U16: 58476951000 | V16: 50573115000 | W16: 50366303000 | X16: 47593881000 | Y16: 43325865000 | Z16: 38946646000 | AA16: 44852815000 | AB16: 42488115000 | AC16: 6756983000 | AD16: 1854078000 | AE16: 577453233000
A17: 2 | B17: 5001 | C17: MEDELLÍN | D17: 5 | E17: ANTIOQUIA | F17: ACTIVIDADES ARTÍSTICAS, DE ENTRETENIMIENTO Y RECREACIÓN | G17: 9101 | H17: R | I17: Jurídica | J17: MICRO | K17: 2106000 | Q17: DISTRIBUCIÓN DE AGUA; EVACUACIÓN Y TRATAMIENTO DE AGUAS RESIDUALES, GESTIÓN DE DESECHOS Y ACTIVIDADES DE SANEAMIENTO AMBIENTAL | R17: 3493152000 | S17: 3403998000 | T17: 4203225000 | U17: 2494908000 | V17: 2012691000 | W17: 1897715000 | X17: 1757712000 | Y17: 1665455000 | Z17: 1541508000 | AA17: 1622823000 | AB17: 1218578000 | AC17: 257212000 | AD17: 9316000 | AE17: 25578293000
A18: 2 | B18: 5001 | C18: MEDELLÍN | D18: 5 | E18: ANTIOQUIA | F18: ACTIVIDADES ARTÍSTICAS, DE ENTRETENIMIENTO Y RECREACIÓN | G18: 9101 | H18: R | I18: Jurídica | J18: PEQUEÑA | K18: 5616000 | Q18: EDUCACIÓN | R18: 27161784000 | S18: 29268486000 | T18: 26893269000 | U18: 28889757000 | V18: 31233825000 | W18: 29896995000 | X18: 30011790000 | Y18: 23380372000 | Z18: 15114704000 | AA18: 15513482000 | AB18: 20530311000 | AC18: 4561508000 | AD18: 517557000 | AE18: 282973840000
A19: 2 | B19: 5001 | C19: MEDELLÍN | D19: 5 | E19: ANTIOQUIA | F19: ACTIVIDADES ARTÍSTICAS, DE ENTRETENIMIENTO Y RECREACIÓN | G19: 9102 | H19: R | I19: Jurídica | J19: GRANDE | K19: 99684000 | Q19: EXPLOTACIÓN DE MINAS Y CANTERAS | R19: 11917503000 | S19: 12650040000 | T19: 12428910000 | U19: 11866959000 | V19: 9389242000 | W19: 9148594000 | X19: 7355448000 | Y19: 8388868000 | Z19: 8211359000 | AA19: 5644153000 | AB19: 5851554000 | AC19: 721720000 | AD19: 65389000 | AE19: 103639739000
A20: 2 | B20: 5001 | C20: MEDELLÍN | D20: 5 | E20: ANTIOQUIA | F20: ACTIVIDADES ARTÍSTICAS, DE ENTRETENIMIENTO Y RECREACIÓN | G20: 9102 | H20: R | I20: Jurídica | J20: MEDIANA | K20: 25623000 | Q20: INDUSTRIAS MANUFACTURERAS | R20: 147655521000 | S20: 141350157000 | T20: 113489883000 | U20: 93844764000 | V20: 93837609000 | W20: 74405105000 | X20: 67748738000 | Y20: 59465421000 | Z20: 57514549000 | AA20: 71463338000 | AB20: 62642202000 | AC20: 10585445000 | AD20: 2111282000 | AE20: 996114014000
A21: 2 | B21: 5001 | C21: MEDELLÍN | D21: 5 | E21: ANTIOQUIA | F21: ACTIVIDADES ARTÍSTICAS, DE ENTRETENIMIENTO Y RECREACIÓN | G21: 9102 | H21: R | I21: Jurídica | J21: MICRO | K21: 1755000 | Q21: INFORMACIÓN Y COMUNICACIONES | R21: 22157577000 | S21: 19511739000 | T21: 19300437000 | U21: 15005250000 | V21: 14974249000 | W21: 13390190000 | X21: 12263220000 | Y21: 10040469000 | Z21: 9773523000 | AA21: 11483698000 | AB21: 9430071000 | AC21: 1685650000 | AD21: 933942000 | AE21: 159950015000
A22: 2 | B22: 5001 | C22: MEDELLÍN | D22: 5 | E22: ANTIOQUIA | F22: ACTIVIDADES ARTÍSTICAS, DE ENTRETENIMIENTO Y RECREACIÓN | G22: 9102 | H22: R | I22: Jurídica | J22: PEQUEÑA | K22: 7020000 | Q22: OTRAS | R22: 21411000 | S22: 48438000 | T22: 51948000 | U22: 43173000 | V22: 34494000 | W22: 38618000 | X22: 29053000 | Y22: 18169000 | Z22: 18064000 | AA22: 16067000 | AB22: 16521000 | AE22: 335956000
A23: 2 | B23: 5001 | C23: MEDELLÍN | D23: 5 | E23: ANTIOQUIA | F23: ACTIVIDADES ARTÍSTICAS, DE ENTRETENIMIENTO Y RECREACIÓN | G23: 9103 | H23: R | I23: Jurídica | J23: GRANDE | K23: 169533000 | Q23: OTRAS ACTIVIDADES DE SERVICIOS | R23: 18685836000 | S23: 19227780000 | T23: 16021044000 | U23: 13804830000 | V23: 14740328000 | W23: 13756463000 | X23: 13855824000 | Y23: 11248425000 | Z23: 12183466000 | AA23: 11368761000 | AB23: 10701251000 | AC23: 3028864000 | AD23: 690390000 | AE23: 159313262000
A24: 2 | B24: 5001 | C24: MEDELLÍN | D24: 5 | E24: ANTIOQUIA | F24: ACTIVIDADES ARTÍSTICAS, DE ENTRETENIMIENTO Y RECREACIÓN | G24: 9200 | H24: R | I24: Jurídica | J24: MEDIANA | K24: 102843000 | Q24: SUMINISTRO DE ELECTRICIDAD, GAS, VAPOR Y AIRE ACONDICIONADO | R24: 611793000 | S24: 661284000 | T24: 421902000 | U24: 547911000 | V24: 404594000 | W24: 302352000 | X24: 259519000 | Y24: 257848000 | Z24: 301357000 | AA24: 149310000 | AB24: 263130000 | AC24: 115934000 | AE24: 4296934000
A25: 2 | B25: 5001 | C25: MEDELLÍN | D25: 5 | E25: ANTIOQUIA | F25: ACTIVIDADES ARTÍSTICAS, DE ENTRETENIMIENTO Y RECREACIÓN | G25: 9200 | H25: R | I25: Jurídica | J25: MICRO | K25: 13689000 | Q25: TRANSPORTE Y ALMACENAMIENTO | R25: 69643314000 | S25: 65129805000 | T25: 55977480000 | U25: 47176155000 | V25: 47190439000 | W25: 44541004000 | X25: 45504585000 | Y25: 38474533000 | Z25: 42841372000 | AA25: 43788614000 | AB25: 43173234000 | AC25: 8556974000 | AD25: 1801103000 | AE25: 553798612000
A26: 2 | B26: 5001 | C26: MEDELLÍN | D26: 5 | E26: ANTIOQUIA | F26: ACTIVIDADES ARTÍSTICAS, DE ENTRETENIMIENTO Y RECREACIÓN | G26: 9200 | H26: R | I26: Jurídica | J26: MUY GRANDE | K26: 1692873000 | Q26: Total general | R26: 855452637000 | S26: 863190783000 | T26: 748220382000 | U26: 646103952000 | V26: 650554169000 | W26: 581012674000 | X26: 546351107000 | Y26: 458229203000 | Z26: 454585711000 | AA26: 496247127000 | AB26: 439258506000 | AC26: 100988304000 | AD26: 21314487000 | AE26: 6861509042000
A27: 2 | B27: 5001 | C27: MEDELLÍN | D27: 5 | E27: ANTIOQUIA | F27: ACTIVIDADES ARTÍSTICAS, DE ENTRETENIMIENTO Y RECREACIÓN | G27: 9200 | H27: R | I27: Jurídica | J27: PEQUEÑA | K27: 115479000
A28: 2 | B28: 5001 | C28: MEDELLÍN | D28: 5 | E28: ANTIOQUIA | F28: ACTIVIDADES ARTÍSTICAS, DE ENTRETENIMIENTO Y RECREACIÓN | G28: 9200 | H28: R | I28: Natural | J28: MICRO | K28: 8775000
A29: 2 | B29: 5001 | C29: MEDELLÍN | D29: 5 | E29: ANTIOQUIA | F29: ACTIVIDADES ARTÍSTICAS, DE ENTRETENIMIENTO Y RECREACIÓN | G29: 9311 | H29: R | I29: Jurídica | J29: MICRO | K29: 5616000
A30: 2 | B30: 5001 | C30: MEDELLÍN | D30: 5 | E30: ANTIOQUIA | F30: ACTIVIDADES ARTÍSTICAS, DE ENTRETENIMIENTO Y RECREACIÓN | G30: 9311 | H30: R | I30: Jurídica | J30: MUY GRANDE | K30: 46683000
A31: 2 | B31: 5001 | C31: MEDELLÍN | D31: 5 | E31: ANTIOQUIA | F31: ACTIVIDADES ARTÍSTICAS, DE ENTRETENIMIENTO Y RECREACIÓN | G31: 9311 | H31: R | I31: Jurídica | J31: PEQUEÑA | K31: 7722000
A32: 2 | B32: 5001 | C32: MEDELLÍN | D32: 5 | E32: ANTIOQUIA | F32: ACTIVIDADES ARTÍSTICAS, DE ENTRETENIMIENTO Y RECREACIÓN | G32: 9312 | H32: R | I32: Jurídica | J32: GRANDE | K32: 193752000
A33: 2 | B33: 5001 | C33: MEDELLÍN | D33: 5 | E33: ANTIOQUIA | F33: ACTIVIDADES ARTÍSTICAS, DE ENTRETENIMIENTO Y RECREACIÓN | G33: 9312 | H33: R | I33: Jurídica | J33: MEDIANA | K33: 75114000
A34: 2 | B34: 5001 | C34: MEDELLÍN | D34: 5 | E34: ANTIOQUIA | F34: ACTIVIDADES ARTÍSTICAS, DE ENTRETENIMIENTO Y RECREACIÓN | G34: 9312 | H34: R | I34: Jurídica | J34: MICRO | K34: 14391000
A35: 2 | B35: 5001 | C35: MEDELLÍN | D35: 5 | E35: ANTIOQUIA | F35: ACTIVIDADES ARTÍSTICAS, DE ENTRETENIMIENTO Y RECREACIÓN | G35: 9312 | H35: R | I35: Jurídica | J35: PEQUEÑA | K35: 5265000
A36: 2 | B36: 5001 | C36: MEDELLÍN | D36: 5 | E36: ANTIOQUIA | F36: ACTIVIDADES ARTÍSTICAS, DE ENTRETENIMIENTO Y RECREACIÓN | G36: 9319 | H36: R | I36: Jurídica | J36: MICRO | K36: 10881000 | Q36: ACTIVIDADES ARTÍSTICAS, DE ENTRETENIMIENTO Y RECREACIÓN
A37: 2 | B37: 5001 | C37: MEDELLÍN | D37: 5 | E37: ANTIOQUIA | F37: ACTIVIDADES ARTÍSTICAS, DE ENTRETENIMIENTO Y RECREACIÓN | G37: 9319 | H37: R | I37: Jurídica | J37: PEQUEÑA | K37: 20709000 | Q37: ACTIVIDADES DE ATENCIÓN DE LA SALUD HUMANA Y DE ASISTENCIA SOCIAL
A38: 2 | B38: 5001 | C38: MEDELLÍN | D38: 5 | E38: ANTIOQUIA | F38: ACTIVIDADES ARTÍSTICAS, DE ENTRETENIMIENTO Y RECREACIÓN | G38: 9321 | H38: R | I38: Jurídica | J38: MEDIANA | K38: 27729000 | Q38: ACTIVIDADES DE LOS HOGARES INDIVIDUALES EN CALIDAD DE EMPLEADORES; ACTIVIDADES NO DIFERENCIADAS DE LOS HOGARES INDIVIDUALES COMO PRODUCTORES DE BIENES Y SERVICIOS PARA USO PROPIO
A39: 2 | B39: 5001 | C39: MEDELLÍN | D39: 5 | E39: ANTIOQUIA | F39: ACTIVIDADES ARTÍSTICAS, DE ENTRETENIMIENTO Y RECREACIÓN | G39: 9321 | H39: R | I39: Jurídica | J39: PEQUEÑA | K39: 16146000 | Q39: ACTIVIDADES DE ORGANIZACIONES Y ENTIDADES EXTRATERRITORIALES
A40: 2 | B40: 5001 | C40: MEDELLÍN | D40: 5 | E40: ANTIOQUIA | F40: ACTIVIDADES ARTÍSTICAS, DE ENTRETENIMIENTO Y RECREACIÓN | G40: 9329 | H40: R | I40: Jurídica | J40: GRANDE | K40: 117936000 | Q40: ACTIVIDADES DE SERVICIOS ADMINISTRATIVOS Y DE APOYO
A41: 2 | B41: 5001 | C41: MEDELLÍN | D41: 5 | E41: ANTIOQUIA | F41: ACTIVIDADES ARTÍSTICAS, DE ENTRETENIMIENTO Y RECREACIÓN | G41: 9329 | H41: R | I41: Jurídica | J41: MICRO | K41: 16497000 | Q41: ACTIVIDADES FINANCIERAS Y DE SEGUROS
A42: 2 | B42: 5001 | C42: MEDELLÍN | D42: 5 | E42: ANTIOQUIA | F42: ACTIVIDADES ARTÍSTICAS, DE ENTRETENIMIENTO Y RECREACIÓN | G42: 9329 | H42: R | I42: Jurídica | J42: PEQUEÑA | K42: 24921000 | Q42: ACTIVIDADES INMOBILIARIAS
A43: 2 | B43: 5001 | C43: MEDELLÍN | D43: 5 | E43: ANTIOQUIA | F43: ACTIVIDADES ARTÍSTICAS, DE ENTRETENIMIENTO Y RECREACIÓN | G43: 9329 | H43: R | I43: Natural | J43: MICRO | K43: 2106000 | Q43: ACTIVIDADES PROFESIONALES, CIENTÍFICAS Y TÉCNICAS
A44: 2 | B44: 5001 | C44: MEDELLÍN | D44: 5 | E44: ANTIOQUIA | F44: ACTIVIDADES ARTÍSTICAS, DE ENTRETENIMIENTO Y RECREACIÓN | G44: 9329 | H44: R | I44: Natural | J44: PEQUEÑA | K44: 9477000 | Q44: ADMINISTRACIÓN PÚBLICA Y DEFENSA; PLANES DE SEGURIDAD SOCIAL DE AFILIACIÓN OBLIGATORIA
A45: 2 | B45: 5001 | C45: MEDELLÍN | D45: 5 | E45: ANTIOQUIA | F45: ACTIVIDADES DE ATENCIÓN DE LA SALUD HUMANA Y DE ASISTENCIA SOCIAL | G45: 8610 | H45: Q | I45: Jurídica | J45: GRANDE | K45: 119691000 | Q45: AGRICULTURA, GANADERÍA, CAZA, SILVICULTURA Y PESCA
A46: 2 | B46: 5001 | C46: MEDELLÍN | D46: 5 | E46: ANTIOQUIA | F46: ACTIVIDADES DE ATENCIÓN DE LA SALUD HUMANA Y DE ASISTENCIA SOCIAL | G46: 8610 | H46: Q | I46: Jurídica | J46: MEDIANA | K46: 295542000 | Q46: ALOJAMIENTO Y SERVICIOS DE COMIDA
A47: 2 | B47: 5001 | C47: MEDELLÍN | D47: 5 | E47: ANTIOQUIA | F47: ACTIVIDADES DE ATENCIÓN DE LA SALUD HUMANA Y DE ASISTENCIA SOCIAL | G47: 8610 | H47: Q | I47: Jurídica | J47: MICRO | K47: 19656000 | Q47: COMERCIO AL POR MAYOR Y AL POR MENOR; REPARACIÓN DE VEHÍCULOS AUTOMOTORES Y MOTOCICLETAS
A48: 2 | B48: 5001 | C48: MEDELLÍN | D48: 5 | E48: ANTIOQUIA | F48: ACTIVIDADES DE ATENCIÓN DE LA SALUD HUMANA Y DE ASISTENCIA SOCIAL | G48: 8610 | H48: Q | I48: Jurídica | J48: MUY GRANDE | K48: 3212703000 | Q48: COMERCIO AL POR MAYOR Y AL POR MENOR; REPARACIÓN DE VEHÍCULOS AUTOMOTORES Y MOTOCICLETAS.
A49: 2 | B49: 5001 | C49: MEDELLÍN | D49: 5 | E49: ANTIOQUIA | F49: ACTIVIDADES DE ATENCIÓN DE LA SALUD HUMANA Y DE ASISTENCIA SOCIAL | G49: 8610 | H49: Q | I49: Jurídica | J49: PEQUEÑA | K49: 30186000 | Q49: CONSTRUCCIÓN
A50: 2 | B50: 5001 | C50: MEDELLÍN | D50: 5 | E50: ANTIOQUIA | F50: ACTIVIDADES DE ATENCIÓN DE LA SALUD HUMANA Y DE ASISTENCIA SOCIAL | G50: 8610 | H50: Q | I50: Natural | J50: MICRO | K50: 1404000 | Q50: DISTRIBUCIÓN DE AGUA; EVACUACIÓN Y TRATAMIENTO DE AGUAS RESIDUALES, GESTIÓN DE DESECHOS Y ACTIVIDADES DE SANEAMIENTO AMBIENTAL
A51: 2 | B51: 5001 | C51: MEDELLÍN | D51: 5 | E51: ANTIOQUIA | F51: ACTIVIDADES DE ATENCIÓN DE LA SALUD HUMANA Y DE ASISTENCIA SOCIAL | G51: 8621 | H51: Q | I51: Jurídica | J51: GRANDE | K51: 343980000 | Q51: EDUCACIÓN
A52: 2 | B52: 5001 | C52: MEDELLÍN | D52: 5 | E52: ANTIOQUIA | F52: ACTIVIDADES DE ATENCIÓN DE LA SALUD HUMANA Y DE ASISTENCIA SOCIAL | G52: 8621 | H52: Q | I52: Jurídica | J52: MEDIANA | K52: 356967000 | Q52: EXPLOTACIÓN DE MINAS Y CANTERAS
A53: 2 | B53: 5001 | C53: MEDELLÍN | D53: 5 | E53: ANTIOQUIA | F53: ACTIVIDADES DE ATENCIÓN DE LA SALUD HUMANA Y DE ASISTENCIA SOCIAL | G53: 8621 | H53: Q | I53: Jurídica | J53: MICRO | K53: 157950000 | Q53: INDUSTRIAS MANUFACTURERAS
A54: 2 | B54: 5001 | C54: MEDELLÍN | D54: 5 | E54: ANTIOQUIA | F54: ACTIVIDADES DE ATENCIÓN DE LA SALUD HUMANA Y DE ASISTENCIA SOCIAL | G54: 8621 | H54: Q | I54: Jurídica | J54: MUY GRANDE | K54: 743067000 | Q54: INFORMACIÓN Y COMUNICACIONES
A55: 2 | B55: 5001 | C55: MEDELLÍN | D55: 5 | E55: ANTIOQUIA | F55: ACTIVIDADES DE ATENCIÓN DE LA SALUD HUMANA Y DE ASISTENCIA SOCIAL | G55: 8621 | H55: Q | I55: Jurídica | J55: PEQUEÑA | K55: 309582000 | Q55: OTRAS
A56: 2 | B56: 5001 | C56: MEDELLÍN | D56: 5 | E56: ANTIOQUIA | F56: ACTIVIDADES DE ATENCIÓN DE LA SALUD HUMANA Y DE ASISTENCIA SOCIAL | G56: 8621 | H56: Q | I56: Natural | J56: MICRO | K56: 9828000 | Q56: OTRAS ACTIVIDADES DE SERVICIOS
A57: 2 | B57: 5001 | C57: MEDELLÍN | D57: 5 | E57: ANTIOQUIA | F57: ACTIVIDADES DE ATENCIÓN DE LA SALUD HUMANA Y DE ASISTENCIA SOCIAL | G57: 8622 | H57: Q | I57: Jurídica | J57: MEDIANA | K57: 82134000 | Q57: SUMINISTRO DE ELECTRICIDAD, GAS, VAPOR Y AIRE ACONDICIONADO
A58: 2 | B58: 5001 | C58: MEDELLÍN | D58: 5 | E58: ANTIOQUIA | F58: ACTIVIDADES DE ATENCIÓN DE LA SALUD HUMANA Y DE ASISTENCIA SOCIAL | G58: 8622 | H58: Q | I58: Jurídica | J58: MICRO | K58: 100035000 | Q58: TRANSPORTE Y ALMACENAMIENTO
A59: 2 | B59: 5001 | C59: MEDELLÍN | D59: 5 | E59: ANTIOQUIA | F59: ACTIVIDADES DE ATENCIÓN DE LA SALUD HUMANA Y DE ASISTENCIA SOCIAL | G59: 8622 | H59: Q | I59: Jurídica | J59: PEQUEÑA | K59: 106353000 | Q59: ACTIVIDADES PROFESIONALES, CIENTÍFICAS Y TÉCNICAS
A60: 2 | B60: 5001 | C60: MEDELLÍN | D60: 5 | E60: ANTIOQUIA | F60: ACTIVIDADES DE ATENCIÓN DE LA SALUD HUMANA Y DE ASISTENCIA SOCIAL | G60: 8622 | H60: Q | I60: Natural | J60: MICRO | K60: 23166000 | Q60: ADMINISTRACIÓN PUBLICA Y DEFENSA; PLANES DE SEGURIDAD SOCIAL DE AFILIACIÓN OBLIGATORIA
A61: 2 | B61: 5001 | C61: MEDELLÍN | D61: 5 | E61: ANTIOQUIA | F61: ACTIVIDADES DE ATENCIÓN DE LA SALUD HUMANA Y DE ASISTENCIA SOCIAL | G61: 8691 | H61: Q | I61: Jurídica | J61: GRANDE | K61: 106353000
A62: 2 | B62: 5001 | C62: MEDELLÍN | D62: 5 | E62: ANTIOQUIA | F62: ACTIVIDADES DE ATENCIÓN DE LA SALUD HUMANA Y DE ASISTENCIA SOCIAL | G62: 8691 | H62: Q | I62: Jurídica | J62: MEDIANA | K62: 285012000
A63: 2 | B63: 5001 | C63: MEDELLÍN | D63: 5 | E63: ANTIOQUIA | F63: ACTIVIDADES DE ATENCIÓN DE LA SALUD HUMANA Y DE ASISTENCIA SOCIAL | G63: 8691 | H63: Q | I63: Jurídica | J63: MICRO | K63: 60021000
A64: 2 | B64: 5001 | C64: MEDELLÍN | D64: 5 | E64: ANTIOQUIA | F64: ACTIVIDADES DE ATENCIÓN DE LA SALUD HUMANA Y DE ASISTENCIA SOCIAL | G64: 8691 | H64: Q | I64: Jurídica | J64: PEQUEÑA | K64: 182871000
A65: 2 | B65: 5001 | C65: MEDELLÍN | D65: 5 | E65: ANTIOQUIA | F65: ACTIVIDADES DE ATENCIÓN DE LA SALUD HUMANA Y DE ASISTENCIA SOCIAL | G65: 8691 | H65: Q | I65: Natural | J65: MICRO | K65: 1755000
A66: 2 | B66: 5001 | C66: MEDELLÍN | D66: 5 | E66: ANTIOQUIA | F66: ACTIVIDADES DE ATENCIÓN DE LA SALUD HUMANA Y DE ASISTENCIA SOCIAL | G66: 8691 | H66: Q | I66: Natural | J66: PEQUEÑA | K66: 4914000
A67: 2 | B67: 5001 | C67: MEDELLÍN | D67: 5 | E67: ANTIOQUIA | F67: ACTIVIDADES DE ATENCIÓN DE LA SALUD HUMANA Y DE ASISTENCIA SOCIAL | G67: 8692 | H67: Q | I67: Jurídica | J67: MEDIANA | K67: 38259000
A68: 2 | B68: 5001 | C68: MEDELLÍN | D68: 5 | E68: ANTIOQUIA | F68: ACTIVIDADES DE ATENCIÓN DE LA SALUD HUMANA Y DE ASISTENCIA SOCIAL | G68: 8692 | H68: Q | I68: Jurídica | J68: MICRO | K68: 43875000
A69: 2 | B69: 5001 | C69: MEDELLÍN | D69: 5 | E69: ANTIOQUIA | F69: ACTIVIDADES DE ATENCIÓN DE LA SALUD HUMANA Y DE ASISTENCIA SOCIAL | G69: 8692 | H69: Q | I69: Jurídica | J69: PEQUEÑA | K69: 51948000
A70: 2 | B70: 5001 | C70: MEDELLÍN | D70: 5 | E70: ANTIOQUIA | F70: ACTIVIDADES DE ATENCIÓN DE LA SALUD HUMANA Y DE ASISTENCIA SOCIAL | G70: 8692 | H70: Q | I70: Natural | J70: MICRO | K70: 1053000
A71: 2 | B71: 5001 | C71: MEDELLÍN | D71: 5 | E71: ANTIOQUIA | F71: ACTIVIDADES DE ATENCIÓN DE LA SALUD HUMANA Y DE ASISTENCIA SOCIAL | G71: 8699 | H71: Q | I71: Jurídica | J71: MEDIANA | K71: 203229000
A72: 2 | B72: 5001 | C72: MEDELLÍN | D72: 5 | E72: ANTIOQUIA | F72: ACTIVIDADES DE ATENCIÓN DE LA SALUD HUMANA Y DE ASISTENCIA SOCIAL | G72: 8699 | H72: Q | I72: Jurídica | J72: MICRO | K72: 58266000
A73: 2 | B73: 5001 | C73: MEDELLÍN | D73: 5 | E73: ANTIOQUIA | F73: ACTIVIDADES DE ATENCIÓN DE LA SALUD HUMANA Y DE ASISTENCIA SOCIAL | G73: 8699 | H73: Q | I73: Jurídica | J73: PEQUEÑA | K73: 104598000
A74: 2 | B74: 5001 | C74: MEDELLÍN | D74: 5 | E74: ANTIOQUIA | F74: ACTIVIDADES DE ATENCIÓN DE LA SALUD HUMANA Y DE ASISTENCIA SOCIAL | G74: 8699 | H74: Q | I74: Natural | J74: MICRO | K74: 7371000
A75: 2 | B75: 5001 | C75: MEDELLÍN | D75: 5 | E75: ANTIOQUIA | F75: ACTIVIDADES DE ATENCIÓN DE LA SALUD HUMANA Y DE ASISTENCIA SOCIAL | G75: 8699 | H75: Q | I75: Natural | J75: PEQUEÑA | K75: 4563000
A76: 2 | B76: 5001 | C76: MEDELLÍN | D76: 5 | E76: ANTIOQUIA | F76: ACTIVIDADES DE ATENCIÓN DE LA SALUD HUMANA Y DE ASISTENCIA SOCIAL | G76: 8710 | H76: Q | I76: Jurídica | J76: MICRO | K76: 702000
A77: 2 | B77: 5001 | C77: MEDELLÍN | D77: 5 | E77: ANTIOQUIA | F77: ACTIVIDADES DE ATENCIÓN DE LA SALUD HUMANA Y DE ASISTENCIA SOCIAL | G77: 8710 | H77: Q | I77: Jurídica | J77: PEQUEÑA | K77: 22464000
A78: 2 | B78: 5001 | C78: MEDELLÍN | D78: 5 | E78: ANTIOQUIA | F78: ACTIVIDADES DE ATENCIÓN DE LA SALUD HUMANA Y DE ASISTENCIA SOCIAL | G78: 8720 | H78: Q | I78: Jurídica | J78: MICRO | K78: 2106000
A79: 2 | B79: 5001 | C79: MEDELLÍN | D79: 5 | E79: ANTIOQUIA | F79: ACTIVIDADES DE ATENCIÓN DE LA SALUD HUMANA Y DE ASISTENCIA SOCIAL | G79: 8720 | H79: Q | I79: Jurídica | J79: PEQUEÑA | K79: 5967000
A80: 2 | B80: 5001 | C80: MEDELLÍN | D80: 5 | E80: ANTIOQUIA | F80: ACTIVIDADES DE ATENCIÓN DE LA SALUD HUMANA Y DE ASISTENCIA SOCIAL | G80: 8730 | H80: Q | I80: Jurídica | J80: MEDIANA | K80: 100737000
A81: 2 | B81: 5001 | C81: MEDELLÍN | D81: 5 | E81: ANTIOQUIA | F81: ACTIVIDADES DE ATENCIÓN DE LA SALUD HUMANA Y DE ASISTENCIA SOCIAL | G81: 8730 | H81: Q | I81: Jurídica | J81: MICRO | K81: 4212000
A82: 2 | B82: 5001 | C82: MEDELLÍN | D82: 5 | E82: ANTIOQUIA | F82: ACTIVIDADES DE ATENCIÓN DE LA SALUD HUMANA Y DE ASISTENCIA SOCIAL | G82: 8730 | H82: Q | I82: Jurídica | J82: PEQUEÑA | K82: 21060000
A83: 2 | B83: 5001 | C83: MEDELLÍN | D83: 5 | E83: ANTIOQUIA | F83: ACTIVIDADES DE ATENCIÓN DE LA SALUD HUMANA Y DE ASISTENCIA SOCIAL | G83: 8730 | H83: Q | I83: Natural | J83: MICRO | K83: 8424000
A84: 2 | B84: 5001 | C84: MEDELLÍN | D84: 5 | E84: ANTIOQUIA | F84: ACTIVIDADES DE ATENCIÓN DE LA SALUD HUMANA Y DE ASISTENCIA SOCIAL | G84: 8790 | H84: Q | I84: Jurídica | J84: MEDIANA | K84: 21060000
A85: 2 | B85: 5001 | C85: MEDELLÍN | D85: 5 | E85: ANTIOQUIA | F85: ACTIVIDADES DE ATENCIÓN DE LA SALUD HUMANA Y DE ASISTENCIA SOCIAL | G85: 8790 | H85: Q | I85: Jurídica | J85: MICRO | K85: 3510000
A86: 2 | B86: 5001 | C86: MEDELLÍN | D86: 5 | E86: ANTIOQUIA | F86: ACTIVIDADES DE ATENCIÓN DE LA SALUD HUMANA Y DE ASISTENCIA SOCIAL | G86: 8790 | H86: Q | I86: Jurídica | J86: PEQUEÑA | K86: 3510000
A87: 2 | B87: 5001 | C87: MEDELLÍN | D87: 5 | E87: ANTIOQUIA | F87: ACTIVIDADES DE ATENCIÓN DE LA SALUD HUMANA Y DE ASISTENCIA SOCIAL | G87: 8810 | H87: Q | I87: Jurídica | J87: MEDIANA | K87: 35100000
A88: 2 | B88: 5001 | C88: MEDELLÍN | D88: 5 | E88: ANTIOQUIA | F88: ACTIVIDADES DE ATENCIÓN DE LA SALUD HUMANA Y DE ASISTENCIA SOCIAL | G88: 8810 | H88: Q | I88: Jurídica | J88: MICRO | K88: 2106000
A89: 2 | B89: 5001 | C89: MEDELLÍN | D89: 5 | E89: ANTIOQUIA | F89: ACTIVIDADES DE ATENCIÓN DE LA SALUD HUMANA Y DE ASISTENCIA SOCIAL | G89: 8890 | H89: Q | I89: Jurídica | J89: MICRO | K89: 10530000
A90: 2 | B90: 5001 | C90: MEDELLÍN | D90: 5 | E90: ANTIOQUIA | F90: ACTIVIDADES DE ATENCIÓN DE LA SALUD HUMANA Y DE ASISTENCIA SOCIAL | G90: 8890 | H90: Q | I90: Jurídica | J90: PEQUEÑA | K90: 32994000
A91: 2 | B91: 5001 | C91: MEDELLÍN | D91: 5 | E91: ANTIOQUIA | F91: ACTIVIDADES DE LOS HOGARES INDIVIDUALES EN CALIDAD DE EMPLEADORES; ACTIVIDADES NO DIFERENCIADAS DE LOS HOGARES INDIVIDUALES COMO PRODUCTORES DE BIENES Y SERVICIOS PARA USO PROPIO | G91: 9700 | H91: T | I91: Jurídica | J91: MICRO | K91: 702000
A92: 2 | B92: 5001 | C92: MEDELLÍN | D92: 5 | E92: ANTIOQUIA | F92: ACTIVIDADES DE LOS HOGARES INDIVIDUALES EN CALIDAD DE EMPLEADORES; ACTIVIDADES NO DIFERENCIADAS DE LOS HOGARES INDIVIDUALES COMO PRODUCTORES DE BIENES Y SERVICIOS PARA USO PROPIO | G92: 9700 | H92: T | I92: Jurídica | J92: PEQUEÑA | K92: 7722000
A93: 2 | B93: 5001 | C93: MEDELLÍN | D93: 5 | E93: ANTIOQUIA | F93: ACTIVIDADES DE ORGANIZACIONES Y ENTIDADES EXTRATERRITORIALES | G93: 9900 | H93: U | I93: Jurídica | J93: PEQUEÑA | K93: 23166000
A94: 2 | B94: 5001 | C94: MEDELLÍN | D94: 5 | E94: ANTIOQUIA | F94: ACTIVIDADES DE SERVICIOS ADMINISTRATIVOS Y DE APOYO | G94: 7710 | H94: N | I94: Jurídica | J94: MICRO | K94: 19656000
A95: 2 | B95: 5001 | C95: MEDELLÍN | D95: 5 | E95: ANTIOQUIA | F95: ACTIVIDADES DE SERVICIOS ADMINISTRATIVOS Y DE APOYO | G95: 7710 | H95: N | I95: Jurídica | J95: PEQUEÑA | K95: 3159000
A96: 2 | B96: 5001 | C96: MEDELLÍN | D96: 5 | E96: ANTIOQUIA | F96: ACTIVIDADES DE SERVICIOS ADMINISTRATIVOS Y DE APOYO | G96: 7710 | H96: N | I96: Natural | J96: MICRO | K96: 3159000
A97: 2 | B97: 5001 | C97: MEDELLÍN | D97: 5 | E97: ANTIOQUIA | F97: ACTIVIDADES DE SERVICIOS ADMINISTRATIVOS Y DE APOYO | G97: 7710 | H97: N | I97: Natural | J97: PEQUEÑA | K97: 3510000
A98: 2 | B98: 5001 | C98: MEDELLÍN | D98: 5 | E98: ANTIOQUIA | F98: ACTIVIDADES DE SERVICIOS ADMINISTRATIVOS Y DE APOYO | G98: 7721 | H98: N | I98: Jurídica | J98: MICRO | K98: 2457000
A99: 2 | B99: 5001 | C99: MEDELLÍN | D99: 5 | E99: ANTIOQUIA | F99: ACTIVIDADES DE SERVICIOS ADMINISTRATIVOS Y DE APOYO | G99: 7722 | H99: N | I99: Jurídica | J99: MICRO | K99: 702000
A100: 2 | B100: 5001 | C100: MEDELLÍN | D100: 5 | E100: ANTIOQUIA | F100: ACTIVIDADES DE SERVICIOS ADMINISTRATIVOS Y DE APOYO | G100: 7729 | H100: N | I100: Jurídica | J100: MICRO | K100: 10530000
A101: 2 | B101: 5001 | C101: MEDELLÍN | D101: 5 | E101: ANTIOQUIA | F101: ACTIVIDADES DE SERVICIOS ADMINISTRATIVOS Y DE APOYO | G101: 7729 | H101: N | I101: Jurídica | J101: PEQUEÑA | K101: 17550000
A102: 2 | B102: 5001 | C102: MEDELLÍN | D102: 5 | E102: ANTIOQUIA | F102: ACTIVIDADES DE SERVICIOS ADMINISTRATIVOS Y DE APOYO | G102: 7729 | H102: N | I102: Natural | J102: MICRO | K102: 8424000
A103: 2 | B103: 5001 | C103: MEDELLÍN | D103: 5 | E103: ANTIOQUIA | F103: ACTIVIDADES DE SERVICIOS ADMINISTRATIVOS Y DE APOYO | G103: 7730 | H103: N | I103: Jurídica | J103: MEDIANA | K103: 175500000
A104: 2 | B104: 5001 | C104: MEDELLÍN | D104: 5 | E104: ANTIOQUIA | F104: ACTIVIDADES DE SERVICIOS ADMINISTRATIVOS Y DE APOYO | G104: 7730 | H104: N | I104: Jurídica | J104: MICRO | K104: 66339000
A105: 2 | B105: 5001 | C105: MEDELLÍN | D105: 5 | E105: ANTIOQUIA | F105: ACTIVIDADES DE SERVICIOS ADMINISTRATIVOS Y DE APOYO | G105: 7730 | H105: N | I105: Jurídica | J105: PEQUEÑA | K105: 152685000
A106: 2 | B106: 5001 | C106: MEDELLÍN | D106: 5 | E106: ANTIOQUIA | F106: ACTIVIDADES DE SERVICIOS ADMINISTRATIVOS Y DE APOYO | G106: 7730 | H106: N | I106: Natural | J106: MICRO | K106: 5265000
A107: 2 | B107: 5001 | C107: MEDELLÍN | D107: 5 | E107: ANTIOQUIA | F107: ACTIVIDADES DE SERVICIOS ADMINISTRATIVOS Y DE APOYO | G107: 7740 | H107: N | I107: Jurídica | J107: MICRO | K107: 2808000
A108: 2 | B108: 5001 | C108: MEDELLÍN | D108: 5 | E108: ANTIOQUIA | F108: ACTIVIDADES DE SERVICIOS ADMINISTRATIVOS Y DE APOYO | G108: 7740 | H108: N | I108: Jurídica | J108: PEQUEÑA | K108: 3510000
A109: 2 | B109: 5001 | C109: MEDELLÍN | D109: 5 | E109: ANTIOQUIA | F109: ACTIVIDADES DE SERVICIOS ADMINISTRATIVOS Y DE APOYO | G109: 7810 | H109: N | I109: Jurídica | J109: GRANDE | K109: 84240000
A110: 2 | B110: 5001 | C110: MEDELLÍN | D110: 5 | E110: ANTIOQUIA | F110: ACTIVIDADES DE SERVICIOS ADMINISTRATIVOS Y DE APOYO | G110: 7810 | H110: N | I110: Jurídica | J110: MEDIANA | K110: 12285000
A111: 2 | B111: 5001 | C111: MEDELLÍN | D111: 5 | E111: ANTIOQUIA | F111: ACTIVIDADES DE SERVICIOS ADMINISTRATIVOS Y DE APOYO | G111: 7810 | H111: N | I111: Jurídica | J111: MICRO | K111: 5616000
A112: 2 | B112: 5001 | C112: MEDELLÍN | D112: 5 | E112: ANTIOQUIA | F112: ACTIVIDADES DE SERVICIOS ADMINISTRATIVOS Y DE APOYO | G112: 7810 | H112: N | I112: Jurídica | J112: PEQUEÑA | K112: 5967000
A113: 2 | B113: 5001 | C113: MEDELLÍN | D113: 5 | E113: ANTIOQUIA | F113: ACTIVIDADES DE SERVICIOS ADMINISTRATIVOS Y DE APOYO | G113: 7820 | H113: N | I113: Jurídica | J113: GRANDE | K113: 217620000
A114: 2 | B114: 5001 | C114: MEDELLÍN | D114: 5 | E114: ANTIOQUIA | F114: ACTIVIDADES DE SERVICIOS ADMINISTRATIVOS Y DE APOYO | G114: 7820 | H114: N | I114: Jurídica | J114: MEDIANA | K114: 134784000
A115: 2 | B115: 5001 | C115: MEDELLÍN | D115: 5 | E115: ANTIOQUIA | F115: ACTIVIDADES DE SERVICIOS ADMINISTRATIVOS Y DE APOYO | G115: 7820 | H115: N | I115: Jurídica | J115: MUY GRANDE | K115: 6615648000
A116: 2 | B116: 5001 | C116: MEDELLÍN | D116: 5 | E116: ANTIOQUIA | F116: ACTIVIDADES DE SERVICIOS ADMINISTRATIVOS Y DE APOYO | G116: 7820 | H116: N | I116: Jurídica | J116: PEQUEÑA | K116: 22815000
A117: 2 | B117: 5001 | C117: MEDELLÍN | D117: 5 | E117: ANTIOQUIA | F117: ACTIVIDADES DE SERVICIOS ADMINISTRATIVOS Y DE APOYO | G117: 7820 | H117: N | I117: Natural | J117: PEQUEÑA | K117: 12987000
A118: 2 | B118: 5001 | C118: MEDELLÍN | D118: 5 | E118: ANTIOQUIA | F118: ACTIVIDADES DE SERVICIOS ADMINISTRATIVOS Y DE APOYO | G118: 7830 | H118: N | I118: Jurídica | J118: GRANDE | K118: 214461000
A119: 2 | B119: 5001 | C119: MEDELLÍN | D119: 5 | E119: ANTIOQUIA | F119: ACTIVIDADES DE SERVICIOS ADMINISTRATIVOS Y DE APOYO | G119: 7830 | H119: N | I119: Jurídica | J119: MEDIANA | K119: 59670000
A120: 2 | B120: 5001 | C120: MEDELLÍN | D120: 5 | E120: ANTIOQUIA | F120: ACTIVIDADES DE SERVICIOS ADMINISTRATIVOS Y DE APOYO | G120: 7830 | H120: N | I120: Jurídica | J120: MICRO | K120: 7371000
A121: 2 | B121: 5001 | C121: MEDELLÍN | D121: 5 | E121: ANTIOQUIA | F121: ACTIVIDADES DE SERVICIOS ADMINISTRATIVOS Y DE APOYO | G121: 7830 | H121: N | I121: Jurídica | J121: PEQUEÑA | K121: 11583000
A122: 2 | B122: 5001 | C122: MEDELLÍN | D122: 5 | E122: ANTIOQUIA | F122: ACTIVIDADES DE SERVICIOS ADMINISTRATIVOS Y DE APOYO | G122: 7830 | H122: N | I122: Natural | J122: MICRO | K122: 1404000
A123: 2 | B123: 5001 | C123: MEDELLÍN | D123: 5 | E123: ANTIOQUIA | F123: ACTIVIDADES DE SERVICIOS ADMINISTRATIVOS Y DE APOYO | G123: 7911 | H123: N | I123: Jurídica | J123: MEDIANA | K123: 63531000
A124: 2 | B124: 5001 | C124: MEDELLÍN | D124: 5 | E124: ANTIOQUIA | F124: ACTIVIDADES DE SERVICIOS ADMINISTRATIVOS Y DE APOYO | G124: 7911 | H124: N | I124: Jurídica | J124: MICRO | K124: 55809000
A125: 2 | B125: 5001 | C125: MEDELLÍN | D125: 5 | E125: ANTIOQUIA | F125: ACTIVIDADES DE SERVICIOS ADMINISTRATIVOS Y DE APOYO | G125: 7911 | H125: N | I125: Jurídica | J125: PEQUEÑA | K125: 62829000
A126: 2 | B126: 5001 | C126: MEDELLÍN | D126: 5 | E126: ANTIOQUIA | F126: ACTIVIDADES DE SERVICIOS ADMINISTRATIVOS Y DE APOYO | G126: 7911 | H126: N | I126: Natural | J126: MICRO | K126: 3510000
A127: 2 | B127: 5001 | C127: MEDELLÍN | D127: 5 | E127: ANTIOQUIA | F127: ACTIVIDADES DE SERVICIOS ADMINISTRATIVOS Y DE APOYO | G127: 7912 | H127: N | I127: Jurídica | J127: MEDIANA | K127: 19305000
A128: 2 | B128: 5001 | C128: MEDELLÍN | D128: 5 | E128: ANTIOQUIA | F128: ACTIVIDADES DE SERVICIOS ADMINISTRATIVOS Y DE APOYO | G128: 7912 | H128: N | I128: Jurídica | J128: MICRO | K128: 31941000
A129: 2 | B129: 5001 | C129: MEDELLÍN | D129: 5 | E129: ANTIOQUIA | F129: ACTIVIDADES DE SERVICIOS ADMINISTRATIVOS Y DE APOYO | G129: 7912 | H129: N | I129: Jurídica | J129: PEQUEÑA | K129: 40014000
A130: 2 | B130: 5001 | C130: MEDELLÍN | D130: 5 | E130: ANTIOQUIA | F130: ACTIVIDADES DE SERVICIOS ADMINISTRATIVOS Y DE APOYO | G130: 7912 | H130: N | I130: Natural | J130: MICRO | K130: 2106000
A131: 2 | B131: 5001 | C131: MEDELLÍN | D131: 5 | E131: ANTIOQUIA | F131: ACTIVIDADES DE SERVICIOS ADMINISTRATIVOS Y DE APOYO | G131: 7990 | H131: N | I131: Jurídica | J131: MICRO | K131: 10530000
A132: 2 | B132: 5001 | C132: MEDELLÍN | D132: 5 | E132: ANTIOQUIA | F132: ACTIVIDADES DE SERVICIOS ADMINISTRATIVOS Y DE APOYO | G132: 7990 | H132: N | I132: Jurídica | J132: PEQUEÑA | K132: 14391000
A133: 2 | B133: 5001 | C133: MEDELLÍN | D133: 5 | E133: ANTIOQUIA | F133: ACTIVIDADES DE SERVICIOS ADMINISTRATIVOS Y DE APOYO | G133: 8010 | H133: N | I133: Jurídica | J133: GRANDE | K133: 76167000
A134: 2 | B134: 5001 | C134: MEDELLÍN | D134: 5 | E134: ANTIOQUIA | F134: ACTIVIDADES DE SERVICIOS ADMINISTRATIVOS Y DE APOYO | G134: 8010 | H134: N | I134: Jurídica | J134: MEDIANA | K134: 115830000
A135: 2 | B135: 5001 | C135: MEDELLÍN | D135: 5 | E135: ANTIOQUIA | F135: ACTIVIDADES DE SERVICIOS ADMINISTRATIVOS Y DE APOYO | G135: 8010 | H135: N | I135: Jurídica | J135: MICRO | K135: 5616000
A136: 2 | B136: 5001 | C136: MEDELLÍN | D136: 5 | E136: ANTIOQUIA | F136: ACTIVIDADES DE SERVICIOS ADMINISTRATIVOS Y DE APOYO | G136: 8010 | H136: N | I136: Jurídica | J136: MUY GRANDE | K136: 159705000
A137: 2 | B137: 5001 | C137: MEDELLÍN | D137: 5 | E137: ANTIOQUIA | F137: ACTIVIDADES DE SERVICIOS ADMINISTRATIVOS Y DE APOYO | G137: 8010 | H137: N | I137: Jurídica | J137: PEQUEÑA | K137: 9828000
A138: 2 | B138: 5001 | C138: MEDELLÍN | D138: 5 | E138: ANTIOQUIA | F138: ACTIVIDADES DE SERVICIOS ADMINISTRATIVOS Y DE APOYO | G138: 8020 | H138: N | I138: Jurídica | J138: MICRO | K138: 23166000
A139: 2 | B139: 5001 | C139: MEDELLÍN | D139: 5 | E139: ANTIOQUIA | F139: ACTIVIDADES DE SERVICIOS ADMINISTRATIVOS Y DE APOYO | G139: 8020 | H139: N | I139: Jurídica | J139: PEQUEÑA | K139: 27378000
A140: 2 | B140: 5001 | C140: MEDELLÍN | D140: 5 | E140: ANTIOQUIA | F140: ACTIVIDADES DE SERVICIOS ADMINISTRATIVOS Y DE APOYO | G140: 8020 | H140: N | I140: Natural | J140: MICRO | K140: 3861000
A141: 2 | B141: 5001 | C141: MEDELLÍN | D141: 5 | E141: ANTIOQUIA | F141: ACTIVIDADES DE SERVICIOS ADMINISTRATIVOS Y DE APOYO | G141: 8030 | H141: N | I141: Jurídica | J141: MICRO | K141: 1755000
A142: 2 | B142: 5001 | C142: MEDELLÍN | D142: 5 | E142: ANTIOQUIA | F142: ACTIVIDADES DE SERVICIOS ADMINISTRATIVOS Y DE APOYO | G142: 8030 | H142: N | I142: Jurídica | J142: PEQUEÑA | K142: 3861000
A143: 2 | B143: 5001 | C143: MEDELLÍN | D143: 5 | E143: ANTIOQUIA | F143: ACTIVIDADES DE SERVICIOS ADMINISTRATIVOS Y DE APOYO | G143: 8110 | H143: N | I143: Jurídica | J143: MICRO | K143: 2457000
A144: 2 | B144: 5001 | C144: MEDELLÍN | D144: 5 | E144: ANTIOQUIA | F144: ACTIVIDADES DE SERVICIOS ADMINISTRATIVOS Y DE APOYO | G144: 8110 | H144: N | I144: Jurídica | J144: PEQUEÑA | K144: 4914000
A145: 2 | B145: 5001 | C145: MEDELLÍN | D145: 5 | E145: ANTIOQUIA | F145: ACTIVIDADES DE SERVICIOS ADMINISTRATIVOS Y DE APOYO | G145: 8110 | H145: N | I145: Natural | J145: MICRO | K145: 1053000
A146: 2 | B146: 5001 | C146: MEDELLÍN | D146: 5 | E146: ANTIOQUIA | F146: ACTIVIDADES DE SERVICIOS ADMINISTRATIVOS Y DE APOYO | G146: 8121 | H146: N | I146: Jurídica | J146: MEDIANA | K146: 31941000
A147: 2 | B147: 5001 | C147: MEDELLÍN | D147: 5 | E147: ANTIOQUIA | F147: ACTIVIDADES DE SERVICIOS ADMINISTRATIVOS Y DE APOYO | G147: 8121 | H147: N | I147: Jurídica | J147: MICRO | K147: 9477000
A148: 2 | B148: 5001 | C148: MEDELLÍN | D148: 5 | E148: ANTIOQUIA | F148: ACTIVIDADES DE SERVICIOS ADMINISTRATIVOS Y DE APOYO | G148: 8121 | H148: N | I148: Jurídica | J148: PEQUEÑA | K148: 45279000
A149: 2 | B149: 5001 | C149: MEDELLÍN | D149: 5 | E149: ANTIOQUIA | F149: ACTIVIDADES DE SERVICIOS ADMINISTRATIVOS Y DE APOYO | G149: 8121 | H149: N | I149: Natural | J149: PEQUEÑA | K149: 5967000
A150: 2 | B150: 5001 | C150: MEDELLÍN | D150: 5 | E150: ANTIOQUIA | F150: ACTIVIDADES DE SERVICIOS ADMINISTRATIVOS Y DE APOYO | G150: 8129 | H150: N | I150: Jurídica | J150: GRANDE | K150: 80028000
A151: 2 | B151: 5001 | C151: MEDELLÍN | D151: 5 | E151: ANTIOQUIA | F151: ACTIVIDADES DE SERVICIOS ADMINISTRATIVOS Y DE APOYO | G151: 8129 | H151: N | I151: Jurídica | J151: MEDIANA | K151: 107055000
A152: 2 | B152: 5001 | C152: MEDELLÍN | D152: 5 | E152: ANTIOQUIA | F152: ACTIVIDADES DE SERVICIOS ADMINISTRATIVOS Y DE APOYO | G152: 8129 | H152: N | I152: Jurídica | J152: MICRO | K152: 16146000
A153: 2 | B153: 5001 | C153: MEDELLÍN | D153: 5 | E153: ANTIOQUIA | F153: ACTIVIDADES DE SERVICIOS ADMINISTRATIVOS Y DE APOYO | G153: 8129 | H153: N | I153: Jurídica | J153: MUY GRANDE | K153: 1082835000
A154: 2 | B154: 5001 | C154: MEDELLÍN | D154: 5 | E154: ANTIOQUIA | F154: ACTIVIDADES DE SERVICIOS ADMINISTRATIVOS Y DE APOYO | G154: 8129 | H154: N | I154: Jurídica | J154: PEQUEÑA | K154: 73710000
A155: 2 | B155: 5001 | C155: MEDELLÍN | D155: 5 | E155: ANTIOQUIA | F155: ACTIVIDADES DE SERVICIOS ADMINISTRATIVOS Y DE APOYO | G155: 8130 | H155: N | I155: Jurídica | J155: MEDIANA | K155: 117936000
A156: 2 | B156: 5001 | C156: MEDELLÍN | D156: 5 | E156: ANTIOQUIA | F156: ACTIVIDADES DE SERVICIOS ADMINISTRATIVOS Y DE APOYO | G156: 8130 | H156: N | I156: Jurídica | J156: MICRO | K156: 16497000
A157: 2 | B157: 5001 | C157: MEDELLÍN | D157: 5 | E157: ANTIOQUIA | F157: ACTIVIDADES DE SERVICIOS ADMINISTRATIVOS Y DE APOYO | G157: 8130 | H157: N | I157: Jurídica | J157: PEQUEÑA | K157: 56160000
A158: 2 | B158: 5001 | C158: MEDELLÍN | D158: 5 | E158: ANTIOQUIA | F158: ACTIVIDADES DE SERVICIOS ADMINISTRATIVOS Y DE APOYO | G158: 8130 | H158: N | I158: Natural | J158: MICRO | K158: 3510000
A159: 2 | B159: 5001 | C159: MEDELLÍN | D159: 5 | E159: ANTIOQUIA | F159: ACTIVIDADES DE SERVICIOS ADMINISTRATIVOS Y DE APOYO | G159: 8130 | H159: N | I159: Natural | J159: PEQUEÑA | K159: 3159000
A160: 2 | B160: 5001 | C160: MEDELLÍN | D160: 5 | E160: ANTIOQUIA | F160: ACTIVIDADES DE SERVICIOS ADMINISTRATIVOS Y DE APOYO | G160: 8211 | H160: N | I160: Jurídica | J160: GRANDE | K160: 129519000
A161: 2 | B161: 5001 | C161: MEDELLÍN | D161: 5 | E161: ANTIOQUIA | F161: ACTIVIDADES DE SERVICIOS ADMINISTRATIVOS Y DE APOYO | G161: 8211 | H161: N | I161: Jurídica | J161: MICRO | K161: 22464000
A162: 2 | B162: 5001 | C162: MEDELLÍN | D162: 5 | E162: ANTIOQUIA | F162: ACTIVIDADES DE SERVICIOS ADMINISTRATIVOS Y DE APOYO | G162: 8211 | H162: N | I162: Jurídica | J162: PEQUEÑA | K162: 31239000
A163: 2 | B163: 5001 | C163: MEDELLÍN | D163: 5 | E163: ANTIOQUIA | F163: ACTIVIDADES DE SERVICIOS ADMINISTRATIVOS Y DE APOYO | G163: 8211 | H163: N | I163: Natural | J163: MICRO | K163: 1404000
A164: 2 | B164: 5001 | C164: MEDELLÍN | D164: 5 | E164: ANTIOQUIA | F164: ACTIVIDADES DE SERVICIOS ADMINISTRATIVOS Y DE APOYO | G164: 8219 | H164: N | I164: Jurídica | J164: MEDIANA | K164: 21060000
A165: 2 | B165: 5001 | C165: MEDELLÍN | D165: 5 | E165: ANTIOQUIA | F165: ACTIVIDADES DE SERVICIOS ADMINISTRATIVOS Y DE APOYO | G165: 8219 | H165: N | I165: Jurídica | J165: MICRO | K165: 3510000
A166: 2 | B166: 5001 | C166: MEDELLÍN | D166: 5 | E166: ANTIOQUIA | F166: ACTIVIDADES DE SERVICIOS ADMINISTRATIVOS Y DE APOYO | G166: 8219 | H166: N | I166: Jurídica | J166: PEQUEÑA | K166: 4563000
A167: 2 | B167: 5001 | C167: MEDELLÍN | D167: 5 | E167: ANTIOQUIA | F167: ACTIVIDADES DE SERVICIOS ADMINISTRATIVOS Y DE APOYO | G167: 8219 | H167: N | I167: Natural | J167: MICRO | K167: 3159000
A168: 2 | B168: 5001 | C168: MEDELLÍN | D168: 5 | E168: ANTIOQUIA | F168: ACTIVIDADES DE SERVICIOS ADMINISTRATIVOS Y DE APOYO | G168: 8219 | H168: N | I168: Natural | J168: PEQUEÑA | K168: 3510000
A169: 2 | B169: 5001 | C169: MEDELLÍN | D169: 5 | E169: ANTIOQUIA | F169: ACTIVIDADES DE SERVICIOS ADMINISTRATIVOS Y DE APOYO | G169: 8220 | H169: N | I169: Jurídica | J169: MEDIANA | K169: 106704000
A170: 2 | B170: 5001 | C170: MEDELLÍN | D170: 5 | E170: ANTIOQUIA | F170: ACTIVIDADES DE SERVICIOS ADMINISTRATIVOS Y DE APOYO | G170: 8220 | H170: N | I170: Jurídica | J170: MICRO | K170: 14391000
A171: 2 | B171: 5001 | C171: MEDELLÍN | D171: 5 | E171: ANTIOQUIA | F171: ACTIVIDADES DE SERVICIOS ADMINISTRATIVOS Y DE APOYO | G171: 8220 | H171: N | I171: Jurídica | J171: PEQUEÑA | K171: 37908000
A172: 2 | B172: 5001 | C172: MEDELLÍN | D172: 5 | E172: ANTIOQUIA | F172: ACTIVIDADES DE SERVICIOS ADMINISTRATIVOS Y DE APOYO | G172: 8230 | H172: N | I172: Jurídica | J172: MEDIANA | K172: 20709000
A173: 2 | B173: 5001 | C173: MEDELLÍN | D173: 5 | E173: ANTIOQUIA | F173: ACTIVIDADES DE SERVICIOS ADMINISTRATIVOS Y DE APOYO | G173: 8230 | H173: N | I173: Jurídica | J173: MICRO | K173: 60021000
A174: 2 | B174: 5001 | C174: MEDELLÍN | D174: 5 | E174: ANTIOQUIA | F174: ACTIVIDADES DE SERVICIOS ADMINISTRATIVOS Y DE APOYO | G174: 8230 | H174: N | I174: Jurídica | J174: PEQUEÑA | K174: 72306000
A175: 2 | B175: 5001 | C175: MEDELLÍN | D175: 5 | E175: ANTIOQUIA | F175: ACTIVIDADES DE SERVICIOS ADMINISTRATIVOS Y DE APOYO | G175: 8230 | H175: N | I175: Natural | J175: MICRO | K175: 1053000
A176: 2 | B176: 5001 | C176: MEDELLÍN | D176: 5 | E176: ANTIOQUIA | F176: ACTIVIDADES DE SERVICIOS ADMINISTRATIVOS Y DE APOYO | G176: 8291 | H176: N | I176: Jurídica | J176: MEDIANA | K176: 18603000
A177: 2 | B177: 5001 | C177: MEDELLÍN | D177: 5 | E177: ANTIOQUIA | F177: ACTIVIDADES DE SERVICIOS ADMINISTRATIVOS Y DE APOYO | G177: 8291 | H177: N | I177: Jurídica | J177: MICRO | K177: 7371000
A178: 2 | B178: 5001 | C178: MEDELLÍN | D178: 5 | E178: ANTIOQUIA | F178: ACTIVIDADES DE SERVICIOS ADMINISTRATIVOS Y DE APOYO | G178: 8291 | H178: N | I178: Jurídica | J178: PEQUEÑA | K178: 23166000
A179: 2 | B179: 5001 | C179: MEDELLÍN | D179: 5 | E179: ANTIOQUIA | F179: ACTIVIDADES DE SERVICIOS ADMINISTRATIVOS Y DE APOYO | G179: 8292 | H179: N | I179: Jurídica | J179: GRANDE | K179: 109512000
A180: 2 | B180: 5001 | C180: MEDELLÍN | D180: 5 | E180: ANTIOQUIA | F180: ACTIVIDADES DE SERVICIOS ADMINISTRATIVOS Y DE APOYO | G180: 8292 | H180: N | I180: Jurídica | J180: MEDIANA | K180: 52299000
A181: 2 | B181: 5001 | C181: MEDELLÍN | D181: 5 | E181: ANTIOQUIA | F181: ACTIVIDADES DE SERVICIOS ADMINISTRATIVOS Y DE APOYO | G181: 8292 | H181: N | I181: Jurídica | J181: MICRO | K181: 351000
A182: 2 | B182: 5001 | C182: MEDELLÍN | D182: 5 | E182: ANTIOQUIA | F182: ACTIVIDADES DE SERVICIOS ADMINISTRATIVOS Y DE APOYO | G182: 8299 | H182: N | I182: Jurídica | J182: GRANDE | K182: 165672000
A183: 2 | B183: 5001 | C183: MEDELLÍN | D183: 5 | E183: ANTIOQUIA | F183: ACTIVIDADES DE SERVICIOS ADMINISTRATIVOS Y DE APOYO | G183: 8299 | H183: N | I183: Jurídica | J183: MEDIANA | K183: 25623000
A184: 2 | B184: 5001 | C184: MEDELLÍN | D184: 5 | E184: ANTIOQUIA | F184: ACTIVIDADES DE SERVICIOS ADMINISTRATIVOS Y DE APOYO | G184: 8299 | H184: N | I184: Jurídica | J184: MICRO | K184: 58968000
A185: 2 | B185: 5001 | C185: MEDELLÍN | D185: 5 | E185: ANTIOQUIA | F185: ACTIVIDADES DE SERVICIOS ADMINISTRATIVOS Y DE APOYO | G185: 8299 | H185: N | I185: Jurídica | J185: MUY GRANDE | K185: 180765000
A186: 2 | B186: 5001 | C186: MEDELLÍN | D186: 5 | E186: ANTIOQUIA | F186: ACTIVIDADES DE SERVICIOS ADMINISTRATIVOS Y DE APOYO | G186: 8299 | H186: N | I186: Jurídica | J186: PEQUEÑA | K186: 113022000
A187: 2 | B187: 5001 | C187: MEDELLÍN | D187: 5 | E187: ANTIOQUIA | F187: ACTIVIDADES DE SERVICIOS ADMINISTRATIVOS Y DE APOYO | G187: 8299 | H187: N | I187: Natural | J187: MICRO | K187: 11934000
A188: 2 | B188: 5001 | C188: MEDELLÍN | D188: 5 | E188: ANTIOQUIA | F188: ACTIVIDADES DE SERVICIOS ADMINISTRATIVOS Y DE APOYO | G188: 8299 | H188: N | I188: Natural | J188: PEQUEÑA | K188: 7371000
A189: 2 | B189: 5001 | C189: MEDELLÍN | D189: 5 | E189: ANTIOQUIA | F189: ACTIVIDADES FINANCIERAS Y DE SEGUROS | G189: 6421 | H189: K | I189: Jurídica | J189: MICRO | K189: 2457000
A190: 2 | B190: 5001 | C190: MEDELLÍN | D190: 5 | E190: ANTIOQUIA | F190: ACTIVIDADES FINANCIERAS Y DE SEGUROS | G190: 6422 | H190: K | I190: Jurídica | J190: MEDIANA | K190: 49842000
A191: 2 | B191: 5001 | C191: MEDELLÍN | D191: 5 | E191: ANTIOQUIA | F191: ACTIVIDADES FINANCIERAS Y DE SEGUROS | G191: 6422 | H191: K | I191: Jurídica | J191: MICRO | K191: 2106000
A192: 2 | B192: 5001 | C192: MEDELLÍN | D192: 5 | E192: ANTIOQUIA | F192: ACTIVIDADES FINANCIERAS Y DE SEGUROS | G192: 6424 | H192: K | I192: Jurídica | J192: MEDIANA | K192: 34749000
A193: 2 | B193: 5001 | C193: MEDELLÍN | D193: 5 | E193: ANTIOQUIA | F193: ACTIVIDADES FINANCIERAS Y DE SEGUROS | G193: 6492 | H193: K | I193: Jurídica | J193: MICRO | K193: 9828000
A194: 2 | B194: 5001 | C194: MEDELLÍN | D194: 5 | E194: ANTIOQUIA | F194: ACTIVIDADES FINANCIERAS Y DE SEGUROS | G194: 6492 | H194: K | I194: Jurídica | J194: PEQUEÑA | K194: 4563000
A195: 2 | B195: 5001 | C195: MEDELLÍN | D195: 5 | E195: ANTIOQUIA | F195: ACTIVIDADES FINANCIERAS Y DE SEGUROS | G195: 6493 | H195: K | I195: Jurídica | J195: MICRO | K195: 5265000
A196: 2 | B196: 5001 | C196: MEDELLÍN | D196: 5 | E196: ANTIOQUIA | F196: ACTIVIDADES FINANCIERAS Y DE SEGUROS | G196: 6493 | H196: K | I196: Jurídica | J196: PEQUEÑA | K196: 17550000
A197: 2 | B197: 5001 | C197: MEDELLÍN | D197: 5 | E197: ANTIOQUIA | F197: ACTIVIDADES FINANCIERAS Y DE SEGUROS | G197: 6494 | H197: K | I197: Jurídica | J197: MICRO | K197: 8424000
A198: 2 | B198: 5001 | C198: MEDELLÍN | D198: 5 | E198: ANTIOQUIA | F198: ACTIVIDADES FINANCIERAS Y DE SEGUROS | G198: 6499 | H198: K | I198: Jurídica | J198: MEDIANA | K198: 43173000
A199: 2 | B199: 5001 | C199: MEDELLÍN | D199: 5 | E199: ANTIOQUIA | F199: ACTIVIDADES FINANCIERAS Y DE SEGUROS | G199: 6499 | H199: K | I199: Jurídica | J199: MICRO | K199: 14742000
A200: 2 | B200: 5001 | C200: MEDELLÍN | D200: 5 | E200: ANTIOQUIA | F200: ACTIVIDADES FINANCIERAS Y DE SEGUROS | G200: 6499 | H200: K | I200: Jurídica | J200: PEQUEÑA | K200: 62478000
... 4300 more rows

Sheet insumos2 (hidden)
A1: TIPO DE IDENTIFICACION POSTULANTE | B1: NUMERO IDENTIFICACION EMPRESA | C1: CIUDAD - DIVIPOLA - R | D1: Municipio | E1: TOTAL COTIZANTES CON CONCEPTO DE CONFORMIDAD TOTAL A GIRAR | F1: TOTAL COTIZANTES CON CONCEPTO DE NO CONFORMIDAD | G1: TIPO DE PERSONA | H1: Departamento DIVIPOLA (P) | I1: Nombre dpto | J1: ESTADO_TOTAL A GIRAR | K1: Tamaño del Empleador | L1: STRCODPAR_CIIU_EMPRESA | M1: ACTIVIDAD ECONOMICA | N1: ACTIVIDAD ECONOMICA | O1: Division | P1: grupo especial | Q1: SEXO_F_ | R1: SEXO_M_ | S1: SEXO_ND_ | U1: TIPO DE IDENTIFICACION POSTULANTE | V1: NUMERO IDENTIFICACION EMPRESA | W1: CIUDAD - DIVIPOLA - R | X1: Municipio | Y1: TOTAL COTIZANTES CON CONCEPTO DE CONFORMIDAD TOTAL A GIRAR | Z1: TOTAL COTIZANTES CON CONCEPTO DE NO CONFORMIDAD | AA1: TIPO DE PERSONA | AB1: Departamento DIVIPOLA (P) | AC1: Nombre dpto | AD1: ESTADO_TOTAL A GIRAR | AE1: Tamaño del Empleador | AF1: STRCODPAR_CIIU_EMPRESA | AG1: ACTIVIDAD ECONOMICA | AH1: ACTIVIDAD ECONOMICA | AI1: Division | AJ1: Grupo | AK1: SEXO_F_ | AL1: SEXO_M_ | AM1: SEXO_ND_ | AO1: Departamentos | AP1: empleadores | AQ1: Departamentos | AR1: empleadores | AS1: nomdpto | AU1: =AS1 -> nomdpto | AV1: empleadores | AW1: empleados | AY1: codmunicipio | AZ1: aportantes | BA1: codmunicipio | BB1: aportantes | BC1: cod_dpto | BD1: nom_dpto | BE1: nom_mpio | BF1: empleadores | BG1: empleados | BI1: Grupo | BJ1: empleadores | BK1: empleados | BL1: Grupo | BM1: empleadores | BN1: empleados
A2: CC | B2: 21068926 | C2: 11001 | D2: BOGOTÁ, D.C. | E2: 0 | F2: 0 | G2: Natural | H2: 11 | I2: BOGOTÁ, D.C. | J2: Rechazado a nivel aportante | K2: MICRO | L2: 8621 | M2: ACTIVIDADES DE ATENCIÓN DE LA SALUD HUMANA Y DE ASISTENCIA SOCIAL | N2: Q | O2: Actividades de práctica médica y odontológica, sin internación | P2: Actividades de atención de la salud humana | Q2: 0 | R2: 0 | S2: 0 | U2: =_xlfn._xlws.FILTER($A$2:$S$399999,$N$2:$N$399999=Visor!$N$4,"") -> CC | V2: 36487196 | W2: 20001 | X2: VALLEDUPAR | Y2: 0 | Z2: 0 | AA2: Natural | AB2: 20 | AC2: CESAR | AD2: Rechazado a nivel aportante | AE2: MICRO | AF2: 141 | AG2: AGRICULTURA, GANADERÍA, CAZA, SILVICULTURA Y PESCA | AH2: A | AI2: Ganadería | AJ2: Agricultura, ganadería, caza y actividades de servicios conexas | AK2: 0 | AL2: 0 | AM2: 0 | AO2: 68 | AP2: =COUNTIFS($AD$2:$AD$399999,"Aprobado con subsidio",$AB$2:$AB$399999,AO2) -> 173 | AQ2: =_xlfn._xlws.SORT($AO$2:$AP$34,2,-1) -> 5 | AR2: 845 | AS2: =VLOOKUP(AQ2,Hoja4!$A$29:$B$61,2,FALSE) -> Antioquia | AU2: =AS2 -> Antioquia | AV2: =AR2 -> 845 | AW2: =SUMIFS($Y$2:$Y$399999,$AD$2:$AD$399999,"Aprobado con subsidio",$AB$2:$AB$399999,AQ2) -> 29130 | AY2: =_xlfn.UNIQUE($W$2:$W$399999) -> 20001 | AZ2: =COUNTIFS($AD$2:$AD$399999,"Aprobado con subsidio",$W$2:$W$399999,AY2) -> 47 | BA2: =_xlfn._xlws.SORT($AY$2:$AZ$1122,2,-1) -> 11001 | BB2: 688 | BC2: =IF(LEN(BA2)=5,MID(BA2,1,2),MID(BA2,1,1))*1 -> 11 | BD2: =VLOOKUP(BC2,Hoja4!$A$29:$B$61,2,FALSE) -> Bogotá | BE2: =VLOOKUP(BA2,Hoja4!$D$29:$E$1150,2,FALSE) -> Bogotá, d.c. | BF2: =BB2 -> 688 | BG2: =SUMIFS($Y$2:$Y$399999,$W$2:$W$399999,BA2) -> 66054 | BI2: =_xlfn.UNIQUE($AJ$2:$AJ$399999) -> Agricultura, ganadería, caza y actividades de servicios conexas | BJ2: =COUNTIFS($AJ$2:$AJ$399999,BI2,$AD$2:$AD$399999,"Aprobado con subsidio") -> 3117 | BK2: =SUMIFS($Y$2:$Y$399999,$AJ$2:$AJ$399999,BI2,$AD$2:$AD$399999,"Aprobado con subsidio") -> 152852 | BL2: =_xlfn._xlws.SORT(BI2:BK26,2,-1) -> Agricultura, ganadería, caza y actividades de servicios conexas | BM2: 3117 | BN2: 152852
A3: CC | B3: 21176127 | C3: 50006 | D3: ACACÍAS | E3: 14 | F3: 1 | G3: Natural | H3: 50 | I3: META | J3: Aprobado con subsidio | K3: PEQUEÑA | L3: 8530 | M3: EDUCACIÓN | N3: P | O3: Establecimientos que combinan diferentes niveles de educación | P3: Educación | Q3: 11 | R3: 3 | S3: 0 | U3: CC | V3: 10237188 | W3: 66001 | X3: PEREIRA | Y3: 0 | Z3: 0 | AA3: Natural | AB3: 66 | AC3: RISARALDA | AD3: Rechazado a nivel aportante | AE3: PEQUEÑA | AF3: 144 | AG3: AGRICULTURA, GANADERÍA, CAZA, SILVICULTURA Y PESCA | AH3: A | AI3: Ganadería | AJ3: Agricultura, ganadería, caza y actividades de servicios conexas | AK3: 0 | AL3: 0 | AM3: 0 | AO3: 13 | AP3: 53 | AQ3: 11 | AR3: 688 | AS3: =VLOOKUP(AQ3,Hoja4!$A$29:$B$61,2,FALSE) -> Bogotá | AU3: =AS3 -> Bogotá | AV3: =AR3 -> 688 | AW3: 66054 | AY3: 66001 | AZ3: 61 | BA3: 5001 | BB3: 381 | BC3: =IF(LEN(BA3)=5,MID(BA3,1,2),MID(BA3,1,1))*1 -> 5 | BD3: =VLOOKUP(BC3,Hoja4!$A$29:$B$61,2,FALSE) -> Antioquia | BE3: =VLOOKUP(BA3,Hoja4!$D$29:$E$1150,2,FALSE) -> Medellín | BF3: 381 | BG3: 14694 | BI3: Silvicultura y extracción de madera | BJ3: 167 | BK3: 6141 | BL3: Silvicultura y extracción de madera | BM3: 167 | BN3: 6141
A4: CC | B4: 22116760 | C4: 5360 | D4: ITAGÜÍ | E4: 6 | F4: 5 | G4: Natural | H4: 5 | I4: ANTIOQUIA | J4: Aprobado con subsidio | K4: MICRO | L4: 1020 | M4: INDUSTRIAS MANUFACTURERAS | N4: C | O4: Procesamiento y conservación de frutas, legumbres, hortalizas y tubérculos | P4: Elaboración de productos alimenticios | Q4: 0 | R4: 6 | S4: 0 | U4: CC | V4: 1130665240 | W4: 76001 | X4: CALI | Y4: 2 | Z4: 1 | AA4: Natural | AB4: 76 | AC4: VALLE DEL CAUCA | AD4: Aprobado con subsidio | AE4: MICRO | AF4: 113 | AG4: AGRICULTURA, GANADERÍA, CAZA, SILVICULTURA Y PESCA | AH4: A | AI4: Cultivos agrícolas transitorios | AJ4: Agricultura, ganadería, caza y actividades de servicios conexas | AK4: 1 | AL4: 1 | AM4: 0 | AO4: 15 | AP4: 35 | AQ4: 76 | AR4: 373 | AS4: =VLOOKUP(AQ4,Hoja4!$A$29:$B$61,2,FALSE) -> Valle del cauca | AU4: Valle del cauca | AV4: 373 | AW4: 17691 | AY4: 76001 | AZ4: 194 | BA4: 76001 | BB4: 194 | BC4: 76 | BD4: =VLOOKUP(BC4,Hoja4!$A$29:$B$61,2,FALSE) -> Valle del cauca | BE4: =VLOOKUP(BA4,Hoja4!$D$29:$E$1150,2,FALSE) -> Cali | BF4: 194 | BG4: 7164 | BI4: Pesca y acuicultura | BJ4: 119 | BK4: 1797 | BL4: Pesca y acuicultura | BM4: 119 | BN4: 1797
A5: CC | B5: 22673716 | C5: 8001 | D5: BARRANQUILLA | E5: 19 | F5: 0 | G5: Natural | H5: 8 | I5: ATLÁNTICO | J5: Aprobado con subsidio | K5: PEQUEÑA | L5: 4719 | M5: COMERCIO AL POR MAYOR Y AL POR MENOR; REPARACIÓN DE VEHÍCULOS AUTOMOTORES Y MOTOCICLETAS | N5: G | O5: Comercio al por menor en establecimientos no especializados | P5: Comercio al por menor (incluso el comercio al por menor de combustibles), excepto el de vehículos automotores y motocicletas | Q5: 12 | R5: 7 | S5: 0 | U5: CC | V5: 153831693 | W5: 5376 | X5: LA CEJA | Y5: 0 | Z5: 0 | AA5: Natural | AB5: 5 | AC5: ANTIOQUIA | AD5: Rechazado a nivel aportante | AE5: $null$ | AF5: 161 | AG5: AGRICULTURA, GANADERÍA, CAZA, SILVICULTURA Y PESCA | AH5: A | AI5: Actividades de apoyo a la agricultura y la ganadería, y actividades posteriores a la cosecha | AJ5: Agricultura, ganadería, caza y actividades de servicios conexas | AK5: 0 | AL5: 0 | AM5: 0 | AO5: 5 | AP5: 845 | AQ5: 25 | AR5: 319 | AS5: =VLOOKUP(AQ5,Hoja4!$A$29:$B$61,2,FALSE) -> Cundinamarca | AU5: Cundinamarca | AV5: 319 | AW5: 16867 | AY5: 5376 | AZ5: 47 | BA5: 8001 | BB5: 121 | BC5: 8 | BD5: =VLOOKUP(BC5,Hoja4!$A$29:$B$61,2,FALSE) -> Atlántico | BE5: =VLOOKUP(BA5,Hoja4!$D$29:$E$1150,2,FALSE) -> Barranquilla | BF5: 121 | BG5: 3214 | BI5: 0 | BJ5: 0 | BK5: 0 | BL5: 0 | BM5: 0 | BN5: 0
A6: CC | B6: 23246471 | C6: 88001 | D6: SAN ANDRÉS | E6: 18 | F6: 9 | G6: Natural | H6: 88 | I6: ARCHIPIÉLAGO DE SAN ANDRÉS, PROVIDENCIA Y SANTA CATALINA | J6: Aprobado con subsidio | K6: PEQUEÑA | L6: 5511 | M6: ALOJAMIENTO Y SERVICIOS DE COMIDA | N6: I | O6: Actividades de alojamiento de estancias cortas | P6: Alojamiento | Q6: 13 | R6: 5 | S6: 0 | U6: CC | V6: 16788871 | W6: 76250 | X6: EL DOVIO | Y6: 11 | Z6: 2 | AA6: Natural | AB6: 76 | AC6: VALLE DEL CAUCA | AD6: Aprobado con subsidio | AE6: PEQUEÑA | AF6: 144 | AG6: AGRICULTURA, GANADERÍA, CAZA, SILVICULTURA Y PESCA | AH6: A | AI6: Ganadería | AJ6: Agricultura, ganadería, caza y actividades de servicios conexas | AK6: 0 | AL6: 11 | AM6: 0 | AO6: 76 | AP6: 373 | AQ6: 68 | AR6: 173 | AS6: =VLOOKUP(AQ6,Hoja4!$A$29:$B$61,2,FALSE) -> Santander | AU6: Santander | AV6: 173 | AW6: 9964 | AY6: 76250 | AZ6: 2 | BA6: 68001 | BB6: 88 | BC6: 68 | BD6: =VLOOKUP(BC6,Hoja4!$A$29:$B$61,2,FALSE) -> Santander | BE6: =VLOOKUP(BA6,Hoja4!$D$29:$E$1150,2,FALSE) -> Bucaramanga | BF6: 88 | BG6: 2742 | BJ6: 0 | BK6: 0 | BL6: 0 | BM6: 0 | BN6: 0
A7: CC | B7: 23779128 | C7: 11001 | D7: BOGOTÁ, D.C. | E7: 4 | F7: 0 | G7: Natural | H7: 11 | I7: BOGOTÁ, D.C. | J7: Aprobado con subsidio | K7: MICRO | L7: 5611 | M7: ALOJAMIENTO Y SERVICIOS DE COMIDA | N7: I | O7: Actividades de restaurantes, cafeterías y servicio móvil de comidas | P7: Actividades de servicios de comidas y bebidas | Q7: 0 | R7: 4 | S7: 0 | U7: NI | V7: 900653335 | W7: 8001 | X7: BARRANQUILLA | Y7: 7 | Z7: 0 | AA7: Jurídica | AB7: 8 | AC7: ATLÁNTICO | AD7: Aprobado con subsidio | AE7: MICRO | AF7: 130 | AG7: AGRICULTURA, GANADERÍA, CAZA, SILVICULTURA Y PESCA | AH7: A | AI7: Propagación de plantas (actividades de los viveros, excepto viveros forestales) | AJ7: Agricultura, ganadería, caza y actividades de servicios conexas | AK7: 1 | AL7: 6 | AM7: 0 | AO7: 54 | AP7: 49 | AQ7: 8 | AR7: 131 | AS7: =VLOOKUP(AQ7,Hoja4!$A$29:$B$61,2,FALSE) -> Atlántico | AU7: Atlántico | AV7: 131 | AW7: 4309 | AY7: 8001 | AZ7: 121 | BA7: 66001 | BB7: 61 | BC7: 66 | BD7: =VLOOKUP(BC7,Hoja4!$A$29:$B$61,2,FALSE) -> Risaralda | BE7: =VLOOKUP(BA7,Hoja4!$D$29:$E$1150,2,FALSE) -> Pereira | BF7: 61 | BG7: 1120 | BJ7: 0 | BK7: 0 | BL7: 0 | BM7: 0 | BN7: 0
A8: CC | B8: 24226774 | C8: 15759 | D8: SOGAMOSO | E8: 0 | F8: 0 | G8: Natural | H8: 15 | I8: BOYACÁ | J8: Rechazado a nivel aportante | K8: MICRO | L8: 1811 | M8: INDUSTRIAS MANUFACTURERAS | N8: C | O8: Actividades de impresión y actividades de servicios relacionados con la impresión | P8: Actividades de impresión y de producción de copias a partir de grabaciones originales | Q8: 0 | R8: 0 | S8: 0 | U8: NI | V8: 812008248 | W8: 23001 | X8: MONTERÍA | Y8: 14 | Z8: 0 | AA8: Jurídica | AB8: 23 | AC8: CÓRDOBA | AD8: Aprobado con subsidio | AE8: PEQUEÑA | AF8: 141 | AG8: AGRICULTURA, GANADERÍA, CAZA, SILVICULTURA Y PESCA | AH8: A | AI8: Ganadería | AJ8: Agricultura, ganadería, caza y actividades de servicios conexas | AK8: 3 | AL8: 11 | AM8: 0 | AO8: 11 | AP8: 688 | AQ8: 50 | AR8: 95 | AS8: =VLOOKUP(AQ8,Hoja4!$A$29:$B$61,2,FALSE) -> Meta | AU8: Meta | AV8: 95 | AW8: 1919 | AY8: 23001 | AZ8: 41 | BA8: 47001 | BB8: 60 | BC8: 47 | BD8: =VLOOKUP(BC8,Hoja4!$A$29:$B$61,2,FALSE) -> Magdalena | BE8: =VLOOKUP(BA8,Hoja4!$D$29:$E$1150,2,FALSE) -> Santa marta | BF8: 60 | BG8: 2086 | BJ8: 0 | BK8: 0 | BL8: 0 | BM8: 0 | BN8: 0
A9: CC | B9: 24478927 | C9: 63401 | D9: LA TEBAIDA | E9: 10 | F9: 1 | G9: Natural | H9: 63 | I9: QUINDÍO | J9: Aprobado con subsidio | K9: MICRO | L9: 4731 | M9: COMERCIO AL POR MAYOR Y AL POR MENOR; REPARACIÓN DE VEHÍCULOS AUTOMOTORES Y MOTOCICLETAS | N9: G | O9: Comercio al por menor de combustible, lubricantes, aditivos y productos de limpieza para automotores, en establecimientos especializados | P9: Comercio al por menor, (incluso el comercio al por menor de combustibles), excepto el de vehículos automotores y motocicletas. | Q9: 4 | R9: 6 | S9: 0 | U9: NI | V9: 822001629 | W9: 50006 | X9: ACACÍAS | Y9: 8 | Z9: 0 | AA9: Jurídica | AB9: 50 | AC9: META | AD9: Aprobado con subsidio | AE9: MICRO | AF9: 162 | AG9: AGRICULTURA, GANADERÍA, CAZA, SILVICULTURA Y PESCA | AH9: A | AI9: Actividades de apoyo a la agricultura y la ganadería, y actividades posteriores a la cosecha | AJ9: Agricultura, ganadería, caza y actividades de servicios conexas | AK9: 2 | AL9: 6 | AM9: 0 | AO9: 66 | AP9: 79 | AQ9: 66 | AR9: 79 | AS9: =VLOOKUP(AQ9,Hoja4!$A$29:$B$61,2,FALSE) -> Risaralda | AU9: Risaralda | AV9: 79 | AW9: 1816 | AY9: 50006 | AZ9: 11 | BA9: 5615 | BB9: 55 | BC9: 5 | BD9: =VLOOKUP(BC9,Hoja4!$A$29:$B$61,2,FALSE) -> Antioquia | BE9: =VLOOKUP(BA9,Hoja4!$D$29:$E$1150,2,FALSE) -> Rionegro | BF9: 55 | BG9: 3960 | BJ9: 0 | BK9: 0 | BL9: 0 | BM9: 0 | BN9: 0
A10: CC | B10: 24603109 | C10: 68081 | D10: BARRANCABERMEJA | E10: 5 | F10: 0 | G10: Natural | H10: 68 | I10: SANTANDER | J10: Aprobado con subsidio | K10: MICRO | L10: 5613 | M10: ALOJAMIENTO Y SERVICIOS DE COMIDA | N10: I | O10: Actividades de restaurantes, cafeterías y servicio móvil de comidas | P10: Actividades de servicios de comidas y bebidas | Q10: 3 | R10: 2 | S10: 0 | U10: NI | V10: 830121800 | W10: 11001 | X10: BOGOTÁ, D.C. | Y10: 11 | Z10: 2 | AA10: Jurídica | AB10: 11 | AC10: BOGOTÁ, D.C. | AD10: Aprobado con subsidio | AE10: PEQUEÑA | AF10: 111 | AG10: AGRICULTURA, GANADERÍA, CAZA, SILVICULTURA Y PESCA | AH10: A | AI10: Cultivos agrícolas transitorios | AJ10: Agricultura, ganadería, caza y actividades de servicios conexas | AK10: 0 | AL10: 11 | AM10: 0 | AO10: 52 | AP10: 28 | AQ10: 47 | AR10: 75 | AS10: =VLOOKUP(AQ10,Hoja4!$A$29:$B$61,2,FALSE) -> Magdalena | AU10: Magdalena | AV10: 75 | AW10: 2225 | AY10: 11001 | AZ10: 688 | BA10: 5148 | BB10: 55 | BC10: 5 | BD10: =VLOOKUP(BC10,Hoja4!$A$29:$B$61,2,FALSE) -> Antioquia | BE10: =VLOOKUP(BA10,Hoja4!$D$29:$E$1150,2,FALSE) -> El carmen de vib | BF10: 55 | BG10: 1815 | BJ10: 0 | BK10: 0 | BL10: 0 | BM10: 0 | BN10: 0
A11: CC | B11: 25234302 | C11: 5001 | D11: MEDELLÍN | E11: 2 | F11: 0 | G11: Natural | H11: 5 | I11: ANTIOQUIA | J11: Aprobado con subsidio | K11: MICRO | L11: 7990 | M11: ACTIVIDADES DE SERVICIOS ADMINISTRATIVOS Y DE APOYO | N11: N | O11: Otros servicios de reserva y actividades relacionadas | P11: Actividades de las agencias de viajes, operadores turísticos, servicios de reserva y actividades relacionadas | Q11: 0 | R11: 2 | S11: 0 | U11: NI | V11: 891224627 | W11: 76001 | X11: CALI | Y11: 389 | Z11: 40 | AA11: Jurídica | AB11: 76 | AC11: VALLE DEL CAUCA | AD11: Aprobado con subsidio | AE11: GRANDE | AF11: 126 | AG11: AGRICULTURA, GANADERÍA, CAZA, SILVICULTURA Y PESCA | AH11: A | AI11: Cultivos agrícolas permanentes | AJ11: Agricultura, ganadería, caza y actividades de servicios conexas | AK11: 106 | AL11: 283 | AM11: 0 | AO11: 19 | AP11: 29 | AQ11: 20 | AR11: 72 | AS11: =VLOOKUP(AQ11,Hoja4!$A$29:$B$61,2,FALSE) -> Cesar | AU11: Cesar | AV11: 72 | AW11: 1094 | AY11: 76892 | AZ11: 16 | BA11: 50001 | BB11: 50 | BC11: 50 | BD11: =VLOOKUP(BC11,Hoja4!$A$29:$B$61,2,FALSE) -> Meta | BE11: =VLOOKUP(BA11,Hoja4!$D$29:$E$1150,2,FALSE) -> Villavicencio | BF11: 50 | BG11: 865 | BJ11: 0 | BK11: 0 | BL11: 0 | BM11: 0 | BN11: 0
A12: CC | B12: 25234901 | C12: 17873 | D12: VILLAMARÍA | E12: 4 | F12: 0 | G12: Natural | H12: 17 | I12: CALDAS | J12: Aprobado con subsidio | K12: MICRO | L12: 4732 | M12: COMERCIO AL POR MAYOR Y AL POR MENOR; REPARACIÓN DE VEHÍCULOS AUTOMOTORES Y MOTOCICLETAS | N12: G | O12: Comercio al por menor de combustible, lubricantes, aditivos y productos de limpieza para automotores, en establecimientos especializados | P12: Comercio al por menor, (incluso el comercio al por menor de combustibles), excepto el de vehículos automotores y motocicletas. | Q12: 0 | R12: 4 | S12: 0 | U12: NI | V12: 900343246 | W12: 11001 | X12: BOGOTÁ, D.C. | Y12: 2 | Z12: 0 | AA12: Jurídica | AB12: 11 | AC12: BOGOTÁ, D.C. | AD12: Aprobado con subsidio | AE12: MICRO | AF12: 150 | AG12: AGRICULTURA, GANADERÍA, CAZA, SILVICULTURA Y PESCA | AH12: A | AI12: Explotación mixta (agrícola y pecuaria) | AJ12: Agricultura, ganadería, caza y actividades de servicios conexas | AK12: 0 | AL12: 2 | AM12: 0 | AO12: 47 | AP12: 75 | AQ12: 17 | AR12: 67 | AS12: =VLOOKUP(AQ12,Hoja4!$A$29:$B$61,2,FALSE) -> Caldas | AU12: Caldas | AV12: 67 | AW12: 1275 | AY12: 54001 | AZ12: 23 | BA12: 20001 | BB12: 47 | BC12: 20 | BD12: =VLOOKUP(BC12,Hoja4!$A$29:$B$61,2,FALSE) -> Cesar | BE12: =VLOOKUP(BA12,Hoja4!$D$29:$E$1150,2,FALSE) -> Valledupar | BF12: 47 | BG12: 565 | BJ12: 0 | BK12: 0 | BL12: 0 | BM12: 0 | BN12: 0
A13: CC | B13: 27142281 | C13: 52001 | D13: PASTO | E13: 3 | F13: 3 | G13: Natural | H13: 52 | I13: NARIÑO | J13: Aprobado con subsidio | K13: MICRO | L13: 5511 | M13: ALOJAMIENTO Y SERVICIOS DE COMIDA | N13: I | O13: Actividades de alojamiento de estancias cortas | P13: Alojamiento | Q13: 2 | R13: 1 | S13: 0 | U13: NI | V13: 900482635 | W13: 76892 | X13: YUMBO | Y13: 33 | Z13: 6 | AA13: Jurídica | AB13: 76 | AC13: VALLE DEL CAUCA | AD13: Aprobado con subsidio | AE13: PEQUEÑA | AF13: 162 | AG13: AGRICULTURA, GANADERÍA, CAZA, SILVICULTURA Y PESCA | AH13: A | AI13: Actividades de apoyo a la agricultura y la ganadería, y actividades posteriores a la cosecha | AJ13: Agricultura, ganadería, caza y actividades de servicios conexas | AK13: 7 | AL13: 26 | AM13: 0 | AO13: 50 | AP13: 95 | AQ13: 73 | AR13: 55 | AS13: =VLOOKUP(AQ13,Hoja4!$A$29:$B$61,2,FALSE) -> Tolima | AU13: Tolima | AV13: 55 | AW13: 1851 | AY13: 25899 | AZ13: 25 | BA13: 5376 | BB13: 47 | BC13: 5 | BD13: =VLOOKUP(BC13,Hoja4!$A$29:$B$61,2,FALSE) -> Antioquia | BE13: =VLOOKUP(BA13,Hoja4!$D$29:$E$1150,2,FALSE) -> La ceja | BF13: 47 | BG13: 1375 | BJ13: 0 | BK13: 0 | BL13: 0 | BM13: 0 | BN13: 0
A14: CC | B14: 20926890 | C14: 11001 | D14: BOGOTÁ, D.C. | E14: 3 | F14: 0 | G14: Natural | H14: 11 | I14: BOGOTÁ, D.C. | J14: Aprobado con subsidio | K14: MICRO | L14: 2599 | M14: INDUSTRIAS MANUFACTURERAS | N14: C | O14: Fabricación de otros productos elaborados de metal y actividades de servicios relacionadas con el trabajo de metales | P14: Fabricación de productos elaborados de metal, excepto maquinaria y equipo | Q14: 0 | R14: 3 | S14: 0 | U14: NI | V14: 900373689 | W14: 54001 | X14: SAN JOSÉ DE CÚCUTA | Y14: 257 | Z14: 52 | AA14: Jurídica | AB14: 54 | AC14: NORTE DE SANTANDER | AD14: Aprobado con subsidio | AE14: GRANDE | AF14: 145 | AG14: AGRICULTURA, GANADERÍA, CAZA, SILVICULTURA Y PESCA | AH14: A | AI14: Ganadería | AJ14: Agricultura, ganadería, caza y actividades de servicios conexas | AK14: 51 | AL14: 206 | AM14: 0 | AO14: 63 | AP14: 44 | AQ14: 13 | AR14: 53 | AS14: =VLOOKUP(AQ14,Hoja4!$A$29:$B$61,2,FALSE) -> Bolívar | AU14: Bolívar | AV14: 53 | AW14: 1304 | AY14: 25214 | AZ14: 13 | BA14: 5266 | BB14: 45 | BC14: 5 | BD14: =VLOOKUP(BC14,Hoja4!$A$29:$B$61,2,FALSE) -> Antioquia | BE14: =VLOOKUP(BA14,Hoja4!$D$29:$E$1150,2,FALSE) -> Envigado | BF14: 45 | BG14: 1653 | BJ14: 0 | BK14: 0 | BL14: 0 | BM14: 0 | BN14: 0
A15: CC | B15: 2825840 | C15: 47001 | D15: SANTA MARTA | E15: 0 | F15: 0 | G15: Natural | H15: 47 | I15: MAGDALENA | J15: Rechazado a nivel aportante | K15: MICRO | L15: 1610 | M15: INDUSTRIAS MANUFACTURERAS | N15: C | O15: Aserrado, acepillado e impregnación de la madera | P15: Transformación de la madera y fabricación de productos de madera y de corcho, excepto muebles; fabricación de artículos de cestería y espartería | Q15: 0 | R15: 0 | S15: 0 | U15: NI | V15: 900522467 | W15: 25899 | X15: ZIPAQUIRÁ | Y15: 3 | Z15: 1 | AA15: Jurídica | AB15: 25 | AC15: CUNDINAMARCA | AD15: Aprobado con subsidio | AE15: MICRO | AF15: 141 | AG15: AGRICULTURA, GANADERÍA, CAZA, SILVICULTURA Y PESCA | AH15: A | AI15: Ganadería | AJ15: Agricultura, ganadería, caza y actividades de servicios conexas | AK15: 2 | AL15: 1 | AM15: 0 | AO15: 70 | AP15: 25 | AQ15: 23 | AR15: 51 | AS15: =VLOOKUP(AQ15,Hoja4!$A$29:$B$61,2,FALSE) -> Córdoba | AU15: Córdoba | AV15: 51 | AW15: 771 | AY15: 20383 | AZ15: 1 | BA15: 25175 | BB15: 42 | BC15: 25 | BD15: =VLOOKUP(BC15,Hoja4!$A$29:$B$61,2,FALSE) -> Cundinamarca | BE15: =VLOOKUP(BA15,Hoja4!$D$29:$E$1150,2,FALSE) -> Chía | BF15: 42 | BG15: 3350 | BJ15: 0 | BK15: 0 | BL15: 0 | BM15: 0 | BN15: 0
A16: CC | B16: 2873653 | C16: 11001 | D16: BOGOTÁ, D.C. | E16: 4 | F16: 0 | G16: Natural | H16: 11 | I16: BOGOTÁ, D.C. | J16: Aprobado con subsidio | K16: MICRO | L16: 4752 | M16: COMERCIO AL POR MAYOR Y AL POR MENOR; REPARACIÓN DE VEHÍCULOS AUTOMOTORES Y MOTOCICLETAS | N16: G | O16: Comercio al por menor de otros enseres domésticos en establecimientos especializados | P16: Comercio al por menor (incluso el comercio al por menor de combustibles), excepto el de vehículos automotores y motocicletas | Q16: 0 | R16: 4 | S16: 0 | U16: NI | V16: 900745999 | W16: 25214 | X16: COTA | Y16: 52 | Z16: 3 | AA16: Jurídica | AB16: 25 | AC16: CUNDINAMARCA | AD16: Aprobado con subsidio | AE16: MEDIANA | AF16: 119 | AG16: AGRICULTURA, GANADERÍA, CAZA, SILVICULTURA Y PESCA | AH16: A | AI16: Cultivos agrícolas transitorios | AJ16: Agricultura, ganadería, caza y actividades de servicios conexas | AK16: 4 | AL16: 48 | AM16: 0 | AO16: 41 | AP16: 49 | AQ16: 54 | AR16: 49 | AS16: =VLOOKUP(AQ16,Hoja4!$A$29:$B$61,2,FALSE) -> Norte de stder | AU16: Norte de stder | AV16: 49 | AW16: 938 | AY16: 5001 | AZ16: 381 | BA16: 23001 | BB16: 41 | BC16: 23 | BD16: =VLOOKUP(BC16,Hoja4!$A$29:$B$61,2,FALSE) -> Córdoba | BE16: =VLOOKUP(BA16,Hoja4!$D$29:$E$1150,2,FALSE) -> Montería | BF16: 41 | BG16: 590 | BJ16: 0 | BK16: 0 | BL16: 0 | BM16: 0 | BN16: 0
A17: CC | B17: 29037476 | C17: 76001 | D17: CALI | E17: 7 | F17: 0 | G17: Natural | H17: 76 | I17: VALLE DEL CAUCA | J17: Aprobado con subsidio | K17: MICRO | L17: 4775 | M17: COMERCIO AL POR MAYOR Y AL POR MENOR; REPARACIÓN DE VEHÍCULOS AUTOMOTORES Y MOTOCICLETAS | N17: G | O17: Comercio al por menor de otros productos en establecimientos especializados | P17: Comercio al por menor (incluso el comercio al por menor de combustibles), excepto el de vehículos automotores y motocicletas | Q17: 3 | R17: 4 | S17: 0 | U17: CC | V17: 14218222 | W17: 11001 | X17: BOGOTÁ, D.C. | Y17: 43 | Z17: 7 | AA17: Natural | AB17: 11 | AC17: BOGOTÁ, D.C. | AD17: Aprobado con subsidio | AE17: PEQUEÑA | AF17: 144 | AG17: AGRICULTURA, GANADERÍA, CAZA, SILVICULTURA Y PESCA | AH17: A | AI17: Ganadería | AJ17: Agricultura, ganadería, caza y actividades de servicios conexas | AK17: 3 | AL17: 40 | AM17: 0 | AO17: 25 | AP17: 319 | AQ17: 41 | AR17: 49 | AS17: =VLOOKUP(AQ17,Hoja4!$A$29:$B$61,2,FALSE) -> Huila | AU17: Huila | AV17: 49 | AW17: 726 | AY17: 76364 | AZ17: 5 | BA17: 13001 | BB17: 40 | BC17: 13 | BD17: =VLOOKUP(BC17,Hoja4!$A$29:$B$61,2,FALSE) -> Bolívar | BE17: =VLOOKUP(BA17,Hoja4!$D$29:$E$1150,2,FALSE) -> Cartagena de ind | BF17: 40 | BG17: 1024 | BJ17: 0 | BK17: 0 | BL17: 0 | BM17: 0 | BN17: 0
A18: CC | B18: 30239295 | C18: 17001 | D18: MANIZALES | E18: 7 | F18: 1 | G18: Natural | H18: 17 | I18: CALDAS | J18: Aprobado con subsidio | K18: MICRO | L18: 1081 | M18: INDUSTRIAS MANUFACTURERAS | N18: C | O18: Elaboración de otros productos alimenticios | P18: Elaboración de productos alimenticios | Q18: 6 | R18: 1 | S18: 0 | U18: NI | V18: 815003058 | W18: 76001 | X18: CALI | Y18: 5 | Z18: 0 | AA18: Jurídica | AB18: 76 | AC18: VALLE DEL CAUCA | AD18: Aprobado con subsidio | AE18: MICRO | AF18: 124 | AG18: AGRICULTURA, GANADERÍA, CAZA, SILVICULTURA Y PESCA | AH18: A | AI18: Cultivos agrícolas permanentes | AJ18: Agricultura, ganadería, caza y actividades de servicios conexas | AK18: 1 | AL18: 4 | AM18: 0 | AO18: 8 | AP18: 131 | AQ18: 63 | AR18: 44 | AS18: =VLOOKUP(AQ18,Hoja4!$A$29:$B$61,2,FALSE) -> Quindío | AU18: Quindío | AV18: 44 | AW18: 439 | AY18: 76130 | AZ18: 7 | BA18: 17001 | BB18: 39 | BC18: 17 | BD18: =VLOOKUP(BC18,Hoja4!$A$29:$B$61,2,FALSE) -> Caldas | BE18: =VLOOKUP(BA18,Hoja4!$D$29:$E$1150,2,FALSE) -> Manizales | BF18: 39 | BG18: 637 | BJ18: 0 | BK18: 0 | BL18: 0 | BM18: 0 | BN18: 0
A19: CC | B19: 30338768 | C19: 66001 | D19: PEREIRA | E19: 0 | F19: 0 | G19: Natural | H19: 66 | I19: RISARALDA | J19: Rechazado a nivel aportante | K19: MICRO | L19: 8622 | M19: ACTIVIDADES DE ATENCIÓN DE LA SALUD HUMANA Y DE ASISTENCIA SOCIAL | N19: Q | O19: Actividades de práctica médica y odontológica, sin internación | P19: Actividades de atención de la salud humana | Q19: 0 | R19: 0 | S19: 0 | U19: NI | V19: 830500836 | W19: 11001 | X19: BOGOTÁ, D.C. | Y19: 9 | Z19: 0 | AA19: Jurídica | AB19: 11 | AC19: BOGOTÁ, D.C. | AD19: Aprobado con subsidio | AE19: PEQUEÑA | AF19: 144 | AG19: AGRICULTURA, GANADERÍA, CAZA, SILVICULTURA Y PESCA | AH19: A | AI19: Ganadería | AJ19: Agricultura, ganadería, caza y actividades de servicios conexas | AK19: 1 | AL19: 8 | AM19: 0 | AO19: 85 | AP19: 27 | AQ19: 15 | AR19: 35 | AS19: =VLOOKUP(AQ19,Hoja4!$A$29:$B$61,2,FALSE) -> Boyacá | AU19: Boyacá | AV19: 35 | AW19: 346 | AY19: 41298 | AZ19: 5 | BA19: 76520 | BB19: 38 | BC19: 76 | BD19: =VLOOKUP(BC19,Hoja4!$A$29:$B$61,2,FALSE) -> Valle del cauca | BE19: =VLOOKUP(BA19,Hoja4!$D$29:$E$1150,2,FALSE) -> Palmira | BF19: 38 | BG19: 2652 | BJ19: 0 | BK19: 0 | BL19: 0 | BM19: 0 | BN19: 0
A20: CC | B20: 30359138 | C20: 17380 | D20: LA DORADA | E20: 5 | F20: 0 | G20: Natural | H20: 17 | I20: CALDAS | J20: Aprobado con subsidio | K20: MICRO | L20: 6621 | M20: ACTIVIDADES FINANCIERAS Y DE SEGUROS | N20: K | O20: Actividades de servicios auxiliares de los servicios de seguros y pensiones | P20: Actividades auxiliares de las actividades de servicios financieros | Q20: 5 | R20: 0 | S20: 0 | U20: NI | V20: 900677866 | W20: 20383 | X20: LA GLORIA | Y20: 37 | Z20: 4 | AA20: Jurídica | AB20: 20 | AC20: CESAR | AD20: Aprobado con subsidio | AE20: PEQUEÑA | AF20: 141 | AG20: AGRICULTURA, GANADERÍA, CAZA, SILVICULTURA Y PESCA | AH20: A | AI20: Ganadería | AJ20: Agricultura, ganadería, caza y actividades de servicios conexas | AK20: 1 | AL20: 36 | AM20: 0 | AO20: 73 | AP20: 55 | AQ20: 19 | AR20: 29 | AS20: =VLOOKUP(AQ20,Hoja4!$A$29:$B$61,2,FALSE) -> Cauca | AU20: Cauca | AV20: 29 | AW20: 247 | AY20: 23189 | AZ20: 1 | BA20: 73001 | BB20: 35 | BC20: 73 | BD20: =VLOOKUP(BC20,Hoja4!$A$29:$B$61,2,FALSE) -> Tolima | BE20: =VLOOKUP(BA20,Hoja4!$D$29:$E$1150,2,FALSE) -> Ibagué | BF20: 35 | BG20: 1558 | BJ20: 0 | BK20: 0 | BL20: 0 | BM20: 0 | BN20: 0
A21: CC | B21: 30516946 | C21: 18001 | D21: FLORENCIA | E21: 4 | F21: 0 | G21: Natural | H21: 18 | I21: CAQUETÁ | J21: Aprobado con subsidio | K21: MICRO | L21: 4775 | M21: COMERCIO AL POR MAYOR Y AL POR MENOR; REPARACIÓN DE VEHÍCULOS AUTOMOTORES Y MOTOCICLETAS | N21: G | O21: Comercio al por menor de otros productos en establecimientos especializados | P21: Comercio al por menor (incluso el comercio al por menor de combustibles), excepto el de vehículos automotores y motocicletas | Q21: 2 | R21: 2 | S21: 0 | U21: CC | V21: 43032262 | W21: 5001 | X21: MEDELLÍN | Y21: 0 | Z21: 0 | AA21: Natural | AB21: 5 | AC21: ANTIOQUIA | AD21: Rechazado a nivel aportante | AE21: MICRO | AF21: 123 | AG21: AGRICULTURA, GANADERÍA, CAZA, SILVICULTURA Y PESCA | AH21: A | AI21: Cultivos agrícolas permanentes | AJ21: Agricultura, ganadería, caza y actividades de servicios conexas | AK21: 0 | AL21: 0 | AM21: 0 | AO21: 20 | AP21: 72 | AQ21: 52 | AR21: 28 | AS21: =VLOOKUP(AQ21,Hoja4!$A$29:$B$61,2,FALSE) -> Nariño | AU21: Nariño | AV21: 28 | AW21: 934 | AY21: 76520 | AZ21: 38 | BA21: 68276 | BB21: 32 | BC21: 68 | BD21: =VLOOKUP(BC21,Hoja4!$A$29:$B$61,2,FALSE) -> Santander | BE21: =VLOOKUP(BA21,Hoja4!$D$29:$E$1150,2,FALSE) -> Floridablanca | BF21: 32 | BG21: 4820 | BJ21: 0 | BK21: 0 | BL21: 0 | BM21: 0 | BN21: 0
A22: NI | B22: 31131476 | C22: 76520 | D22: PALMIRA | E22: 31 | F22: 6 | G22: Jurídica | H22: 76 | I22: VALLE DEL CAUCA | J22: Aprobado con subsidio | K22: PEQUEÑA | L22: 5530 | M22: ALOJAMIENTO Y SERVICIOS DE COMIDA | N22: I | O22: Servicios por horas | P22: Alojamiento | Q22: 26 | R22: 5 | S22: 0 | U22: CC | V22: 51823825 | W22: 25899 | X22: ZIPAQUIRÁ | Y22: 20 | Z22: 7 | AA22: Natural | AB22: 25 | AC22: CUNDINAMARCA | AD22: Aprobado con subsidio | AE22: PEQUEÑA | AF22: 150 | AG22: AGRICULTURA, GANADERÍA, CAZA, SILVICULTURA Y PESCA | AH22: A | AI22: Explotación mixta (agrícola y pecuaria) | AJ22: Agricultura, ganadería, caza y actividades de servicios conexas | AK22: 1 | AL22: 19 | AM22: 0 | AO22: 97 | AP22: 0 | AQ22: 85 | AR22: 27 | AS22: =VLOOKUP(AQ22,Hoja4!$A$29:$B$61,2,FALSE) -> Casanare | AU22: Casanare | AV22: 27 | AW22: 319 | AY22: 5615 | AZ22: 55 | BA22: 25269 | BB22: 29 | BC22: 25 | BD22: =VLOOKUP(BC22,Hoja4!$A$29:$B$61,2,FALSE) -> Cundinamarca | BE22: =VLOOKUP(BA22,Hoja4!$D$29:$E$1150,2,FALSE) -> Facatativá | BF22: 29 | BG22: 2837 | BJ22: 0 | BK22: 0 | BL22: 0 | BM22: 0 | BN22: 0
A23: CC | B23: 31167472 | C23: 76520 | D23: PALMIRA | E23: 0 | F23: 0 | G23: Natural | H23: 76 | I23: VALLE DEL CAUCA | J23: Rechazado a nivel aportante | K23: MICRO | L23: 5511 | M23: ALOJAMIENTO Y SERVICIOS DE COMIDA | N23: I | O23: Actividades de alojamiento de estancias cortas | P23: Alojamiento | Q23: 0 | R23: 0 | S23: 0 | U23: NI | V23: 901250738 | W23: 66001 | X23: PEREIRA | Y23: 14 | Z23: 1 | AA23: Jurídica | AB23: 66 | AC23: RISARALDA | AD23: Aprobado con subsidio | AE23: PEQUEÑA | AF23: 141 | AG23: AGRICULTURA, GANADERÍA, CAZA, SILVICULTURA Y PESCA | AH23: A | AI23: Ganadería | AJ23: Agricultura, ganadería, caza y actividades de servicios conexas | AK23: 4 | AL23: 10 | AM23: 0 | AO23: 81 | AP23: 13 | AQ23: 70 | AR23: 25 | AS23: =VLOOKUP(AQ23,Hoja4!$A$29:$B$61,2,FALSE) -> Sucre | AU23: Sucre | AV23: 25 | AW23: 276 | AY23: 25123 | AZ23: 13 | BA23: 63001 | BB23: 28 | BC23: 63 | BD23: =VLOOKUP(BC23,Hoja4!$A$29:$B$61,2,FALSE) -> Quindío | BE23: =VLOOKUP(BA23,Hoja4!$D$29:$E$1150,2,FALSE) -> Armenia | BF23: 28 | BG23: 319 | BJ23: 0 | BK23: 0 | BL23: 0 | BM23: 0 | BN23: 0
A24: CC | B24: 31577108 | C24: 76001 | D24: CALI | E24: 1 | F24: 1 | G24: Natural | H24: 76 | I24: VALLE DEL CAUCA | J24: Aprobado con subsidio | K24: MICRO | L24: 1410 | M24: INDUSTRIAS MANUFACTURERAS | N24: C | O24: Confección de prendas de vestir, excepto prendas de piel | P24: Confección de prendas de vestir | Q24: 1 | R24: 0 | S24: 0 | U24: CC | V24: 31973147 | W24: 76364 | X24: JAMUNDÍ | Y24: 0 | Z24: 0 | AA24: Natural | AB24: 76 | AC24: VALLE DEL CAUCA | AD24: Rechazado a nivel aportante | AE24: MICRO | AF24: 141 | AG24: AGRICULTURA, GANADERÍA, CAZA, SILVICULTURA Y PESCA | AH24: A | AI24: Ganadería | AJ24: Agricultura, ganadería, caza y actividades de servicios conexas | AK24: 0 | AL24: 0 | AM24: 0 | AO24: 44 | AP24: 5 | AQ24: 81 | AR24: 13 | AS24: =VLOOKUP(AQ24,Hoja4!$A$29:$B$61,2,FALSE) -> Arauca | AU24: Arauca | AV24: 13 | AW24: 31 | AY24: 5631 | AZ24: 13 | BA24: 41001 | BB24: 26 | BC24: 41 | BD24: =VLOOKUP(BC24,Hoja4!$A$29:$B$61,2,FALSE) -> Huila | BE24: =VLOOKUP(BA24,Hoja4!$D$29:$E$1150,2,FALSE) -> Neiva | BF24: 26 | BG24: 308 | BJ24: 0 | BK24: 0 | BL24: 0 | BM24: 0 | BN24: 0
A25: CC | B25: 31833628 | C25: 76001 | D25: CALI | E25: 16 | F25: 0 | G25: Natural | H25: 76 | I25: VALLE DEL CAUCA | J25: Aprobado con subsidio | K25: PEQUEÑA | L25: 4541 | M25: COMERCIO AL POR MAYOR Y AL POR MENOR; REPARACIÓN DE VEHÍCULOS AUTOMOTORES Y MOTOCICLETAS | N25: G | O25: Comercio, mantenimiento y reparación de motocicletas y de sus partes, piezas y accesorios | P25: Comercio, mantenimiento y reparación de vehículos automotores y motocicletas, sus partes, piezas y accesorios | Q25: 4 | R25: 12 | S25: 0 | U25: NI | V25: 900652085 | W25: 76001 | X25: CALI | Y25: 41 | Z25: 7 | AA25: Jurídica | AB25: 76 | AC25: VALLE DEL CAUCA | AD25: Aprobado con subsidio | AE25: PEQUEÑA | AF25: 145 | AG25: AGRICULTURA, GANADERÍA, CAZA, SILVICULTURA Y PESCA | AH25: A | AI25: Ganadería | AJ25: Agricultura, ganadería, caza y actividades de servicios conexas | AK25: 18 | AL25: 23 | AM25: 0 | AO25: 17 | AP25: 67 | AQ25: 18 | AR25: 13 | AS25: =VLOOKUP(AQ25,Hoja4!$A$29:$B$61,2,FALSE) -> Caquetá | AU25: =AS25 -> Caquetá | AV25: =AR25 -> 13 | AW25: 79 | AY25: 13001 | AZ25: 40 | BA25: 25899 | BB25: 25 | BC25: 25 | BD25: =VLOOKUP(BC25,Hoja4!$A$29:$B$61,2,FALSE) -> Cundinamarca | BE25: =VLOOKUP(BA25,Hoja4!$D$29:$E$1150,2,FALSE) -> Zipaquirá | BF25: 25 | BG25: 1006 | BJ25: 0 | BK25: 0 | BL25: 0 | BM25: 0 | BN25: 0
A26: CC | B26: 31954277 | C26: 76001 | D26: CALI | E26: 11 | F26: 0 | G26: Natural | H26: 76 | I26: VALLE DEL CAUCA | J26: Aprobado con subsidio | K26: MICRO | L26: 4762 | M26: COMERCIO AL POR MAYOR Y AL POR MENOR; REPARACIÓN DE VEHÍCULOS AUTOMOTORES Y MOTOCICLETAS | N26: G | O26: Comercio al por menor de artículos culturales y de entretenimiento, en establecimientos especializados | P26: Comercio al por menor (incluso el comercio al por menor de combustibles), excepto el de vehículos automotores y motocicletas | Q26: 6 | R26: 5 | S26: 0 | U26: NI | V26: 900385096 | W26: 76130 | X26: CANDELARIA | Y26: 126 | Z26: 42 | AA26: Jurídica | AB26: 76 | AC26: VALLE DEL CAUCA | AD26: Aprobado con subsidio | AE26: MEDIANA | AF26: 161 | AG26: AGRICULTURA, GANADERÍA, CAZA, SILVICULTURA Y PESCA | AH26: A | AI26: Actividades de apoyo a la agricultura y la ganadería, y actividades posteriores a la cosecha | AJ26: Agricultura, ganadería, caza y actividades de servicios conexas | AK26: 2 | AL26: 124 | AM26: 0 | AO26: 18 | AP26: 13 | AQ26: 44 | AR26: 5 | AS26: =VLOOKUP(AQ26,Hoja4!$A$29:$B$61,2,FALSE) -> La guajira | AU26: La guajira | AV26: =AR26 -> 5 | AW26: 27 | AY26: 68081 | AZ26: 5 | BA26: 54001 | BB26: 23 | BC26: 54 | BD26: =VLOOKUP(BC26,Hoja4!$A$29:$B$61,2,FALSE) -> Norte de stder | BE26: =VLOOKUP(BA26,Hoja4!$D$29:$E$1150,2,FALSE) -> Cucuta | BF26: 23 | BG26: 655 | BJ26: 0 | BK26: 0 | BL26: 0 | BM26: 0 | BN26: 0
A27: CC | B27: 3232237 | C27: 11001 | D27: BOGOTÁ, D.C. | E27: 5 | F27: 0 | G27: Natural | H27: 11 | I27: BOGOTÁ, D.C. | J27: Aprobado con subsidio | K27: MICRO | L27: 1410 | M27: INDUSTRIAS MANUFACTURERAS | N27: C | O27: Confección de prendas de vestir, excepto prendas de piel | P27: Confección de prendas de vestir | Q27: 5 | R27: 0 | S27: 0 | U27: NI | V27: 901229945 | W27: 41298 | X27: GARZÓN | Y27: 0 | Z27: 0 | AA27: Jurídica | AB27: 41 | AC27: HUILA | AD27: Rechazado a nivel aportante | AE27: MICRO | AF27: 121 | AG27: AGRICULTURA, GANADERÍA, CAZA, SILVICULTURA Y PESCA | AH27: A | AI27: Cultivos agrícolas permanentes | AJ27: Agricultura, ganadería, caza y actividades de servicios conexas | AK27: 0 | AL27: 0 | AM27: 0 | AO27: 23 | AP27: 51 | AQ27: 95 | AR27: 5 | AS27: =VLOOKUP(AQ27,Hoja4!$A$29:$B$61,2,FALSE) -> Guaviare | AU27: Guaviare | AV27: =AR27 -> 5 | AW27: 17 | AY27: 5059 | AZ27: 1 | BA27: 25430 | BB27: 20 | BC27: 25 | BD27: =VLOOKUP(BC27,Hoja4!$A$29:$B$61,2,FALSE) -> Cundinamarca | BE27: =VLOOKUP(BA27,Hoja4!$D$29:$E$1150,2,FALSE) -> Madrid | BF27: 20 | BG27: 1325 | BJ27: 0 | BK27: 0
A28: CC | B28: 32477712 | C28: 5001 | D28: MEDELLÍN | E28: 28 | F28: 3 | G28: Natural | H28: 5 | I28: ANTIOQUIA | J28: Aprobado con subsidio | K28: PEQUEÑA | L28: 4775 | M28: COMERCIO AL POR MAYOR Y AL POR MENOR; REPARACIÓN DE VEHÍCULOS AUTOMOTORES Y MOTOCICLETAS | N28: G | O28: Comercio al por menor de otros productos en establecimientos especializados | P28: Comercio al por menor (incluso el comercio al por menor de combustibles), excepto el de vehículos automotores y motocicletas | Q28: 1 | R28: 27 | S28: 0 | U28: NI | V28: 812006240 | W28: 23189 | X28: CIÉNAGA DE ORO | Y28: 41 | Z28: 7 | AA28: Jurídica | AB28: 23 | AC28: CÓRDOBA | AD28: Aprobado con subsidio | AE28: PEQUEÑA | AF28: 150 | AG28: AGRICULTURA, GANADERÍA, CAZA, SILVICULTURA Y PESCA | AH28: A | AI28: Explotación mixta (agrícola y pecuaria) | AJ28: Agricultura, ganadería, caza y actividades de servicios conexas | AK28: 7 | AL28: 33 | AM28: 1 | AO28: 88 | AP28: 1 | AQ28: 27 | AR28: 2 | AS28: =VLOOKUP(AQ28,Hoja4!$A$29:$B$61,2,FALSE) -> Chocó | AU28: Chocó | AV28: =AR28 -> 2 | AW28: 22 | AY28: 85001 | AZ28: 13 | BA28: 76834 | BB28: 19 | BC28: 76 | BD28: =VLOOKUP(BC28,Hoja4!$A$29:$B$61,2,FALSE) -> Valle del cauca | BE28: =VLOOKUP(BA28,Hoja4!$D$29:$E$1150,2,FALSE) -> Tuluá | BF28: 19 | BG28: 541 | BJ28: =SUM(BJ2:BJ27) -> 3403 | BK28: =SUM(BK2:BK27) -> 160790
A29: CC | B29: 32501707 | C29: 5631 | D29: SABANETA | E29: 4 | F29: 1 | G29: Natural | H29: 5 | I29: ANTIOQUIA | J29: Aprobado con subsidio | K29: MICRO | L29: 5612 | M29: ALOJAMIENTO Y SERVICIOS DE COMIDA | N29: I | O29: Actividades de restaurantes, cafeterías y servicio móvil de comidas | P29: Actividades de servicios de comidas y bebidas | Q29: 4 | R29: 0 | S29: 0 | U29: NI | V29: 809000469 | W29: 11001 | X29: BOGOTÁ, D.C. | Y29: 37 | Z29: 3 | AA29: Jurídica | AB29: 11 | AC29: BOGOTÁ, D.C. | AD29: Aprobado con subsidio | AE29: PEQUEÑA | AF29: 144 | AG29: AGRICULTURA, GANADERÍA, CAZA, SILVICULTURA Y PESCA | AH29: A | AI29: Ganadería | AJ29: Agricultura, ganadería, caza y actividades de servicios conexas | AK29: 10 | AL29: 27 | AM29: 0 | AO29: 91 | AP29: 0 | AQ29: 99 | AR29: 2 | AS29: =VLOOKUP(AQ29,Hoja4!$A$29:$B$61,2,FALSE) -> Vichada | AU29: Otros | AV29: =SUM(AR29:AR34) -> 3 | AW29: =SUMIFS($Y$2:$Y$399999,$AD$2:$AD$399999,"Aprobado con subsidio")-SUM(AW2:AW28) -> 119 | AY29: 25269 | AZ29: 29 | BA29: 76111 | BB29: 19 | BD29: Otros | BE29: Otros | BF29: =SUM(BB29:BB1000) -> 1074 | BG29: =SUMIFS($Y$2:$Y$399999,$AD$2:$AD$399999,"Aprobado con subsidio")-SUM(BG2:BG28) -> 31861
A30: CC | B30: 3264249 | C30: 11001 | D30: BOGOTÁ, D.C. | E30: 5 | F30: 0 | G30: Natural | H30: 11 | I30: BOGOTÁ, D.C. | J30: Aprobado con subsidio | K30: MICRO | L30: 5611 | M30: ALOJAMIENTO Y SERVICIOS DE COMIDA | N30: I | O30: Actividades de restaurantes, cafeterías y servicio móvil de comidas | P30: Actividades de servicios de comidas y bebidas | Q30: 3 | R30: 2 | S30: 0 | U30: NI | V30: 815001636 | W30: 76520 | X30: PALMIRA | Y30: 0 | Z30: 0 | AA30: Jurídica | AB30: 76 | AC30: VALLE DEL CAUCA | AD30: Rechazado a nivel aportante | AE30: MICRO | AF30: 121 | AG30: AGRICULTURA, GANADERÍA, CAZA, SILVICULTURA Y PESCA | AH30: A | AI30: Cultivos agrícolas permanentes | AJ30: Agricultura, ganadería, caza y actividades de servicios conexas | AK30: 0 | AL30: 0 | AM30: 0 | AO30: 95 | AP30: 5 | AQ30: 88 | AR30: 1 | AS30: =VLOOKUP(AQ30,Hoja4!$A$29:$B$61,2,FALSE) -> San Andrés | AU30: Total | AV30: =SUM(AV2:AV29) -> 3403 | AW30: =SUM(AW2:AW29) -> 160790 | AY30: 76109 | AZ30: 4 | BA30: 5045 | BB30: 18 | BD30: Total | BF30: =SUM(BF2:BF29) -> 3403 | BG30: =SUM(BG2:BG29) -> 160790
A31: CC | B31: 32826857 | C31: 8001 | D31: BARRANQUILLA | E31: 7 | F31: 0 | G31: Natural | H31: 8 | I31: ATLÁNTICO | J31: Aprobado con subsidio | K31: MICRO | L31: 4732 | M31: COMERCIO AL POR MAYOR Y AL POR MENOR; REPARACIÓN DE VEHÍCULOS AUTOMOTORES Y MOTOCICLETAS | N31: G | O31: Comercio al por menor de combustible, lubricantes, aditivos y productos de limpieza para automotores, en establecimientos especializados | P31: Comercio al por menor, (incluso el comercio al por menor de combustibles), excepto el de vehículos automotores y motocicletas. | Q31: 3 | R31: 4 | S31: 0 | U31: NI | V31: 900680719 | W31: 11001 | X31: BOGOTÁ, D.C. | Y31: 2 | Z31: 0 | AA31: Jurídica | AB31: 11 | AC31: BOGOTÁ, D.C. | AD31: Aprobado con subsidio | AE31: MICRO | AF31: 141 | AG31: AGRICULTURA, GANADERÍA, CAZA, SILVICULTURA Y PESCA | AH31: A | AI31: Ganadería | AJ31: Agricultura, ganadería, caza y actividades de servicios conexas | AK31: 0 | AL31: 2 | AM31: 0 | AO31: 86 | AP31: 0 | AQ31: 97 | AR31: 0 | AS31: =VLOOKUP(AQ31,Hoja4!$A$29:$B$61,2,FALSE) -> Vaupés | AY31: 76834 | AZ31: 19 | BA31: 5607 | BB31: 17
A32: CC | B32: 34565015 | C32: 5001 | D32: MEDELLÍN | E32: 4 | F32: 1 | G32: Natural | H32: 5 | I32: ANTIOQUIA | J32: Aprobado con subsidio | K32: MICRO | L32: 5619 | M32: ALOJAMIENTO Y SERVICIOS DE COMIDA | N32: I | O32: Actividades de restaurantes, cafeterías y servicio móvil de comidas | P32: Actividades de servicios de comidas y bebidas | Q32: 2 | R32: 2 | S32: 0 | U32: NI | V32: 800203308 | W32: 8001 | X32: BARRANQUILLA | Y32: 12 | Z32: 0 | AA32: Jurídica | AB32: 8 | AC32: ATLÁNTICO | AD32: Aprobado con subsidio | AE32: PEQUEÑA | AF32: 162 | AG32: AGRICULTURA, GANADERÍA, CAZA, SILVICULTURA Y PESCA | AH32: A | AI32: Actividades de apoyo a la agricultura y la ganadería, y actividades posteriores a la cosecha | AJ32: Agricultura, ganadería, caza y actividades de servicios conexas | AK32: 0 | AL32: 12 | AM32: 0 | AO32: 27 | AP32: 2 | AQ32: 91 | AR32: 0 | AS32: =VLOOKUP(AQ32,Hoja4!$A$29:$B$61,2,FALSE) -> Amazonas | AY32: 50001 | AZ32: 50 | BA32: 76892 | BB32: 16
A33: CC | B33: 29056197 | C33: 76001 | D33: CALI | E33: 3 | F33: 0 | G33: Natural | H33: 76 | I33: VALLE DEL CAUCA | J33: Aprobado con subsidio | K33: MICRO | L33: 1410 | M33: INDUSTRIAS MANUFACTURERAS | N33: C | O33: Confección de prendas de vestir, excepto prendas de piel | P33: Confección de prendas de vestir | Q33: 2 | R33: 1 | S33: 0 | U33: NI | V33: 900998167 | W33: 11001 | X33: BOGOTÁ, D.C. | Y33: 2 | Z33: 0 | AA33: Jurídica | AB33: 11 | AC33: BOGOTÁ, D.C. | AD33: Aprobado con subsidio | AE33: MICRO | AF33: 150 | AG33: AGRICULTURA, GANADERÍA, CAZA, SILVICULTURA Y PESCA | AH33: A | AI33: Explotación mixta (agrícola y pecuaria) | AJ33: Agricultura, ganadería, caza y actividades de servicios conexas | AK33: 1 | AL33: 1 | AM33: 0 | AO33: 94 | AP33: 0 | AQ33: 86 | AR33: 0 | AS33: =VLOOKUP(AQ33,Hoja4!$A$29:$B$61,2,FALSE) -> Putumayo | AY33: 25175 | AZ33: 42 | BA33: 70001 | BB33: 16
A34: CC | B34: 34603509 | C34: 19698 | D34: SANTANDER DE QUILICHAO | E34: 5 | F34: 1 | G34: Natural | H34: 19 | I34: CAUCA | J34: Aprobado con subsidio | K34: MICRO | L34: 4773 | M34: COMERCIO AL POR MAYOR Y AL POR MENOR; REPARACIÓN DE VEHÍCULOS AUTOMOTORES Y MOTOCICLETAS | N34: G | O34: Comercio al por menor de otros productos en establecimientos especializados | P34: Comercio al por menor (incluso el comercio al por menor de combustibles), excepto el de vehículos automotores y motocicletas | Q34: 5 | R34: 0 | S34: 0 | U34: NI | V34: 800027543 | W34: 5615 | X34: RIONEGRO | Y34: 184 | Z34: 55 | AA34: Jurídica | AB34: 5 | AC34: ANTIOQUIA | AD34: Aprobado con subsidio | AE34: GRANDE | AF34: 125 | AG34: AGRICULTURA, GANADERÍA, CAZA, SILVICULTURA Y PESCA | AH34: A | AI34: Cultivos agrícolas permanentes | AJ34: Agricultura, ganadería, caza y actividades de servicios conexas | AK34: 63 | AL34: 121 | AM34: 0 | AO34: 99 | AP34: 2 | AQ34: 94 | AR34: 0 | AS34: =VLOOKUP(AQ34,Hoja4!$A$29:$B$61,2,FALSE) -> Guainía | AY34: 5266 | AZ34: 45 | BA34: 5360 | BB34: 16
A35: CC | B35: 36086251 | C35: 41001 | D35: NEIVA | E35: 18 | F35: 1 | G35: Natural | H35: 41 | I35: HUILA | J35: Aprobado con subsidio | K35: PEQUEÑA | L35: 8530 | M35: EDUCACIÓN | N35: P | O35: Establecimientos que combinan diferentes niveles de educación | P35: Educación | Q35: 16 | R35: 2 | S35: 0 | U35: NI | V35: 830103204 | W35: 11001 | X35: BOGOTÁ, D.C. | Y35: 219 | Z35: 44 | AA35: Jurídica | AB35: 11 | AC35: BOGOTÁ, D.C. | AD35: Aprobado con subsidio | AE35: MEDIANA | AF35: 125 | AG35: AGRICULTURA, GANADERÍA, CAZA, SILVICULTURA Y PESCA | AH35: A | AI35: Cultivos agrícolas permanentes | AJ35: Agricultura, ganadería, caza y actividades de servicios conexas | AK35: 127 | AL35: 92 | AM35: 0 | AY35: 5148 | AZ35: 55 | BA35: 25126 | BB35: 16
A36: CC | B36: 36288616 | C36: 41551 | D36: PITALITO | E36: 3 | F36: 2 | G36: Natural | H36: 41 | I36: HUILA | J36: Aprobado con subsidio | K36: MICRO | L36: 4752 | M36: COMERCIO AL POR MAYOR Y AL POR MENOR; REPARACIÓN DE VEHÍCULOS AUTOMOTORES Y MOTOCICLETAS | N36: G | O36: Comercio al por menor de otros enseres domésticos en establecimientos especializados | P36: Comercio al por menor (incluso el comercio al por menor de combustibles), excepto el de vehículos automotores y motocicletas | Q36: 0 | R36: 3 | S36: 0 | U36: NI | V36: 900234186 | W36: 25123 | X36: CACHIPAY | Y36: 8 | Z36: 1 | AA36: Jurídica | AB36: 25 | AC36: CUNDINAMARCA | AD36: Aprobado con subsidio | AE36: MICRO | AF36: 125 | AG36: AGRICULTURA, GANADERÍA, CAZA, SILVICULTURA Y PESCA | AH36: A | AI36: Cultivos agrícolas permanentes | AJ36: Agricultura, ganadería, caza y actividades de servicios conexas | AK36: 3 | AL36: 5 | AM36: 0 | AY36: 25772 | AZ36: 3 | BA36: 5440 | BB36: 15
A37: CC | B37: 36294696 | C37: 76001 | D37: CALI | E37: 3 | F37: 0 | G37: Natural | H37: 76 | I37: VALLE DEL CAUCA | J37: Aprobado con subsidio | K37: MICRO | L37: 4752 | M37: COMERCIO AL POR MAYOR Y AL POR MENOR; REPARACIÓN DE VEHÍCULOS AUTOMOTORES Y MOTOCICLETAS | N37: G | O37: Comercio al por menor de otros enseres domésticos en establecimientos especializados | P37: Comercio al por menor (incluso el comercio al por menor de combustibles), excepto el de vehículos automotores y motocicletas | Q37: 1 | R37: 2 | S37: 0 | U37: NI | V37: 900242553 | W37: 5631 | X37: SABANETA | Y37: 108 | Z37: 2 | AA37: Jurídica | AB37: 5 | AC37: ANTIOQUIA | AD37: Aprobado con subsidio | AE37: MEDIANA | AF37: 144 | AG37: AGRICULTURA, GANADERÍA, CAZA, SILVICULTURA Y PESCA | AH37: A | AI37: Ganadería | AJ37: Agricultura, ganadería, caza y actividades de servicios conexas | AK37: 22 | AL37: 86 | AM37: 0 | AY37: 25799 | AZ37: 12 | BA37: 25214 | BB37: 13
A38: CC | B38: 36487196 | C38: 20001 | D38: VALLEDUPAR | E38: 0 | F38: 0 | G38: Natural | H38: 20 | I38: CESAR | J38: Rechazado a nivel aportante | K38: MICRO | L38: 141 | M38: AGRICULTURA, GANADERÍA, CAZA, SILVICULTURA Y PESCA | N38: A | O38: Ganadería | P38: Agricultura, ganadería, caza y actividades de servicios conexas | Q38: 0 | R38: 0 | S38: 0 | U38: NI | V38: 900688139 | W38: 13001 | X38: CARTAGENA DE INDIAS | Y38: 4 | Z38: 1 | AA38: Jurídica | AB38: 13 | AC38: BOLÍVAR | AD38: Aprobado con subsidio | AE38: MICRO | AF38: 126 | AG38: AGRICULTURA, GANADERÍA, CAZA, SILVICULTURA Y PESCA | AH38: A | AI38: Cultivos agrícolas permanentes | AJ38: Agricultura, ganadería, caza y actividades de servicios conexas | AK38: 0 | AL38: 4 | AM38: 0 | AY38: 25286 | AZ38: 7 | BA38: 25123 | BB38: 13
A39: CC | B39: 36561370 | C39: 8001 | D39: BARRANQUILLA | E39: 9 | F39: 3 | G39: Natural | H39: 8 | I39: ATLÁNTICO | J39: Aprobado con subsidio | K39: MICRO | L39: 8512 | M39: EDUCACIÓN | N39: P | O39: Educación de la primera infancia, preescolar y básica primaria | P39: Educación | Q39: 9 | R39: 0 | S39: 0 | U39: NI | V39: 901136413 | W39: 68081 | X39: BARRANCABERMEJA | Y39: 0 | Z39: 0 | AA39: Jurídica | AB39: 68 | AC39: SANTANDER | AD39: Rechazado a nivel aportante | AE39: MICRO | AF39: 126 | AG39: AGRICULTURA, GANADERÍA, CAZA, SILVICULTURA Y PESCA | AH39: A | AI39: Cultivos agrícolas permanentes | AJ39: Agricultura, ganadería, caza y actividades de servicios conexas | AK39: 0 | AL39: 0 | AM39: 0 | AY39: 25260 | AZ39: 5 | BA39: 5631 | BB39: 13
A40: CC | B40: 37083962 | C40: 52001 | D40: PASTO | E40: 12 | F40: 0 | G40: Natural | H40: 52 | I40: NARIÑO | J40: Aprobado con subsidio | K40: MICRO | L40: 1081 | M40: INDUSTRIAS MANUFACTURERAS | N40: C | O40: Elaboración de otros productos alimenticios | P40: Elaboración de productos alimenticios | Q40: 6 | R40: 6 | S40: 0 | U40: NI | V40: 900236437 | W40: 5059 | X40: ARMENIA | Y40: 4 | Z40: 1 | AA40: Jurídica | AB40: 5 | AC40: ANTIOQUIA | AD40: Aprobado con subsidio | AE40: MICRO | AF40: 144 | AG40: AGRICULTURA, GANADERÍA, CAZA, SILVICULTURA Y PESCA | AH40: A | AI40: Ganadería | AJ40: Agricultura, ganadería, caza y actividades de servicios conexas | AK40: 1 | AL40: 3 | AM40: 0 | AY40: 5400 | AZ40: 9 | BA40: 85001 | BB40: 13
A41: CC | B41: 37840545 | C41: 68307 | D41: GIRÓN | E41: 9 | F41: 1 | G41: Natural | H41: 68 | I41: SANTANDER | J41: Aprobado con subsidio | K41: MICRO | L41: 8512 | M41: EDUCACIÓN | N41: P | O41: Educación de la primera infancia, preescolar y básica primaria | P41: Educación | Q41: 8 | R41: 1 | S41: 0 | U41: NI | V41: 901321835 | W41: 85001 | X41: YOPAL | Y41: 2 | Z41: 0 | AA41: Jurídica | AB41: 85 | AC41: CASANARE | AD41: Aprobado con subsidio | AE41: MICRO | AF41: 144 | AG41: AGRICULTURA, GANADERÍA, CAZA, SILVICULTURA Y PESCA | AH41: A | AI41: Ganadería | AJ41: Agricultura, ganadería, caza y actividades de servicios conexas | AK41: 1 | AL41: 1 | AM41: 0 | AY41: 5792 | AZ41: 1 | BA41: 25290 | BB41: 13
A42: CC | B42: 39657540 | C42: 11001 | D42: BOGOTÁ, D.C. | E42: 17 | F42: 1 | G42: Natural | H42: 11 | I42: BOGOTÁ, D.C. | J42: Aprobado con subsidio | K42: PEQUEÑA | L42: 8512 | M42: EDUCACIÓN | N42: P | O42: Educación de la primera infancia, preescolar y básica primaria | P42: Educación | Q42: 15 | R42: 2 | S42: 0 | U42: NI | V42: 900221625 | W42: 25269 | X42: FACATATIVÁ | Y42: 16 | Z42: 2 | AA42: Jurídica | AB42: 25 | AC42: CUNDINAMARCA | AD42: Aprobado con subsidio | AE42: PEQUEÑA | AF42: 144 | AG42: AGRICULTURA, GANADERÍA, CAZA, SILVICULTURA Y PESCA | AH42: A | AI42: Ganadería | AJ42: Agricultura, ganadería, caza y actividades de servicios conexas | AK42: 1 | AL42: 15 | AM42: 0 | AY42: 5674 | AZ42: 5 | BA42: 52001 | BB42: 13
A43: CC | B43: 39748747 | C43: 19001 | D43: POPAYÁN | E43: 9 | F43: 0 | G43: Natural | H43: 19 | I43: CAUCA | J43: Aprobado con subsidio | K43: MICRO | L43: 4530 | M43: COMERCIO AL POR MAYOR Y AL POR MENOR; REPARACIÓN DE VEHÍCULOS AUTOMOTORES Y MOTOCICLETAS | N43: G | O43: Comercio de partes, piezas (autopartes) y accesorios (lujos) para vehículos automotores | P43: Comercio, mantenimiento y reparación de vehículos automotores y motocicletas, sus partes, piezas y accesorios | Q43: 1 | R43: 8 | S43: 0 | U43: NI | V43: 800062155 | W43: 76109 | X43: BUENAVENTURA | Y43: 3 | Z43: 0 | AA43: Jurídica | AB43: 76 | AC43: VALLE DEL CAUCA | AD43: Aprobado con subsidio | AE43: MICRO | AF43: 150 | AG43: AGRICULTURA, GANADERÍA, CAZA, SILVICULTURA Y PESCA | AH43: A | AI43: Explotación mixta (agrícola y pecuaria) | AJ43: Agricultura, ganadería, caza y actividades de servicios conexas | AK43: 1 | AL43: 2 | AM43: 0 | AY43: 25473 | AZ43: 7 | BA43: 25799 | BB43: 12
A44: CC | B44: 39762644 | C44: 25473 | D44: MOSQUERA | E44: 5 | F44: 0 | G44: Natural | H44: 25 | I44: CUNDINAMARCA | J44: Aprobado con subsidio | K44: MICRO | L44: 8413 | M44: ADMINISTRACIÓN PÚBLICA Y DEFENSA; PLANES DE SEGURIDAD SOCIAL DE AFILIACIÓN OBLIGATORIA | N44: O | O44: Administración del estado y aplicación de la política económica y social de la comunidad | P44: Administración pública y defensa; planes de seguridad social de afiliación obligatoria | Q44: 5 | R44: 0 | S44: 0 | U44: NI | V44: 832000001 | W44: 25899 | X44: ZIPAQUIRÁ | Y44: 9 | Z44: 2 | AA44: Jurídica | AB44: 25 | AC44: CUNDINAMARCA | AD44: Aprobado con subsidio | AE44: MICRO | AF44: 145 | AG44: AGRICULTURA, GANADERÍA, CAZA, SILVICULTURA Y PESCA | AH44: A | AI44: Ganadería | AJ44: Agricultura, ganadería, caza y actividades de servicios conexas | AK44: 0 | AL44: 9 | AM44: 0 | AY44: 25200 | AZ44: 12 | BA44: 25200 | BB44: 12
A45: CC | B45: 39797469 | C45: 11001 | D45: BOGOTÁ, D.C. | E45: 0 | F45: 0 | G45: Natural | H45: 11 | I45: BOGOTÁ, D.C. | J45: Rechazado a nivel aportante | K45: MICRO | L45: 4755 | M45: COMERCIO AL POR MAYOR Y AL POR MENOR; REPARACIÓN DE VEHÍCULOS AUTOMOTORES Y MOTOCICLETAS | N45: G | O45: Comercio al por menor de otros enseres domésticos en establecimientos especializados | P45: Comercio al por menor (incluso el comercio al por menor de combustibles), excepto el de vehículos automotores y motocicletas | Q45: 0 | R45: 0 | S45: 0 | U45: NI | V45: 900721021 | W45: 76834 | X45: TULUÁ | Y45: 13 | Z45: 3 | AA45: Jurídica | AB45: 76 | AC45: VALLE DEL CAUCA | AD45: Aprobado con subsidio | AE45: PEQUEÑA | AF45: 145 | AG45: AGRICULTURA, GANADERÍA, CAZA, SILVICULTURA Y PESCA | AH45: A | AI45: Ganadería | AJ45: Agricultura, ganadería, caza y actividades de servicios conexas | AK45: 1 | AL45: 12 | AM45: 0 | AY45: 15047 | AZ45: 3 | BA45: 76147 | BB45: 12
A46: CC | B46: 40018435 | C46: 15001 | D46: TUNJA | E46: 0 | F46: 0 | G46: Natural | H46: 15 | I46: BOYACÁ | J46: Rechazado a nivel aportante | K46: MICRO | L46: 4719 | M46: COMERCIO AL POR MAYOR Y AL POR MENOR; REPARACIÓN DE VEHÍCULOS AUTOMOTORES Y MOTOCICLETAS | N46: G | O46: Comercio al por menor en establecimientos no especializados | P46: Comercio al por menor (incluso el comercio al por menor de combustibles), excepto el de vehículos automotores y motocicletas | Q46: 0 | R46: 0 | S46: 0 | U46: NI | V46: 830098785 | W46: 11001 | X46: BOGOTÁ, D.C. | Y46: 4 | Z46: 2 | AA46: Jurídica | AB46: 11 | AC46: BOGOTÁ, D.C. | AD46: Aprobado con subsidio | AE46: MICRO | AF46: 150 | AG46: AGRICULTURA, GANADERÍA, CAZA, SILVICULTURA Y PESCA | AH46: A | AI46: Explotación mixta (agrícola y pecuaria) | AJ46: Agricultura, ganadería, caza y actividades de servicios conexas | AK46: 3 | AL46: 1 | AM46: 0 | AY46: 68001 | AZ46: 88 | BA46: 5172 | BB46: 12
A47: CC | B47: 40341190 | C47: 11001 | D47: BOGOTÁ, D.C. | E47: 4 | F47: 1 | G47: Natural | H47: 11 | I47: BOGOTÁ, D.C. | J47: Aprobado con subsidio | K47: MICRO | L47: 5619 | M47: ALOJAMIENTO Y SERVICIOS DE COMIDA | N47: I | O47: Actividades de restaurantes, cafeterías y servicio móvil de comidas | P47: Actividades de servicios de comidas y bebidas | Q47: 3 | R47: 1 | S47: 0 | U47: NI | V47: 900231957 | W47: 5001 | X47: MEDELLÍN | Y47: 12 | Z47: 0 | AA47: Jurídica | AB47: 5 | AC47: ANTIOQUIA | AD47: Aprobado con subsidio | AE47: PEQUEÑA | AF47: 144 | AG47: AGRICULTURA, GANADERÍA, CAZA, SILVICULTURA Y PESCA | AH47: A | AI47: Ganadería | AJ47: Agricultura, ganadería, caza y actividades de servicios conexas | AK47: 3 | AL47: 9 | AM47: 0 | AY47: 76147 | AZ47: 12 | BA47: 54810 | BB47: 12
A48: CC | B48: 40373918 | C48: 95001 | D48: SAN JOSÉ DEL GUAVIARE | E48: 55 | F48: 8 | G48: Natural | H48: 95 | I48: GUAVIARE | J48: Aprobado con subsidio | K48: MEDIANA | L48: 4541 | M48: COMERCIO AL POR MAYOR Y AL POR MENOR; REPARACIÓN DE VEHÍCULOS AUTOMOTORES Y MOTOCICLETAS | N48: G | O48: Comercio, mantenimiento y reparación de motocicletas y de sus partes, piezas y accesorios | P48: Comercio, mantenimiento y reparación de vehículos automotores y motocicletas, sus partes, piezas y accesorios | Q48: 35 | R48: 20 | S48: 0 | U48: NI | V48: 900350065 | W48: 50001 | X48: VILLAVICENCIO | Y48: 6 | Z48: 3 | AA48: Jurídica | AB48: 50 | AC48: META | AD48: Aprobado con subsidio | AE48: MICRO | AF48: 145 | AG48: AGRICULTURA, GANADERÍA, CAZA, SILVICULTURA Y PESCA | AH48: A | AI48: Ganadería | AJ48: Agricultura, ganadería, caza y actividades de servicios conexas | AK48: 2 | AL48: 4 | AM48: 0 | AY48: 25535 | AZ48: 0 | BA48: 50006 | BB48: 11
A49: CC | B49: 35533530 | C49: 25269 | D49: FACATATIVÁ | E49: 5 | F49: 0 | G49: Natural | H49: 25 | I49: CUNDINAMARCA | J49: Aprobado con subsidio | K49: MICRO | L49: 7020 | M49: ACTIVIDADES PROFESIONALES, CIENTÍFICAS Y TÉCNICAS | N49: M | O49: Actividades de consultoría de gestión | P49: Actividades de administración empresarial; actividades de consultoría de gestión | Q49: 5 | R49: 0 | S49: 0 | U49: NI | V49: 800018971 | W49: 25175 | X49: CHÍA | Y49: 10 | Z49: 2 | AA49: Jurídica | AB49: 25 | AC49: CUNDINAMARCA | AD49: Aprobado con subsidio | AE49: MICRO | AF49: 126 | AG49: AGRICULTURA, GANADERÍA, CAZA, SILVICULTURA Y PESCA | AH49: A | AI49: Cultivos agrícolas permanentes | AJ49: Agricultura, ganadería, caza y actividades de servicios conexas | AK49: 2 | AL49: 8 | AM49: 0 | AY49: 15814 | AZ49: 3 | BA49: 5837 | BB49: 11
A50: CC | B50: 40399607 | C50: 50001 | D50: VILLAVICENCIO | E50: 5 | F50: 0 | G50: Natural | H50: 50 | I50: META | J50: Aprobado con subsidio | K50: MICRO | L50: 8511 | M50: EDUCACIÓN | N50: P | O50: Educación de la primera infancia, preescolar y básica primaria | P50: Educación | Q50: 5 | R50: 0 | S50: 0 | U50: NI | V50: 890306920 | W50: 76001 | X50: CALI | Y50: 29 | Z50: 0 | AA50: Jurídica | AB50: 76 | AC50: VALLE DEL CAUCA | AD50: Aprobado con subsidio | AE50: PEQUEÑA | AF50: 124 | AG50: AGRICULTURA, GANADERÍA, CAZA, SILVICULTURA Y PESCA | AH50: A | AI50: Cultivos agrícolas permanentes | AJ50: Agricultura, ganadería, caza y actividades de servicios conexas | AK50: 0 | AL50: 29 | AM50: 0 | AY50: 25183 | AZ50: 3 | BA50: 52835 | BB50: 11
A51: CC | B51: 40778836 | C51: 11001 | D51: BOGOTÁ, D.C. | E51: 8 | F51: 2 | G51: Natural | H51: 11 | I51: BOGOTÁ, D.C. | J51: Aprobado con subsidio | K51: MICRO | L51: 8621 | M51: ACTIVIDADES DE ATENCIÓN DE LA SALUD HUMANA Y DE ASISTENCIA SOCIAL | N51: Q | O51: Actividades de práctica médica y odontológica, sin internación | P51: Actividades de atención de la salud humana | Q51: 7 | R51: 1 | S51: 0 | U51: NI | V51: 900401026 | W51: 76001 | X51: CALI | Y51: 12 | Z51: 0 | AA51: Jurídica | AB51: 76 | AC51: VALLE DEL CAUCA | AD51: Aprobado con subsidio | AE51: PEQUEÑA | AF51: 150 | AG51: AGRICULTURA, GANADERÍA, CAZA, SILVICULTURA Y PESCA | AH51: A | AI51: Explotación mixta (agrícola y pecuaria) | AJ51: Agricultura, ganadería, caza y actividades de servicios conexas | AK51: 5 | AL51: 7 | AM51: 0 | AY51: 76111 | AZ51: 19 | BA51: 20710 | BB51: 11
A52: CC | B52: 40983952 | C52: 13001 | D52: CARTAGENA DE INDIAS | E52: 5 | F52: 2 | G52: Natural | H52: 13 | I52: BOLÍVAR | J52: Aprobado con subsidio | K52: MICRO | L52: 4762 | M52: COMERCIO AL POR MAYOR Y AL POR MENOR; REPARACIÓN DE VEHÍCULOS AUTOMOTORES Y MOTOCICLETAS | N52: G | O52: Comercio al por menor de artículos culturales y de entretenimiento, en establecimientos especializados | P52: Comercio al por menor (incluso el comercio al por menor de combustibles), excepto el de vehículos automotores y motocicletas | Q52: 2 | R52: 3 | S52: 0 | U52: NI | V52: 900449807 | W52: 5266 | X52: ENVIGADO | Y52: 73 | Z52: 3 | AA52: Jurídica | AB52: 5 | AC52: ANTIOQUIA | AD52: Aprobado con subsidio | AE52: MEDIANA | AF52: 122 | AG52: AGRICULTURA, GANADERÍA, CAZA, SILVICULTURA Y PESCA | AH52: A | AI52: Cultivos agrícolas permanentes | AJ52: Agricultura, ganadería, caza y actividades de servicios conexas | AK52: 7 | AL52: 66 | AM52: 0 | AY52: 41001 | AZ52: 26 | BA52: 5579 | BB52: 11
A53: CC | B53: 41423685 | C53: 11001 | D53: BOGOTÁ, D.C. | E53: 3 | F53: 0 | G53: Natural | H53: 11 | I53: BOGOTÁ, D.C. | J53: Aprobado con subsidio | K53: MICRO | L53: 4754 | M53: COMERCIO AL POR MAYOR Y AL POR MENOR; REPARACIÓN DE VEHÍCULOS AUTOMOTORES Y MOTOCICLETAS | N53: G | O53: Comercio al por menor de otros enseres domésticos en establecimientos especializados | P53: Comercio al por menor (incluso el comercio al por menor de combustibles), excepto el de vehículos automotores y motocicletas | Q53: 1 | R53: 2 | S53: 0 | U53: NI | V53: 900996613 | W53: 5148 | X53: EL CARMEN DE VIBORAL | Y53: 2 | Z53: 0 | AA53: Jurídica | AB53: 5 | AC53: ANTIOQUIA | AD53: Aprobado con subsidio | AE53: MICRO | AF53: 125 | AG53: AGRICULTURA, GANADERÍA, CAZA, SILVICULTURA Y PESCA | AH53: A | AI53: Cultivos agrícolas permanentes | AJ53: Agricultura, ganadería, caza y actividades de servicios conexas | AK53: 2 | AL53: 0 | AM53: 0 | AY53: 18001 | AZ53: 10 | BA53: 18001 | BB53: 10
A54: CC | B54: 41458000 | C54: 15407 | D54: VILLA DE LEYVA | E54: 11 | F54: 0 | G54: Natural | H54: 15 | I54: BOYACÁ | J54: Aprobado con subsidio | K54: PEQUEÑA | L54: 5511 | M54: ALOJAMIENTO Y SERVICIOS DE COMIDA | N54: I | O54: Actividades de alojamiento de estancias cortas | P54: Alojamiento | Q54: 7 | R54: 4 | S54: 0 | U54: NI | V54: 830141144 | W54: 25175 | X54: CHÍA | Y54: 63 | Z54: 3 | AA54: Jurídica | AB54: 25 | AC54: CUNDINAMARCA | AD54: Aprobado con subsidio | AE54: MEDIANA | AF54: 112 | AG54: AGRICULTURA, GANADERÍA, CAZA, SILVICULTURA Y PESCA | AH54: A | AI54: Cultivos agrícolas permanentes | AJ54: Agricultura, ganadería, caza y actividades de servicios conexas | AK54: 36 | AL54: 27 | AM54: 0 | AY54: 5264 | AZ54: 3 | BA54: 68547 | BB54: 10
A55: CC | B55: 41573200 | C55: 11001 | D55: BOGOTÁ, D.C. | E55: 9 | F55: 0 | G55: Natural | H55: 11 | I55: BOGOTÁ, D.C. | J55: Aprobado con subsidio | K55: MICRO | L55: 8513 | M55: EDUCACIÓN | N55: P | O55: Educación de la primera infancia, preescolar y básica primaria | P55: Educación | Q55: 9 | R55: 0 | S55: 0 | U55: NI | V55: 901108116 | W55: 25772 | X55: SUESCA | Y55: 21 | Z55: 3 | AA55: Jurídica | AB55: 25 | AC55: CUNDINAMARCA | AD55: Aprobado con subsidio | AE55: PEQUEÑA | AF55: 125 | AG55: AGRICULTURA, GANADERÍA, CAZA, SILVICULTURA Y PESCA | AH55: A | AI55: Cultivos agrícolas permanentes | AJ55: Agricultura, ganadería, caza y actividades de servicios conexas | AK55: 9 | AL55: 12 | AM55: 0 | AY55: 5390 | AZ55: 2 | BA55: 5318 | BB55: 10
A56: NI | B56: 416733477 | C56: 11001 | D56: BOGOTÁ, D.C. | E56: 0 | F56: 0 | G56: Jurídica | H56: 11 | I56: BOGOTÁ, D.C. | J56: Rechazado a nivel aportante | K56: $null$ | L56: 5611 | M56: ALOJAMIENTO Y SERVICIOS DE COMIDA | N56: I | O56: Actividades de restaurantes, cafeterías y servicio móvil de comidas | P56: Actividades de servicios de comidas y bebidas | Q56: 0 | R56: 0 | S56: 0 | U56: NI | V56: 805018495 | W56: 76892 | X56: YUMBO | Y56: 715 | Z56: 21 | AA56: Jurídica | AB56: 76 | AC56: VALLE DEL CAUCA | AD56: Aprobado con subsidio | AE56: MUY GRANDE | AF56: 144 | AG56: AGRICULTURA, GANADERÍA, CAZA, SILVICULTURA Y PESCA | AH56: A | AI56: Ganadería | AJ56: Agricultura, ganadería, caza y actividades de servicios conexas | AK56: 192 | AL56: 523 | AM56: 0 | AY56: 5079 | AZ56: 3 | BA56: 25322 | BB56: 10
A57: CC | B57: 41695731 | C57: 25286 | D57: FUNZA | E57: 16 | F57: 4 | G57: Natural | H57: 25 | I57: CUNDINAMARCA | J57: Aprobado con subsidio | K57: PEQUEÑA | L57: 8513 | M57: EDUCACIÓN | N57: P | O57: Educación de la primera infancia, preescolar y básica primaria | P57: Educación | Q57: 13 | R57: 3 | S57: 0 | U57: NI | V57: 860053966 | W57: 25175 | X57: CHÍA | Y57: 340 | Z57: 59 | AA57: Jurídica | AB57: 25 | AC57: CUNDINAMARCA | AD57: Aprobado con subsidio | AE57: GRANDE | AF57: 125 | AG57: AGRICULTURA, GANADERÍA, CAZA, SILVICULTURA Y PESCA | AH57: A | AI57: Cultivos agrícolas permanentes | AJ57: Agricultura, ganadería, caza y actividades de servicios conexas | AK57: 186 | AL57: 154 | AM57: 0 | AY57: 73268 | AZ57: 7 | BA57: 5088 | BB57: 10
A58: CC | B58: 41698241 | C58: 50001 | D58: VILLAVICENCIO | E58: 12 | F58: 1 | G58: Natural | H58: 50 | I58: META | J58: Aprobado con subsidio | K58: PEQUEÑA | L58: 4731 | M58: COMERCIO AL POR MAYOR Y AL POR MENOR; REPARACIÓN DE VEHÍCULOS AUTOMOTORES Y MOTOCICLETAS | N58: G | O58: Comercio al por menor de combustible, lubricantes, aditivos y productos de limpieza para automotores, en establecimientos especializados | P58: Comercio al por menor, (incluso el comercio al por menor de combustibles), excepto el de vehículos automotores y motocicletas. | Q58: 9 | R58: 3 | S58: 0 | U58: NI | V58: 805028473 | W58: 76001 | X58: CALI | Y58: 11 | Z58: 47 | AA58: Jurídica | AB58: 76 | AC58: VALLE DEL CAUCA | AD58: Aprobado con subsidio | AE58: PEQUEÑA | AF58: 210 | AG58: AGRICULTURA, GANADERÍA, CAZA, SILVICULTURA Y PESCA | AH58: A | AI58: Silvicultura y otras actividades forestales | AJ58: Silvicultura y extracción de madera | AK58: 6 | AL58: 5 | AM58: 0 | AY58: 68276 | AZ58: 32 | BA58: 68307 | BB58: 10
A59: CC | B59: 41894919 | C59: 63001 | D59: ARMENIA | E59: 5 | F59: 1 | G59: Natural | H59: 63 | I59: QUINDÍO | J59: Aprobado con subsidio | K59: MICRO | L59: 5611 | M59: ALOJAMIENTO Y SERVICIOS DE COMIDA | N59: I | O59: Actividades de restaurantes, cafeterías y servicio móvil de comidas | P59: Actividades de servicios de comidas y bebidas | Q59: 2 | R59: 3 | S59: 0 | U59: NI | V59: 800239996 | W59: 25175 | X59: CHÍA | Y59: 19 | Z59: 4 | AA59: Jurídica | AB59: 25 | AC59: CUNDINAMARCA | AD59: Aprobado con subsidio | AE59: PEQUEÑA | AF59: 210 | AG59: AGRICULTURA, GANADERÍA, CAZA, SILVICULTURA Y PESCA | AH59: A | AI59: Silvicultura y otras actividades forestales | AJ59: Silvicultura y extracción de madera | AK59: 8 | AL59: 11 | AM59: 0 | AY59: 5380 | AZ59: 4 | BA59: 5400 | BB59: 9
A60: CC | B60: 4211190 | C60: 15759 | D60: SOGAMOSO | E60: 13 | F60: 0 | G60: Natural | H60: 15 | I60: BOYACÁ | J60: Aprobado con subsidio | K60: PEQUEÑA | L60: 2395 | M60: INDUSTRIAS MANUFACTURERAS | N60: C | O60: Fabricación de productos minerales no metálicos n.c.p. | P60: Fabricación de otros productos minerales no metálicos | Q60: 1 | R60: 12 | S60: 0 | U60: NI | V60: 901083094 | W60: 25799 | X60: TENJO | Y60: 8 | Z60: 0 | AA60: Jurídica | AB60: 25 | AC60: CUNDINAMARCA | AD60: Aprobado con subsidio | AE60: MICRO | AF60: 125 | AG60: AGRICULTURA, GANADERÍA, CAZA, SILVICULTURA Y PESCA | AH60: A | AI60: Cultivos agrícolas permanentes | AJ60: Agricultura, ganadería, caza y actividades de servicios conexas | AK60: 4 | AL60: 4 | AM60: 0 | AY60: 5607 | AZ60: 17 | BA60: 17380 | BB60: 9
A61: CC | B61: 42120730 | C61: 66001 | D61: PEREIRA | E61: 5 | F61: 0 | G61: Natural | H61: 66 | I61: RISARALDA | J61: Aprobado con subsidio | K61: MICRO | L61: 8530 | M61: EDUCACIÓN | N61: P | O61: Establecimientos que combinan diferentes niveles de educación | P61: Educación | Q61: 5 | R61: 0 | S61: 0 | U61: NI | V61: 860041216 | W61: 25286 | X61: FUNZA | Y61: 508 | Z61: 15 | AA61: Jurídica | AB61: 25 | AC61: CUNDINAMARCA | AD61: Aprobado con subsidio | AE61: MUY GRANDE | AF61: 125 | AG61: AGRICULTURA, GANADERÍA, CAZA, SILVICULTURA Y PESCA | AH61: A | AI61: Cultivos agrícolas permanentes | AJ61: Agricultura, ganadería, caza y actividades de servicios conexas | AK61: 364 | AL61: 144 | AM61: 0 | AY61: 47001 | AZ61: 60 | BA61: 50226 | BB61: 9
A62: CC | B62: 4279737 | C62: 11001 | D62: BOGOTÁ, D.C. | E62: 10 | F62: 8 | G62: Natural | H62: 11 | I62: BOGOTÁ, D.C. | J62: Aprobado con subsidio | K62: MICRO | L62: 4290 | M62: CONSTRUCCIÓN | N62: F | O62: Construcción de otras obras de ingeniería civil | P62: Obras de ingeniería civil | Q62: 0 | R62: 10 | S62: 0 | U62: NI | V62: 800125859 | W62: 25260 | X62: EL ROSAL | Y62: 261 | Z62: 18 | AA62: Jurídica | AB62: 25 | AC62: CUNDINAMARCA | AD62: Aprobado con subsidio | AE62: GRANDE | AF62: 125 | AG62: AGRICULTURA, GANADERÍA, CAZA, SILVICULTURA Y PESCA | AH62: A | AI62: Cultivos agrícolas permanentes | AJ62: Agricultura, ganadería, caza y actividades de servicios conexas | AK62: 166 | AL62: 95 | AM62: 0 | AY62: 25785 | AZ62: 5 | BA62: 5129 | BB62: 8
A63: CC | B63: 42939578 | C63: 5031 | D63: AMALFI | E63: 60 | F63: 12 | G63: Natural | H63: 5 | I63: ANTIOQUIA | J63: Aprobado con subsidio | K63: MEDIANA | L63: 6621 | M63: ACTIVIDADES FINANCIERAS Y DE SEGUROS | N63: K | O63: Actividades de servicios auxiliares de los servicios de seguros y pensiones | P63: Actividades auxiliares de las actividades de servicios financieros | Q63: 29 | R63: 31 | S63: 0 | U63: NI | V63: 901016267 | W63: 11001 | X63: BOGOTÁ, D.C. | Y63: 349 | Z63: 169 | AA63: Jurídica | AB63: 11 | AC63: BOGOTÁ, D.C. | AD63: Aprobado con subsidio | AE63: GRANDE | AF63: 161 | AG63: AGRICULTURA, GANADERÍA, CAZA, SILVICULTURA Y PESCA | AH63: A | AI63: Actividades de apoyo a la agricultura y la ganadería, y actividades posteriores a la cosecha | AJ63: Agricultura, ganadería, caza y actividades de servicios conexas | AK63: 162 | AL63: 187 | AM63: 0 | AY63: 95001 | AZ63: 5 | BA63: 76248 | BB63: 8
A64: CC | B64: 43141747 | C64: 5001 | D64: MEDELLÍN | E64: 25 | F64: 6 | G64: Natural | H64: 5 | I64: ANTIOQUIA | J64: Aprobado con subsidio | K64: PEQUEÑA | L64: 4761 | M64: COMERCIO AL POR MAYOR Y AL POR MENOR; REPARACIÓN DE VEHÍCULOS AUTOMOTORES Y MOTOCICLETAS | N64: G | O64: Comercio al por menor de artículos culturales y de entretenimiento, en establecimientos especializados | P64: Comercio al por menor (incluso el comercio al por menor de combustibles), excepto el de vehículos automotores y motocicletas | Q64: 12 | R64: 13 | S64: 0 | U64: NI | V64: 901289209 | W64: 11001 | X64: BOGOTÁ, D.C. | Y64: 23 | Z64: 11 | AA64: Jurídica | AB64: 11 | AC64: BOGOTÁ, D.C. | AD64: Aprobado con subsidio | AE64: PEQUEÑA | AF64: 161 | AG64: AGRICULTURA, GANADERÍA, CAZA, SILVICULTURA Y PESCA | AH64: A | AI64: Actividades de apoyo a la agricultura y la ganadería, y actividades posteriores a la cosecha | AJ64: Agricultura, ganadería, caza y actividades de servicios conexas | AK64: 15 | AL64: 8 | AM64: 0 | AY64: 68755 | AZ64: 1 | BA64: 25758 | BB64: 8
A65: CC | B65: 4342855 | C65: 17042 | D65: ANSERMA | E65: 0 | F65: 0 | G65: Natural | H65: 17 | I65: CALDAS | J65: Rechazado a nivel aportante | K65: MICRO | L65: 5511 | M65: ALOJAMIENTO Y SERVICIOS DE COMIDA | N65: I | O65: Actividades de alojamiento de estancias cortas | P65: Alojamiento | Q65: 0 | R65: 0 | S65: 0 | U65: NI | V65: 901245493 | W65: 11001 | X65: BOGOTÁ, D.C. | Y65: 40 | Z65: 1 | AA65: Jurídica | AB65: 11 | AC65: BOGOTÁ, D.C. | AD65: Aprobado con subsidio | AE65: PEQUEÑA | AF65: 210 | AG65: AGRICULTURA, GANADERÍA, CAZA, SILVICULTURA Y PESCA | AH65: A | AI65: Silvicultura y otras actividades forestales | AJ65: Silvicultura y extracción de madera | AK65: 25 | AL65: 15 | AM65: 0 | AY65: 68077 | AZ65: 2 | BA65: 19300 | BB65: 8
A66: CC | B66: 41171107 | C66: 5001 | D66: MEDELLÍN | E66: 3 | F66: 0 | G66: Natural | H66: 5 | I66: ANTIOQUIA | J66: Aprobado con subsidio | K66: MICRO | L66: 3250 | M66: INDUSTRIAS MANUFACTURERAS | N66: C | O66: Fabricación de instrumentos, aparatos y materiales médicos y odontológicos (incluido mobiliario) | P66: Otras industrias manufactureras | Q66: 2 | R66: 1 | S66: 0 | U66: NI | V66: 860031657 | W66: 11001 | X66: BOGOTÁ, D.C. | Y66: 221 | Z66: 3 | AA66: Jurídica | AB66: 11 | AC66: BOGOTÁ, D.C. | AD66: Aprobado con subsidio | AE66: GRANDE | AF66: 125 | AG66: AGRICULTURA, GANADERÍA, CAZA, SILVICULTURA Y PESCA | AH66: A | AI66: Cultivos agrícolas permanentes | AJ66: Agricultura, ganadería, caza y actividades de servicios conexas | AK66: 105 | AL66: 116 | AM66: 0 | AY66: 17001 | AZ66: =COUNTIFS($AD$2:$AD$399999,"Aprobado con subsidio",$W$2:$W$399999,AY66) -> 39 | BA66: 76130 | BB66: 7
A67: CC | B67: 43561957 | C67: 5045 | D67: APARTADÓ | E67: 4 | F67: 2 | G67: Natural | H67: 5 | I67: ANTIOQUIA | J67: Aprobado con subsidio | K67: MICRO | L67: 3290 | M67: INDUSTRIAS MANUFACTURERAS | N67: C | O67: Otras industrias manufactureras n.c.p. | P67: Otras industrias manufactureras | Q67: 4 | R67: 0 | S67: 0 | U67: NI | V67: 800089361 | W67: 25175 | X67: CHÍA | Y67: 264 | Z67: 39 | AA67: Jurídica | AB67: 25 | AC67: CUNDINAMARCA | AD67: Aprobado con subsidio | AE67: GRANDE | AF67: 125 | AG67: AGRICULTURA, GANADERÍA, CAZA, SILVICULTURA Y PESCA | AH67: A | AI67: Cultivos agrícolas permanentes | AJ67: Agricultura, ganadería, caza y actividades de servicios conexas | AK67: 167 | AL67: 97 | AM67: 0 | AY67: 68655 | AZ67: 4 | BA67: 25286 | BB67: 7
A68: CC | B68: 43584788 | C68: 25758 | D68: SOPÓ | E68: 10 | F68: 1 | G68: Natural | H68: 25 | I68: CUNDINAMARCA | J68: Aprobado con subsidio | K68: PEQUEÑA | L68: 8512 | M68: EDUCACIÓN | N68: P | O68: Educación de la primera infancia, preescolar y básica primaria | P68: Educación | Q68: 10 | R68: 0 | S68: 0 | U68: NI | V68: 901177226 | W68: 5400 | X68: LA UNIÓN | Y68: 7 | Z68: 1 | AA68: Jurídica | AB68: 5 | AC68: ANTIOQUIA | AD68: Aprobado con subsidio | AE68: MICRO | AF68: 121 | AG68: AGRICULTURA, GANADERÍA, CAZA, SILVICULTURA Y PESCA | AH68: A | AI68: Cultivos agrícolas permanentes | AJ68: Agricultura, ganadería, caza y actividades de servicios conexas | AK68: 1 | AL68: 6 | AM68: 0 | AY68: 5129 | AZ68: 8 | BA68: 25473 | BB68: 7
A69: CC | B69: 43725902 | C69: 5034 | D69: ANDES | E69: 6 | F69: 0 | G69: Natural | H69: 5 | I69: ANTIOQUIA | J69: Aprobado con subsidio | K69: MICRO | L69: 5511 | M69: ALOJAMIENTO Y SERVICIOS DE COMIDA | N69: I | O69: Actividades de alojamiento de estancias cortas | P69: Alojamiento | Q69: 3 | R69: 3 | S69: 0 | U69: NI | V69: 800129680 | W69: 25175 | X69: CHÍA | Y69: 595 | Z69: 204 | AA69: Jurídica | AB69: 25 | AC69: CUNDINAMARCA | AD69: Aprobado con subsidio | AE69: MUY GRANDE | AF69: 125 | AG69: AGRICULTURA, GANADERÍA, CAZA, SILVICULTURA Y PESCA | AH69: A | AI69: Cultivos agrícolas permanentes | AJ69: Agricultura, ganadería, caza y actividades de servicios conexas | AK69: 346 | AL69: 249 | AM69: 0 | AY69: 85010 | AZ69: 4 | BA69: 73268 | BB69: 7
A70: CC | B70: 4391470 | C70: 66088 | D70: BELÉN DE UMBRÍA | E70: 5 | F70: 0 | G70: Natural | H70: 66 | I70: RISARALDA | J70: Aprobado con subsidio | K70: MICRO | L70: 4731 | M70: COMERCIO AL POR MAYOR Y AL POR MENOR; REPARACIÓN DE VEHÍCULOS AUTOMOTORES Y MOTOCICLETAS | N70: G | O70: Comercio al por menor de combustible, lubricantes, aditivos y productos de limpieza para automotores, en establecimientos especializados | P70: Comercio al por menor, (incluso el comercio al por menor de combustibles), excepto el de vehículos automotores y motocicletas. | Q70: 1 | R70: 4 | S70: 0 | U70: NI | V70: 900578839 | W70: 5266 | X70: ENVIGADO | Y70: 81 | Z70: 2 | AA70: Jurídica | AB70: 5 | AC70: ANTIOQUIA | AD70: Aprobado con subsidio | AE70: MEDIANA | AF70: 144 | AG70: AGRICULTURA, GANADERÍA, CAZA, SILVICULTURA Y PESCA | AH70: A | AI70: Ganadería | AJ70: Agricultura, ganadería, caza y actividades de servicios conexas | AK70: 9 | AL70: 72 | AM70: 0 | AY70: 5440 | AZ70: 15 | BA70: 25817 | BB70: 7
A71: CC | B71: 4485411 | C71: 17001 | D71: MANIZALES | E71: 8 | F71: 0 | G71: Natural | H71: 17 | I71: CALDAS | J71: Aprobado con subsidio | K71: MICRO | L71: 4530 | M71: COMERCIO AL POR MAYOR Y AL POR MENOR; REPARACIÓN DE VEHÍCULOS AUTOMOTORES Y MOTOCICLETAS | N71: G | O71: Comercio de partes, piezas (autopartes) y accesorios (lujos) para vehículos automotores | P71: Comercio, mantenimiento y reparación de vehículos automotores y motocicletas, sus partes, piezas y accesorios | Q71: 2 | R71: 6 | S71: 0 | U71: NI | V71: 900677166 | W71: 5266 | X71: ENVIGADO | Y71: 14 | Z71: 3 | AA71: Jurídica | AB71: 5 | AC71: ANTIOQUIA | AD71: Aprobado con subsidio | AE71: PEQUEÑA | AF71: 144 | AG71: AGRICULTURA, GANADERÍA, CAZA, SILVICULTURA Y PESCA | AH71: A | AI71: Ganadería | AJ71: Agricultura, ganadería, caza y actividades de servicios conexas | AK71: 2 | AL71: 12 | AM71: 0 | AY71: 41615 | AZ71: 4 | BA71: 50573 | BB71: 7
A72: CC | B72: 45498111 | C72: 13001 | D72: CARTAGENA DE INDIAS | E72: 6 | F72: 0 | G72: Natural | H72: 13 | I72: BOLÍVAR | J72: Aprobado con subsidio | K72: MICRO | L72: 4775 | M72: COMERCIO AL POR MAYOR Y AL POR MENOR; REPARACIÓN DE VEHÍCULOS AUTOMOTORES Y MOTOCICLETAS | N72: G | O72: Comercio al por menor de otros productos en establecimientos especializados | P72: Comercio al por menor (incluso el comercio al por menor de combustibles), excepto el de vehículos automotores y motocicletas | Q72: 0 | R72: 6 | S72: 0 | U72: NI | V72: 900429267 | W72: 5792 | X72: TARSO | Y72: 8 | Z72: 1 | AA72: Jurídica | AB72: 5 | AC72: ANTIOQUIA | AD72: Aprobado con subsidio | AE72: MICRO | AF72: 141 | AG72: AGRICULTURA, GANADERÍA, CAZA, SILVICULTURA Y PESCA | AH72: A | AI72: Ganadería | AJ72: Agricultura, ganadería, caza y actividades de servicios conexas | AK72: 2 | AL72: 6 | AM72: 0 | AY72: 5282 | AZ72: 4 | BA72: 15759 | BB72: 7
A73: CC | B73: 49740060 | C73: 20001 | D73: VALLEDUPAR | E73: 0 | F73: 0 | G73: Natural | H73: 20 | I73: CESAR | J73: Rechazado a nivel aportante | K73: MICRO | L73: 8521 | M73: EDUCACIÓN | N73: P | O73: Educación secundaria y de formación laboral | P73: Educación | Q73: 0 | R73: 0 | S73: 0 | U73: NI | V73: 900391042 | W73: 11001 | X73: BOGOTÁ, D.C. | Y73: 16 | Z73: 1 | AA73: Jurídica | AB73: 11 | AC73: BOGOTÁ, D.C. | AD73: Aprobado con subsidio | AE73: PEQUEÑA | AF73: 145 | AG73: AGRICULTURA, GANADERÍA, CAZA, SILVICULTURA Y PESCA | AH73: A | AI73: Ganadería | AJ73: Agricultura, ganadería, caza y actividades de servicios conexas | AK73: 7 | AL73: 9 | AM73: 0 | AY73: 27150 | AZ73: 1 | BA73: 76563 | BB73: 7
A74: CC | B74: 51584371 | C74: 11001 | D74: BOGOTÁ, D.C. | E74: 16 | F74: 3 | G74: Natural | H74: 11 | I74: BOGOTÁ, D.C. | J74: Aprobado con subsidio | K74: PEQUEÑA | L74: 8512 | M74: EDUCACIÓN | N74: P | O74: Educación de la primera infancia, preescolar y básica primaria | P74: Educación | Q74: 14 | R74: 2 | S74: 0 | U74: NI | V74: 901278894 | W74: 5674 | X74: SAN VICENTE FERRER | Y74: 2 | Z74: 3 | AA74: Jurídica | AB74: 5 | AC74: ANTIOQUIA | AD74: Aprobado con subsidio | AE74: MICRO | AF74: 125 | AG74: AGRICULTURA, GANADERÍA, CAZA, SILVICULTURA Y PESCA | AH74: A | AI74: Cultivos agrícolas permanentes | AJ74: Agricultura, ganadería, caza y actividades de servicios conexas | AK74: 0 | AL74: 2 | AM74: 0 | AY74: 76248 | AZ74: 8 | BA74: 66170 | BB74: 6
A75: CC | B75: 51694782 | C75: 11001 | D75: BOGOTÁ, D.C. | E75: 4 | F75: 0 | G75: Natural | H75: 11 | I75: BOGOTÁ, D.C. | J75: Aprobado con subsidio | K75: MICRO | L75: 9609 | M75: OTRAS ACTIVIDADES DE SERVICIOS | N75: S | O75: Otras actividades de servicios personales | P75: Otras actividades de servicios personales | Q75: 2 | R75: 2 | S75: 0 | U75: NI | V75: 890926122 | W75: 5615 | X75: RIONEGRO | Y75: 472 | Z75: 11 | AA75: Jurídica | AB75: 5 | AC75: ANTIOQUIA | AD75: Aprobado con subsidio | AE75: GRANDE | AF75: 125 | AG75: AGRICULTURA, GANADERÍA, CAZA, SILVICULTURA Y PESCA | AH75: A | AI75: Cultivos agrícolas permanentes | AJ75: Agricultura, ganadería, caza y actividades de servicios conexas | AK75: 231 | AL75: 241 | AM75: 0 | AY75: 5501 | AZ75: 1 | BA75: 15238 | BB75: 6
A76: CC | B76: 51703079 | C76: 11001 | D76: BOGOTÁ, D.C. | E76: 2 | F76: 3 | G76: Natural | H76: 11 | I76: BOGOTÁ, D.C. | J76: Aprobado con subsidio | K76: MICRO | L76: 4751 | M76: COMERCIO AL POR MAYOR Y AL POR MENOR; REPARACIÓN DE VEHÍCULOS AUTOMOTORES Y MOTOCICLETAS | N76: G | O76: Comercio al por menor de otros enseres domésticos en establecimientos especializados | P76: Comercio al por menor (incluso el comercio al por menor de combustibles), excepto el de vehículos automotores y motocicletas | Q76: 1 | R76: 1 | S76: 0 | U76: NI | V76: 900803167 | W76: 5001 | X76: MEDELLÍN | Y76: 7 | Z76: 8 | AA76: Jurídica | AB76: 5 | AC76: ANTIOQUIA | AD76: Aprobado con subsidio | AE76: MICRO | AF76: 141 | AG76: AGRICULTURA, GANADERÍA, CAZA, SILVICULTURA Y PESCA | AH76: A | AI76: Ganadería | AJ76: Agricultura, ganadería, caza y actividades de servicios conexas | AK76: 0 | AL76: 7 | AM76: 0 | AY76: 68547 | AZ76: 10 | BA76: 5034 | BB76: 6
A77: CC | B77: 51709466 | C77: 41396 | D77: LA PLATA | E77: 4 | F77: 0 | G77: Natural | H77: 41 | I77: HUILA | J77: Aprobado con subsidio | K77: MICRO | L77: 4530 | M77: COMERCIO AL POR MAYOR Y AL POR MENOR; REPARACIÓN DE VEHÍCULOS AUTOMOTORES Y MOTOCICLETAS | N77: G | O77: Comercio de partes, piezas (autopartes) y accesorios (lujos) para vehículos automotores | P77: Comercio, mantenimiento y reparación de vehículos automotores y motocicletas, sus partes, piezas y accesorios | Q77: 1 | R77: 3 | S77: 0 | U77: NI | V77: 901250558 | W77: 5001 | X77: MEDELLÍN | Y77: 2 | Z77: 22 | AA77: Jurídica | AB77: 5 | AC77: ANTIOQUIA | AD77: Aprobado con subsidio | AE77: MICRO | AF77: 141 | AG77: AGRICULTURA, GANADERÍA, CAZA, SILVICULTURA Y PESCA | AH77: A | AI77: Ganadería | AJ77: Agricultura, ganadería, caza y actividades de servicios conexas | AK77: 0 | AL77: 2 | AM77: 0 | AY77: 5837 | AZ77: 11 | BA77: 76275 | BB77: 6
A78: CC | B78: 51726997 | C78: 11001 | D78: BOGOTÁ, D.C. | E78: 4 | F78: 0 | G78: Natural | H78: 11 | I78: BOGOTÁ, D.C. | J78: Aprobado con subsidio | K78: MICRO | L78: 5612 | M78: ALOJAMIENTO Y SERVICIOS DE COMIDA | N78: I | O78: Actividades de restaurantes, cafeterías y servicio móvil de comidas | P78: Actividades de servicios de comidas y bebidas | Q78: 2 | R78: 2 | S78: 0 | U78: NI | V78: 900433736 | W78: 5001 | X78: MEDELLÍN | Y78: 8 | Z78: 3 | AA78: Jurídica | AB78: 5 | AC78: ANTIOQUIA | AD78: Aprobado con subsidio | AE78: MICRO | AF78: 144 | AG78: AGRICULTURA, GANADERÍA, CAZA, SILVICULTURA Y PESCA | AH78: A | AI78: Ganadería | AJ78: Agricultura, ganadería, caza y actividades de servicios conexas | AK78: 4 | AL78: 4 | AM78: 0 | AY78: 63594 | AZ78: 3 | BA78: 47288 | BB78: 6
A79: CC | B79: 51941997 | C79: 11001 | D79: BOGOTÁ, D.C. | E79: 7 | F79: 2 | G79: Natural | H79: 11 | I79: BOGOTÁ, D.C. | J79: Aprobado con subsidio | K79: MICRO | L79: 1811 | M79: INDUSTRIAS MANUFACTURERAS | N79: C | O79: Actividades de impresión y actividades de servicios relacionados con la impresión | P79: Actividades de impresión y de producción de copias a partir de grabaciones originales | Q79: 0 | R79: 7 | S79: 0 | U79: NI | V79: 901040081 | W79: 5266 | X79: ENVIGADO | Y79: 7 | Z79: 0 | AA79: Jurídica | AB79: 5 | AC79: ANTIOQUIA | AD79: Aprobado con subsidio | AE79: MICRO | AF79: 141 | AG79: AGRICULTURA, GANADERÍA, CAZA, SILVICULTURA Y PESCA | AH79: A | AI79: Ganadería | AJ79: Agricultura, ganadería, caza y actividades de servicios conexas | AK79: 0 | AL79: 7 | AM79: 0 | AY79: 5656 | AZ79: 1 | BA79: 76364 | BB79: 5
A80: CC | B80: 52012932 | C80: 11001 | D80: BOGOTÁ, D.C. | E80: 0 | F80: 0 | G80: Natural | H80: 11 | I80: BOGOTÁ, D.C. | J80: Rechazado a nivel aportante | K80: MICRO | L80: 5611 | M80: ALOJAMIENTO Y SERVICIOS DE COMIDA | N80: I | O80: Actividades de restaurantes, cafeterías y servicio móvil de comidas | P80: Actividades de servicios de comidas y bebidas | Q80: 0 | R80: 0 | S80: 0 | U80: NI | V80: 830098311 | W80: 11001 | X80: BOGOTÁ, D.C. | Y80: 8 | Z80: 4 | AA80: Jurídica | AB80: 11 | AC80: BOGOTÁ, D.C. | AD80: Aprobado con subsidio | AE80: MICRO | AF80: 150 | AG80: AGRICULTURA, GANADERÍA, CAZA, SILVICULTURA Y PESCA | AH80: A | AI80: Explotación mixta (agrícola y pecuaria) | AJ80: Agricultura, ganadería, caza y actividades de servicios conexas | AK80: 2 | AL80: 6 | AM80: 0 | AY80: 70001 | AZ80: 16 | BA80: 41298 | BB80: 5
A81: CC | B81: 52071875 | C81: 68077 | D81: BARBOSA | E81: 5 | F81: 0 | G81: Natural | H81: 68 | I81: SANTANDER | J81: Aprobado con subsidio | K81: MICRO | L81: 4520 | M81: COMERCIO AL POR MAYOR Y AL POR MENOR; REPARACIÓN DE VEHÍCULOS AUTOMOTORES Y MOTOCICLETAS | N81: G | O81: Mantenimiento y reparación de vehículos automotores | P81: Comercio, mantenimiento y reparación de vehículos automotores y motocicletas, sus partes, piezas y accesorios | Q81: 1 | R81: 4 | S81: 0 | U81: NI | V81: 830058328 | W81: 11001 | X81: BOGOTÁ, D.C. | Y81: 5 | Z81: 1 | AA81: Jurídica | AB81: 11 | AC81: BOGOTÁ, D.C. | AD81: Aprobado con subsidio | AE81: MICRO | AF81: 312 | AG81: AGRICULTURA, GANADERÍA, CAZA, SILVICULTURA Y PESCA | AH81: A | AI81: Pesca | AJ81: Pesca y acuicultura | AK81: 3 | AL81: 2 | AM81: 0 | AY81: 5237 | AZ81: 2 | BA81: 68081 | BB81: 5
A82: CC | B82: 52210926 | C82: 11001 | D82: BOGOTÁ, D.C. | E82: 0 | F82: 0 | G82: Natural | H82: 11 | I82: BOGOTÁ, D.C. | J82: Rechazado a nivel aportante | K82: MICRO | L82: 1420 | M82: INDUSTRIAS MANUFACTURERAS | N82: C | O82: Fabricación de artículos de piel | P82: Confección de prendas de vestir | Q82: 0 | R82: 0 | S82: 0 | U82: NI | V82: 901088081 | W82: 25473 | X82: MOSQUERA | Y82: 1 | Z82: 0 | AA82: Jurídica | AB82: 25 | AC82: CUNDINAMARCA | AD82: Aprobado con subsidio | AE82: MICRO | AF82: 128 | AG82: AGRICULTURA, GANADERÍA, CAZA, SILVICULTURA Y PESCA | AH82: A | AI82: Cultivos agrícolas permanentes | AJ82: Agricultura, ganadería, caza y actividades de servicios conexas | AK82: 1 | AL82: 0 | AM82: 0 | AY82: 70418 | AZ82: 1 | BA82: 25260 | BB82: 5
A83: CC | B83: 52266750 | C83: 52001 | D83: PASTO | E83: 2 | F83: 3 | G83: Natural | H83: 52 | I83: NARIÑO | J83: Aprobado con subsidio | K83: MICRO | L83: 5611 | M83: ALOJAMIENTO Y SERVICIOS DE COMIDA | N83: I | O83: Actividades de restaurantes, cafeterías y servicio móvil de comidas | P83: Actividades de servicios de comidas y bebidas | Q83: 2 | R83: 0 | S83: 0 | U83: NI | V83: 900874196 | W83: 5148 | X83: EL CARMEN DE VIBORAL | Y83: 14 | Z83: 1 | AA83: Jurídica | AB83: 5 | AC83: ANTIOQUIA | AD83: Aprobado con subsidio | AE83: PEQUEÑA | AF83: 128 | AG83: AGRICULTURA, GANADERÍA, CAZA, SILVICULTURA Y PESCA | AH83: A | AI83: Cultivos agrícolas permanentes | AJ83: Agricultura, ganadería, caza y actividades de servicios conexas | AK83: 6 | AL83: 8 | AM83: 0 | AY83: 5318 | AZ83: 10 | BA83: 5674 | BB83: 5
A84: CC | B84: 52703226 | C84: 11001 | D84: BOGOTÁ, D.C. | E84: 4 | F84: 1 | G84: Natural | H84: 11 | I84: BOGOTÁ, D.C. | J84: Aprobado con subsidio | K84: MICRO | L84: 4390 | M84: CONSTRUCCIÓN | N84: F | O84: Otras actividades especializadas para la construcción de edificios y obras de ingeniería civil | P84: Actividades especializadas para la construcción de edificios y obras de ingeniería civil | Q84: 0 | R84: 4 | S84: 0 | U84: NI | V84: 901173211 | W84: 25200 | X84: COGUA | Y84: 3 | Z84: 0 | AA84: Jurídica | AB84: 25 | AC84: CUNDINAMARCA | AD84: Aprobado con subsidio | AE84: MICRO | AF84: 125 | AG84: AGRICULTURA, GANADERÍA, CAZA, SILVICULTURA Y PESCA | AH84: A | AI84: Cultivos agrícolas permanentes | AJ84: Agricultura, ganadería, caza y actividades de servicios conexas | AK84: 2 | AL84: 1 | AM84: 0 | AY84: 44078 | AZ84: 1 | BA84: 25785 | BB84: 5
A85: CC | B85: 52731468 | C85: 11001 | D85: BOGOTÁ, D.C. | E85: 0 | F85: 0 | G85: Natural | H85: 11 | I85: BOGOTÁ, D.C. | J85: Rechazado a nivel aportante | K85: MICRO | L85: 7110 | M85: ACTIVIDADES PROFESIONALES, CIENTÍFICAS Y TÉCNICAS | N85: M | O85: Actividades de arquitectura e ingeniería y otras actividades conexas de consultoría técnica | P85: Actividades de arquitectura e ingeniería; ensayos y análisis técnicos | Q85: 0 | R85: 0 | S85: 0 | U85: NI | V85: 900810743 | W85: 5148 | X85: EL CARMEN DE VIBORAL | Y85: 7 | Z85: 0 | AA85: Jurídica | AB85: 5 | AC85: ANTIOQUIA | AD85: Aprobado con subsidio | AE85: MICRO | AF85: 125 | AG85: AGRICULTURA, GANADERÍA, CAZA, SILVICULTURA Y PESCA | AH85: A | AI85: Cultivos agrícolas permanentes | AJ85: Agricultura, ganadería, caza y actividades de servicios conexas | AK85: 3 | AL85: 4 | AM85: 0 | AY85: 25322 | AZ85: 10 | BA85: 95001 | BB85: 5
A86: CC | B86: 16660876 | C86: 76001 | D86: CALI | E86: 4 | F86: 0 | G86: Natural | H86: 76 | I86: VALLE DEL CAUCA | J86: Aprobado con subsidio | K86: MICRO | L86: 3312 | M86: INDUSTRIAS MANUFACTURERAS | N86: C | O86: Mantenimiento y reparación especializado de productos elaborados en metal y de maquinaria y equipo | P86: Instalación, mantenimiento y reparación especializado de maquinaria y equipo | Q86: 2 | R86: 2 | S86: 0 | U86: NI | V86: 900324662 | W86: 15047 | X86: AQUITANIA | Y86: 3 | Z86: 1 | AA86: Jurídica | AB86: 15 | AC86: BOYACÁ | AD86: Aprobado con subsidio | AE86: MICRO | AF86: 322 | AG86: AGRICULTURA, GANADERÍA, CAZA, SILVICULTURA Y PESCA | AH86: A | AI86: Acuicultura | AJ86: Pesca y acuicultura | AK86: 0 | AL86: 3 | AM86: 0 | AY86: 70670 | AZ86: 2 | BA86: 5364 | BB86: 5
A87: CC | B87: 16598056 | C87: 73001 | D87: IBAGUÉ | E87: 12 | F87: 0 | G87: Natural | H87: 73 | I87: TOLIMA | J87: Aprobado con subsidio | K87: MICRO | L87: 5611 | M87: ALOJAMIENTO Y SERVICIOS DE COMIDA | N87: I | O87: Actividades de restaurantes, cafeterías y servicio móvil de comidas | P87: Actividades de servicios de comidas y bebidas | Q87: 8 | R87: 4 | S87: 0 | U87: NI | V87: 900739990 | W87: 66001 | X87: PEREIRA | Y87: 14 | Z87: 0 | AA87: Jurídica | AB87: 66 | AC87: RISARALDA | AD87: Aprobado con subsidio | AE87: PEQUEÑA | AF87: 150 | AG87: AGRICULTURA, GANADERÍA, CAZA, SILVICULTURA Y PESCA | AH87: A | AI87: Explotación mixta (agrícola y pecuaria) | AJ87: Agricultura, ganadería, caza y actividades de servicios conexas | AK87: 0 | AL87: 14 | AM87: 0 | AY87: 5088 | AZ87: 10 | BA87: 68679 | BB87: 5
A88: CC | B88: 16507172 | C88: 76109 | D88: BUENAVENTURA | E88: 0 | F88: 0 | G88: Natural | H88: 76 | I88: VALLE DEL CAUCA | J88: Rechazado a nivel aportante | K88: MICRO | L88: 4789 | M88: COMERCIO AL POR MAYOR Y AL POR MENOR; REPARACIÓN DE VEHÍCULOS AUTOMOTORES Y MOTOCICLETAS | N88: G | O88: Comercio al por menor en puestos de venta móviles | P88: Comercio al por menor (incluso el comercio al por menor de combustibles), excepto el de vehículos automotores y motocicletas | Q88: 0 | R88: 0 | S88: 0 | U88: NI | V88: 900902046 | W88: 5266 | X88: ENVIGADO | Y88: 2 | Z88: 0 | AA88: Jurídica | AB88: 5 | AC88: ANTIOQUIA | AD88: Aprobado con subsidio | AE88: MICRO | AF88: 130 | AG88: AGRICULTURA, GANADERÍA, CAZA, SILVICULTURA Y PESCA | AH88: A | AI88: Propagación de plantas (actividades de los viveros, excepto viveros forestales) | AJ88: Agricultura, ganadería, caza y actividades de servicios conexas | AK88: 1 | AL88: 1 | AM88: 0 | AY88: 73001 | AZ88: 35 | BA88: 25386 | BB88: 5
A89: CC | B89: 16459902 | C89: 76001 | D89: CALI | E89: 4 | F89: 2 | G89: Natural | H89: 76 | I89: VALLE DEL CAUCA | J89: Aprobado con subsidio | K89: MICRO | L89: 4719 | M89: COMERCIO AL POR MAYOR Y AL POR MENOR; REPARACIÓN DE VEHÍCULOS AUTOMOTORES Y MOTOCICLETAS | N89: G | O89: Comercio al por menor en establecimientos no especializados | P89: Comercio al por menor (incluso el comercio al por menor de combustibles), excepto el de vehículos automotores y motocicletas | Q89: 2 | R89: 2 | S89: 0 | U89: NI | V89: 63343881 | W89: 68001 | X89: BUCARAMANGA | Y89: 11 | Z89: 0 | AA89: Jurídica | AB89: 68 | AC89: SANTANDER | AD89: Aprobado con subsidio | AE89: PEQUEÑA | AF89: 145 | AG89: AGRICULTURA, GANADERÍA, CAZA, SILVICULTURA Y PESCA | AH89: A | AI89: Ganadería | AJ89: Agricultura, ganadería, caza y actividades de servicios conexas | AK89: 1 | AL89: 10 | AM89: 0 | AY89: 63272 | AZ89: 2 | BA89: 63548 | BB89: 5
A90: CC | B90: 16364962 | C90: 76834 | D90: TULUÁ | E90: 6 | F90: 0 | G90: Natural | H90: 76 | I90: VALLE DEL CAUCA | J90: Aprobado con subsidio | K90: MICRO | L90: 5320 | M90: TRANSPORTE Y ALMACENAMIENTO | N90: H | O90: Actividades de mensajería | P90: Correo y servicios de mensajería | Q90: 0 | R90: 6 | S90: 0 | U90: NI | V90: 900305846 | W90: 11001 | X90: BOGOTÁ, D.C. | Y90: 3 | Z90: 1 | AA90: Jurídica | AB90: 11 | AC90: BOGOTÁ, D.C. | AD90: Aprobado con subsidio | AE90: MICRO | AF90: 121 | AG90: AGRICULTURA, GANADERÍA, CAZA, SILVICULTURA Y PESCA | AH90: A | AI90: Cultivos agrícolas permanentes | AJ90: Agricultura, ganadería, caza y actividades de servicios conexas | AK90: 1 | AL90: 2 | AM90: 0 | AY90: 15087 | AZ90: 2 | BA90: 23162 | BB90: 5
A91: CC | B91: 16362857 | C91: 76834 | D91: TULUÁ | E91: 3 | F91: 0 | G91: Natural | H91: 76 | I91: VALLE DEL CAUCA | J91: Aprobado con subsidio | K91: MICRO | L91: 5611 | M91: ALOJAMIENTO Y SERVICIOS DE COMIDA | N91: I | O91: Actividades de restaurantes, cafeterías y servicio móvil de comidas | P91: Actividades de servicios de comidas y bebidas | Q91: 1 | R91: 2 | S91: 0 | U91: NI | V91: 900309153 | W91: 11001 | X91: BOGOTÁ, D.C. | Y91: 14 | Z91: 3 | AA91: Jurídica | AB91: 11 | AC91: BOGOTÁ, D.C. | AD91: Aprobado con subsidio | AE91: PEQUEÑA | AF91: 113 | AG91: AGRICULTURA, GANADERÍA, CAZA, SILVICULTURA Y PESCA | AH91: A | AI91: Cultivos agrícolas transitorios | AJ91: Agricultura, ganadería, caza y actividades de servicios conexas | AK91: 9 | AL91: 5 | AM91: 0 | AY91: 19807 | AZ91: 2 | BA91: 5154 | BB91: 5
A92: CC | B92: 16340646 | C92: 76834 | D92: TULUÁ | E92: 8 | F92: 2 | G92: Natural | H92: 76 | I92: VALLE DEL CAUCA | J92: Aprobado con subsidio | K92: PEQUEÑA | L92: 4773 | M92: COMERCIO AL POR MAYOR Y AL POR MENOR; REPARACIÓN DE VEHÍCULOS AUTOMOTORES Y MOTOCICLETAS | N92: G | O92: Comercio al por menor de otros productos en establecimientos especializados | P92: Comercio al por menor (incluso el comercio al por menor de combustibles), excepto el de vehículos automotores y motocicletas | Q92: 0 | R92: 8 | S92: 0 | U92: NI | V92: 900697849 | W92: 5001 | X92: MEDELLÍN | Y92: 2 | Z92: 0 | AA92: Jurídica | AB92: 5 | AC92: ANTIOQUIA | AD92: Aprobado con subsidio | AE92: MICRO | AF92: 210 | AG92: AGRICULTURA, GANADERÍA, CAZA, SILVICULTURA Y PESCA | AH92: A | AI92: Silvicultura y otras actividades forestales | AJ92: Silvicultura y extracción de madera | AK92: 1 | AL92: 1 | AM92: 0 | AY92: 54553 | AZ92: 1 | BA92: 5756 | BB92: 5
A93: CC | B93: 15241943 | C93: 88564 | D93: PROVIDENCIA | E93: 9 | F93: 9 | G93: Natural | H93: 88 | I93: ARCHIPIÉLAGO DE SAN ANDRÉS, PROVIDENCIA Y SANTA CATALINA | J93: Aprobado con subsidio | K93: PEQUEÑA | L93: 5511 | M93: ALOJAMIENTO Y SERVICIOS DE COMIDA | N93: I | O93: Actividades de alojamiento de estancias cortas | P93: Alojamiento | Q93: 8 | R93: 1 | S93: 0 | U93: NI | V93: 901035930 | W93: 5615 | X93: RIONEGRO | Y93: 11 | Z93: 0 | AA93: Jurídica | AB93: 5 | AC93: ANTIOQUIA | AD93: Aprobado con subsidio | AE93: PEQUEÑA | AF93: 125 | AG93: AGRICULTURA, GANADERÍA, CAZA, SILVICULTURA Y PESCA | AH93: A | AI93: Cultivos agrícolas permanentes | AJ93: Agricultura, ganadería, caza y actividades de servicios conexas | AK93: 3 | AL93: 8 | AM93: 0 | AY93: 41551 | AZ93: 2 | BA93: 19001 | BB93: 5
A94: CC | B94: 14966773 | C94: 76001 | D94: CALI | E94: 0 | F94: 0 | G94: Natural | H94: 76 | I94: VALLE DEL CAUCA | J94: Rechazado a nivel aportante | K94: $null$ | L94: 8230 | M94: ACTIVIDADES DE SERVICIOS ADMINISTRATIVOS Y DE APOYO | N94: N | O94: Organización de convenciones y eventos comerciales | P94: Actividades administrativas y de apoyo de oficina y otras actividades de apoyo a las empresas | Q94: 0 | R94: 0 | S94: 0 | U94: NI | V94: 901051420 | W94: 5615 | X94: RIONEGRO | Y94: 11 | Z94: 2 | AA94: Jurídica | AB94: 5 | AC94: ANTIOQUIA | AD94: Aprobado con subsidio | AE94: MICRO | AF94: 125 | AG94: AGRICULTURA, GANADERÍA, CAZA, SILVICULTURA Y PESCA | AH94: A | AI94: Cultivos agrícolas permanentes | AJ94: Agricultura, ganadería, caza y actividades de servicios conexas | AK94: 3 | AL94: 8 | AM94: 0 | AY94: 25817 | AZ94: 7 | BA94: 81794 | BB94: 5
A95: CC | B95: 14465429 | C95: 76001 | D95: CALI | E95: 3 | F95: 1 | G95: Natural | H95: 76 | I95: VALLE DEL CAUCA | J95: Aprobado con subsidio | K95: MICRO | L95: 4649 | M95: COMERCIO AL POR MAYOR Y AL POR MENOR; REPARACIÓN DE VEHÍCULOS AUTOMOTORES Y MOTOCICLETAS | N95: G | O95: Comercio al por mayor de artículos y enseres domésticos (incluidas prendas de vestir) | P95: Comercio al por mayor y en comisión o por contrata, excepto el comercio de vehículos automotores y motocicletas. | Q95: 0 | R95: 3 | S95: 0 | U95: NI | V95: 901261237 | W95: 76147 | X95: CARTAGO | Y95: 58 | Z95: 14 | AA95: Jurídica | AB95: 76 | AC95: VALLE DEL CAUCA | AD95: Aprobado con subsidio | AE95: MEDIANA | AF95: 161 | AG95: AGRICULTURA, GANADERÍA, CAZA, SILVICULTURA Y PESCA | AH95: A | AI95: Actividades de apoyo a la agricultura y la ganadería, y actividades posteriores a la cosecha | AJ95: Agricultura, ganadería, caza y actividades de servicios conexas | AK95: 0 | AL95: 58 | AM95: 0 | AY95: 25758 | AZ95: 8 | BA95: 76109 | BB95: 4
A96: CC | B96: 14105833 | C96: 41298 | D96: GARZÓN | E96: 5 | F96: 0 | G96: Natural | H96: 41 | I96: HUILA | J96: Aprobado con subsidio | K96: MICRO | L96: 4541 | M96: COMERCIO AL POR MAYOR Y AL POR MENOR; REPARACIÓN DE VEHÍCULOS AUTOMOTORES Y MOTOCICLETAS | N96: G | O96: Comercio, mantenimiento y reparación de motocicletas y de sus partes, piezas y accesorios | P96: Comercio, mantenimiento y reparación de vehículos automotores y motocicletas, sus partes, piezas y accesorios | Q96: 2 | R96: 3 | S96: 0 | U96: CC | V96: 15382672 | W96: 5615 | X96: RIONEGRO | Y96: 24 | Z96: 1 | AA96: Natural | AB96: 5 | AC96: ANTIOQUIA | AD96: Aprobado con subsidio | AE96: PEQUEÑA | AF96: 125 | AG96: AGRICULTURA, GANADERÍA, CAZA, SILVICULTURA Y PESCA | AH96: A | AI96: Cultivos agrícolas permanentes | AJ96: Agricultura, ganadería, caza y actividades de servicios conexas | AK96: 8 | AL96: 16 | AM96: 0 | AY96: 15176 | AZ96: 2 | BA96: 5380 | BB96: 4
A97: CC | B97: 13956636 | C97: 76520 | D97: PALMIRA | E97: 2 | F97: 2 | G97: Natural | H97: 76 | I97: VALLE DEL CAUCA | J97: Aprobado con subsidio | K97: MICRO | L97: 5210 | M97: TRANSPORTE Y ALMACENAMIENTO | N97: H | O97: Almacenamiento y depósito | P97: Almacenamiento y actividades complementarias al transporte | Q97: 0 | R97: 2 | S97: 0 | U97: CC | V97: 79149186 | W97: 25535 | X97: PASCA | Y97: 0 | Z97: 0 | AA97: Natural | AB97: 25 | AC97: CUNDINAMARCA | AD97: Rechazado a nivel aportante | AE97: MICRO | AF97: 125 | AG97: AGRICULTURA, GANADERÍA, CAZA, SILVICULTURA Y PESCA | AH97: A | AI97: Cultivos agrícolas permanentes | AJ97: Agricultura, ganadería, caza y actividades de servicios conexas | AK97: 0 | AL97: 0 | AM97: 0 | AY97: 70820 | AZ97: 1 | BA97: 68655 | BB97: 4
A98: CC | B98: 13817805 | C98: 68081 | D98: BARRANCABERMEJA | E98: 8 | F98: 0 | G98: Natural | H98: 68 | I98: SANTANDER | J98: Aprobado con subsidio | K98: MICRO | L98: 3312 | M98: INDUSTRIAS MANUFACTURERAS | N98: C | O98: Mantenimiento y reparación especializado de productos elaborados en metal y de maquinaria y equipo | P98: Instalación, mantenimiento y reparación especializado de maquinaria y equipo | Q98: 2 | R98: 6 | S98: 0 | U98: NI | V98: 900118759 | W98: 5001 | X98: MEDELLÍN | Y98: 2 | Z98: 0 | AA98: Jurídica | AB98: 5 | AC98: ANTIOQUIA | AD98: Aprobado con subsidio | AE98: MICRO | AF98: 141 | AG98: AGRICULTURA, GANADERÍA, CAZA, SILVICULTURA Y PESCA | AH98: A | AI98: Ganadería | AJ98: Agricultura, ganadería, caza y actividades de servicios conexas | AK98: 1 | AL98: 1 | AM98: 0 | AY98: 25001 | AZ98: 2 | BA98: 85010 | BB98: 4
A99: CC | B99: 13812749 | C99: 15537 | D99: PAZ DE RÍO | E99: 17 | F99: 0 | G99: Natural | H99: 15 | I99: BOYACÁ | J99: Aprobado con subsidio | K99: PEQUEÑA | L99: 510 | M99: EXPLOTACIÓN DE MINAS Y CANTERAS | N99: B | O99: Extracción de hulla (carbón de piedra) | P99: Extracción de carbón de piedra y lignito | Q99: 2 | R99: 15 | S99: 0 | U99: NI | V99: 901201800 | W99: 15814 | X99: TOCA | Y99: 5 | Z99: 1 | AA99: Jurídica | AB99: 15 | AC99: BOYACÁ | AD99: Aprobado con subsidio | AE99: MICRO | AF99: 125 | AG99: AGRICULTURA, GANADERÍA, CAZA, SILVICULTURA Y PESCA | AH99: A | AI99: Cultivos agrícolas permanentes | AJ99: Agricultura, ganadería, caza y actividades de servicios conexas | AK99: 1 | AL99: 4 | AM99: 0 | AY99: 25290 | AZ99: 13 | BA99: 41615 | BB99: 4
A100: CC | B100: 13806210 | C100: 68547 | D100: PIEDECUESTA | E100: 3 | F100: 1 | G100: Natural | H100: 68 | I100: SANTANDER | J100: Aprobado con subsidio | K100: MICRO | L100: 4762 | M100: COMERCIO AL POR MAYOR Y AL POR MENOR; REPARACIÓN DE VEHÍCULOS AUTOMOTORES Y MOTOCICLETAS | N100: G | O100: Comercio al por menor de artículos culturales y de entretenimiento, en establecimientos especializados | P100: Comercio al por menor (incluso el comercio al por menor de combustibles), excepto el de vehículos automotores y motocicletas | Q100: 2 | R100: 1 | S100: 0 | U100: CC | V100: 51609107 | W100: 11001 | X100: BOGOTÁ, D.C. | Y100: 19 | Z100: 3 | AA100: Natural | AB100: 11 | AC100: BOGOTÁ, D.C. | AD100: Aprobado con subsidio | AE100: PEQUEÑA | AF100: 113 | AG100: AGRICULTURA, GANADERÍA, CAZA, SILVICULTURA Y PESCA | AH100: A | AI100: Cultivos agrícolas transitorios | AJ100: Agricultura, ganadería, caza y actividades de servicios conexas | AK100: 11 | AL100: 8 | AM100: 0 | AY100: 25279 | AZ100: 4 | BA100: 5282 | BB100: 4
A101: CC | B101: 13804343 | C101: 68547 | D101: PIEDECUESTA | E101: 5 | F101: 1 | G101: Natural | H101: 68 | I101: SANTANDER | J101: Aprobado con subsidio | K101: MICRO | L101: 7500 | M101: ACTIVIDADES PROFESIONALES, CIENTÍFICAS Y TÉCNICAS | N101: M | O101: Actividades veterinarias | P101: Actividades veterinarias | Q101: 2 | R101: 3 | S101: 0 | U101: NI | V101: 890913482 | W101: 5001 | X101: MEDELLÍN | Y101: 18 | Z101: 4 | AA101: Jurídica | AB101: 5 | AC101: ANTIOQUIA | AD101: Aprobado con subsidio | AE101: PEQUEÑA | AF101: 141 | AG101: AGRICULTURA, GANADERÍA, CAZA, SILVICULTURA Y PESCA | AH101: A | AI101: Ganadería | AJ101: Agricultura, ganadería, caza y actividades de servicios conexas | AK101: 4 | AL101: 14 | AM101: 0 | AY101: 50573 | AZ101: 7 | BA101: 25279 | BB101: 4
A102: CC | B102: 16708230 | C102: 76001 | D102: CALI | E102: 9 | F102: 0 | G102: Natural | H102: 76 | I102: VALLE DEL CAUCA | J102: Aprobado con subsidio | K102: MICRO | L102: 4771 | M102: COMERCIO AL POR MAYOR Y AL POR MENOR; REPARACIÓN DE VEHÍCULOS AUTOMOTORES Y MOTOCICLETAS | N102: G | O102: Comercio al por menor de otros productos en establecimientos especializados | P102: Comercio al por menor (incluso el comercio al por menor de combustibles), excepto el de vehículos automotores y motocicletas | Q102: 5 | R102: 4 | S102: 0 | U102: NI | V102: 900466036 | W102: 5148 | X102: EL CARMEN DE VIBORAL | Y102: 15 | Z102: 1 | AA102: Jurídica | AB102: 5 | AC102: ANTIOQUIA | AD102: Aprobado con subsidio | AE102: PEQUEÑA | AF102: 125 | AG102: AGRICULTURA, GANADERÍA, CAZA, SILVICULTURA Y PESCA | AH102: A | AI102: Cultivos agrícolas permanentes | AJ102: Agricultura, ganadería, caza y actividades de servicios conexas | AK102: 5 | AL102: 10 | AM102: 0 | AY102: 18753 | AZ102: 1 | BA102: 66400 | BB102: 4
A103: CC | B103: 13615356 | C103: 11001 | D103: BOGOTÁ, D.C. | E103: 0 | F103: 0 | G103: Natural | H103: 11 | I103: BOGOTÁ, D.C. | J103: Rechazado a nivel aportante | K103: MICRO | L103: 4773 | M103: COMERCIO AL POR MAYOR Y AL POR MENOR; REPARACIÓN DE VEHÍCULOS AUTOMOTORES Y MOTOCICLETAS | N103: G | O103: Comercio al por menor de otros productos en establecimientos especializados | P103: Comercio al por menor (incluso el comercio al por menor de combustibles), excepto el de vehículos automotores y motocicletas | Q103: 0 | R103: 0 | S103: 0 | U103: NI | V103: 900496591 | W103: 25183 | X103: CHOCONTÁ | Y103: 1 | Z103: 0 | AA103: Jurídica | AB103: 25 | AC103: CUNDINAMARCA | AD103: Aprobado con subsidio | AE103: PEQUEÑA | AF103: 125 | AG103: AGRICULTURA, GANADERÍA, CAZA, SILVICULTURA Y PESCA | AH103: A | AI103: Cultivos agrícolas permanentes | AJ103: Agricultura, ganadería, caza y actividades de servicios conexas | AK103: 0 | AL103: 1 | AM103: 0 | AY103: 5212 | AZ103: 1 | BA103: 8433 | BB103: 4
A104: CC | B104: 13504008 | C104: 54001 | D104: SAN JOSÉ DE CÚCUTA | E104: 3 | F104: 0 | G104: Natural | H104: 54 | I104: NORTE DE SANTANDER | J104: Aprobado con subsidio | K104: MICRO | L104: 4732 | M104: COMERCIO AL POR MAYOR Y AL POR MENOR; REPARACIÓN DE VEHÍCULOS AUTOMOTORES Y MOTOCICLETAS | N104: G | O104: Comercio al por menor de combustible, lubricantes, aditivos y productos de limpieza para automotores, en establecimientos especializados | P104: Comercio al por menor, (incluso el comercio al por menor de combustibles), excepto el de vehículos automotores y motocicletas. | Q104: 2 | R104: 1 | S104: 0 | U104: NI | V104: 901315842 | W104: 76111 | X104: GUADALAJARA DE BUGA | Y104: 2 | Z104: 6 | AA104: Jurídica | AB104: 76 | AC104: VALLE DEL CAUCA | AD104: Aprobado con subsidio | AE104: MICRO | AF104: 161 | AG104: AGRICULTURA, GANADERÍA, CAZA, SILVICULTURA Y PESCA | AH104: A | AI104: Actividades de apoyo a la agricultura y la ganadería, y actividades posteriores a la cosecha | AJ104: Agricultura, ganadería, caza y actividades de servicios conexas | AK104: 0 | AL104: 2 | AM104: 0 | AY104: 52835 | AZ104: 11 | BA104: 66682 | BB104: 4
A105: NI | B105: 891101158 | C105: 41298 | D105: GARZÓN | E105: 142 | F105: 10 | G105: Jurídica | H105: 41 | I105: HUILA | J105: Aprobado con subsidio | K105: MEDIANA | L105: 4620 | M105: COMERCIO AL POR MAYOR Y AL POR MENOR; REPARACIÓN DE VEHÍCULOS AUTOMOTORES Y MOTOCICLETAS | N105: G | O105: Comercio al por mayor de materias primas agropecuarias; animales vivos | P105: Comercio al por mayor y en comisión o por contrata, excepto el comercio de vehículos automotores y motocicletas. | Q105: 53 | R105: 89 | S105: 0 | U105: NI | V105: 901038520 | W105: 23001 | X105: MONTERÍA | Y105: 8 | Z105: 3 | AA105: Jurídica | AB105: 23 | AC105: CÓRDOBA | AD105: Aprobado con subsidio | AE105: MICRO | AF105: 141 | AG105: AGRICULTURA, GANADERÍA, CAZA, SILVICULTURA Y PESCA | AH105: A | AI105: Ganadería | AJ105: Agricultura, ganadería, caza y actividades de servicios conexas | AK105: 1 | AL105: 7 | AM105: 0 | AY105: 68167 | AZ105: 2 | BA105: 25377 | BB105: 4
A106: CC | B106: 13364825 | C106: 5001 | D106: MEDELLÍN | E106: 11 | F106: 5 | G106: Natural | H106: 5 | I106: ANTIOQUIA | J106: Aprobado con subsidio | K106: PEQUEÑA | L106: 5511 | M106: ALOJAMIENTO Y SERVICIOS DE COMIDA | N106: I | O106: Actividades de alojamiento de estancias cortas | P106: Alojamiento | Q106: 8 | R106: 3 | S106: 0 | U106: NI | V106: 901078522 | W106: 41001 | X106: NEIVA | Y106: 2 | Z106: 0 | AA106: Jurídica | AB106: 41 | AC106: HUILA | AD106: Aprobado con subsidio | AE106: MICRO | AF106: 322 | AG106: AGRICULTURA, GANADERÍA, CAZA, SILVICULTURA Y PESCA | AH106: A | AI106: Acuicultura | AJ106: Pesca y acuicultura | AK106: 0 | AL106: 2 | AM106: 0 | AY106: 66170 | AZ106: 6 | BA106: 17174 | BB106: 4
A107: CC | B107: 13065038 | C107: 52001 | D107: PASTO | E107: 13 | F107: 0 | G107: Natural | H107: 52 | I107: NARIÑO | J107: Aprobado con subsidio | K107: PEQUEÑA | L107: 5611 | M107: ALOJAMIENTO Y SERVICIOS DE COMIDA | N107: I | O107: Actividades de restaurantes, cafeterías y servicio móvil de comidas | P107: Actividades de servicios de comidas y bebidas | Q107: 9 | R107: 4 | S107: 0 | U107: NI | V107: 802001695 | W107: 8001 | X107: BARRANQUILLA | Y107: 3 | Z107: 0 | AA107: Jurídica | AB107: 8 | AC107: ATLÁNTICO | AD107: Aprobado con subsidio | AE107: MICRO | AF107: 141 | AG107: AGRICULTURA, GANADERÍA, CAZA, SILVICULTURA Y PESCA | AH107: A | AI107: Ganadería | AJ107: Agricultura, ganadería, caza y actividades de servicios conexas | AK107: 2 | AL107: 1 | AM107: 0 | AY107: 25430 | AZ107: 20 | BA107: 47053 | BB107: 4
A108: CC | B108: 13012344 | C108: 11001 | D108: BOGOTÁ, D.C. | E108: 13 | F108: 2 | G108: Natural | H108: 11 | I108: BOGOTÁ, D.C. | J108: Aprobado con subsidio | K108: PEQUEÑA | L108: 4330 | M108: CONSTRUCCIÓN | N108: F | O108: Terminación y acabado de edificios y obras de ingeniería civil | P108: Actividades especializadas para la construcción de edificios y obras de ingeniería civil | Q108: 4 | R108: 9 | S108: 0 | U108: NI | V108: 900891718 | W108: 5148 | X108: EL CARMEN DE VIBORAL | Y108: 3 | Z108: 5 | AA108: Jurídica | AB108: 5 | AC108: ANTIOQUIA | AD108: Aprobado con subsidio | AE108: MICRO | AF108: 125 | AG108: AGRICULTURA, GANADERÍA, CAZA, SILVICULTURA Y PESCA | AH108: A | AI108: Cultivos agrícolas permanentes | AJ108: Agricultura, ganadería, caza y actividades de servicios conexas | AK108: 2 | AL108: 1 | AM108: 0 | AY108: 5364 | AZ108: 5 | BA108: 76670 | BB108: 4
A109: CC | B109: 12994583 | C109: 52001 | D109: PASTO | E109: 7 | F109: 1 | G109: Natural | H109: 52 | I109: NARIÑO | J109: Aprobado con subsidio | K109: MICRO | L109: 4530 | M109: COMERCIO AL POR MAYOR Y AL POR MENOR; REPARACIÓN DE VEHÍCULOS AUTOMOTORES Y MOTOCICLETAS | N109: G | O109: Comercio de partes, piezas (autopartes) y accesorios (lujos) para vehículos automotores | P109: Comercio, mantenimiento y reparación de vehículos automotores y motocicletas, sus partes, piezas y accesorios | Q109: 5 | R109: 2 | S109: 0 | U109: NI | V109: 900560770 | W109: 5148 | X109: EL CARMEN DE VIBORAL | Y109: 2 | Z109: 0 | AA109: Jurídica | AB109: 5 | AC109: ANTIOQUIA | AD109: Aprobado con subsidio | AE109: MICRO | AF109: 125 | AG109: AGRICULTURA, GANADERÍA, CAZA, SILVICULTURA Y PESCA | AH109: A | AI109: Cultivos agrícolas permanentes | AJ109: Agricultura, ganadería, caza y actividades de servicios conexas | AK109: 2 | AL109: 0 | AM109: 0 | AY109: 13244 | AZ109: 1 | BA109: 5425 | BB109: 4
A110: CC | B110: 12614589 | C110: 20001 | D110: VALLEDUPAR | E110: 0 | F110: 0 | G110: Natural | H110: 20 | I110: CESAR | J110: Rechazado a nivel aportante | K110: $null$ | L110: 5611 | M110: ALOJAMIENTO Y SERVICIOS DE COMIDA | N110: I | O110: Actividades de restaurantes, cafeterías y servicio móvil de comidas | P110: Actividades de servicios de comidas y bebidas | Q110: 0 | R110: 0 | S110: 0 | U110: NI | V110: 900354712 | W110: 25175 | X110: CHÍA | Y110: 0 | Z110: 0 | AA110: Jurídica | AB110: 25 | AC110: CUNDINAMARCA | AD110: Rechazado a nivel aportante | AE110: PEQUEÑA | AF110: 125 | AG110: AGRICULTURA, GANADERÍA, CAZA, SILVICULTURA Y PESCA | AH110: A | AI110: Cultivos agrícolas permanentes | AJ110: Agricultura, ganadería, caza y actividades de servicios conexas | AK110: 0 | AL110: 0 | AM110: 0 | AY110: 5031 | AZ110: 1 | BA110: 5002 | BB110: 4
A111: CC | B111: 12196359 | C111: 41001 | D111: NEIVA | E111: 6 | F111: 1 | G111: Natural | H111: 41 | I111: HUILA | J111: Aprobado con subsidio | K111: MICRO | L111: 4762 | M111: COMERCIO AL POR MAYOR Y AL POR MENOR; REPARACIÓN DE VEHÍCULOS AUTOMOTORES Y MOTOCICLETAS | N111: G | O111: Comercio al por menor de artículos culturales y de entretenimiento, en establecimientos especializados | P111: Comercio al por menor (incluso el comercio al por menor de combustibles), excepto el de vehículos automotores y motocicletas | Q111: 2 | R111: 4 | S111: 0 | U111: NI | V111: 800079377 | W111: 68081 | X111: BARRANCABERMEJA | Y111: 19 | Z111: 2 | AA111: Jurídica | AB111: 68 | AC111: SANTANDER | AD111: Aprobado con subsidio | AE111: PEQUEÑA | AF111: 126 | AG111: AGRICULTURA, GANADERÍA, CAZA, SILVICULTURA Y PESCA | AH111: A | AI111: Cultivos agrícolas permanentes | AJ111: Agricultura, ganadería, caza y actividades de servicios conexas | AK111: 2 | AL111: 17 | AM111: 0 | AY111: 68679 | AZ111: 5 | BA111: 25486 | BB111: 4
A112: CC | B112: 12189887 | C112: 95001 | D112: SAN JOSÉ DEL GUAVIARE | E112: ND | F112: ND | G112: Natural | H112: 95 | I112: GUAVIARE | J112: Aprobado con subsidio | K112: MICRO | L112: 4923 | M112: TRANSPORTE Y ALMACENAMIENTO | N112: H | O112: Transporte terrestre publico automotor | P112: Transporte terrestre; transporte por tuberías | Q112: 0 | R112: 0 | S112: 0 | U112: NI | V112: 901203807 | W112: 11001 | X112: BOGOTÁ, D.C. | Y112: 8 | Z112: 0 | AA112: Jurídica | AB112: 11 | AC112: BOGOTÁ, D.C. | AD112: Aprobado con subsidio | AE112: MICRO | AF112: 141 | AG112: AGRICULTURA, GANADERÍA, CAZA, SILVICULTURA Y PESCA | AH112: A | AI112: Ganadería | AJ112: Agricultura, ganadería, caza y actividades de servicios conexas | AK112: 3 | AL112: 5 | AM112: 0 | AY112: 17541 | AZ112: 2 | BA112: 50313 | BB112: 4
A113: CC | B113: 12120370 | C113: 41001 | D113: NEIVA | E113: 15 | F113: 0 | G113: Natural | H113: 41 | I113: HUILA | J113: Aprobado con subsidio | K113: PEQUEÑA | L113: 5530 | M113: ALOJAMIENTO Y SERVICIOS DE COMIDA | N113: I | O113: Servicios por horas | P113: Alojamiento | Q113: 11 | R113: 4 | S113: 0 | U113: NI | V113: 900736864 | W113: 5148 | X113: EL CARMEN DE VIBORAL | Y113: 5 | Z113: 0 | AA113: Jurídica | AB113: 5 | AC113: ANTIOQUIA | AD113: Aprobado con subsidio | AE113: MICRO | AF113: 125 | AG113: AGRICULTURA, GANADERÍA, CAZA, SILVICULTURA Y PESCA | AH113: A | AI113: Cultivos agrícolas permanentes | AJ113: Agricultura, ganadería, caza y actividades de servicios conexas | AK113: 2 | AL113: 3 | AM113: 0 | AY113: 66400 | AZ113: 4 | BA113: 76400 | BB113: 4
A114: CC | B114: 1193098315 | C114: 76111 | D114: GUADALAJARA DE BUGA | E114: 3 | F114: 0 | G114: Natural | H114: 76 | I114: VALLE DEL CAUCA | J114: Aprobado con subsidio | K114: MICRO | L114: 4771 | M114: COMERCIO AL POR MAYOR Y AL POR MENOR; REPARACIÓN DE VEHÍCULOS AUTOMOTORES Y MOTOCICLETAS | N114: G | O114: Comercio al por menor de otros productos en establecimientos especializados | P114: Comercio al por menor (incluso el comercio al por menor de combustibles), excepto el de vehículos automotores y motocicletas | Q114: 2 | R114: 1 | S114: 0 | U114: NI | V114: 901228791 | W114: 18001 | X114: FLORENCIA | Y114: 3 | Z114: 1 | AA114: Jurídica | AB114: 18 | AC114: CAQUETÁ | AD114: Aprobado con subsidio | AE114: MICRO | AF114: 141 | AG114: AGRICULTURA, GANADERÍA, CAZA, SILVICULTURA Y PESCA | AH114: A | AI114: Ganadería | AJ114: Agricultura, ganadería, caza y actividades de servicios conexas | AK114: 1 | AL114: 2 | AM114: 0 | AY114: 8433 | AZ114: 4 | BA114: 25645 | BB114: 4
A115: CC | B115: 1144155447 | C115: 76001 | D115: CALI | E115: 6 | F115: 1 | G115: Natural | H115: 76 | I115: VALLE DEL CAUCA | J115: Aprobado con subsidio | K115: MICRO | L115: 1089 | M115: INDUSTRIAS MANUFACTURERAS | N115: C | O115: Elaboración de otros productos alimenticios | P115: Elaboración de productos alimenticios | Q115: 3 | R115: 3 | S115: 0 | U115: CC | V115: 71905885 | W115: 5264 | X115: ENTRERRÍOS | Y115: 23 | Z115: 1 | AA115: Natural | AB115: 5 | AC115: ANTIOQUIA | AD115: Aprobado con subsidio | AE115: PEQUEÑA | AF115: 144 | AG115: AGRICULTURA, GANADERÍA, CAZA, SILVICULTURA Y PESCA | AH115: A | AI115: Ganadería | AJ115: Agricultura, ganadería, caza y actividades de servicios conexas | AK115: 5 | AL115: 18 | AM115: 0 | AY115: 25297 | AZ115: 1 | BA115: 76895 | BB115: 4
A116: CC | B116: 1144100431 | C116: 76001 | D116: CALI | E116: 0 | F116: 0 | G116: Natural | H116: 76 | I116: VALLE DEL CAUCA | J116: Rechazado a nivel aportante | K116: MICRO | L116: 5621 | M116: ALOJAMIENTO Y SERVICIOS DE COMIDA | N116: I | O116: Actividades de catering para eventos y otros servicios de comidas | P116: Actividades de servicios de comidas y bebidas | Q116: 0 | R116: 0 | S116: 0 | U116: NI | V116: 900055402 | W116: 5001 | X116: MEDELLÍN | Y116: 19 | Z116: 4 | AA116: Jurídica | AB116: 5 | AC116: ANTIOQUIA | AD116: Aprobado con subsidio | AE116: PEQUEÑA | AF116: 125 | AG116: AGRICULTURA, GANADERÍA, CAZA, SILVICULTURA Y PESCA | AH116: A | AI116: Cultivos agrícolas permanentes | AJ116: Agricultura, ganadería, caza y actividades de servicios conexas | AK116: 4 | AL116: 15 | AM116: 0 | AY116: 20710 | AZ116: 11 | BA116: 81065 | BB116: 4
A117: CC | B117: 1144057436 | C117: 5001 | D117: MEDELLÍN | E117: 7 | F117: 1 | G117: Natural | H117: 5 | I117: ANTIOQUIA | J117: Aprobado con subsidio | K117: MICRO | L117: 4773 | M117: COMERCIO AL POR MAYOR Y AL POR MENOR; REPARACIÓN DE VEHÍCULOS AUTOMOTORES Y MOTOCICLETAS | N117: G | O117: Comercio al por menor de otros productos en establecimientos especializados | P117: Comercio al por menor (incluso el comercio al por menor de combustibles), excepto el de vehículos automotores y motocicletas | Q117: 7 | R117: 0 | S117: 0 | U117: NI | V117: 900681644 | W117: 11001 | X117: BOGOTÁ, D.C. | Y117: 12 | Z117: 6 | AA117: Jurídica | AB117: 11 | AC117: BOGOTÁ, D.C. | AD117: Aprobado con subsidio | AE117: MICRO | AF117: 119 | AG117: AGRICULTURA, GANADERÍA, CAZA, SILVICULTURA Y PESCA | AH117: A | AI117: Cultivos agrícolas transitorios | AJ117: Agricultura, ganadería, caza y actividades de servicios conexas | AK117: 1 | AL117: 11 | AM117: 0 | AY117: 76869 | AZ117: 3 | BA117: 52356 | BB117: 4
A118: CC | B118: 11299705 | C118: 50001 | D118: VILLAVICENCIO | E118: 26 | F118: 4 | G118: Natural | H118: 50 | I118: META | J118: Aprobado con subsidio | K118: PEQUEÑA | L118: 2021 | M118: INDUSTRIAS MANUFACTURERAS | N118: C | O118: Fabricación de otros productos químicos | P118: Fabricación de sustancias y productos químicos | Q118: 13 | R118: 13 | S118: 0 | U118: NI | V118: 900192561 | W118: 5390 | X118: LA PINTADA | Y118: 8 | Z118: 0 | AA118: Jurídica | AB118: 5 | AC118: ANTIOQUIA | AD118: Aprobado con subsidio | AE118: MICRO | AF118: 121 | AG118: AGRICULTURA, GANADERÍA, CAZA, SILVICULTURA Y PESCA | AH118: A | AI118: Cultivos agrícolas permanentes | AJ118: Agricultura, ganadería, caza y actividades de servicios conexas | AK118: 0 | AL118: 8 | AM118: 0 | AY118: 52001 | AZ118: 13 | BA118: 5847 | BB118: 4
A119: CC | B119: 1118289192 | C119: 76001 | D119: CALI | E119: 3 | F119: 1 | G119: Natural | H119: 76 | I119: VALLE DEL CAUCA | J119: Aprobado con subsidio | K119: MICRO | L119: 4512 | M119: COMERCIO AL POR MAYOR Y AL POR MENOR; REPARACIÓN DE VEHÍCULOS AUTOMOTORES Y MOTOCICLETAS | N119: G | O119: Comercio de vehículos automotores | P119: Comercio, mantenimiento y reparación de vehículos automotores y motocicletas, sus partes, piezas y accesorios | Q119: 0 | R119: 3 | S119: 0 | U119: CC | V119: 15480826 | W119: 5079 | X119: BARBOSA | Y119: 4 | Z119: 0 | AA119: Natural | AB119: 5 | AC119: ANTIOQUIA | AD119: Aprobado con subsidio | AE119: MICRO | AF119: 130 | AG119: AGRICULTURA, GANADERÍA, CAZA, SILVICULTURA Y PESCA | AH119: A | AI119: Propagación de plantas (actividades de los viveros, excepto viveros forestales) | AJ119: Agricultura, ganadería, caza y actividades de servicios conexas | AK119: 1 | AL119: 3 | AM119: 0 | AY119: 85430 | AZ119: 1 | BA119: 25772 | BB119: 3
A120: CC | B120: 1117503840 | C120: 18001 | D120: FLORENCIA | E120: 0 | F120: 0 | G120: Natural | H120: 18 | I120: CAQUETÁ | J120: Rechazado a nivel aportante | K120: PEQUEÑA | L120: 4210 | M120: CONSTRUCCIÓN | N120: F | O120: Construcción de carreteras y vías de ferrocarril | P120: Obras de ingeniería civil | Q120: 0 | R120: 0 | S120: 0 | U120: NI | V120: 900773966 | W120: 5001 | X120: MEDELLÍN | Y120: 22 | Z120: 3 | AA120: Jurídica | AB120: 5 | AC120: ANTIOQUIA | AD120: Aprobado con subsidio | AE120: PEQUEÑA | AF120: 125 | AG120: AGRICULTURA, GANADERÍA, CAZA, SILVICULTURA Y PESCA | AH120: A | AI120: Cultivos agrícolas permanentes | AJ120: Agricultura, ganadería, caza y actividades de servicios conexas | AK120: 8 | AL120: 14 | AM120: 0 | AY120: 54125 | AZ120: 0 | BA120: 15047 | BB120: 3
A121: CC | B121: 13471790 | C121: 54001 | D121: SAN JOSÉ DE CÚCUTA | E121: 14 | F121: 2 | G121: Natural | H121: 54 | I121: NORTE DE SANTANDER | J121: Aprobado con subsidio | K121: PEQUEÑA | L121: 4663 | M121: COMERCIO AL POR MAYOR Y AL POR MENOR; REPARACIÓN DE VEHÍCULOS AUTOMOTORES Y MOTOCICLETAS | N121: G | O121: Comercio al por mayor especializado de otros productos | P121: Comercio al por mayor y en comisión o por contrata, excepto el comercio de vehículos automotores y motocicletas. | Q121: 4 | R121: 10 | S121: 0 | U121: NI | V121: 901192663 | W121: 73268 | X121: ESPINAL | Y121: 15 | Z121: 4 | AA121: Jurídica | AB121: 73 | AC121: TOLIMA | AD121: Aprobado con subsidio | AE121: PEQUEÑA | AF121: 128 | AG121: AGRICULTURA, GANADERÍA, CAZA, SILVICULTURA Y PESCA | AH121: A | AI121: Cultivos agrícolas permanentes | AJ121: Agricultura, ganadería, caza y actividades de servicios conexas | AK121: 6 | AL121: 9 | AM121: 0 | AY121: 66682 | AZ121: 4 | BA121: 15814 | BB121: 3
A122: CC | B122: 1113675825 | C122: 76520 | D122: PALMIRA | E122: 4 | F122: 4 | G122: Natural | H122: 76 | I122: VALLE DEL CAUCA | J122: Aprobado con subsidio | K122: MICRO | L122: 5619 | M122: ALOJAMIENTO Y SERVICIOS DE COMIDA | N122: I | O122: Actividades de restaurantes, cafeterías y servicio móvil de comidas | P122: Actividades de servicios de comidas y bebidas | Q122: 4 | R122: 0 | S122: 0 | U122: NI | V122: 900491405 | W122: 5376 | X122: LA CEJA | Y122: 14 | Z122: 2 | AA122: Jurídica | AB122: 5 | AC122: ANTIOQUIA | AD122: Aprobado con subsidio | AE122: PEQUEÑA | AF122: 130 | AG122: AGRICULTURA, GANADERÍA, CAZA, SILVICULTURA Y PESCA | AH122: A | AI122: Propagación de plantas (actividades de los viveros, excepto viveros forestales) | AJ122: Agricultura, ganadería, caza y actividades de servicios conexas | AK122: 3 | AL122: 11 | AM122: 0 | AY122: 5360 | AZ122: 16 | BA122: 25183 | BB122: 3
A123: CC | B123: 1113623479 | C123: 76001 | D123: CALI | E123: 9 | F123: 2 | G123: Natural | H123: 76 | I123: VALLE DEL CAUCA | J123: Aprobado con subsidio | K123: PEQUEÑA | L123: 4711 | M123: COMERCIO AL POR MAYOR Y AL POR MENOR; REPARACIÓN DE VEHÍCULOS AUTOMOTORES Y MOTOCICLETAS | N123: G | O123: Comercio al por menor en establecimientos no especializados | P123: Comercio al por menor (incluso el comercio al por menor de combustibles), excepto el de vehículos automotores y motocicletas | Q123: 3 | R123: 6 | S123: 0 | U123: NI | V123: 901237163 | W123: 68276 | X123: FLORIDABLANCA | Y123: 3 | Z123: 10 | AA123: Jurídica | AB123: 68 | AC123: SANTANDER | AD123: Aprobado con subsidio | AE123: MICRO | AF123: 121 | AG123: AGRICULTURA, GANADERÍA, CAZA, SILVICULTURA Y PESCA | AH123: A | AI123: Cultivos agrícolas permanentes | AJ123: Agricultura, ganadería, caza y actividades de servicios conexas | AK123: 0 | AL123: 3 | AM123: 0 | AY123: 13052 | AZ123: 1 | BA123: 5264 | BB123: 3
A124: NI | B124: 860032550 | C124: 11001 | D124: BOGOTÁ, D.C. | E124: 1177 | F124: 39 | G124: Jurídica | H124: 11 | I124: BOGOTÁ, D.C. | J124: Aprobado con subsidio | K124: MUY GRANDE | L124: 2392 | M124: INDUSTRIAS MANUFACTURERAS | N124: C | O124: Fabricación de productos minerales no metálicos n.c.p. | P124: Fabricación de otros productos minerales no metálicos | Q124: 300 | R124: 877 | S124: 0 | U124: NI | V124: 901161983 | W124: 5380 | X124: LA ESTRELLA | Y124: 46 | Z124: 4 | AA124: Jurídica | AB124: 5 | AC124: ANTIOQUIA | AD124: Aprobado con subsidio | AE124: PEQUEÑA | AF124: 127 | AG124: AGRICULTURA, GANADERÍA, CAZA, SILVICULTURA Y PESCA | AH124: A | AI124: Cultivos agrícolas permanentes | AJ124: Agricultura, ganadería, caza y actividades de servicios conexas | AK124: 12 | AL124: 34 | AM124: 0 | AY124: 76041 | AZ124: 1 | BA124: 5079 | BB124: 3
A125: CC | B125: 1101682792 | C125: 47189 | D125: CIÉNAGA | E125: 3 | F125: 0 | G125: Natural | H125: 47 | I125: MAGDALENA | J125: Aprobado con subsidio | K125: MICRO | L125: 1081 | M125: INDUSTRIAS MANUFACTURERAS | N125: C | O125: Elaboración de otros productos alimenticios | P125: Elaboración de productos alimenticios | Q125: 1 | R125: 2 | S125: 0 | U125: NI | V125: 901134774 | W125: 8001 | X125: BARRANQUILLA | Y125: 6 | Z125: 2 | AA125: Jurídica | AB125: 8 | AC125: ATLÁNTICO | AD125: Aprobado con subsidio | AE125: MICRO | AF125: 150 | AG125: AGRICULTURA, GANADERÍA, CAZA, SILVICULTURA Y PESCA | AH125: A | AI125: Explotación mixta (agrícola y pecuaria) | AJ125: Agricultura, ganadería, caza y actividades de servicios conexas | AK125: 0 | AL125: 6 | AM125: 0 | AY125: 25898 | AZ125: 3 | BA125: 63594 | BB125: 3
A126: CC | B126: 1101174035 | C126: 68077 | D126: BARBOSA | E126: 0 | F126: 0 | G126: Natural | H126: 68 | I126: SANTANDER | J126: Rechazado a nivel aportante | K126: MICRO | L126: 8513 | M126: EDUCACIÓN | N126: P | O126: Educación de la primera infancia, preescolar y básica primaria | P126: Educación | Q126: 0 | R126: 0 | S126: 0 | U126: CC | V126: 15436452 | W126: 5001 | X126: MEDELLÍN | Y126: 18 | Z126: 0 | AA126: Natural | AB126: 5 | AC126: ANTIOQUIA | AD126: Aprobado con subsidio | AE126: PEQUEÑA | AF126: 130 | AG126: AGRICULTURA, GANADERÍA, CAZA, SILVICULTURA Y PESCA | AH126: A | AI126: Propagación de plantas (actividades de los viveros, excepto viveros forestales) | AJ126: Agricultura, ganadería, caza y actividades de servicios conexas | AK126: 3 | AL126: 15 | AM126: 0 | AY126: 25386 | AZ126: 5 | BA126: 76869 | BB126: 3
A127: CC | B127: 1098706205 | C127: 68001 | D127: BUCARAMANGA | E127: 19 | F127: 25 | G127: Natural | H127: 68 | I127: SANTANDER | J127: Aprobado con subsidio | K127: PEQUEÑA | L127: 4663 | M127: COMERCIO AL POR MAYOR Y AL POR MENOR; REPARACIÓN DE VEHÍCULOS AUTOMOTORES Y MOTOCICLETAS | N127: G | O127: Comercio al por mayor especializado de otros productos | P127: Comercio al por mayor y en comisión o por contrata, excepto el comercio de vehículos automotores y motocicletas. | Q127: 4 | R127: 15 | S127: 0 | U127: CC | V127: 16358711 | W127: 76147 | X127: CARTAGO | Y127: 0 | Z127: 0 | AA127: Natural | AB127: 76 | AC127: VALLE DEL CAUCA | AD127: Rechazado a nivel aportante | AE127: MICRO | AF127: 141 | AG127: AGRICULTURA, GANADERÍA, CAZA, SILVICULTURA Y PESCA | AH127: A | AI127: Ganadería | AJ127: Agricultura, ganadería, caza y actividades de servicios conexas | AK127: 0 | AL127: 0 | AM127: 0 | AY127: 25740 | AZ127: 3 | BA127: 25898 | BB127: 3
A128: CC | B128: 1098260358 | C128: 68276 | D128: FLORIDABLANCA | E128: 8 | F128: 0 | G128: Natural | H128: 68 | I128: SANTANDER | J128: Aprobado con subsidio | K128: MICRO | L128: 4663 | M128: COMERCIO AL POR MAYOR Y AL POR MENOR; REPARACIÓN DE VEHÍCULOS AUTOMOTORES Y MOTOCICLETAS | N128: G | O128: Comercio al por mayor especializado de otros productos | P128: Comercio al por mayor y en comisión o por contrata, excepto el comercio de vehículos automotores y motocicletas. | Q128: 3 | R128: 5 | S128: 0 | U128: NI | V128: 800009219 | W128: 5001 | X128: MEDELLÍN | Y128: 24 | Z128: 0 | AA128: Jurídica | AB128: 5 | AC128: ANTIOQUIA | AD128: Aprobado con subsidio | AE128: PEQUEÑA | AF128: 322 | AG128: AGRICULTURA, GANADERÍA, CAZA, SILVICULTURA Y PESCA | AH128: A | AI128: Acuicultura | AJ128: Pesca y acuicultura | AK128: 6 | AL128: 18 | AM128: 0 | AY128: 5368 | AZ128: 2 | BA128: 25740 | BB128: 3
A129: CC | B129: 1095790890 | C129: 68276 | D129: FLORIDABLANCA | E129: 5 | F129: 0 | G129: Natural | H129: 68 | I129: SANTANDER | J129: Aprobado con subsidio | K129: MICRO | L129: 4752 | M129: COMERCIO AL POR MAYOR Y AL POR MENOR; REPARACIÓN DE VEHÍCULOS AUTOMOTORES Y MOTOCICLETAS | N129: G | O129: Comercio al por menor de otros enseres domésticos en establecimientos especializados | P129: Comercio al por menor (incluso el comercio al por menor de combustibles), excepto el de vehículos automotores y motocicletas | Q129: 2 | R129: 3 | S129: 0 | U129: CC | V129: 31395302 | W129: 5001 | X129: MEDELLÍN | Y129: 0 | Z129: 0 | AA129: Natural | AB129: 5 | AC129: ANTIOQUIA | AD129: Rechazado a nivel aportante | AE129: MICRO | AF129: 150 | AG129: AGRICULTURA, GANADERÍA, CAZA, SILVICULTURA Y PESCA | AH129: A | AI129: Explotación mixta (agrícola y pecuaria) | AJ129: Agricultura, ganadería, caza y actividades de servicios conexas | AK129: 0 | AL129: 0 | AM129: 0 | AY129: 66456 | AZ129: 2 | BA129: 76318 | BB129: 3
A130: CC | B130: 1090503401 | C130: 54261 | D130: EL ZULIA | E130: 7 | F130: 4 | G130: Natural | H130: 54 | I130: NORTE DE SANTANDER | J130: Aprobado con subsidio | K130: MICRO | L130: 5611 | M130: ALOJAMIENTO Y SERVICIOS DE COMIDA | N130: I | O130: Actividades de restaurantes, cafeterías y servicio móvil de comidas | P130: Actividades de servicios de comidas y bebidas | Q130: 5 | R130: 2 | S130: 0 | U130: NI | V130: 900070154 | W130: 11001 | X130: BOGOTÁ, D.C. | Y130: 39 | Z130: 3 | AA130: Jurídica | AB130: 11 | AC130: BOGOTÁ, D.C. | AD130: Aprobado con subsidio | AE130: PEQUEÑA | AF130: 145 | AG130: AGRICULTURA, GANADERÍA, CAZA, SILVICULTURA Y PESCA | AH130: A | AI130: Ganadería | AJ130: Agricultura, ganadería, caza y actividades de servicios conexas | AK130: 7 | AL130: 32 | AM130: 0 | AY130: 17380 | AZ130: =COUNTIFS($AD$2:$AD$399999,"Aprobado con subsidio",$W$2:$W$399999,AY130) -> 9 | BA130: 25843 | BB130: 3
A131: CC | B131: 1088244624 | C131: 66001 | D131: PEREIRA | E131: 10 | F131: 2 | G131: Natural | H131: 66 | I131: RISARALDA | J131: Aprobado con subsidio | K131: MICRO | L131: 4759 | M131: COMERCIO AL POR MAYOR Y AL POR MENOR; REPARACIÓN DE VEHÍCULOS AUTOMOTORES Y MOTOCICLETAS | N131: G | O131: Comercio al por menor de otros enseres domésticos en establecimientos especializados | P131: Comercio al por menor (incluso el comercio al por menor de combustibles), excepto el de vehículos automotores y motocicletas | Q131: 1 | R131: 9 | S131: 0 | U131: NI | V131: 811038772 | W131: 5266 | X131: ENVIGADO | Y131: 75 | Z131: 2 | AA131: Jurídica | AB131: 5 | AC131: ANTIOQUIA | AD131: Aprobado con subsidio | AE131: MEDIANA | AF131: 122 | AG131: AGRICULTURA, GANADERÍA, CAZA, SILVICULTURA Y PESCA | AH131: A | AI131: Cultivos agrícolas permanentes | AJ131: Agricultura, ganadería, caza y actividades de servicios conexas | AK131: 7 | AL131: 68 | AM131: 0 | AY131: 8078 | AZ131: 1 | BA131: 5642 | BB131: 3
A132: CC | B132: 1085900620 | C132: 76001 | D132: CALI | E132: 3 | F132: 1 | G132: Natural | H132: 76 | I132: VALLE DEL CAUCA | J132: Aprobado con subsidio | K132: MICRO | L132: 4789 | M132: COMERCIO AL POR MAYOR Y AL POR MENOR; REPARACIÓN DE VEHÍCULOS AUTOMOTORES Y MOTOCICLETAS | N132: G | O132: Comercio al por menor en puestos de venta móviles | P132: Comercio al por menor (incluso el comercio al por menor de combustibles), excepto el de vehículos automotores y motocicletas | Q132: 0 | R132: 3 | S132: 0 | U132: NI | V132: 900171459 | W132: 5266 | X132: ENVIGADO | Y132: 27 | Z132: 0 | AA132: Jurídica | AB132: 5 | AC132: ANTIOQUIA | AD132: Aprobado con subsidio | AE132: PEQUEÑA | AF132: 122 | AG132: AGRICULTURA, GANADERÍA, CAZA, SILVICULTURA Y PESCA | AH132: A | AI132: Cultivos agrícolas permanentes | AJ132: Agricultura, ganadería, caza y actividades de servicios conexas | AK132: 2 | AL132: 25 | AM132: 0 | AY132: 68307 | AZ132: 10 | BA132: 15646 | BB132: 3
A133: CC | B133: 10558301 | C133: 19573 | D133: PUERTO TEJADA | E133: 4 | F133: 0 | G133: Natural | H133: 19 | I133: CAUCA | J133: Aprobado con subsidio | K133: MICRO | L133: 4711 | M133: COMERCIO AL POR MAYOR Y AL POR MENOR; REPARACIÓN DE VEHÍCULOS AUTOMOTORES Y MOTOCICLETAS | N133: G | O133: Comercio al por menor en establecimientos no especializados | P133: Comercio al por menor (incluso el comercio al por menor de combustibles), excepto el de vehículos automotores y motocicletas | Q133: 2 | R133: 2 | S133: 0 | U133: NI | V133: 900445983 | W133: 5266 | X133: ENVIGADO | Y133: 104 | Z133: 10 | AA133: Jurídica | AB133: 5 | AC133: ANTIOQUIA | AD133: Aprobado con subsidio | AE133: MEDIANA | AF133: 122 | AG133: AGRICULTURA, GANADERÍA, CAZA, SILVICULTURA Y PESCA | AH133: A | AI133: Cultivos agrícolas permanentes | AJ133: Agricultura, ganadería, caza y actividades de servicios conexas | AK133: 12 | AL133: 92 | AM133: 0 | AY133: 5045 | AZ133: 18 | BA133: 76622 | BB133: 3
A134: CC | B134: 1049626750 | C134: 15001 | D134: TUNJA | E134: 30 | F134: 1 | G134: Natural | H134: 15 | I134: BOYACÁ | J134: Aprobado con subsidio | K134: PEQUEÑA | L134: 1081 | M134: INDUSTRIAS MANUFACTURERAS | N134: C | O134: Elaboración de otros productos alimenticios | P134: Elaboración de productos alimenticios | Q134: 21 | R134: 9 | S134: 0 | U134: NI | V134: 900812273 | W134: 5001 | X134: MEDELLÍN | Y134: 8 | Z134: 0 | AA134: Jurídica | AB134: 5 | AC134: ANTIOQUIA | AD134: Aprobado con subsidio | AE134: MICRO | AF134: 144 | AG134: AGRICULTURA, GANADERÍA, CAZA, SILVICULTURA Y PESCA | AH134: A | AI134: Ganadería | AJ134: Agricultura, ganadería, caza y actividades de servicios conexas | AK134: 1 | AL134: 7 | AM134: 0 | AY134: 5206 | AZ134: 1 | BA134: 5147 | BB134: 3
A135: CC | B135: 1049609179 | C135: 15001 | D135: TUNJA | E135: 4 | F135: 0 | G135: Natural | H135: 15 | I135: BOYACÁ | J135: Aprobado con subsidio | K135: MICRO | L135: 4711 | M135: COMERCIO AL POR MAYOR Y AL POR MENOR; REPARACIÓN DE VEHÍCULOS AUTOMOTORES Y MOTOCICLETAS | N135: G | O135: Comercio al por menor en establecimientos no especializados | P135: Comercio al por menor (incluso el comercio al por menor de combustibles), excepto el de vehículos automotores y motocicletas | Q135: 0 | R135: 4 | S135: 0 | U135: CC | V135: 10271705 | W135: 76001 | X135: CALI | Y135: 10 | Z135: 3 | AA135: Natural | AB135: 76 | AC135: VALLE DEL CAUCA | AD135: Aprobado con subsidio | AE135: MICRO | AF135: 145 | AG135: AGRICULTURA, GANADERÍA, CAZA, SILVICULTURA Y PESCA | AH135: A | AI135: Ganadería | AJ135: Agricultura, ganadería, caza y actividades de servicios conexas | AK135: 6 | AL135: 4 | AM135: 0 | AY135: 5579 | AZ135: 11 | BA135: 47189 | BB135: 3
A136: CC | B136: 1037586532 | C136: 66001 | D136: PEREIRA | E136: 38 | F136: 0 | G136: Natural | H136: 66 | I136: RISARALDA | J136: Aprobado con subsidio | K136: PEQUEÑA | L136: 5611 | M136: ALOJAMIENTO Y SERVICIOS DE COMIDA | N136: I | O136: Actividades de restaurantes, cafeterías y servicio móvil de comidas | P136: Actividades de servicios de comidas y bebidas | Q136: 20 | R136: 18 | S136: 0 | U136: NI | V136: 815004570 | W136: 76111 | X136: GUADALAJARA DE BUGA | Y136: 4 | Z136: 0 | AA136: Jurídica | AB136: 76 | AC136: VALLE DEL CAUCA | AD136: Aprobado con subsidio | AE136: MICRO | AF136: 121 | AG136: AGRICULTURA, GANADERÍA, CAZA, SILVICULTURA Y PESCA | AH136: A | AI136: Cultivos agrícolas permanentes | AJ136: Agricultura, ganadería, caza y actividades de servicios conexas | AK136: 4 | AL136: 0 | AM136: 0 | AY136: 68615 | AZ136: 2 | BA136: 54405 | BB136: 3
A137: CC | B137: 1036337058 | C137: 5001 | D137: MEDELLÍN | E137: 16 | F137: 0 | G137: Natural | H137: 5 | I137: ANTIOQUIA | J137: Aprobado con subsidio | K137: PEQUEÑA | L137: 5611 | M137: ALOJAMIENTO Y SERVICIOS DE COMIDA | N137: I | O137: Actividades de restaurantes, cafeterías y servicio móvil de comidas | P137: Actividades de servicios de comidas y bebidas | Q137: 7 | R137: 9 | S137: 0 | U137: NI | V137: 900127046 | W137: 41001 | X137: NEIVA | Y137: 6 | Z137: 1 | AA137: Jurídica | AB137: 41 | AC137: HUILA | AD137: Aprobado con subsidio | AE137: MICRO | AF137: 322 | AG137: AGRICULTURA, GANADERÍA, CAZA, SILVICULTURA Y PESCA | AH137: A | AI137: Acuicultura | AJ137: Pesca y acuicultura | AK137: 1 | AL137: 5 | AM137: 0 | AY137: 76318 | AZ137: 3 | BA137: 5209 | BB137: 3
A138: CC | B138: 10243948 | C138: 76001 | D138: CALI | E138: 6 | F138: 0 | G138: Natural | H138: 76 | I138: VALLE DEL CAUCA | J138: Aprobado con subsidio | K138: MICRO | L138: 1399 | M138: INDUSTRIAS MANUFACTURERAS | N138: C | O138: Fabricación de otros productos textiles | P138: Fabricación de productos textiles | Q138: 4 | R138: 2 | S138: 0 | U138: NI | V138: 900278994 | W138: 5607 | X138: RETIRO | Y138: 25 | Z138: 8 | AA138: Jurídica | AB138: 5 | AC138: ANTIOQUIA | AD138: Aprobado con subsidio | AE138: PEQUEÑA | AF138: 128 | AG138: AGRICULTURA, GANADERÍA, CAZA, SILVICULTURA Y PESCA | AH138: A | AI138: Cultivos agrícolas permanentes | AJ138: Agricultura, ganadería, caza y actividades de servicios conexas | AK138: 14 | AL138: 11 | AM138: 0 | AY138: 63001 | AZ138: 28 | BA138: 50568 | BB138: 3
A139: CC | B139: 1023898470 | C139: 15759 | D139: SOGAMOSO | E139: 10 | F139: 1 | G139: Natural | H139: 15 | I139: BOYACÁ | J139: Aprobado con subsidio | K139: MICRO | L139: 1081 | M139: INDUSTRIAS MANUFACTURERAS | N139: C | O139: Elaboración de otros productos alimenticios | P139: Elaboración de productos alimenticios | Q139: 5 | R139: 5 | S139: 0 | U139: NI | V139: 900036188 | W139: 5376 | X139: LA CEJA | Y139: 60 | Z139: 0 | AA139: Jurídica | AB139: 5 | AC139: ANTIOQUIA | AD139: Aprobado con subsidio | AE139: MEDIANA | AF139: 130 | AG139: AGRICULTURA, GANADERÍA, CAZA, SILVICULTURA Y PESCA | AH139: A | AI139: Propagación de plantas (actividades de los viveros, excepto viveros forestales) | AJ139: Agricultura, ganadería, caza y actividades de servicios conexas | AK139: 19 | AL139: 41 | AM139: 0 | AY139: 25843 | AZ139: 3 | BA139: 20011 | BB139: 3
A140: CC | B140: 1110505713 | C140: 73001 | D140: IBAGUÉ | E140: 0 | F140: 0 | G140: Natural | H140: 73 | I140: TOLIMA | J140: Rechazado a nivel aportante | K140: $null$ | L140: 5611 | M140: ALOJAMIENTO Y SERVICIOS DE COMIDA | N140: I | O140: Actividades de restaurantes, cafeterías y servicio móvil de comidas | P140: Actividades de servicios de comidas y bebidas | Q140: 0 | R140: 0 | S140: 0 | U140: NI | V140: 901309445 | W140: 47001 | X140: SANTA MARTA | Y140: 81 | Z140: 14 | AA140: Jurídica | AB140: 47 | AC140: MAGDALENA | AD140: Aprobado con subsidio | AE140: MEDIANA | AF140: 145 | AG140: AGRICULTURA, GANADERÍA, CAZA, SILVICULTURA Y PESCA | AH140: A | AI140: Ganadería | AJ140: Agricultura, ganadería, caza y actividades de servicios conexas | AK140: 18 | AL140: 63 | AM140: 0 | AY140: 5284 | AZ140: 1 | BA140: 25769 | BB140: 3
A141: CC | B141: 10237188 | C141: 66001 | D141: PEREIRA | E141: 0 | F141: 0 | G141: Natural | H141: 66 | I141: RISARALDA | J141: Rechazado a nivel aportante | K141: PEQUEÑA | L141: 144 | M141: AGRICULTURA, GANADERÍA, CAZA, SILVICULTURA Y PESCA | N141: A | O141: Ganadería | P141: Agricultura, ganadería, caza y actividades de servicios conexas | Q141: 0 | R141: 0 | S141: 0 | U141: NI | V141: 900365006 | W141: 25785 | X141: TABIO | Y141: 49 | Z141: 2 | AA141: Jurídica | AB141: 25 | AC141: CUNDINAMARCA | AD141: Aprobado con subsidio | AE141: PEQUEÑA | AF141: 149 | AG141: AGRICULTURA, GANADERÍA, CAZA, SILVICULTURA Y PESCA | AH141: A | AI141: Ganadería | AJ141: Agricultura, ganadería, caza y actividades de servicios conexas | AK141: 18 | AL141: 31 | AM141: 0 | AY141: 63548 | AZ141: 5 | BA141: 25295 | BB141: 3
A142: NI | B142: 800248168 | C142: 25473 | D142: MOSQUERA | E142: 28 | F142: 0 | G142: Jurídica | H142: 25 | I142: CUNDINAMARCA | J142: Aprobado con subsidio | K142: PEQUEÑA | L142: 4530 | M142: COMERCIO AL POR MAYOR Y AL POR MENOR; REPARACIÓN DE VEHÍCULOS AUTOMOTORES Y MOTOCICLETAS | N142: G | O142: Comercio de partes, piezas (autopartes) y accesorios (lujos) para vehículos automotores | P142: Comercio, mantenimiento y reparación de vehículos automotores y motocicletas, sus partes, piezas y accesorios | Q142: 10 | R142: 18 | S142: 0 | U142: NI | V142: 800173886 | W142: 5001 | X142: MEDELLÍN | Y142: 57 | Z142: 14 | AA142: Jurídica | AB142: 5 | AC142: ANTIOQUIA | AD142: Aprobado con subsidio | AE142: PEQUEÑA | AF142: 141 | AG142: AGRICULTURA, GANADERÍA, CAZA, SILVICULTURA Y PESCA | AH142: A | AI142: Ganadería | AJ142: Agricultura, ganadería, caza y actividades de servicios conexas | AK142: 9 | AL142: 48 | AM142: 0 | AY142: 5042 | AZ142: 1 | BA142: 85139 | BB142: 3
A143: CC | B143: 1019005418 | C143: 41551 | D143: PITALITO | E143: 0 | F143: 0 | G143: Natural | H143: 41 | I143: HUILA | J143: Rechazado a nivel aportante | K143: MICRO | L143: 8692 | M143: ACTIVIDADES DE ATENCIÓN DE LA SALUD HUMANA Y DE ASISTENCIA SOCIAL | N143: Q | O143: Otras actividades de atención relacionadas con la salud humana | P143: Actividades de atención de la salud humana | Q143: 0 | R143: 0 | S143: 0 | U143: NI | V143: 900590446 | W143: 5001 | X143: MEDELLÍN | Y143: 34 | Z143: 1 | AA143: Jurídica | AB143: 5 | AC143: ANTIOQUIA | AD143: Aprobado con subsidio | AE143: PEQUEÑA | AF143: 144 | AG143: AGRICULTURA, GANADERÍA, CAZA, SILVICULTURA Y PESCA | AH143: A | AI143: Ganadería | AJ143: Agricultura, ganadería, caza y actividades de servicios conexas | AK143: 4 | AL143: 30 | AM143: 0 | AY143: 5642 | AZ143: 3 | BA143: 68190 | BB143: 3
A144: CC | B144: 1018424994 | C144: 52001 | D144: PASTO | E144: 17 | F144: 0 | G144: Natural | H144: 52 | I144: NARIÑO | J144: Aprobado con subsidio | K144: PEQUEÑA | L144: 5611 | M144: ALOJAMIENTO Y SERVICIOS DE COMIDA | N144: I | O144: Actividades de restaurantes, cafeterías y servicio móvil de comidas | P144: Actividades de servicios de comidas y bebidas | Q144: 9 | R144: 8 | S144: 0 | U144: NI | V144: 900603328 | W144: 8001 | X144: BARRANQUILLA | Y144: 31 | Z144: 2 | AA144: Jurídica | AB144: 8 | AC144: ATLÁNTICO | AD144: Aprobado con subsidio | AE144: PEQUEÑA | AF144: 141 | AG144: AGRICULTURA, GANADERÍA, CAZA, SILVICULTURA Y PESCA | AH144: A | AI144: Ganadería | AJ144: Agricultura, ganadería, caza y actividades de servicios conexas | AK144: 3 | AL144: 28 | AM144: 0 | AY144: 23162 | AZ144: 5 | BA144: 13670 | BB144: 3
A145: CC | B145: 10084891 | C145: 76147 | D145: CARTAGO | E145: 17 | F145: 1 | G145: Natural | H145: 76 | I145: VALLE DEL CAUCA | J145: Aprobado con subsidio | K145: PEQUEÑA | L145: 4731 | M145: COMERCIO AL POR MAYOR Y AL POR MENOR; REPARACIÓN DE VEHÍCULOS AUTOMOTORES Y MOTOCICLETAS | N145: G | O145: Comercio al por menor de combustible, lubricantes, aditivos y productos de limpieza para automotores, en establecimientos especializados | P145: Comercio al por menor, (incluso el comercio al por menor de combustibles), excepto el de vehículos automotores y motocicletas. | Q145: 2 | R145: 15 | S145: 0 | U145: NI | V145: 900496605 | W145: 76001 | X145: CALI | Y145: 8 | Z145: 1 | AA145: Jurídica | AB145: 76 | AC145: VALLE DEL CAUCA | AD145: Aprobado con subsidio | AE145: MICRO | AF145: 124 | AG145: AGRICULTURA, GANADERÍA, CAZA, SILVICULTURA Y PESCA | AH145: A | AI145: Cultivos agrícolas permanentes | AJ145: Agricultura, ganadería, caza y actividades de servicios conexas | AK145: 1 | AL145: 7 | AM145: 0 | AY145: 5154 | AZ145: 5 | BA145: 5686 | BB145: 3
A146: CC | B146: 10070935 | C146: 66170 | D146: DOSQUEBRADAS | E146: 7 | F146: 0 | G146: Natural | H146: 66 | I146: RISARALDA | J146: Aprobado con subsidio | K146: MICRO | L146: 1709 | M146: INDUSTRIAS MANUFACTURERAS | N146: C | O146: Fabricación de papel, cartón y productos de papel y cartón | P146: Fabricación de papel, cartón y productos de papel y cartón | Q146: 2 | R146: 5 | S146: 0 | U146: NI | V146: 901228424 | W146: 11001 | X146: BOGOTÁ, D.C. | Y146: 11 | Z146: 1 | AA146: Jurídica | AB146: 11 | AC146: BOGOTÁ, D.C. | AD146: Aprobado con subsidio | AE146: MICRO | AF146: 141 | AG146: AGRICULTURA, GANADERÍA, CAZA, SILVICULTURA Y PESCA | AH146: A | AI146: Ganadería | AJ146: Agricultura, ganadería, caza y actividades de servicios conexas | AK146: 2 | AL146: 9 | AM146: 0 | AY146: 15238 | AZ146: 6 | BA146: 81736 | BB146: 3
A147: CC | B147: 52364047 | C147: 11001 | D147: BOGOTÁ, D.C. | E147: 19 | F147: 5 | G147: Natural | H147: 11 | I147: BOGOTÁ, D.C. | J147: Aprobado con subsidio | K147: PEQUEÑA | L147: 5611 | M147: ALOJAMIENTO Y SERVICIOS DE COMIDA | N147: I | O147: Actividades de restaurantes, cafeterías y servicio móvil de comidas | P147: Actividades de servicios de comidas y bebidas | Q147: 13 | R147: 6 | S147: 0 | U147: NI | V147: 900405983 | W147: 25175 | X147: CHÍA | Y147: 118 | Z147: 1 | AA147: Jurídica | AB147: 25 | AC147: CUNDINAMARCA | AD147: Aprobado con subsidio | AE147: MEDIANA | AF147: 210 | AG147: AGRICULTURA, GANADERÍA, CAZA, SILVICULTURA Y PESCA | AH147: A | AI147: Silvicultura y otras actividades forestales | AJ147: Silvicultura y extracción de madera | AK147: 14 | AL147: 104 | AM147: 0 | AY147: 23350 | AZ147: 0 | BA147: 25743 | BB147: 3
A148: CC | B148: 76327097 | C148: 63001 | D148: ARMENIA | E148: 0 | F148: 0 | G148: Natural | H148: 63 | I148: QUINDÍO | J148: Rechazado a nivel aportante | K148: PEQUEÑA | L148: 4330 | M148: CONSTRUCCIÓN | N148: F | O148: Terminación y acabado de edificios y obras de ingeniería civil | P148: Actividades especializadas para la construcción de edificios y obras de ingeniería civil | Q148: 0 | R148: 0 | S148: 0 | U148: NI | V148: 890937361 | W148: 5001 | X148: MEDELLÍN | Y148: 47 | Z148: 8 | AA148: Jurídica | AB148: 5 | AC148: ANTIOQUIA | AD148: Aprobado con subsidio | AE148: MEDIANA | AF148: 122 | AG148: AGRICULTURA, GANADERÍA, CAZA, SILVICULTURA Y PESCA | AH148: A | AI148: Cultivos agrícolas permanentes | AJ148: Agricultura, ganadería, caza y actividades de servicios conexas | AK148: 6 | AL148: 41 | AM148: 0 | AY148: 5649 | AZ148: 0 | BA148: 19573 | BB148: 3
A149: CC | B149: 10022495 | C149: 66001 | D149: PEREIRA | E149: 54 | F149: 12 | G149: Natural | H149: 66 | I149: RISARALDA | J149: Aprobado con subsidio | K149: PEQUEÑA | L149: 1081 | M149: INDUSTRIAS MANUFACTURERAS | N149: C | O149: Elaboración de otros productos alimenticios | P149: Elaboración de productos alimenticios | Q149: 43 | R149: 11 | S149: 0 | U149: NI | V149: 901090801 | W149: 11001 | X149: BOGOTÁ, D.C. | Y149: 2 | Z149: 0 | AA149: Jurídica | AB149: 11 | AC149: BOGOTÁ, D.C. | AD149: Aprobado con subsidio | AE149: MICRO | AF149: 112 | AG149: AGRICULTURA, GANADERÍA, CAZA, SILVICULTURA Y PESCA | AH149: A | AI149: Cultivos agrícolas permanentes | AJ149: Agricultura, ganadería, caza y actividades de servicios conexas | AK149: 1 | AL149: 1 | AM149: 0 | AY149: 15646 | AZ149: 3 | BA149: 50110 | BB149: 3
A150: CC | B150: 10059121 | C150: 66170 | D150: DOSQUEBRADAS | E150: 9 | F150: 3 | G150: Natural | H150: 66 | I150: RISARALDA | J150: Aprobado con subsidio | K150: MICRO | L150: 5530 | M150: ALOJAMIENTO Y SERVICIOS DE COMIDA | N150: I | O150: Servicios por horas | P150: Alojamiento | Q150: 7 | R150: 2 | S150: 0 | U150: NI | V150: 901206327 | W150: 95001 | X150: SAN JOSÉ DEL GUAVIARE | Y150: 3 | Z150: 0 | AA150: Jurídica | AB150: 95 | AC150: GUAVIARE | AD150: Aprobado con subsidio | AE150: MICRO | AF150: 130 | AG150: AGRICULTURA, GANADERÍA, CAZA, SILVICULTURA Y PESCA | AH150: A | AI150: Propagación de plantas (actividades de los viveros, excepto viveros forestales) | AJ150: Agricultura, ganadería, caza y actividades de servicios conexas | AK150: 0 | AL150: 3 | AM150: 0 | AY150: 25377 | AZ150: 4 | BA150: 5664 | BB150: 3
A151: CC | B151: 10065880 | C151: 76001 | D151: CALI | E151: 3 | F151: 0 | G151: Natural | H151: 76 | I151: VALLE DEL CAUCA | J151: Aprobado con subsidio | K151: MICRO | L151: 4754 | M151: COMERCIO AL POR MAYOR Y AL POR MENOR; REPARACIÓN DE VEHÍCULOS AUTOMOTORES Y MOTOCICLETAS | N151: G | O151: Comercio al por menor de otros enseres domésticos en establecimientos especializados | P151: Comercio al por menor (incluso el comercio al por menor de combustibles), excepto el de vehículos automotores y motocicletas | Q151: 2 | R151: 1 | S151: 0 | U151: NI | V151: 805017257 | W151: 76892 | X151: YUMBO | Y151: 59 | Z151: 10 | AA151: Jurídica | AB151: 76 | AC151: VALLE DEL CAUCA | AD151: Aprobado con subsidio | AE151: MEDIANA | AF151: 113 | AG151: AGRICULTURA, GANADERÍA, CAZA, SILVICULTURA Y PESCA | AH151: A | AI151: Cultivos agrícolas transitorios | AJ151: Agricultura, ganadería, caza y actividades de servicios conexas | AK151: 15 | AL151: 44 | AM151: 0 | AY151: 15759 | AZ151: 7 | BA151: 76377 | BB151: 3
A152: CC | B152: 10122729 | C152: 66001 | D152: PEREIRA | E152: 6 | F152: 1 | G152: Natural | H152: 66 | I152: RISARALDA | J152: Aprobado con subsidio | K152: MICRO | L152: 4530 | M152: COMERCIO AL POR MAYOR Y AL POR MENOR; REPARACIÓN DE VEHÍCULOS AUTOMOTORES Y MOTOCICLETAS | N152: G | O152: Comercio de partes, piezas (autopartes) y accesorios (lujos) para vehículos automotores | P152: Comercio, mantenimiento y reparación de vehículos automotores y motocicletas, sus partes, piezas y accesorios | Q152: 1 | R152: 5 | S152: 0 | U152: NI | V152: 900149268 | W152: 11001 | X152: BOGOTÁ, D.C. | Y152: 20 | Z152: 2 | AA152: Jurídica | AB152: 11 | AC152: BOGOTÁ, D.C. | AD152: Aprobado con subsidio | AE152: PEQUEÑA | AF152: 125 | AG152: AGRICULTURA, GANADERÍA, CAZA, SILVICULTURA Y PESCA | AH152: A | AI152: Cultivos agrícolas permanentes | AJ152: Agricultura, ganadería, caza y actividades de servicios conexas | AK152: 7 | AL152: 13 | AM152: 0 | AY152: 19300 | AZ152: 8 | BA152: 44001 | BB152: 3
A153: CC | B153: 10128397 | C153: 66001 | D153: PEREIRA | E153: 3 | F153: 0 | G153: Natural | H153: 66 | I153: RISARALDA | J153: Aprobado con subsidio | K153: MICRO | L153: 7730 | M153: ACTIVIDADES DE SERVICIOS ADMINISTRATIVOS Y DE APOYO | N153: N | O153: Alquiler y arrendamiento de otros tipos de maquinaria, equipo y bienes tangibles n.c.p. | P153: Actividades de alquiler y arrendamiento | Q153: 0 | R153: 3 | S153: 0 | U153: NI | V153: 800072656 | W153: 66001 | X153: PEREIRA | Y153: 50 | Z153: 0 | AA153: Jurídica | AB153: 66 | AC153: RISARALDA | AD153: Aprobado con subsidio | AE153: MEDIANA | AF153: 322 | AG153: AGRICULTURA, GANADERÍA, CAZA, SILVICULTURA Y PESCA | AH153: A | AI153: Acuicultura | AJ153: Pesca y acuicultura | AK153: 23 | AL153: 27 | AM153: 0 | AY153: 50226 | AZ153: 9 | BA153: 25181 | BB153: 3
A154: CC | B154: 1017149313 | C154: 76834 | D154: TULUÁ | E154: 4 | F154: 1 | G154: Natural | H154: 76 | I154: VALLE DEL CAUCA | J154: Aprobado con subsidio | K154: MICRO | L154: 5611 | M154: ALOJAMIENTO Y SERVICIOS DE COMIDA | N154: I | O154: Actividades de restaurantes, cafeterías y servicio móvil de comidas | P154: Actividades de servicios de comidas y bebidas | Q154: 3 | R154: 1 | S154: 0 | U154: CC | V154: 91100453 | W154: 68755 | X154: SOCORRO | Y154: 0 | Z154: 0 | AA154: Natural | AB154: 68 | AC154: SANTANDER | AD154: Rechazado a nivel aportante | AE154: $null$ | AF154: 121 | AG154: AGRICULTURA, GANADERÍA, CAZA, SILVICULTURA Y PESCA | AH154: A | AI154: Cultivos agrícolas permanentes | AJ154: Agricultura, ganadería, caza y actividades de servicios conexas | AK154: 0 | AL154: 0 | AM154: 0 | AY154: 5172 | AZ154: 12 | BA154: 5585 | BB154: 3
A155: CC | B155: 1017175734 | C155: 5001 | D155: MEDELLÍN | E155: 6 | F155: 0 | G155: Natural | H155: 5 | I155: ANTIOQUIA | J155: Aprobado con subsidio | K155: MICRO | L155: 4520 | M155: COMERCIO AL POR MAYOR Y AL POR MENOR; REPARACIÓN DE VEHÍCULOS AUTOMOTORES Y MOTOCICLETAS | N155: G | O155: Mantenimiento y reparación de vehículos automotores | P155: Comercio, mantenimiento y reparación de vehículos automotores y motocicletas, sus partes, piezas y accesorios | Q155: 1 | R155: 5 | S155: 0 | U155: NI | V155: 900308195 | W155: 66001 | X155: PEREIRA | Y155: 5 | Z155: 0 | AA155: Jurídica | AB155: 66 | AC155: RISARALDA | AD155: Aprobado con subsidio | AE155: MICRO | AF155: 141 | AG155: AGRICULTURA, GANADERÍA, CAZA, SILVICULTURA Y PESCA | AH155: A | AI155: Ganadería | AJ155: Agricultura, ganadería, caza y actividades de servicios conexas | AK155: 1 | AL155: 4 | AM155: 0 | AY155: 5034 | AZ155: 6 | BA155: 76250 | BB155: 2
A156: CC | B156: 1018436189 | C156: 11001 | D156: BOGOTÁ, D.C. | E156: 4 | F156: 0 | G156: Natural | H156: 11 | I156: BOGOTÁ, D.C. | J156: Aprobado con subsidio | K156: MICRO | L156: 1081 | M156: INDUSTRIAS MANUFACTURERAS | N156: C | O156: Elaboración de otros productos alimenticios | P156: Elaboración de productos alimenticios | Q156: 2 | R156: 2 | S156: 0 | U156: CC | V156: 30206395 | W156: 68077 | X156: BARBOSA | Y156: 57 | Z156: 8 | AA156: Natural | AB156: 68 | AC156: SANTANDER | AD156: Aprobado con subsidio | AE156: MEDIANA | AF156: 145 | AG156: AGRICULTURA, GANADERÍA, CAZA, SILVICULTURA Y PESCA | AH156: A | AI156: Ganadería | AJ156: Agricultura, ganadería, caza y actividades de servicios conexas | AK156: 15 | AL156: 41 | AM156: 1 | AY156: 5190 | AZ156: 0 | BA156: 5390 | BB156: 2
A157: CC | B157: 1018500550 | C157: 11001 | D157: BOGOTÁ, D.C. | E157: 4 | F157: 0 | G157: Natural | H157: 11 | I157: BOGOTÁ, D.C. | J157: Aprobado con subsidio | K157: MICRO | L157: 4772 | M157: COMERCIO AL POR MAYOR Y AL POR MENOR; REPARACIÓN DE VEHÍCULOS AUTOMOTORES Y MOTOCICLETAS | N157: G | O157: Comercio al por menor de otros productos en establecimientos especializados | P157: Comercio al por menor (incluso el comercio al por menor de combustibles), excepto el de vehículos automotores y motocicletas | Q157: 1 | R157: 3 | S157: 0 | U157: NI | V157: 900459842 | W157: 17001 | X157: MANIZALES | Y157: 34 | Z157: 3 | AA157: Jurídica | AB157: 17 | AC157: CALDAS | AD157: Aprobado con subsidio | AE157: PEQUEÑA | AF157: 144 | AG157: AGRICULTURA, GANADERÍA, CAZA, SILVICULTURA Y PESCA | AH157: A | AI157: Ganadería | AJ157: Agricultura, ganadería, caza y actividades de servicios conexas | AK157: 6 | AL157: 28 | AM157: 0 | AY157: 76622 | AZ157: 3 | BA157: 68077 | BB157: 2
A158: CC | B158: 10192979 | C158: 66400 | D158: LA VIRGINIA | E158: 0 | F158: 0 | G158: Natural | H158: 66 | I158: RISARALDA | J158: Rechazado a nivel aportante | K158: MICRO | L158: 6910 | M158: ACTIVIDADES PROFESIONALES, CIENTÍFICAS Y TÉCNICAS | N158: M | O158: Actividades jurídicas | P158: Actividades jurídicas y de contabilidad | Q158: 0 | R158: 0 | S158: 0 | U158: NI | V158: 900637688 | W158: 76520 | X158: PALMIRA | Y158: 11 | Z158: 1 | AA158: Jurídica | AB158: 76 | AC158: VALLE DEL CAUCA | AD158: Aprobado con subsidio | AE158: PEQUEÑA | AF158: 161 | AG158: AGRICULTURA, GANADERÍA, CAZA, SILVICULTURA Y PESCA | AH158: A | AI158: Actividades de apoyo a la agricultura y la ganadería, y actividades posteriores a la cosecha | AJ158: Agricultura, ganadería, caza y actividades de servicios conexas | AK158: 1 | AL158: 10 | AM158: 0 | AY158: 73408 | AZ158: 2 | BA158: 5237 | BB158: 2
A159: CC | B159: 10240890 | C159: 17001 | D159: MANIZALES | E159: 0 | F159: 0 | G159: Natural | H159: 17 | I159: CALDAS | J159: Rechazado a nivel aportante | K159: PEQUEÑA | L159: 4112 | M159: CONSTRUCCIÓN | N159: F | O159: Construcción de edificios | P159: Construcción de edificios | Q159: 0 | R159: 0 | S159: 0 | U159: NI | V159: 900062938 | W159: 47001 | X159: SANTA MARTA | Y159: 52 | Z159: 2 | AA159: Jurídica | AB159: 47 | AC159: MAGDALENA | AD159: Aprobado con subsidio | AE159: PEQUEÑA | AF159: 126 | AG159: AGRICULTURA, GANADERÍA, CAZA, SILVICULTURA Y PESCA | AH159: A | AI159: Cultivos agrícolas permanentes | AJ159: Agricultura, ganadería, caza y actividades de servicios conexas | AK159: 2 | AL159: 50 | AM159: 0 | AY159: 17174 | AZ159: 4 | BA159: 70670 | BB159: 2
A160: CC | B160: 10300617 | C160: 76001 | D160: CALI | E160: 34 | F160: 7 | G160: Natural | H160: 76 | I160: VALLE DEL CAUCA | J160: Aprobado con subsidio | K160: PEQUEÑA | L160: 4773 | M160: COMERCIO AL POR MAYOR Y AL POR MENOR; REPARACIÓN DE VEHÍCULOS AUTOMOTORES Y MOTOCICLETAS | N160: G | O160: Comercio al por menor de otros productos en establecimientos especializados | P160: Comercio al por menor (incluso el comercio al por menor de combustibles), excepto el de vehículos automotores y motocicletas | Q160: 17 | R160: 17 | S160: 0 | U160: CC | V160: 7379489 | W160: 5001 | X160: MEDELLÍN | Y160: 3 | Z160: 1 | AA160: Natural | AB160: 5 | AC160: ANTIOQUIA | AD160: Aprobado con subsidio | AE160: MICRO | AF160: 130 | AG160: AGRICULTURA, GANADERÍA, CAZA, SILVICULTURA Y PESCA | AH160: A | AI160: Propagación de plantas (actividades de los viveros, excepto viveros forestales) | AJ160: Agricultura, ganadería, caza y actividades de servicios conexas | AK160: 0 | AL160: 3 | AM160: 0 | AY160: 70215 | AZ160: 1 | BA160: 63272 | BB160: 2
A161: CC | B161: 1032356175 | C161: 11001 | D161: BOGOTÁ, D.C. | E161: 5 | F161: 0 | G161: Natural | H161: 11 | I161: BOGOTÁ, D.C. | J161: Aprobado con subsidio | K161: MICRO | L161: 4530 | M161: COMERCIO AL POR MAYOR Y AL POR MENOR; REPARACIÓN DE VEHÍCULOS AUTOMOTORES Y MOTOCICLETAS | N161: G | O161: Comercio de partes, piezas (autopartes) y accesorios (lujos) para vehículos automotores | P161: Comercio, mantenimiento y reparación de vehículos automotores y motocicletas, sus partes, piezas y accesorios | Q161: 2 | R161: 3 | S161: 0 | U161: NI | V161: 900991102 | W161: 5615 | X161: RIONEGRO | Y161: 13 | Z161: 2 | AA161: Jurídica | AB161: 5 | AC161: ANTIOQUIA | AD161: Aprobado con subsidio | AE161: MICRO | AF161: 121 | AG161: AGRICULTURA, GANADERÍA, CAZA, SILVICULTURA Y PESCA | AH161: A | AI161: Cultivos agrícolas permanentes | AJ161: Agricultura, ganadería, caza y actividades de servicios conexas | AK161: 5 | AL161: 8 | AM161: 0 | AY161: 5147 | AZ161: 3 | BA161: 15087 | BB161: 2
A162: CC | B162: 1036657654 | C162: 5360 | D162: ITAGÜÍ | E162: 0 | F162: 0 | G162: Natural | H162: 5 | I162: ANTIOQUIA | J162: Rechazado a nivel aportante | K162: $null$ | L162: 5619 | M162: ALOJAMIENTO Y SERVICIOS DE COMIDA | N162: I | O162: Actividades de restaurantes, cafeterías y servicio móvil de comidas | P162: Actividades de servicios de comidas y bebidas | Q162: 0 | R162: 0 | S162: 0 | U162: NI | V162: 900759716 | W162: 68655 | X162: SABANA DE TORRES | Y162: 7 | Z162: 5 | AA162: Jurídica | AB162: 68 | AC162: SANTANDER | AD162: Aprobado con subsidio | AE162: MICRO | AF162: 150 | AG162: AGRICULTURA, GANADERÍA, CAZA, SILVICULTURA Y PESCA | AH162: A | AI162: Explotación mixta (agrícola y pecuaria) | AJ162: Agricultura, ganadería, caza y actividades de servicios conexas | AK162: 0 | AL162: 7 | AM162: 0 | AY162: 47058 | AZ162: 1 | BA162: 19807 | BB162: 2
A163: CC | B163: 1037582327 | C163: 41001 | D163: NEIVA | E163: 3 | F163: 1 | G163: Natural | H163: 41 | I163: HUILA | J163: Aprobado con subsidio | K163: MICRO | L163: 1081 | M163: INDUSTRIAS MANUFACTURERAS | N163: C | O163: Elaboración de otros productos alimenticios | P163: Elaboración de productos alimenticios | Q163: 1 | R163: 2 | S163: 0 | U163: NI | V163: 811017994 | W163: 5615 | X163: RIONEGRO | Y163: 5 | Z163: 1 | AA163: Jurídica | AB163: 5 | AC163: ANTIOQUIA | AD163: Aprobado con subsidio | AE163: MICRO | AF163: 130 | AG163: AGRICULTURA, GANADERÍA, CAZA, SILVICULTURA Y PESCA | AH163: A | AI163: Propagación de plantas (actividades de los viveros, excepto viveros forestales) | AJ163: Agricultura, ganadería, caza y actividades de servicios conexas | AK163: 0 | AL163: 5 | AM163: 0 | AY163: 73861 | AZ163: 2 | BA163: 41551 | BB163: 2
A164: CC | B164: 1037584344 | C164: 5001 | D164: MEDELLÍN | E164: 7 | F164: 0 | G164: Natural | H164: 5 | I164: ANTIOQUIA | J164: Aprobado con subsidio | K164: MICRO | L164: 5611 | M164: ALOJAMIENTO Y SERVICIOS DE COMIDA | N164: I | O164: Actividades de restaurantes, cafeterías y servicio móvil de comidas | P164: Actividades de servicios de comidas y bebidas | Q164: 5 | R164: 2 | S164: 0 | U164: NI | V164: 901096982 | W164: 5129 | X164: CALDAS | Y164: 4 | Z164: 1 | AA164: Jurídica | AB164: 5 | AC164: ANTIOQUIA | AD164: Aprobado con subsidio | AE164: MICRO | AF164: 143 | AG164: AGRICULTURA, GANADERÍA, CAZA, SILVICULTURA Y PESCA | AH164: A | AI164: Ganadería | AJ164: Agricultura, ganadería, caza y actividades de servicios conexas | AK164: 0 | AL164: 4 | AM164: 0 | AY164: 47189 | AZ164: 3 | BA164: 15176 | BB164: 2
A165: CC | B165: 1039450686 | C165: 5001 | D165: MEDELLÍN | E165: 6 | F165: 5 | G165: Natural | H165: 5 | I165: ANTIOQUIA | J165: Aprobado con subsidio | K165: MICRO | L165: 5619 | M165: ALOJAMIENTO Y SERVICIOS DE COMIDA | N165: I | O165: Actividades de restaurantes, cafeterías y servicio móvil de comidas | P165: Actividades de servicios de comidas y bebidas | Q165: 6 | R165: 0 | S165: 0 | U165: NI | V165: 901173864 | W165: 76001 | X165: CALI | Y165: 2 | Z165: 5 | AA165: Jurídica | AB165: 76 | AC165: VALLE DEL CAUCA | AD165: Aprobado con subsidio | AE165: MICRO | AF165: 311 | AG165: AGRICULTURA, GANADERÍA, CAZA, SILVICULTURA Y PESCA | AH165: A | AI165: Pesca | AJ165: Pesca y acuicultura | AK165: 0 | AL165: 2 | AM165: 0 | AY165: 81001 | AZ165: 1 | BA165: 25001 | BB165: 2
A166: CC | B166: 1049630538 | C166: 15001 | D166: TUNJA | E166: 6 | F166: 0 | G166: Natural | H166: 15 | I166: BOYACÁ | J166: Aprobado con subsidio | K166: MICRO | L166: 5611 | M166: ALOJAMIENTO Y SERVICIOS DE COMIDA | N166: I | O166: Actividades de restaurantes, cafeterías y servicio móvil de comidas | P166: Actividades de servicios de comidas y bebidas | Q166: 1 | R166: 5 | S166: 0 | U166: NI | V166: 900475038 | W166: 5615 | X166: RIONEGRO | Y166: 8 | Z166: 2 | AA166: Jurídica | AB166: 5 | AC166: ANTIOQUIA | AD166: Aprobado con subsidio | AE166: MICRO | AF166: 125 | AG166: AGRICULTURA, GANADERÍA, CAZA, SILVICULTURA Y PESCA | AH166: A | AI166: Cultivos agrícolas permanentes | AJ166: Agricultura, ganadería, caza y actividades de servicios conexas | AK166: 4 | AL166: 4 | AM166: 0 | AY166: 13430 | AZ166: 2 | BA166: 68167 | BB166: 2
A167: CC | B167: 10547579 | C167: 19001 | D167: POPAYÁN | E167: 4 | F167: 0 | G167: Natural | H167: 19 | I167: CAUCA | J167: Aprobado con subsidio | K167: MICRO | L167: 4754 | M167: COMERCIO AL POR MAYOR Y AL POR MENOR; REPARACIÓN DE VEHÍCULOS AUTOMOTORES Y MOTOCICLETAS | N167: G | O167: Comercio al por menor de otros enseres domésticos en establecimientos especializados | P167: Comercio al por menor (incluso el comercio al por menor de combustibles), excepto el de vehículos automotores y motocicletas | Q167: 0 | R167: 4 | S167: 0 | U167: NI | V167: 890938755 | W167: 5615 | X167: RIONEGRO | Y167: 888 | Z167: 51 | AA167: Jurídica | AB167: 5 | AC167: ANTIOQUIA | AD167: Aprobado con subsidio | AE167: MUY GRANDE | AF167: 125 | AG167: AGRICULTURA, GANADERÍA, CAZA, SILVICULTURA Y PESCA | AH167: A | AI167: Cultivos agrícolas permanentes | AJ167: Agricultura, ganadería, caza y actividades de servicios conexas | AK167: 408 | AL167: 478 | AM167: 2 | AY167: 68432 | AZ167: 1 | BA167: 17541 | BB167: 2
A168: CC | B168: 1061725698 | C168: 19001 | D168: POPAYÁN | E168: 2 | F168: 1 | G168: Natural | H168: 19 | I168: CAUCA | J168: Aprobado con subsidio | K168: MICRO | L168: 5611 | M168: ALOJAMIENTO Y SERVICIOS DE COMIDA | N168: I | O168: Actividades de restaurantes, cafeterías y servicio móvil de comidas | P168: Actividades de servicios de comidas y bebidas | Q168: 2 | R168: 0 | S168: 0 | U168: NI | V168: 900441306 | W168: 76001 | X168: CALI | Y168: 15 | Z168: 6 | AA168: Jurídica | AB168: 76 | AC168: VALLE DEL CAUCA | AD168: Aprobado con subsidio | AE168: PEQUEÑA | AF168: 240 | AG168: AGRICULTURA, GANADERÍA, CAZA, SILVICULTURA Y PESCA | AH168: A | AI168: Servicios de apoyo a la silvicultura | AJ168: Silvicultura y extracción de madera | AK168: 6 | AL168: 9 | AM168: 0 | AY168: 5756 | AZ168: 5 | BA168: 5368 | BB168: 2
A169: CC | B169: 1074184682 | C169: 11001 | D169: BOGOTÁ, D.C. | E169: 0 | F169: 0 | G169: Natural | H169: 11 | I169: BOGOTÁ, D.C. | J169: Rechazado a nivel aportante | K169: $null$ | L169: 8552 | M169: EDUCACIÓN | N169: P | O169: Otros tipos de educación | P169: Educación | Q169: 0 | R169: 0 | S169: 0 | U169: NI | V169: 901256486 | W169: 85010 | X169: AGUAZUL | Y169: 2 | Z169: 1 | AA169: Jurídica | AB169: 85 | AC169: CASANARE | AD169: Aprobado con subsidio | AE169: MICRO | AF169: 161 | AG169: AGRICULTURA, GANADERÍA, CAZA, SILVICULTURA Y PESCA | AH169: A | AI169: Actividades de apoyo a la agricultura y la ganadería, y actividades posteriores a la cosecha | AJ169: Agricultura, ganadería, caza y actividades de servicios conexas | AK169: 0 | AL169: 2 | AM169: 0 | AY169: 5308 | AZ169: 1 | BA169: 66456 | BB169: 2
A170: CC | B170: 1082927512 | C170: 47001 | D170: SANTA MARTA | E170: 3 | F170: 0 | G170: Natural | H170: 47 | I170: MAGDALENA | J170: Aprobado con subsidio | K170: MICRO | L170: 4773 | M170: COMERCIO AL POR MAYOR Y AL POR MENOR; REPARACIÓN DE VEHÍCULOS AUTOMOTORES Y MOTOCICLETAS | N170: G | O170: Comercio al por menor de otros productos en establecimientos especializados | P170: Comercio al por menor (incluso el comercio al por menor de combustibles), excepto el de vehículos automotores y motocicletas | Q170: 3 | R170: 0 | S170: 0 | U170: NI | V170: 890326816 | W170: 76001 | X170: CALI | Y170: 24 | Z170: 0 | AA170: Jurídica | AB170: 76 | AC170: VALLE DEL CAUCA | AD170: Aprobado con subsidio | AE170: PEQUEÑA | AF170: 322 | AG170: AGRICULTURA, GANADERÍA, CAZA, SILVICULTURA Y PESCA | AH170: A | AI170: Acuicultura | AJ170: Pesca y acuicultura | AK170: 4 | AL170: 20 | AM170: 0 | AY170: 25126 | AZ170: 16 | BA170: 68615 | BB170: 2
A171: CC | B171: 1082927984 | C171: 47001 | D171: SANTA MARTA | E171: 8 | F171: 0 | G171: Natural | H171: 47 | I171: MAGDALENA | J171: Aprobado con subsidio | K171: MICRO | L171: 5611 | M171: ALOJAMIENTO Y SERVICIOS DE COMIDA | N171: I | O171: Actividades de restaurantes, cafeterías y servicio móvil de comidas | P171: Actividades de servicios de comidas y bebidas | Q171: 5 | R171: 3 | S171: 0 | U171: NI | V171: 900599105 | W171: 5376 | X171: LA CEJA | Y171: 51 | Z171: 4 | AA171: Jurídica | AB171: 5 | AC171: ANTIOQUIA | AD171: Aprobado con subsidio | AE171: MEDIANA | AF171: 130 | AG171: AGRICULTURA, GANADERÍA, CAZA, SILVICULTURA Y PESCA | AH171: A | AI171: Propagación de plantas (actividades de los viveros, excepto viveros forestales) | AJ171: Agricultura, ganadería, caza y actividades de servicios conexas | AK171: 9 | AL171: 42 | AM171: 0 | AY171: 47053 | AZ171: 4 | BA171: 73408 | BB171: 2
A172: CC | B172: 1087194552 | C172: 66001 | D172: PEREIRA | E172: 0 | F172: 0 | G172: Natural | H172: 66 | I172: RISARALDA | J172: Rechazado a nivel aportante | K172: $null$ | L172: 5612 | M172: ALOJAMIENTO Y SERVICIOS DE COMIDA | N172: I | O172: Actividades de restaurantes, cafeterías y servicio móvil de comidas | P172: Actividades de servicios de comidas y bebidas | Q172: 0 | R172: 0 | S172: 0 | U172: NI | V172: 900953819 | W172: 68276 | X172: FLORIDABLANCA | Y172: 6 | Z172: 3 | AA172: Jurídica | AB172: 68 | AC172: SANTANDER | AD172: Aprobado con subsidio | AE172: MICRO | AF172: 141 | AG172: AGRICULTURA, GANADERÍA, CAZA, SILVICULTURA Y PESCA | AH172: A | AI172: Ganadería | AJ172: Agricultura, ganadería, caza y actividades de servicios conexas | AK172: 1 | AL172: 5 | AM172: 0 | AY172: 54405 | AZ172: 3 | BA172: 73861 | BB172: 2
A173: CC | B173: 1088264163 | C173: 66170 | D173: DOSQUEBRADAS | E173: 0 | F173: 0 | G173: Natural | H173: 66 | I173: RISARALDA | J173: Rechazado a nivel aportante | K173: MICRO | L173: 5611 | M173: ALOJAMIENTO Y SERVICIOS DE COMIDA | N173: I | O173: Actividades de restaurantes, cafeterías y servicio móvil de comidas | P173: Actividades de servicios de comidas y bebidas | Q173: 0 | R173: 0 | S173: 0 | U173: NI | V173: 900846488 | W173: 20001 | X173: VALLEDUPAR | Y173: 8 | Z173: 5 | AA173: Jurídica | AB173: 20 | AC173: CESAR | AD173: Aprobado con subsidio | AE173: MICRO | AF173: 112 | AG173: AGRICULTURA, GANADERÍA, CAZA, SILVICULTURA Y PESCA | AH173: A | AI173: Cultivos agrícolas permanentes | AJ173: Agricultura, ganadería, caza y actividades de servicios conexas | AK173: 2 | AL173: 6 | AM173: 0 | AY173: 76670 | AZ173: 4 | BA173: 13430 | BB173: 2
A174: CC | B174: 1088326802 | C174: 66001 | D174: PEREIRA | E174: 0 | F174: 0 | G174: Natural | H174: 66 | I174: RISARALDA | J174: Rechazado a nivel aportante | K174: MICRO | L174: 5611 | M174: ALOJAMIENTO Y SERVICIOS DE COMIDA | N174: I | O174: Actividades de restaurantes, cafeterías y servicio móvil de comidas | P174: Actividades de servicios de comidas y bebidas | Q174: 0 | R174: 0 | S174: 0 | U174: CC | V174: 21481697 | W174: 5440 | X174: MARINILLA | Y174: 4 | Z174: 1 | AA174: Natural | AB174: 5 | AC174: ANTIOQUIA | AD174: Aprobado con subsidio | AE174: MICRO | AF174: 125 | AG174: AGRICULTURA, GANADERÍA, CAZA, SILVICULTURA Y PESCA | AH174: A | AI174: Cultivos agrícolas permanentes | AJ174: Agricultura, ganadería, caza y actividades de servicios conexas | AK174: 2 | AL174: 2 | AM174: 0 | AY174: 15491 | AZ174: 1 | BA174: 41306 | BB174: 2
A175: CC | B175: 1090394338 | C175: 54001 | D175: SAN JOSÉ DE CÚCUTA | E175: 5 | F175: 6 | G175: Natural | H175: 54 | I175: NORTE DE SANTANDER | J175: Aprobado con subsidio | K175: MICRO | L175: 4719 | M175: COMERCIO AL POR MAYOR Y AL POR MENOR; REPARACIÓN DE VEHÍCULOS AUTOMOTORES Y MOTOCICLETAS | N175: G | O175: Comercio al por menor en establecimientos no especializados | P175: Comercio al por menor (incluso el comercio al por menor de combustibles), excepto el de vehículos automotores y motocicletas | Q175: 1 | R175: 4 | S175: 0 | U175: NI | V175: 901339891 | W175: 5148 | X175: EL CARMEN DE VIBORAL | Y175: 6 | Z175: 3 | AA175: Jurídica | AB175: 5 | AC175: ANTIOQUIA | AD175: Aprobado con subsidio | AE175: MICRO | AF175: 113 | AG175: AGRICULTURA, GANADERÍA, CAZA, SILVICULTURA Y PESCA | AH175: A | AI175: Cultivos agrícolas transitorios | AJ175: Agricultura, ganadería, caza y actividades de servicios conexas | AK175: 0 | AL175: 6 | AM175: 0 | AY175: 73671 | AZ175: 1 | BA175: 17513 | BB175: 2
A176: CC | B176: 1090429858 | C176: 54001 | D176: SAN JOSÉ DE CÚCUTA | E176: 41 | F176: 0 | G176: Natural | H176: 54 | I176: NORTE DE SANTANDER | J176: Aprobado con subsidio | K176: PEQUEÑA | L176: 1081 | M176: INDUSTRIAS MANUFACTURERAS | N176: C | O176: Elaboración de otros productos alimenticios | P176: Elaboración de productos alimenticios | Q176: 24 | R176: 17 | S176: 0 | U176: NI | V176: 900051875 | W176: 5001 | X176: MEDELLÍN | Y176: 18 | Z176: 3 | AA176: Jurídica | AB176: 5 | AC176: ANTIOQUIA | AD176: Aprobado con subsidio | AE176: PEQUEÑA | AF176: 129 | AG176: AGRICULTURA, GANADERÍA, CAZA, SILVICULTURA Y PESCA | AH176: A | AI176: Cultivos agrícolas permanentes | AJ176: Agricultura, ganadería, caza y actividades de servicios conexas | AK176: 1 | AL176: 17 | AM176: 0 | AY176: 5490 | AZ176: 1 | BA176: 13836 | BB176: 2
A177: CC | B177: 1093215274 | C177: 66682 | D177: SANTA ROSA DE CABAL | E177: 5 | F177: 2 | G177: Natural | H177: 66 | I177: RISARALDA | J177: Aprobado con subsidio | K177: MICRO | L177: 5613 | M177: ALOJAMIENTO Y SERVICIOS DE COMIDA | N177: I | O177: Actividades de restaurantes, cafeterías y servicio móvil de comidas | P177: Actividades de servicios de comidas y bebidas | Q177: 4 | R177: 1 | S177: 0 | U177: NI | V177: 900983573 | W177: 5001 | X177: MEDELLÍN | Y177: 6 | Z177: 0 | AA177: Jurídica | AB177: 5 | AC177: ANTIOQUIA | AD177: Aprobado con subsidio | AE177: MICRO | AF177: 141 | AG177: AGRICULTURA, GANADERÍA, CAZA, SILVICULTURA Y PESCA | AH177: A | AI177: Ganadería | AJ177: Agricultura, ganadería, caza y actividades de servicios conexas | AK177: 1 | AL177: 5 | AM177: 0 | AY177: 76275 | AZ177: 6 | BA177: 20550 | BB177: 2
A178: CC | B178: 1094976689 | C178: 63001 | D178: ARMENIA | E178: ND | F178: ND | G178: Natural | H178: 63 | I178: QUINDÍO | J178: Aprobado con subsidio | K178: MICRO | L178: 4771 | M178: COMERCIO AL POR MAYOR Y AL POR MENOR; REPARACIÓN DE VEHÍCULOS AUTOMOTORES Y MOTOCICLETAS | N178: G | O178: Comercio al por menor de otros productos en establecimientos especializados | P178: Comercio al por menor (incluso el comercio al por menor de combustibles), excepto el de vehículos automotores y motocicletas | Q178: 0 | R178: 0 | S178: 0 | U178: NI | V178: 900304573 | W178: 41615 | X178: RIVERA | Y178: 26 | Z178: 3 | AA178: Jurídica | AB178: 41 | AC178: HUILA | AD178: Aprobado con subsidio | AE178: PEQUEÑA | AF178: 312 | AG178: AGRICULTURA, GANADERÍA, CAZA, SILVICULTURA Y PESCA | AH178: A | AI178: Pesca | AJ178: Pesca y acuicultura | AK178: 7 | AL178: 19 | AM178: 0 | AY178: 5209 | AZ178: 3 | BA178: 23555 | BB178: 2
A179: CC | B179: 1098665431 | C179: 68001 | D179: BUCARAMANGA | E179: 0 | F179: 0 | G179: Natural | H179: 68 | I179: SANTANDER | J179: Rechazado a nivel aportante | K179: $null$ | L179: 4643 | M179: COMERCIO AL POR MAYOR Y AL POR MENOR; REPARACIÓN DE VEHÍCULOS AUTOMOTORES Y MOTOCICLETAS | N179: G | O179: Comercio al por mayor de artículos y enseres domésticos (incluidas prendas de vestir) | P179: Comercio al por mayor y en comisión o por contrata, excepto el comercio de vehículos automotores y motocicletas. | Q179: 0 | R179: 0 | S179: 0 | U179: NI | V179: 900080982 | W179: 5001 | X179: MEDELLÍN | Y179: 38 | Z179: 2 | AA179: Jurídica | AB179: 5 | AC179: ANTIOQUIA | AD179: Aprobado con subsidio | AE179: PEQUEÑA | AF179: 150 | AG179: AGRICULTURA, GANADERÍA, CAZA, SILVICULTURA Y PESCA | AH179: A | AI179: Explotación mixta (agrícola y pecuaria) | AJ179: Agricultura, ganadería, caza y actividades de servicios conexas | AK179: 5 | AL179: 33 | AM179: 0 | AY179: 54810 | AZ179: 12 | BA179: 41349 | BB179: 2
A180: CC | B180: 1100971826 | C180: 68549 | D180: PINCHOTE | E180: 0 | F180: 0 | G180: Natural | H180: 68 | I180: SANTANDER | J180: Rechazado a nivel aportante | K180: MICRO | L180: 5511 | M180: ALOJAMIENTO Y SERVICIOS DE COMIDA | N180: I | O180: Actividades de alojamiento de estancias cortas | P180: Alojamiento | Q180: 0 | R180: 0 | S180: 0 | U180: NI | V180: 901179236 | W180: 76001 | X180: CALI | Y180: 26 | Z180: 1 | AA180: Jurídica | AB180: 76 | AC180: VALLE DEL CAUCA | AD180: Aprobado con subsidio | AE180: PEQUEÑA | AF180: 141 | AG180: AGRICULTURA, GANADERÍA, CAZA, SILVICULTURA Y PESCA | AH180: A | AI180: Ganadería | AJ180: Agricultura, ganadería, caza y actividades de servicios conexas | AK180: 3 | AL180: 23 | AM180: 0 | AY180: 50568 | AZ180: 3 | BA180: 19845 | BB180: 2
A181: CC | B181: 1107035739 | C181: 63001 | D181: ARMENIA | E181: 12 | F181: 1 | G181: Natural | H181: 63 | I181: QUINDÍO | J181: Aprobado con subsidio | K181: PEQUEÑA | L181: 1081 | M181: INDUSTRIAS MANUFACTURERAS | N181: C | O181: Elaboración de otros productos alimenticios | P181: Elaboración de productos alimenticios | Q181: 7 | R181: 5 | S181: 0 | U181: NI | V181: 900266003 | W181: 5001 | X181: MEDELLÍN | Y181: 15 | Z181: 0 | AA181: Jurídica | AB181: 5 | AC181: ANTIOQUIA | AD181: Aprobado con subsidio | AE181: PEQUEÑA | AF181: 129 | AG181: AGRICULTURA, GANADERÍA, CAZA, SILVICULTURA Y PESCA | AH181: A | AI181: Cultivos agrícolas permanentes | AJ181: Agricultura, ganadería, caza y actividades de servicios conexas | AK181: 4 | AL181: 11 | AM181: 0 | AY181: 76113 | AZ181: 0 | BA181: 25513 | BB181: 2
A182: CC | B182: 1110513975 | C182: 73001 | D182: IBAGUÉ | E182: 61 | F182: 5 | G182: Natural | H182: 73 | I182: TOLIMA | J182: Aprobado con subsidio | K182: MEDIANA | L182: 4723 | M182: COMERCIO AL POR MAYOR Y AL POR MENOR; REPARACIÓN DE VEHÍCULOS AUTOMOTORES Y MOTOCICLETAS | N182: G | O182: Comercio al por menor de alimentos (víveres en general), bebidas y tabaco, en establecimientos especializados | P182: Comercio al por menor (incluso el comercio al por menor de combustibles), excepto el de vehículos automotores y motocicletas | Q182: 34 | R182: 27 | S182: 0 | U182: NI | V182: 811041683 | W182: 5001 | X182: MEDELLÍN | Y182: 30 | Z182: 0 | AA182: Jurídica | AB182: 5 | AC182: ANTIOQUIA | AD182: Aprobado con subsidio | AE182: PEQUEÑA | AF182: 141 | AG182: AGRICULTURA, GANADERÍA, CAZA, SILVICULTURA Y PESCA | AH182: A | AI182: Ganadería | AJ182: Agricultura, ganadería, caza y actividades de servicios conexas | AK182: 4 | AL182: 26 | AM182: 0 | AY182: 5665 | AZ182: 1 | BA182: 41524 | BB182: 2
A183: CC | B183: 1114401580 | C183: 76364 | D183: JAMUNDÍ | E183: 6 | F183: 2 | G183: Natural | H183: 76 | I183: VALLE DEL CAUCA | J183: Aprobado con subsidio | K183: MICRO | L183: 4771 | M183: COMERCIO AL POR MAYOR Y AL POR MENOR; REPARACIÓN DE VEHÍCULOS AUTOMOTORES Y MOTOCICLETAS | N183: G | O183: Comercio al por menor de otros productos en establecimientos especializados | P183: Comercio al por menor (incluso el comercio al por menor de combustibles), excepto el de vehículos automotores y motocicletas | Q183: 5 | R183: 1 | S183: 0 | U183: NI | V183: 900471488 | W183: 5282 | X183: FREDONIA | Y183: 5 | Z183: 0 | AA183: Jurídica | AB183: 5 | AC183: ANTIOQUIA | AD183: Aprobado con subsidio | AE183: MICRO | AF183: 144 | AG183: AGRICULTURA, GANADERÍA, CAZA, SILVICULTURA Y PESCA | AH183: A | AI183: Ganadería | AJ183: Agricultura, ganadería, caza y actividades de servicios conexas | AK183: 1 | AL183: 4 | AM183: 0 | AY183: 41306 | AZ183: 2 | BA183: 5480 | BB183: 2
A184: CC | B184: 1121826883 | C184: 50001 | D184: VILLAVICENCIO | E184: 5 | F184: 0 | G184: Natural | H184: 50 | I184: META | J184: Aprobado con subsidio | K184: MICRO | L184: 5611 | M184: ALOJAMIENTO Y SERVICIOS DE COMIDA | N184: I | O184: Actividades de restaurantes, cafeterías y servicio móvil de comidas | P184: Actividades de servicios de comidas y bebidas | Q184: 5 | R184: 0 | S184: 0 | U184: CC | V184: 42895733 | W184: 5615 | X184: RIONEGRO | Y184: 4 | Z184: 0 | AA184: Natural | AB184: 5 | AC184: ANTIOQUIA | AD184: Aprobado con subsidio | AE184: MICRO | AF184: 121 | AG184: AGRICULTURA, GANADERÍA, CAZA, SILVICULTURA Y PESCA | AH184: A | AI184: Cultivos agrícolas permanentes | AJ184: Agricultura, ganadería, caza y actividades de servicios conexas | AK184: 1 | AL184: 3 | AM184: 0 | AY184: 17513 | AZ184: 2 | BA184: 5887 | BB184: 2
A185: CC | B185: 1130665240 | C185: 76001 | D185: CALI | E185: 2 | F185: 1 | G185: Natural | H185: 76 | I185: VALLE DEL CAUCA | J185: Aprobado con subsidio | K185: MICRO | L185: 113 | M185: AGRICULTURA, GANADERÍA, CAZA, SILVICULTURA Y PESCA | N185: A | O185: Cultivos agrícolas transitorios | P185: Agricultura, ganadería, caza y actividades de servicios conexas | Q185: 1 | R185: 1 | S185: 0 | U185: NI | V185: 901039768 | W185: 27150 | X185: CARMEN DEL DARIÉN | Y185: 16 | Z185: 4 | AA185: Jurídica | AB185: 27 | AC185: CHOCÓ | AD185: Aprobado con subsidio | AE185: PEQUEÑA | AF185: 220 | AG185: AGRICULTURA, GANADERÍA, CAZA, SILVICULTURA Y PESCA | AH185: A | AI185: Extracción de madera | AJ185: Silvicultura y extracción de madera | AK185: 4 | AL185: 12 | AM185: 0 | AY185: 13836 | AZ185: 2 | BA185: 25754 | BB185: 2
A186: CC | B186: 1143852211 | C186: 76001 | D186: CALI | E186: 4 | F186: 1 | G186: Natural | H186: 76 | I186: VALLE DEL CAUCA | J186: Aprobado con subsidio | K186: MICRO | L186: 5611 | M186: ALOJAMIENTO Y SERVICIOS DE COMIDA | N186: I | O186: Actividades de restaurantes, cafeterías y servicio móvil de comidas | P186: Actividades de servicios de comidas y bebidas | Q186: 3 | R186: 1 | S186: 0 | U186: NI | V186: 900658376 | W186: 5001 | X186: MEDELLÍN | Y186: 4 | Z186: 5 | AA186: Jurídica | AB186: 5 | AC186: ANTIOQUIA | AD186: Aprobado con subsidio | AE186: MICRO | AF186: 163 | AG186: AGRICULTURA, GANADERÍA, CAZA, SILVICULTURA Y PESCA | AH186: A | AI186: Actividades de apoyo a la agricultura y la ganadería, y actividades posteriores a la cosecha | AJ186: Agricultura, ganadería, caza y actividades de servicios conexas | AK186: 1 | AL186: 3 | AM186: 0 | AY186: 25793 | AZ186: 1 | BA186: 5101 | BB186: 2
A187: CC | B187: 1144044128 | C187: 66001 | D187: PEREIRA | E187: 3 | F187: 1 | G187: Natural | H187: 66 | I187: RISARALDA | J187: Aprobado con subsidio | K187: MICRO | L187: 5221 | M187: TRANSPORTE Y ALMACENAMIENTO | N187: H | O187: Actividades de las estaciones, vías y servicios complementarios para el transporte | P187: Almacenamiento y actividades complementarias al transporte | Q187: 2 | R187: 1 | S187: 0 | U187: NI | V187: 900466438 | W187: 5001 | X187: MEDELLÍN | Y187: 58 | Z187: 11 | AA187: Jurídica | AB187: 5 | AC187: ANTIOQUIA | AD187: Aprobado con subsidio | AE187: MEDIANA | AF187: 126 | AG187: AGRICULTURA, GANADERÍA, CAZA, SILVICULTURA Y PESCA | AH187: A | AI187: Cultivos agrícolas permanentes | AJ187: Agricultura, ganadería, caza y actividades de servicios conexas | AK187: 12 | AL187: 46 | AM187: 0 | AY187: 20550 | AZ187: 2 | BA187: 17614 | BB187: 2
A188: CC | B188: 1193067146 | C188: 63001 | D188: ARMENIA | E188: 9 | F188: 2 | G188: Natural | H188: 63 | I188: QUINDÍO | J188: Aprobado con subsidio | K188: MICRO | L188: 1084 | M188: INDUSTRIAS MANUFACTURERAS | N188: C | O188: Elaboración de otros productos alimenticios | P188: Elaboración de productos alimenticios | Q188: 7 | R188: 2 | S188: 0 | U188: NI | V188: 901083084 | W188: 25899 | X188: ZIPAQUIRÁ | Y188: 234 | Z188: 92 | AA188: Jurídica | AB188: 25 | AC188: CUNDINAMARCA | AD188: Aprobado con subsidio | AE188: MEDIANA | AF188: 161 | AG188: AGRICULTURA, GANADERÍA, CAZA, SILVICULTURA Y PESCA | AH188: A | AI188: Actividades de apoyo a la agricultura y la ganadería, y actividades posteriores a la cosecha | AJ188: Agricultura, ganadería, caza y actividades de servicios conexas | AK188: 34 | AL188: 200 | AM188: 0 | AY188: 23555 | AZ188: 2 | BA188: 73349 | BB188: 2
A189: CC | B189: 12124796 | C189: 41001 | D189: NEIVA | E189: 6 | F189: 0 | G189: Natural | H189: 41 | I189: HUILA | J189: Aprobado con subsidio | K189: MICRO | L189: 4754 | M189: COMERCIO AL POR MAYOR Y AL POR MENOR; REPARACIÓN DE VEHÍCULOS AUTOMOTORES Y MOTOCICLETAS | N189: G | O189: Comercio al por menor de otros enseres domésticos en establecimientos especializados | P189: Comercio al por menor (incluso el comercio al por menor de combustibles), excepto el de vehículos automotores y motocicletas | Q189: 3 | R189: 3 | S189: 0 | U189: NI | V189: 900378773 | W189: 5001 | X189: MEDELLÍN | Y189: 3 | Z189: 0 | AA189: Jurídica | AB189: 5 | AC189: ANTIOQUIA | AD189: Aprobado con subsidio | AE189: MICRO | AF189: 161 | AG189: AGRICULTURA, GANADERÍA, CAZA, SILVICULTURA Y PESCA | AH189: A | AI189: Actividades de apoyo a la agricultura y la ganadería, y actividades posteriores a la cosecha | AJ189: Agricultura, ganadería, caza y actividades de servicios conexas | AK189: 1 | AL189: 2 | AM189: 0 | AY189: 20011 | AZ189: 3 | BA189: 85440 | BB189: 2
A190: CC | B190: 12135508 | C190: 41001 | D190: NEIVA | E190: 11 | F190: 0 | G190: Natural | H190: 41 | I190: HUILA | J190: Aprobado con subsidio | K190: PEQUEÑA | L190: 4752 | M190: COMERCIO AL POR MAYOR Y AL POR MENOR; REPARACIÓN DE VEHÍCULOS AUTOMOTORES Y MOTOCICLETAS | N190: G | O190: Comercio al por menor de otros enseres domésticos en establecimientos especializados | P190: Comercio al por menor (incluso el comercio al por menor de combustibles), excepto el de vehículos automotores y motocicletas | Q190: 1 | R190: 10 | S190: 0 | U190: NI | V190: 900134841 | W190: 5001 | X190: MEDELLÍN | Y190: 442 | Z190: 40 | AA190: Jurídica | AB190: 5 | AC190: ANTIOQUIA | AD190: Aprobado con subsidio | AE190: GRANDE | AF190: 145 | AG190: AGRICULTURA, GANADERÍA, CAZA, SILVICULTURA Y PESCA | AH190: A | AI190: Ganadería | AJ190: Agricultura, ganadería, caza y actividades de servicios conexas | AK190: 214 | AL190: 228 | AM190: 0 | AY190: 5313 | AZ190: 1 | BA190: 41016 | BB190: 2
A191: CC | B191: 12279584 | C191: 41396 | D191: LA PLATA | E191: 3 | F191: 0 | G191: Natural | H191: 41 | I191: HUILA | J191: Aprobado con subsidio | K191: MICRO | L191: 4759 | M191: COMERCIO AL POR MAYOR Y AL POR MENOR; REPARACIÓN DE VEHÍCULOS AUTOMOTORES Y MOTOCICLETAS | N191: G | O191: Comercio al por menor de otros enseres domésticos en establecimientos especializados | P191: Comercio al por menor (incluso el comercio al por menor de combustibles), excepto el de vehículos automotores y motocicletas | Q191: 1 | R191: 2 | S191: 0 | U191: NI | V191: 900263525 | W191: 8001 | X191: BARRANQUILLA | Y191: 19 | Z191: 1 | AA191: Jurídica | AB191: 8 | AC191: ATLÁNTICO | AD191: Aprobado con subsidio | AE191: PEQUEÑA | AF191: 126 | AG191: AGRICULTURA, GANADERÍA, CAZA, SILVICULTURA Y PESCA | AH191: A | AI191: Cultivos agrícolas permanentes | AJ191: Agricultura, ganadería, caza y actividades de servicios conexas | AK191: 1 | AL191: 18 | AM191: 0 | AY191: 41349 | AZ191: 2 | BA191: 5093 | BB191: 2
A192: CC | B192: 12532588 | C192: 11001 | D192: BOGOTÁ, D.C. | E192: 5 | F192: 2 | G192: Natural | H192: 11 | I192: BOGOTÁ, D.C. | J192: Aprobado con subsidio | K192: MICRO | L192: 8621 | M192: ACTIVIDADES DE ATENCIÓN DE LA SALUD HUMANA Y DE ASISTENCIA SOCIAL | N192: Q | O192: Actividades de práctica médica y odontológica, sin internación | P192: Actividades de atención de la salud humana | Q192: 5 | R192: 0 | S192: 0 | U192: NI | V192: 811035110 | W192: 5376 | X192: LA CEJA | Y192: 135 | Z192: 22 | AA192: Jurídica | AB192: 5 | AC192: ANTIOQUIA | AD192: Aprobado con subsidio | AE192: MEDIANA | AF192: 125 | AG192: AGRICULTURA, GANADERÍA, CAZA, SILVICULTURA Y PESCA | AH192: A | AI192: Cultivos agrícolas permanentes | AJ192: Agricultura, ganadería, caza y actividades de servicios conexas | AK192: 52 | AL192: 83 | AM192: 0 | AY192: 19256 | AZ192: 1 | BA192: 25040 | BB192: 2
A193: CC | B193: 12830013 | C193: 52001 | D193: PASTO | E193: 5 | F193: 0 | G193: Natural | H193: 52 | I193: NARIÑO | J193: Aprobado con subsidio | K193: MICRO | L193: 1610 | M193: INDUSTRIAS MANUFACTURERAS | N193: C | O193: Aserrado, acepillado e impregnación de la madera | P193: Transformación de la madera y fabricación de productos de madera y de corcho, excepto muebles; fabricación de artículos de cestería y espartería | Q193: 2 | R193: 3 | S193: 0 | U193: NI | V193: 800220087 | W193: 11001 | X193: BOGOTÁ, D.C. | Y193: 579 | Z193: 18 | AA193: Jurídica | AB193: 11 | AC193: BOGOTÁ, D.C. | AD193: Aprobado con subsidio | AE193: MUY GRANDE | AF193: 125 | AG193: AGRICULTURA, GANADERÍA, CAZA, SILVICULTURA Y PESCA | AH193: A | AI193: Cultivos agrícolas permanentes | AJ193: Agricultura, ganadería, caza y actividades de servicios conexas | AK193: 337 | AL193: 242 | AM193: 0 | AY193: 19845 | AZ193: 2 | BA193: 50689 | BB193: 2
A194: CC | B194: 12978490 | C194: 52001 | D194: PASTO | E194: 27 | F194: 1 | G194: Natural | H194: 52 | I194: NARIÑO | J194: Aprobado con subsidio | K194: PEQUEÑA | L194: 5511 | M194: ALOJAMIENTO Y SERVICIOS DE COMIDA | N194: I | O194: Actividades de alojamiento de estancias cortas | P194: Alojamiento | Q194: 13 | R194: 14 | S194: 0 | U194: CC | V194: 14873340 | W194: 76248 | X194: EL CERRITO | Y194: 41 | Z194: 2 | AA194: Natural | AB194: 76 | AC194: VALLE DEL CAUCA | AD194: Aprobado con subsidio | AE194: PEQUEÑA | AF194: 144 | AG194: AGRICULTURA, GANADERÍA, CAZA, SILVICULTURA Y PESCA | AH194: A | AI194: Ganadería | AJ194: Agricultura, ganadería, caza y actividades de servicios conexas | AK194: 5 | AL194: 36 | AM194: 0 | AY194: 5425 | AZ194: =COUNTIFS($AD$2:$AD$399999,"Aprobado con subsidio",$W$2:$W$399999,AY194) -> 4 | BA194: 8758 | BB194: 2
A195: CC | B195: 12997273 | C195: 52001 | D195: PASTO | E195: 6 | F195: 0 | G195: Natural | H195: 52 | I195: NARIÑO | J195: Aprobado con subsidio | K195: MICRO | L195: 6820 | M195: ACTIVIDADES INMOBILIARIAS | N195: L | O195: Actividades inmobiliarias realizadas a cambio de una retribución o por contrata | P195: Actividades inmobiliarias | Q195: 3 | R195: 3 | S195: 0 | U195: NI | V195: 900431079 | W195: 5501 | X195: OLAYA | Y195: 9 | Z195: 0 | AA195: Jurídica | AB195: 5 | AC195: ANTIOQUIA | AD195: Aprobado con subsidio | AE195: MICRO | AF195: 127 | AG195: AGRICULTURA, GANADERÍA, CAZA, SILVICULTURA Y PESCA | AH195: A | AI195: Cultivos agrícolas permanentes | AJ195: Agricultura, ganadería, caza y actividades de servicios conexas | AK195: 6 | AL195: 3 | AM195: 0 | AY195: 25513 | AZ195: 2 | BA195: 17524 | BB195: 2
A196: CC | B196: 13177722 | C196: 54498 | D196: OCAÑA | E196: 4 | F196: 0 | G196: Natural | H196: 54 | I196: NORTE DE SANTANDER | J196: Aprobado con subsidio | K196: MICRO | L196: 4530 | M196: COMERCIO AL POR MAYOR Y AL POR MENOR; REPARACIÓN DE VEHÍCULOS AUTOMOTORES Y MOTOCICLETAS | N196: G | O196: Comercio de partes, piezas (autopartes) y accesorios (lujos) para vehículos automotores | P196: Comercio, mantenimiento y reparación de vehículos automotores y motocicletas, sus partes, piezas y accesorios | Q196: 1 | R196: 3 | S196: 0 | U196: NI | V196: 901283007 | W196: 68547 | X196: PIEDECUESTA | Y196: 10 | Z196: 1 | AA196: Jurídica | AB196: 68 | AC196: SANTANDER | AD196: Aprobado con subsidio | AE196: PEQUEÑA | AF196: 312 | AG196: AGRICULTURA, GANADERÍA, CAZA, SILVICULTURA Y PESCA | AH196: A | AI196: Pesca | AJ196: Pesca y acuicultura | AK196: 1 | AL196: 9 | AM196: 0 | AY196: 20178 | AZ196: 1 | BA196: 19698 | BB196: 2
A197: CC | B197: 13820158 | C197: 81736 | D197: SARAVENA | E197: 9 | F197: 0 | G197: Natural | H197: 81 | I197: ARAUCA | J197: Aprobado con subsidio | K197: MICRO | L197: 4731 | M197: COMERCIO AL POR MAYOR Y AL POR MENOR; REPARACIÓN DE VEHÍCULOS AUTOMOTORES Y MOTOCICLETAS | N197: G | O197: Comercio al por menor de combustible, lubricantes, aditivos y productos de limpieza para automotores, en establecimientos especializados | P197: Comercio al por menor, (incluso el comercio al por menor de combustibles), excepto el de vehículos automotores y motocicletas. | Q197: 1 | R197: 8 | S197: 0 | U197: NI | V197: 901300703 | W197: 11001 | X197: BOGOTÁ, D.C. | Y197: 2 | Z197: 0 | AA197: Jurídica | AB197: 11 | AC197: BOGOTÁ, D.C. | AD197: Aprobado con subsidio | AE197: MICRO | AF197: 141 | AG197: AGRICULTURA, GANADERÍA, CAZA, SILVICULTURA Y PESCA | AH197: A | AI197: Ganadería | AJ197: Agricultura, ganadería, caza y actividades de servicios conexas | AK197: 1 | AL197: 1 | AM197: 0 | AY197: 41524 | AZ197: 2 | BA197: 19513 | BB197: 2
A198: CC | B198: 14139440 | C198: 73001 | D198: IBAGUÉ | E198: 0 | F198: 0 | G198: Natural | H198: 73 | I198: TOLIMA | J198: Rechazado a nivel aportante | K198: MICRO | L198: 6202 | M198: INFORMACIÓN Y COMUNICACIONES | N198: J | O198: Desarrollo de sistemas informáticos (planificación, análisis, diseño, programación, pruebas), consultoría informática y actividades relacionadas. | P198: Desarrollo de sistemas informáticos (planificación, análisis, diseño, programación, pruebas), consultoría informática y actividades relacionadas. | Q198: 0 | R198: 0 | S198: 0 | U198: NI | V198: 860531704 | W198: 11001 | X198: BOGOTÁ, D.C. | Y198: 58 | Z198: 4 | AA198: Jurídica | AB198: 11 | AC198: BOGOTÁ, D.C. | AD198: Aprobado con subsidio | AE198: MEDIANA | AF198: 125 | AG198: AGRICULTURA, GANADERÍA, CAZA, SILVICULTURA Y PESCA | AH198: A | AI198: Cultivos agrícolas permanentes | AJ198: Agricultura, ganadería, caza y actividades de servicios conexas | AK198: 25 | AL198: 33 | AM198: 0 | AY198: 5002 | AZ198: 4 | BA198: 54498 | BB198: 2
A199: CC | B199: 14203950 | C199: 11001 | D199: BOGOTÁ, D.C. | E199: 7 | F199: 0 | G199: Natural | H199: 11 | I199: BOGOTÁ, D.C. | J199: Aprobado con subsidio | K199: MICRO | L199: 2930 | M199: INDUSTRIAS MANUFACTURERAS | N199: C | O199: Fabricación de partes, piezas (autopartes) y accesorios (lujos) para vehículos automotores | P199: Fabricación de vehículos automotores, remolques y semirremolques | Q199: 1 | R199: 6 | S199: 0 | U199: NI | V199: 901205240 | W199: 13001 | X199: CARTAGENA DE INDIAS | Y199: 7 | Z199: 2 | AA199: Jurídica | AB199: 13 | AC199: BOLÍVAR | AD199: Aprobado con subsidio | AE199: MICRO | AF199: 322 | AG199: AGRICULTURA, GANADERÍA, CAZA, SILVICULTURA Y PESCA | AH199: A | AI199: Acuicultura | AJ199: Pesca y acuicultura | AK199: 1 | AL199: 6 | AM199: 0 | AY199: 25769 | AZ199: 3 | BA199: 18592 | BB199: 2
A200: CC | B200: 14208296 | C200: 73001 | D200: IBAGUÉ | E200: 3 | F200: 0 | G200: Natural | H200: 73 | I200: TOLIMA | J200: Aprobado con subsidio | K200: MICRO | L200: 4774 | M200: COMERCIO AL POR MAYOR Y AL POR MENOR; REPARACIÓN DE VEHÍCULOS AUTOMOTORES Y MOTOCICLETAS | N200: G | O200: Comercio al por menor de otros productos en establecimientos especializados | P200: Comercio al por menor (incluso el comercio al por menor de combustibles), excepto el de vehículos automotores y motocicletas | Q200: 3 | R200: 0 | S200: 0 | U200: NI | V200: 900940407 | W200: 23001 | X200: MONTERÍA | Y200: 8 | Z200: 0 | AA200: Jurídica | AB200: 23 | AC200: CÓRDOBA | AD200: Aprobado con subsidio | AE200: MICRO | AF200: 141 | AG200: AGRICULTURA, GANADERÍA, CAZA, SILVICULTURA Y PESCA | AH200: A | AI200: Ganadería | AJ200: Agricultura, ganadería, caza y actividades de servicios conexas | AK200: 0 | AL200: 8 | AM200: 0 | AY200: 25486 | AZ200: 4 | BA200: 5541 | BB200: 2
... 2050 more rows

Sheet Hoja4 (hidden)
A1: Descripción Sección Rev. 4 | B1: Sección Rev. 4 | C1: Nombre | D1: Seccion | E1: Total | G1: Nombre | H1: Seccion | I1: Total empleadores | J1: Empleadores % | K1: Total empleados | L1: Empleados % | M1: Monto | N1: Hombres | O1: Mujeres | P1: no disponible | Q1: Actividad | R1: Indice | T1: cod_dpto | U1: Departamento | V1: % empleadores general | W1: ="% empleadores sección "&Visor!$N$4 -> % empleadores sección A
A2: AGRICULTURA, GANADERÍA, CAZA, SILVICULTURA Y PESCA | B2: A | C2: Agricultura, ganadería, caza, silvicultura y pesca | D2: =B2 -> A | E2: =COUNTIFS(insumos2!$N$2:$N$399999,Hoja4!D2,insumos2!$J$2:$J$399999,"Aprobado con subsidio") -> 3403 | G2: =MID(VLOOKUP(H2,$B$2:$C$23,2,FALSE),1,36) -> Comercio al por mayor y al por menor | H2: =_xlfn._xlws.SORT($D$2:$E$23,2,-1) -> G | I2: 39118 | J2: =I2/$I$24 -> 0.2735543605 | K2: =SUMIFS(insumos2!$E$2:$E$399999,insumos2!$J$2:$J$399999,"Aprobado con subsidio",insumos2!$N$2:$N$399999,Hoja4!H2) -> 639879 | L2: =K2/$K$24 -> 0.1541188587 | M2: =SUMIFS(insumos1!$K$2:$K$372158,insumos1!$H$2:$H$372158,Hoja4!H2) -> 1095006130000 | N2: =SUMIFS(insumos2!$R$2:$R$399999,insumos2!$J$2:$J$399999,"Aprobado con subsidio",insumos2!$N$2:$N$399999,Hoja4!H2) -> 359153 | O2: =SUMIFS(insumos2!$Q$2:$Q$399999,insumos2!$J$2:$J$399999,"Aprobado con subsidio",insumos2!$N$2:$N$399999,Hoja4!H2) -> 280496 | P2: =SUMIFS(insumos2!$S$2:$S$399999,insumos2!$J$2:$J$399999,"Aprobado con subsidio",insumos2!$N$2:$N$399999,Hoja4!H2) -> 230 | Q2: =G2 -> Comercio al por mayor y al por menor | R2: =O2/N2*100 -> 78.09930587 | T2: 11 | U2: BOGOTÁ, D.C. | V2: =COUNTIFS(insumos2!$H$2:$H$400000,Hoja4!$T2,insumos2!$J$2:$J$400000,"Aprobado con subsidio")/COUNTIFS(insumos2!$J$2:$J$400000,"Aprobado con subsidio") -> 0.3375128497 | W2: =VLOOKUP(T2,insumos2!$AO$2:$AP$34,2,FALSE)/insumos2!$AV$30 -> 0.2021745519 | Y2: =COUNTIFS(insumos2!$H$2:$H$400000,Hoja4!$T2,insumos2!$J$2:$J$400000,"Aprobado con subsidio") -> 48264
A3: EXPLOTACIÓN DE MINAS Y CANTERAS | B3: B | C3: Explotación de minas y canteras | D3: =B3 -> B | E3: =COUNTIFS(insumos2!$N$2:$N$399999,Hoja4!D3,insumos2!$J$2:$J$399999,"Aprobado con subsidio") -> 837 | G3: =MID(VLOOKUP(H3,$B$2:$C$23,2,FALSE),1,30) -> Industrias manufactureras | H3: C | I3: 22253 | J3: =I3/$I$24 -> 0.1556164728 | K3: =SUMIFS(insumos2!$E$2:$E$399999,insumos2!$J$2:$J$399999,"Aprobado con subsidio",insumos2!$N$2:$N$399999,Hoja4!H3) -> 630011 | L3: =K3/$K$24 -> 0.1517420892 | M3: =SUMIFS(insumos1!$K$2:$K$372158,insumos1!$H$2:$H$372158,Hoja4!H3) -> 996114014000 | N3: =SUMIFS(insumos2!$R$2:$R$399999,insumos2!$J$2:$J$399999,"Aprobado con subsidio",insumos2!$N$2:$N$399999,Hoja4!H3) -> 385791 | O3: =SUMIFS(insumos2!$Q$2:$Q$399999,insumos2!$J$2:$J$399999,"Aprobado con subsidio",insumos2!$N$2:$N$399999,Hoja4!H3) -> 244039 | P3: =SUMIFS(insumos2!$S$2:$S$399999,insumos2!$J$2:$J$399999,"Aprobado con subsidio",insumos2!$N$2:$N$399999,Hoja4!H3) -> 181 | Q3: =G3 -> Industrias manufactureras | R3: =O3/N3*100 -> 63.2567893 | T3: 5 | U3: ANTIOQUIA | V3: =COUNTIFS(insumos2!$H$2:$H$400000,Hoja4!$T3,insumos2!$J$2:$J$400000,"Aprobado con subsidio")/COUNTIFS(insumos2!$J$2:$J$400000,"Aprobado con subsidio") -> 0.199679718 | W3: =VLOOKUP(T3,insumos2!$AO$2:$AP$34,2,FALSE)/insumos2!$AV$30 -> 0.2483103144 | Y3: =COUNTIFS(insumos2!$H$2:$H$400000,Hoja4!$T3,insumos2!$J$2:$J$400000,"Aprobado con subsidio") -> 28554
A4: INDUSTRIAS MANUFACTURERAS | B4: C | C4: Industrias manufactureras | D4: C | E4: =COUNTIFS(insumos2!$N$2:$N$399999,Hoja4!D4,insumos2!$J$2:$J$399999,"Aprobado con subsidio") -> 22253 | G4: =MID(VLOOKUP(H4,$B$2:$C$23,2,FALSE),1,85) -> Actividades profesionales, científicas y técnicas | H4: M | I4: 14364 | J4: 0.1004482549 | K4: =SUMIFS(insumos2!$E$2:$E$399999,insumos2!$J$2:$J$399999,"Aprobado con subsidio",insumos2!$N$2:$N$399999,Hoja4!H4) -> 239835 | L4: 0.05776575959 | M4: =SUMIFS(insumos1!$K$2:$K$372158,insumos1!$H$2:$H$372158,Hoja4!H4) -> 403868760000 | N4: =SUMIFS(insumos2!$R$2:$R$399999,insumos2!$J$2:$J$399999,"Aprobado con subsidio",insumos2!$N$2:$N$399999,Hoja4!H4) -> 135472 | O4: =SUMIFS(insumos2!$Q$2:$Q$399999,insumos2!$J$2:$J$399999,"Aprobado con subsidio",insumos2!$N$2:$N$399999,Hoja4!H4) -> 104249 | P4: =SUMIFS(insumos2!$S$2:$S$399999,insumos2!$J$2:$J$399999,"Aprobado con subsidio",insumos2!$N$2:$N$399999,Hoja4!H4) -> 114 | Q4: Actividades profesionales, científicas y técnicas | R4: 76.95243298 | T4: 76 | U4: VALLE DEL CAUCA | V4: =COUNTIFS(insumos2!$H$2:$H$400000,Hoja4!$T4,insumos2!$J$2:$J$400000,"Aprobado con subsidio")/COUNTIFS(insumos2!$J$2:$J$400000,"Aprobado con subsidio") -> 0.0957838866 | W4: =VLOOKUP(T4,insumos2!$AO$2:$AP$34,2,FALSE)/insumos2!$AV$30 -> 0.1096091684 | Y4: =COUNTIFS(insumos2!$H$2:$H$400000,Hoja4!$T4,insumos2!$J$2:$J$400000,"Aprobado con subsidio") -> 13697
A5: SUMINISTRO DE ELECTRICIDAD, GAS, VAPOR Y AIRE ACONDICIONADO | B5: D | C5: Suministro de electricidad, gas, vapor y aire acondicionado | D5: D | E5: =COUNTIFS(insumos2!$N$2:$N$399999,Hoja4!D5,insumos2!$J$2:$J$399999,"Aprobado con subsidio") -> 142 | G5: =MID(VLOOKUP(H5,$B$2:$C$23,2,FALSE),1,30) -> Construcción | H5: F | I5: 13452 | J5: 0.09407058791 | K5: =SUMIFS(insumos2!$E$2:$E$399999,insumos2!$J$2:$J$399999,"Aprobado con subsidio",insumos2!$N$2:$N$399999,Hoja4!H5) -> 386971 | L5: 0.09320438532 | M5: =SUMIFS(insumos1!$K$2:$K$372158,insumos1!$H$2:$H$372158,Hoja4!H5) -> 577453233000 | N5: =SUMIFS(insumos2!$R$2:$R$399999,insumos2!$J$2:$J$399999,"Aprobado con subsidio",insumos2!$N$2:$N$399999,Hoja4!H5) -> 313561 | O5: =SUMIFS(insumos2!$Q$2:$Q$399999,insumos2!$J$2:$J$399999,"Aprobado con subsidio",insumos2!$N$2:$N$399999,Hoja4!H5) -> 73243 | P5: =SUMIFS(insumos2!$S$2:$S$399999,insumos2!$J$2:$J$399999,"Aprobado con subsidio",insumos2!$N$2:$N$399999,Hoja4!H5) -> 167 | Q5: Construcción | R5: 23.35845338 | T5: 8 | U5: ATLÁNTICO | V5: =COUNTIFS(insumos2!$H$2:$H$400000,Hoja4!$T5,insumos2!$J$2:$J$400000,"Aprobado con subsidio")/COUNTIFS(insumos2!$J$2:$J$400000,"Aprobado con subsidio") -> 0.04537094665 | W5: =VLOOKUP(T5,insumos2!$AO$2:$AP$34,2,FALSE)/insumos2!$AV$30 -> 0.0384954452 | Y5: =COUNTIFS(insumos2!$H$2:$H$400000,Hoja4!$T5,insumos2!$J$2:$J$400000,"Aprobado con subsidio") -> 6488
A6: DISTRIBUCIÓN DE AGUA; EVACUACIÓN Y TRATAMIENTO DE AGUAS RESIDUALES, GESTIÓN DE DESECHOS Y ACTIVIDADES DE SANEAMIENTO AMBIENTAL | B6: E | C6: Distribución de agua; evacuación y tratamiento de aguas residuales, gestión de desechos y actividades de saneamiento ambiental | D6: E | E6: =COUNTIFS(insumos2!$N$2:$N$399999,Hoja4!D6,insumos2!$J$2:$J$399999,"Aprobado con subsidio") -> 654 | G6: =MID(VLOOKUP(H6,$B$2:$C$23,2,FALSE),1,35) -> Alojamiento y servicios de comida | H6: I | I6: 7469 | J6: 0.05223113448 | K6: =SUMIFS(insumos2!$E$2:$E$399999,insumos2!$J$2:$J$399999,"Aprobado con subsidio",insumos2!$N$2:$N$399999,Hoja4!H6) -> 168195 | L6: 0.04051081758 | M6: =SUMIFS(insumos1!$K$2:$K$372158,insumos1!$H$2:$H$372158,Hoja4!H6) -> 345634734000 | N6: =SUMIFS(insumos2!$R$2:$R$399999,insumos2!$J$2:$J$399999,"Aprobado con subsidio",insumos2!$N$2:$N$399999,Hoja4!H6) -> 73241 | O6: =SUMIFS(insumos2!$Q$2:$Q$399999,insumos2!$J$2:$J$399999,"Aprobado con subsidio",insumos2!$N$2:$N$399999,Hoja4!H6) -> 94864 | P6: =SUMIFS(insumos2!$S$2:$S$399999,insumos2!$J$2:$J$399999,"Aprobado con subsidio",insumos2!$N$2:$N$399999,Hoja4!H6) -> 90 | Q6: Alojamiento y servicios de comida | R6: 129.5230813 | T6: 25 | U6: CUNDINAMARCA | V6: =COUNTIFS(insumos2!$H$2:$H$400000,Hoja4!$T6,insumos2!$J$2:$J$400000,"Aprobado con subsidio")/COUNTIFS(insumos2!$J$2:$J$400000,"Aprobado con subsidio") -> 0.04526605081 | W6: =VLOOKUP(T6,insumos2!$AO$2:$AP$34,2,FALSE)/insumos2!$AV$30 -> 0.09374081693 | Y6: =COUNTIFS(insumos2!$H$2:$H$400000,Hoja4!$T6,insumos2!$J$2:$J$400000,"Aprobado con subsidio") -> 6473
A7: CONSTRUCCIÓN | B7: F | C7: Construcción | D7: F | E7: =COUNTIFS(insumos2!$N$2:$N$399999,Hoja4!D7,insumos2!$J$2:$J$399999,"Aprobado con subsidio") -> 13452 | G7: =MID(VLOOKUP(H7,$B$2:$C$23,2,FALSE),1,30) -> Transporte y almacenamiento | H7: H | I7: 7141 | J7: 0.04993741215 | K7: =SUMIFS(insumos2!$E$2:$E$399999,insumos2!$J$2:$J$399999,"Aprobado con subsidio",insumos2!$N$2:$N$399999,Hoja4!H7) -> 327234 | L7: 0.0788163553 | M7: =SUMIFS(insumos1!$K$2:$K$372158,insumos1!$H$2:$H$372158,Hoja4!H7) -> 553798612000 | N7: =SUMIFS(insumos2!$R$2:$R$399999,insumos2!$J$2:$J$399999,"Aprobado con subsidio",insumos2!$N$2:$N$399999,Hoja4!H7) -> 265902 | O7: =SUMIFS(insumos2!$Q$2:$Q$399999,insumos2!$J$2:$J$399999,"Aprobado con subsidio",insumos2!$N$2:$N$399999,Hoja4!H7) -> 61157 | P7: =SUMIFS(insumos2!$S$2:$S$399999,insumos2!$J$2:$J$399999,"Aprobado con subsidio",insumos2!$N$2:$N$399999,Hoja4!H7) -> 175 | Q7: Transporte y almacenamiento | R7: 22.999827 | T7: 68 | U7: SANTANDER | V7: =COUNTIFS(insumos2!$H$2:$H$400000,Hoja4!$T7,insumos2!$J$2:$J$400000,"Aprobado con subsidio")/COUNTIFS(insumos2!$J$2:$J$400000,"Aprobado con subsidio") -> 0.04414716187 | W7: =VLOOKUP(T7,insumos2!$AO$2:$AP$34,2,FALSE)/insumos2!$AV$30 -> 0.05083749633 | Y7: =COUNTIFS(insumos2!$H$2:$H$400000,Hoja4!$T7,insumos2!$J$2:$J$400000,"Aprobado con subsidio") -> 6313
A8: COMERCIO AL POR MAYOR Y AL POR MENOR; REPARACIÓN DE VEHÍCULOS AUTOMOTORES Y MOTOCICLETAS | B8: G | C8: Comercio al por mayor y al por menor; reparación de vehículos automotores y motocicletas | D8: G | E8: =COUNTIFS(insumos2!$N$2:$N$399999,Hoja4!D8,insumos2!$J$2:$J$399999,"Aprobado con subsidio") -> 39118 | G8: =MID(VLOOKUP(H8,$B$2:$C$23,2,FALSE),1,40) -> Actividades de servicios administrativos | H8: N | I8: 6431 | J8: 0.04497234246 | K8: =SUMIFS(insumos2!$E$2:$E$399999,insumos2!$J$2:$J$399999,"Aprobado con subsidio",insumos2!$N$2:$N$399999,Hoja4!H8) -> 807530 | L8: 0.1944986505 | M8: =SUMIFS(insumos1!$K$2:$K$372158,insumos1!$H$2:$H$372158,Hoja4!H8) -> 1228751777000 | N8: =SUMIFS(insumos2!$R$2:$R$399999,insumos2!$J$2:$J$399999,"Aprobado con subsidio",insumos2!$N$2:$N$399999,Hoja4!H8) -> 456324 | O8: =SUMIFS(insumos2!$Q$2:$Q$399999,insumos2!$J$2:$J$399999,"Aprobado con subsidio",insumos2!$N$2:$N$399999,Hoja4!H8) -> 350744 | P8: =SUMIFS(insumos2!$S$2:$S$399999,insumos2!$J$2:$J$399999,"Aprobado con subsidio",insumos2!$N$2:$N$399999,Hoja4!H8) -> 462 | Q8: Actividades de servicios administrativos | R8: 76.86293072 | T8: 13 | U8: BOLÍVAR | V8: =COUNTIFS(insumos2!$H$2:$H$400000,Hoja4!$T8,insumos2!$J$2:$J$400000,"Aprobado con subsidio")/COUNTIFS(insumos2!$J$2:$J$400000,"Aprobado con subsidio") -> 0.02667151519 | W8: =VLOOKUP(T8,insumos2!$AO$2:$AP$34,2,FALSE)/insumos2!$AV$30 -> 0.01557449309 | Y8: =COUNTIFS(insumos2!$H$2:$H$400000,Hoja4!$T8,insumos2!$J$2:$J$400000,"Aprobado con subsidio") -> 3814
A9: TRANSPORTE Y ALMACENAMIENTO | B9: H | C9: Transporte y almacenamiento | D9: H | E9: =COUNTIFS(insumos2!$N$2:$N$399999,Hoja4!D9,insumos2!$J$2:$J$399999,"Aprobado con subsidio") -> 7141 | G9: =MID(VLOOKUP(H9,$B$2:$C$23,2,FALSE),1,42) -> Actividades de atención de la salud humana | H9: Q | I9: 6155 | J9: 0.04304225904 | K9: =SUMIFS(insumos2!$E$2:$E$399999,insumos2!$J$2:$J$399999,"Aprobado con subsidio",insumos2!$N$2:$N$399999,Hoja4!H9) -> 234457 | L9: 0.05647043465 | M9: =SUMIFS(insumos1!$K$2:$K$372158,insumos1!$H$2:$H$372158,Hoja4!H9) -> 376641437000 | N9: =SUMIFS(insumos2!$R$2:$R$399999,insumos2!$J$2:$J$399999,"Aprobado con subsidio",insumos2!$N$2:$N$399999,Hoja4!H9) -> 58696 | O9: =SUMIFS(insumos2!$Q$2:$Q$399999,insumos2!$J$2:$J$399999,"Aprobado con subsidio",insumos2!$N$2:$N$399999,Hoja4!H9) -> 175705 | P9: =SUMIFS(insumos2!$S$2:$S$399999,insumos2!$J$2:$J$399999,"Aprobado con subsidio",insumos2!$N$2:$N$399999,Hoja4!H9) -> 56 | Q9: Actividades de atención de la salud humana | R9: 299.3474853 | T9: 66 | U9: RISARALDA | V9: =COUNTIFS(insumos2!$H$2:$H$400000,Hoja4!$T9,insumos2!$J$2:$J$400000,"Aprobado con subsidio")/COUNTIFS(insumos2!$J$2:$J$400000,"Aprobado con subsidio") -> 0.02309107057 | W9: =VLOOKUP(T9,insumos2!$AO$2:$AP$34,2,FALSE)/insumos2!$AV$30 -> 0.02321481046 | Y9: =COUNTIFS(insumos2!$H$2:$H$400000,Hoja4!$T9,insumos2!$J$2:$J$400000,"Aprobado con subsidio") -> 3302
A10: ALOJAMIENTO Y SERVICIOS DE COMIDA | B10: I | C10: Alojamiento y servicios de comida | D10: I | E10: =COUNTIFS(insumos2!$N$2:$N$399999,Hoja4!D10,insumos2!$J$2:$J$399999,"Aprobado con subsidio") -> 7469 | G10: =MID(VLOOKUP(H10,$B$2:$C$23,2,FALSE),1,30) -> Otras actividades de servicios | H10: S | I10: 5051 | J10: 0.03532192533 | K10: =SUMIFS(insumos2!$E$2:$E$399999,insumos2!$J$2:$J$399999,"Aprobado con subsidio",insumos2!$N$2:$N$399999,Hoja4!H10) -> 82019 | L10: 0.01975478907 | M10: =SUMIFS(insumos1!$K$2:$K$372158,insumos1!$H$2:$H$372158,Hoja4!H10) -> 159313262000 | N10: =SUMIFS(insumos2!$R$2:$R$399999,insumos2!$J$2:$J$399999,"Aprobado con subsidio",insumos2!$N$2:$N$399999,Hoja4!H10) -> 34771 | O10: =SUMIFS(insumos2!$Q$2:$Q$399999,insumos2!$J$2:$J$399999,"Aprobado con subsidio",insumos2!$N$2:$N$399999,Hoja4!H10) -> 47178 | P10: =SUMIFS(insumos2!$S$2:$S$399999,insumos2!$J$2:$J$399999,"Aprobado con subsidio",insumos2!$N$2:$N$399999,Hoja4!H10) -> 70 | Q10: Otras actividades de servicios | R10: 135.6820339 | T10: 54 | U10: NORTE DE SANTANDER | V10: =COUNTIFS(insumos2!$H$2:$H$400000,Hoja4!$T10,insumos2!$J$2:$J$400000,"Aprobado con subsidio")/COUNTIFS(insumos2!$J$2:$J$400000,"Aprobado con subsidio") -> 0.01863649396 | W10: =VLOOKUP(T10,insumos2!$AO$2:$AP$34,2,FALSE)/insumos2!$AV$30 -> 0.01439905965 | Y10: =COUNTIFS(insumos2!$H$2:$H$400000,Hoja4!$T10,insumos2!$J$2:$J$400000,"Aprobado con subsidio") -> 2665
A11: INFORMACIÓN Y COMUNICACIONES | B11: J | C11: información y comunicaciones | D11: J | E11: =COUNTIFS(insumos2!$N$2:$N$399999,Hoja4!D11,insumos2!$J$2:$J$399999,"Aprobado con subsidio") -> 3857 | G11: =MID(VLOOKUP(H11,$B$2:$C$23,2,FALSE),1,30) -> Educación | H11: P | I11: 4517 | J11: 0.03158763348 | K11: =SUMIFS(insumos2!$E$2:$E$399999,insumos2!$J$2:$J$399999,"Aprobado con subsidio",insumos2!$N$2:$N$399999,Hoja4!H11) -> 144418 | L11: 0.03478397843 | M11: =SUMIFS(insumos1!$K$2:$K$372158,insumos1!$H$2:$H$372158,Hoja4!H11) -> 282973840000 | N11: =SUMIFS(insumos2!$R$2:$R$399999,insumos2!$J$2:$J$399999,"Aprobado con subsidio",insumos2!$N$2:$N$399999,Hoja4!H11) -> 51690 | O11: =SUMIFS(insumos2!$Q$2:$Q$399999,insumos2!$J$2:$J$399999,"Aprobado con subsidio",insumos2!$N$2:$N$399999,Hoja4!H11) -> 92423 | P11: =SUMIFS(insumos2!$S$2:$S$399999,insumos2!$J$2:$J$399999,"Aprobado con subsidio",insumos2!$N$2:$N$399999,Hoja4!H11) -> 305 | Q11: Educación | R11: 178.8024763 | T11: 15 | U11: BOYACÁ | V11: =COUNTIFS(insumos2!$H$2:$H$400000,Hoja4!$T11,insumos2!$J$2:$J$400000,"Aprobado con subsidio")/COUNTIFS(insumos2!$J$2:$J$400000,"Aprobado con subsidio") -> 0.0166015147 | W11: =VLOOKUP(T11,insumos2!$AO$2:$AP$34,2,FALSE)/insumos2!$AV$30 -> 0.01028504261 | Y11: =COUNTIFS(insumos2!$H$2:$H$400000,Hoja4!$T11,insumos2!$J$2:$J$400000,"Aprobado con subsidio") -> 2374
A12: ACTIVIDADES FINANCIERAS Y DE SEGUROS | B12: K | C12: Actividades financieras y de seguros | D12: K | E12: =COUNTIFS(insumos2!$N$2:$N$399999,Hoja4!D12,insumos2!$J$2:$J$399999,"Aprobado con subsidio") -> 2260 | G12: =MID(VLOOKUP(H12,$B$2:$C$23,2,FALSE),1,30) -> Actividades inmobiliarias | H12: L | I12: 4244 | J12: 0.02967852922 | K12: =SUMIFS(insumos2!$E$2:$E$399999,insumos2!$J$2:$J$399999,"Aprobado con subsidio",insumos2!$N$2:$N$399999,Hoja4!H12) -> 36625 | L12: 0.008821360289 | M12: =SUMIFS(insumos1!$K$2:$K$372158,insumos1!$H$2:$H$372158,Hoja4!H12) -> 79476703000 | N12: =SUMIFS(insumos2!$R$2:$R$399999,insumos2!$J$2:$J$399999,"Aprobado con subsidio",insumos2!$N$2:$N$399999,Hoja4!H12) -> 17516 | O12: =SUMIFS(insumos2!$Q$2:$Q$399999,insumos2!$J$2:$J$399999,"Aprobado con subsidio",insumos2!$N$2:$N$399999,Hoja4!H12) -> 19088 | P12: =SUMIFS(insumos2!$S$2:$S$399999,insumos2!$J$2:$J$399999,"Aprobado con subsidio",insumos2!$N$2:$N$399999,Hoja4!H12) -> 21 | Q12: Actividades inmobiliarias | R12: 108.9746517 | T12: 73 | U12: TOLIMA | V12: =COUNTIFS(insumos2!$H$2:$H$400000,Hoja4!$T12,insumos2!$J$2:$J$400000,"Aprobado con subsidio")/COUNTIFS(insumos2!$J$2:$J$400000,"Aprobado con subsidio") -> 0.01546863964 | W12: =VLOOKUP(T12,insumos2!$AO$2:$AP$34,2,FALSE)/insumos2!$AV$30 -> 0.01616220981 | Y12: =COUNTIFS(insumos2!$H$2:$H$400000,Hoja4!$T12,insumos2!$J$2:$J$400000,"Aprobado con subsidio") -> 2212
A13: ACTIVIDADES INMOBILIARIAS | B13: L | C13: Actividades inmobiliarias | D13: L | E13: =COUNTIFS(insumos2!$N$2:$N$399999,Hoja4!D13,insumos2!$J$2:$J$399999,"Aprobado con subsidio") -> 4244 | G13: =MID(VLOOKUP(H13,$B$2:$C$23,2,FALSE),1,30) -> información y comunicaciones | H13: J | I13: 3857 | J13: 0.02697221659 | K13: =SUMIFS(insumos2!$E$2:$E$399999,insumos2!$J$2:$J$399999,"Aprobado con subsidio",insumos2!$N$2:$N$399999,Hoja4!H13) -> 95500 | L13: 0.02300177222 | M13: =SUMIFS(insumos1!$K$2:$K$372158,insumos1!$H$2:$H$372158,Hoja4!H13) -> 159950015000 | N13: =SUMIFS(insumos2!$R$2:$R$399999,insumos2!$J$2:$J$399999,"Aprobado con subsidio",insumos2!$N$2:$N$399999,Hoja4!H13) -> 52979 | O13: =SUMIFS(insumos2!$Q$2:$Q$399999,insumos2!$J$2:$J$399999,"Aprobado con subsidio",insumos2!$N$2:$N$399999,Hoja4!H13) -> 42487 | P13: =SUMIFS(insumos2!$S$2:$S$399999,insumos2!$J$2:$J$399999,"Aprobado con subsidio",insumos2!$N$2:$N$399999,Hoja4!H13) -> 34 | Q13: información y comunicaciones | R13: 80.19592669 | T13: 17 | U13: CALDAS | V13: =COUNTIFS(insumos2!$H$2:$H$400000,Hoja4!$T13,insumos2!$J$2:$J$400000,"Aprobado con subsidio")/COUNTIFS(insumos2!$J$2:$J$400000,"Aprobado con subsidio") -> 0.0152378688 | W13: =VLOOKUP(T13,insumos2!$AO$2:$AP$34,2,FALSE)/insumos2!$AV$30 -> 0.01968851014 | Y13: =COUNTIFS(insumos2!$H$2:$H$400000,Hoja4!$T13,insumos2!$J$2:$J$400000,"Aprobado con subsidio") -> 2179
A14: ACTIVIDADES PROFESIONALES, CIENTÍFICAS Y TÉCNICAS | B14: M | C14: Actividades profesionales, científicas y técnicas | D14: M | E14: =COUNTIFS(insumos2!$N$2:$N$399999,Hoja4!D14,insumos2!$J$2:$J$399999,"Aprobado con subsidio") -> 14364 | G14: =MID(VLOOKUP(H14,$B$2:$C$23,2,FALSE),1,34) -> Agricultura, ganadería, caza, silv | H14: A | I14: 3403 | J14: 0.02379736921 | K14: =SUMIFS(insumos2!$E$2:$E$399999,insumos2!$J$2:$J$399999,"Aprobado con subsidio",insumos2!$N$2:$N$399999,Hoja4!H14) -> 160790 | L14: 0.03872727702 | M14: =SUMIFS(insumos1!$K$2:$K$372158,insumos1!$H$2:$H$372158,Hoja4!H14) -> 237824842000 | N14: =SUMIFS(insumos2!$R$2:$R$399999,insumos2!$J$2:$J$399999,"Aprobado con subsidio",insumos2!$N$2:$N$399999,Hoja4!H14) -> 105169 | O14: =SUMIFS(insumos2!$Q$2:$Q$399999,insumos2!$J$2:$J$399999,"Aprobado con subsidio",insumos2!$N$2:$N$399999,Hoja4!H14) -> 55599 | P14: =SUMIFS(insumos2!$S$2:$S$399999,insumos2!$J$2:$J$399999,"Aprobado con subsidio",insumos2!$N$2:$N$399999,Hoja4!H14) -> 22 | Q14: Agricultura, ganadería, caza, silv | R14: 52.86633894 | T14: 50 | U14: META | V14: =COUNTIFS(insumos2!$H$2:$H$400000,Hoja4!$T14,insumos2!$J$2:$J$400000,"Aprobado con subsidio")/COUNTIFS(insumos2!$J$2:$J$400000,"Aprobado con subsidio") -> 0.01520989657 | W14: =VLOOKUP(T14,insumos2!$AO$2:$AP$34,2,FALSE)/insumos2!$AV$30 -> 0.02791654423 | Y14: =COUNTIFS(insumos2!$H$2:$H$400000,Hoja4!$T14,insumos2!$J$2:$J$400000,"Aprobado con subsidio") -> 2175
A15: ACTIVIDADES DE SERVICIOS ADMINISTRATIVOS Y DE APOYO | B15: N | C15: Actividades de servicios administrativos y de apoyo | D15: N | E15: =COUNTIFS(insumos2!$N$2:$N$399999,Hoja4!D15,insumos2!$J$2:$J$399999,"Aprobado con subsidio") -> 6431 | G15: =MID(VLOOKUP(H15,$B$2:$C$23,2,FALSE),1,40) -> Actividades financieras y de seguros | H15: K | I15: 2260 | J15: 0.01580430632 | K15: =SUMIFS(insumos2!$E$2:$E$399999,insumos2!$J$2:$J$399999,"Aprobado con subsidio",insumos2!$N$2:$N$399999,Hoja4!H15) -> 31946 | L15: 0.007694393878 | M15: =SUMIFS(insumos1!$K$2:$K$372158,insumos1!$H$2:$H$372158,Hoja4!H15) -> 52025834000 | N15: =SUMIFS(insumos2!$R$2:$R$399999,insumos2!$J$2:$J$399999,"Aprobado con subsidio",insumos2!$N$2:$N$399999,Hoja4!H15) -> 12841 | O15: =SUMIFS(insumos2!$Q$2:$Q$399999,insumos2!$J$2:$J$399999,"Aprobado con subsidio",insumos2!$N$2:$N$399999,Hoja4!H15) -> 19091 | P15: =SUMIFS(insumos2!$S$2:$S$399999,insumos2!$J$2:$J$399999,"Aprobado con subsidio",insumos2!$N$2:$N$399999,Hoja4!H15) -> 14 | Q15: Actividades financieras y de seguros | R15: 148.6722218 | T15: 41 | U15: HUILA | V15: =COUNTIFS(insumos2!$H$2:$H$400000,Hoja4!$T15,insumos2!$J$2:$J$400000,"Aprobado con subsidio")/COUNTIFS(insumos2!$J$2:$J$400000,"Aprobado con subsidio") -> 0.01388820901 | W15: =VLOOKUP(T15,insumos2!$AO$2:$AP$34,2,FALSE)/insumos2!$AV$30 -> 0.01439905965 | Y15: =COUNTIFS(insumos2!$H$2:$H$400000,Hoja4!$T15,insumos2!$J$2:$J$400000,"Aprobado con subsidio") -> 1986
A16: ADMINISTRACIÓN PÚBLICA Y DEFENSA; PLANES DE SEGURIDAD SOCIAL DE AFILIACIÓN OBLIGATORIA | B16: O | C16: Administración pública y defensa; planes de seguridad social de afiliación obligatoria | D16: O | E16: =COUNTIFS(insumos2!$N$2:$N$399999,Hoja4!D16,insumos2!$J$2:$J$399999,"Aprobado con subsidio") -> 157 | G16: =MID(VLOOKUP(H16,$B$2:$C$23,2,FALSE),1,35) -> Actividades artísticas de entreteni | H16: R | I16: 1447 | J16: 0.01011895188 | K16: =SUMIFS(insumos2!$E$2:$E$399999,insumos2!$J$2:$J$399999,"Aprobado con subsidio",insumos2!$N$2:$N$399999,Hoja4!H16) -> 63945 | L16: 0.01540155314 | M16: =SUMIFS(insumos1!$K$2:$K$372158,insumos1!$H$2:$H$372158,Hoja4!H16) -> 140261669000 | N16: =SUMIFS(insumos2!$R$2:$R$399999,insumos2!$J$2:$J$399999,"Aprobado con subsidio",insumos2!$N$2:$N$399999,Hoja4!H16) -> 24858 | O16: =SUMIFS(insumos2!$Q$2:$Q$399999,insumos2!$J$2:$J$399999,"Aprobado con subsidio",insumos2!$N$2:$N$399999,Hoja4!H16) -> 39054 | P16: =SUMIFS(insumos2!$S$2:$S$399999,insumos2!$J$2:$J$399999,"Aprobado con subsidio",insumos2!$N$2:$N$399999,Hoja4!H16) -> 33 | Q16: Actividades artísticas de entreteni | R16: 157.1083756 | T16: 52 | U16: NARIÑO | V16: =COUNTIFS(insumos2!$H$2:$H$400000,Hoja4!$T16,insumos2!$J$2:$J$400000,"Aprobado con subsidio")/COUNTIFS(insumos2!$J$2:$J$400000,"Aprobado con subsidio") -> 0.01202805614 | W16: =VLOOKUP(T16,insumos2!$AO$2:$AP$34,2,FALSE)/insumos2!$AV$30 -> 0.008228034088 | Y16: =COUNTIFS(insumos2!$H$2:$H$400000,Hoja4!$T16,insumos2!$J$2:$J$400000,"Aprobado con subsidio") -> 1720
A17: EDUCACIÓN | B17: P | C17: Educación | D17: P | E17: =COUNTIFS(insumos2!$N$2:$N$399999,Hoja4!D17,insumos2!$J$2:$J$399999,"Aprobado con subsidio") -> 4517 | G17: =MID(VLOOKUP(H17,$B$2:$C$23,2,FALSE),1,31) -> Explotación de minas y canteras | H17: B | I17: 837 | J17: 0.005853187785 | K17: =SUMIFS(insumos2!$E$2:$E$399999,insumos2!$J$2:$J$399999,"Aprobado con subsidio",insumos2!$N$2:$N$399999,Hoja4!H17) -> 59773 | L17: 0.01439670085 | M17: =SUMIFS(insumos1!$K$2:$K$372158,insumos1!$H$2:$H$372158,Hoja4!H17) -> 103639739000 | N17: =SUMIFS(insumos2!$R$2:$R$399999,insumos2!$J$2:$J$399999,"Aprobado con subsidio",insumos2!$N$2:$N$399999,Hoja4!H17) -> 52336 | O17: =SUMIFS(insumos2!$Q$2:$Q$399999,insumos2!$J$2:$J$399999,"Aprobado con subsidio",insumos2!$N$2:$N$399999,Hoja4!H17) -> 7406 | P17: =SUMIFS(insumos2!$S$2:$S$399999,insumos2!$J$2:$J$399999,"Aprobado con subsidio",insumos2!$N$2:$N$399999,Hoja4!H17) -> 31 | Q17: Explotación de minas y canteras | R17: 14.15087129 | T17: 23 | U17: CÓRDOBA | V17: =COUNTIFS(insumos2!$H$2:$H$400000,Hoja4!$T17,insumos2!$J$2:$J$400000,"Aprobado con subsidio")/COUNTIFS(insumos2!$J$2:$J$400000,"Aprobado con subsidio") -> 0.01056650746 | W17: =VLOOKUP(T17,insumos2!$AO$2:$AP$34,2,FALSE)/insumos2!$AV$30 -> 0.01498677637 | Y17: =COUNTIFS(insumos2!$H$2:$H$400000,Hoja4!$T17,insumos2!$J$2:$J$400000,"Aprobado con subsidio") -> 1511
A18: ACTIVIDADES DE ATENCIÓN DE LA SALUD HUMANA Y DE ASISTENCIA SOCIAL | B18: Q | C18: Actividades de atención de la salud humana y de asistencia social | D18: Q | E18: =COUNTIFS(insumos2!$N$2:$N$399999,Hoja4!D18,insumos2!$J$2:$J$399999,"Aprobado con subsidio") -> 6155 | G18: =MID(VLOOKUP(H18,$B$2:$C$23,2,FALSE),1,20) -> Distribución de agua | H18: E | I18: 654 | J18: 0.004573458556 | K18: =SUMIFS(insumos2!$E$2:$E$399999,insumos2!$J$2:$J$399999,"Aprobado con subsidio",insumos2!$N$2:$N$399999,Hoja4!H18) -> 21636 | L18: 0.005211165903 | M18: =SUMIFS(insumos1!$K$2:$K$372158,insumos1!$H$2:$H$372158,Hoja4!H18) -> 25578293000 | N18: =SUMIFS(insumos2!$R$2:$R$399999,insumos2!$J$2:$J$399999,"Aprobado con subsidio",insumos2!$N$2:$N$399999,Hoja4!H18) -> 16990 | O18: =SUMIFS(insumos2!$Q$2:$Q$399999,insumos2!$J$2:$J$399999,"Aprobado con subsidio",insumos2!$N$2:$N$399999,Hoja4!H18) -> 4637 | P18: =SUMIFS(insumos2!$S$2:$S$399999,insumos2!$J$2:$J$399999,"Aprobado con subsidio",insumos2!$N$2:$N$399999,Hoja4!H18) -> 9 | Q18: Distribución de agua | R18: 27.29252501 | T18: 63 | U18: QUINDÍO | V18: =COUNTIFS(insumos2!$H$2:$H$400000,Hoja4!$T18,insumos2!$J$2:$J$400000,"Aprobado con subsidio")/COUNTIFS(insumos2!$J$2:$J$400000,"Aprobado con subsidio") -> 0.0101958755 | W18: =VLOOKUP(T18,insumos2!$AO$2:$AP$34,2,FALSE)/insumos2!$AV$30 -> 0.01292976785 | Y18: =COUNTIFS(insumos2!$H$2:$H$400000,Hoja4!$T18,insumos2!$J$2:$J$400000,"Aprobado con subsidio") -> 1458
A19: ACTIVIDADES ARTÍSTICAS, DE ENTRETENIMIENTO Y RECREACIÓN | B19: R | C19: Actividades artísticas de entretenimiento y recreación | D19: R | E19: =COUNTIFS(insumos2!$N$2:$N$399999,Hoja4!D19,insumos2!$J$2:$J$399999,"Aprobado con subsidio") -> 1447 | G19: =MID(VLOOKUP(H19,$B$2:$C$23,2,FALSE),1,32) -> Administración pública y defensa | H19: O | I19: 157 | J19: 0.001097909776 | K19: =SUMIFS(insumos2!$E$2:$E$399999,insumos2!$J$2:$J$399999,"Aprobado con subsidio",insumos2!$N$2:$N$399999,Hoja4!H19) -> 17522 | L19: 0.004220283276 | M19: =SUMIFS(insumos1!$K$2:$K$372158,insumos1!$H$2:$H$372158,Hoja4!H19) -> 37773475000 | N19: =SUMIFS(insumos2!$R$2:$R$399999,insumos2!$J$2:$J$399999,"Aprobado con subsidio",insumos2!$N$2:$N$399999,Hoja4!H19) -> 5796 | O19: =SUMIFS(insumos2!$Q$2:$Q$399999,insumos2!$J$2:$J$399999,"Aprobado con subsidio",insumos2!$N$2:$N$399999,Hoja4!H19) -> 11703 | P19: =SUMIFS(insumos2!$S$2:$S$399999,insumos2!$J$2:$J$399999,"Aprobado con subsidio",insumos2!$N$2:$N$399999,Hoja4!H19) -> 23 | Q19: Administración pública y defensa | R19: 201.9151139 | T19: 47 | U19: MAGDALENA | V19: =COUNTIFS(insumos2!$H$2:$H$400000,Hoja4!$T19,insumos2!$J$2:$J$400000,"Aprobado con subsidio")/COUNTIFS(insumos2!$J$2:$J$400000,"Aprobado con subsidio") -> 0.01021685466 | W19: =VLOOKUP(T19,insumos2!$AO$2:$AP$34,2,FALSE)/insumos2!$AV$30 -> 0.02203937702 | Y19: =COUNTIFS(insumos2!$H$2:$H$400000,Hoja4!$T19,insumos2!$J$2:$J$400000,"Aprobado con subsidio") -> 1461
A20: OTRAS ACTIVIDADES DE SERVICIOS | B20: S | C20: Otras actividades de servicios | D20: S | E20: =COUNTIFS(insumos2!$N$2:$N$399999,Hoja4!D20,insumos2!$J$2:$J$399999,"Aprobado con subsidio") -> 5051 | G20: =MID(VLOOKUP(H20,$B$2:$C$23,2,FALSE),1,33) -> Suministro de electricidad, gas, | H20: D | I20: 142 | J20: 0.0009930139372 | K20: =SUMIFS(insumos2!$E$2:$E$399999,insumos2!$J$2:$J$399999,"Aprobado con subsidio",insumos2!$N$2:$N$399999,Hoja4!H20) -> 2939 | L20: 0.0007078765294 | M20: =SUMIFS(insumos1!$K$2:$K$372158,insumos1!$H$2:$H$372158,Hoja4!H20) -> 4296934000 | N20: =SUMIFS(insumos2!$R$2:$R$399999,insumos2!$J$2:$J$399999,"Aprobado con subsidio",insumos2!$N$2:$N$399999,Hoja4!H20) -> 2154 | O20: =SUMIFS(insumos2!$Q$2:$Q$399999,insumos2!$J$2:$J$399999,"Aprobado con subsidio",insumos2!$N$2:$N$399999,Hoja4!H20) -> 783 | P20: =SUMIFS(insumos2!$S$2:$S$399999,insumos2!$J$2:$J$399999,"Aprobado con subsidio",insumos2!$N$2:$N$399999,Hoja4!H20) -> 2 | Q20: Suministro de electricidad, gas, | R20: 36.35097493 | T20: 20 | U20: CESAR | V20: =COUNTIFS(insumos2!$H$2:$H$400000,Hoja4!$T20,insumos2!$J$2:$J$400000,"Aprobado con subsidio")/COUNTIFS(insumos2!$J$2:$J$400000,"Aprobado con subsidio") -> 0.009510556018 | W20: =VLOOKUP(T20,insumos2!$AO$2:$AP$34,2,FALSE)/insumos2!$AV$30 -> 0.02115780194 | Y20: =COUNTIFS(insumos2!$H$2:$H$400000,Hoja4!$T20,insumos2!$J$2:$J$400000,"Aprobado con subsidio") -> 1360
A21: ACTIVIDADES DE LOS HOGARES INDIVIDUALES EN CALIDAD DE EMPLEADORES; ACTIVIDADES NO DIFERENCIADAS DE LOS HOGARES INDIVIDUALES COMO PRODUCTORES DE BIENES Y SERVICIOS PARA USO PROPIO | B21: T | C21: Actividad de los hogares en calidad de empleadores; actividades no diferenciadas de los hogares individuales como productores de bienes y servicios para uso propio | D21: T | E21: =COUNTIFS(insumos2!$N$2:$N$399999,Hoja4!D21,insumos2!$J$2:$J$399999,"Aprobado con subsidio") -> 17 | G21: =MID(VLOOKUP(H21,$B$2:$C$23,2,FALSE),1,30) -> Otras | H21: Otras | I21: 23 | J21: 0.0001608402856 | K21: =SUMIFS(insumos2!$E$2:$E$399999,insumos2!$J$2:$J$399999,"Aprobado con subsidio",insumos2!$N$2:$N$399999,Hoja4!H21) -> 223 | L21: 5.371094456e-05 | M21: =SUMIFS(insumos1!$K$2:$K$372158,insumos1!$H$2:$H$372158,Hoja4!H21) -> 360705000 | N21: =SUMIFS(insumos2!$R$2:$R$399999,insumos2!$J$2:$J$399999,"Aprobado con subsidio",insumos2!$N$2:$N$399999,Hoja4!H21) -> 128 | O21: =SUMIFS(insumos2!$Q$2:$Q$399999,insumos2!$J$2:$J$399999,"Aprobado con subsidio",insumos2!$N$2:$N$399999,Hoja4!H21) -> 95 | P21: =SUMIFS(insumos2!$S$2:$S$399999,insumos2!$J$2:$J$399999,"Aprobado con subsidio",insumos2!$N$2:$N$399999,Hoja4!H21) -> 0 | Q21: Otras | R21: 74.21875 | T21: 19 | U21: CAUCA | V21: =COUNTIFS(insumos2!$H$2:$H$400000,Hoja4!$T21,insumos2!$J$2:$J$400000,"Aprobado con subsidio")/COUNTIFS(insumos2!$J$2:$J$400000,"Aprobado con subsidio") -> 0.00749655592 | W21: =VLOOKUP(T21,insumos2!$AO$2:$AP$34,2,FALSE)/insumos2!$AV$30 -> 0.008521892448 | Y21: =COUNTIFS(insumos2!$H$2:$H$400000,Hoja4!$T21,insumos2!$J$2:$J$400000,"Aprobado con subsidio") -> 1072
A22: ACTIVIDADES DE ORGANIZACIONES Y ENTIDADES EXTRATERRITORIALES | B22: U | C22: Actividad de organizaciones y entidades extraterritoriales | D22: U | E22: =COUNTIFS(insumos2!$N$2:$N$399999,Hoja4!D22,insumos2!$J$2:$J$399999,"Aprobado con subsidio") -> 7 | G22: =MID(VLOOKUP(H22,$B$2:$C$23,2,FALSE),1,24) -> Actividad de los hogares | H22: T | I22: 17 | J22: 0.0001188819502 | K22: =SUMIFS(insumos2!$E$2:$E$399999,insumos2!$J$2:$J$399999,"Aprobado con subsidio",insumos2!$N$2:$N$399999,Hoja4!H22) -> 278 | L22: 6.695803851e-05 | M22: =SUMIFS(insumos1!$K$2:$K$372158,insumos1!$H$2:$H$372158,Hoja4!H22) -> 615178000 | N22: =SUMIFS(insumos2!$R$2:$R$399999,insumos2!$J$2:$J$399999,"Aprobado con subsidio",insumos2!$N$2:$N$399999,Hoja4!H22) -> 110 | O22: =SUMIFS(insumos2!$Q$2:$Q$399999,insumos2!$J$2:$J$399999,"Aprobado con subsidio",insumos2!$N$2:$N$399999,Hoja4!H22) -> 167 | P22: =SUMIFS(insumos2!$S$2:$S$399999,insumos2!$J$2:$J$399999,"Aprobado con subsidio",insumos2!$N$2:$N$399999,Hoja4!H22) -> 1 | Q22: Actividad de los hogares | R22: 151.8181818 | T22: 85 | U22: CASANARE | V22: =COUNTIFS(insumos2!$H$2:$H$400000,Hoja4!$T22,insumos2!$J$2:$J$400000,"Aprobado con subsidio")/COUNTIFS(insumos2!$J$2:$J$400000,"Aprobado con subsidio") -> 0.005832208617 | W22: =VLOOKUP(T22,insumos2!$AO$2:$AP$34,2,FALSE)/insumos2!$AV$30 -> 0.007934175727 | Y22: =COUNTIFS(insumos2!$H$2:$H$400000,Hoja4!$T22,insumos2!$J$2:$J$400000,"Aprobado con subsidio") -> 834
A23: OTRAS | B23: Otras | C23: Otras | D23: Otras | E23: =COUNTIFS(insumos2!$N$2:$N$399999,Hoja4!D23,insumos2!$J$2:$J$399999,"Aprobado con subsidio") -> 23 | G23: =MID(VLOOKUP(H23,$B$2:$C$23,2,FALSE),1,45) -> Actividad de organizaciones y entidades extra | H23: U | I23: 7 | J23: 4.895139127e-05 | K23: =SUMIFS(insumos2!$E$2:$E$399999,insumos2!$J$2:$J$399999,"Aprobado con subsidio",insumos2!$N$2:$N$399999,Hoja4!H23) -> 128 | L23: 3.082960046e-05 | M23: =SUMIFS(insumos1!$K$2:$K$372158,insumos1!$H$2:$H$372158,Hoja4!H23) -> 149856000 | N23: =SUMIFS(insumos2!$R$2:$R$399999,insumos2!$J$2:$J$399999,"Aprobado con subsidio",insumos2!$N$2:$N$399999,Hoja4!H23) -> 68 | O23: =SUMIFS(insumos2!$Q$2:$Q$399999,insumos2!$J$2:$J$399999,"Aprobado con subsidio",insumos2!$N$2:$N$399999,Hoja4!H23) -> 60 | P23: =SUMIFS(insumos2!$S$2:$S$399999,insumos2!$J$2:$J$399999,"Aprobado con subsidio",insumos2!$N$2:$N$399999,Hoja4!H23) -> 0 | Q23: Actividad de organizaciones y entidades extra | R23: 88.23529412 | T23: 70 | U23: SUCRE | V23: =COUNTIFS(insumos2!$H$2:$H$400000,Hoja4!$T23,insumos2!$J$2:$J$400000,"Aprobado con subsidio")/COUNTIFS(insumos2!$J$2:$J$400000,"Aprobado con subsidio") -> 0.005237798866 | W23: =VLOOKUP(T23,insumos2!$AO$2:$AP$34,2,FALSE)/insumos2!$AV$30 -> 0.007346459007 | Y23: =COUNTIFS(insumos2!$H$2:$H$400000,Hoja4!$T23,insumos2!$J$2:$J$400000,"Aprobado con subsidio") -> 749
E24: =SUM(E2:E23) -> 142999 | H24: General | I24: =SUM(I2:I23) -> 142999 | K24: =SUM(K2:K23) -> 4151854 | M24: =SUM(M2:M23) -> 6861509042000 | N24: =SUM(N2:N23) -> 2425546 | O24: =SUM(O2:O23) -> 1724268 | P24: =SUM(P2:P23) -> 2040 | T24: 18 | U24: CAQUETÁ | V24: =COUNTIFS(insumos2!$H$2:$H$400000,Hoja4!$T24,insumos2!$J$2:$J$400000,"Aprobado con subsidio")/COUNTIFS(insumos2!$J$2:$J$400000,"Aprobado con subsidio") -> 0.00347554878 | W24: =VLOOKUP(T24,insumos2!$AO$2:$AP$34,2,FALSE)/insumos2!$AV$30 -> 0.003820158684 | Y24: =COUNTIFS(insumos2!$H$2:$H$400000,Hoja4!$T24,insumos2!$J$2:$J$400000,"Aprobado con subsidio") -> 497
T25: 44 | U25: LA GUAJIRA | V25: =COUNTIFS(insumos2!$H$2:$H$400000,Hoja4!$T25,insumos2!$J$2:$J$400000,"Aprobado con subsidio")/COUNTIFS(insumos2!$J$2:$J$400000,"Aprobado con subsidio") -> 0.003069951538 | W25: =VLOOKUP(T25,insumos2!$AO$2:$AP$34,2,FALSE)/insumos2!$AV$30 -> 0.001469291801 | Y25: =COUNTIFS(insumos2!$H$2:$H$400000,Hoja4!$T25,insumos2!$J$2:$J$400000,"Aprobado con subsidio") -> 439
T26: 88 | U26: SAN ANDRÉS | V26: =COUNTIFS(insumos2!$H$2:$H$400000,Hoja4!$T26,insumos2!$J$2:$J$400000,"Aprobado con subsidio")/COUNTIFS(insumos2!$J$2:$J$400000,"Aprobado con subsidio") -> 0.002447569563 | W26: =VLOOKUP(T26,insumos2!$AO$2:$AP$34,2,FALSE)/insumos2!$AV$30 -> 0.0002938583603 | Y26: =COUNTIFS(insumos2!$H$2:$H$400000,Hoja4!$T26,insumos2!$J$2:$J$400000,"Aprobado con subsidio") -> 350
T27: 81 | U27: ARAUCA | V27: =COUNTIFS(insumos2!$H$2:$H$400000,Hoja4!$T27,insumos2!$J$2:$J$400000,"Aprobado con subsidio")/COUNTIFS(insumos2!$J$2:$J$400000,"Aprobado con subsidio") -> 0.002279736222 | W27: =VLOOKUP(T27,insumos2!$AO$2:$AP$34,2,FALSE)/insumos2!$AV$30 -> 0.003820158684 | Y27: =COUNTIFS(insumos2!$H$2:$H$400000,Hoja4!$T27,insumos2!$J$2:$J$400000,"Aprobado con subsidio") -> 326
A28: Código | B28: Nombre | D28: Municipio | T28: 86 | U28: PUTUMAYO | V28: =COUNTIFS(insumos2!$H$2:$H$400000,Hoja4!$T28,insumos2!$J$2:$J$400000,"Aprobado con subsidio")/COUNTIFS(insumos2!$J$2:$J$400000,"Aprobado con subsidio") -> 0.001972041763 | W28: =VLOOKUP(T28,insumos2!$AO$2:$AP$34,2,FALSE)/insumos2!$AV$30 -> 0 | Y28: =COUNTIFS(insumos2!$H$2:$H$400000,Hoja4!$T28,insumos2!$J$2:$J$400000,"Aprobado con subsidio") -> 282
A29: 5 | B29: Antioquia | D29: Código | E29: Nombre | T29: 27 | U29: CHOCÓ | V29: =COUNTIFS(insumos2!$H$2:$H$400000,Hoja4!$T29,insumos2!$J$2:$J$400000,"Aprobado con subsidio")/COUNTIFS(insumos2!$J$2:$J$400000,"Aprobado con subsidio") -> 0.00163637508 | W29: =VLOOKUP(T29,insumos2!$AO$2:$AP$34,2,FALSE)/insumos2!$AV$30 -> 0.0005877167205 | Y29: =COUNTIFS(insumos2!$H$2:$H$400000,Hoja4!$T29,insumos2!$J$2:$J$400000,"Aprobado con subsidio") -> 234
A30: 8 | B30: Atlántico | D30: 5001 | E30: Medellín | T30: 91 | U30: AMAZONAS | V30: =COUNTIFS(insumos2!$H$2:$H$400000,Hoja4!$T30,insumos2!$J$2:$J$400000,"Aprobado con subsidio")/COUNTIFS(insumos2!$J$2:$J$400000,"Aprobado con subsidio") -> 0.0006503541983 | W30: =VLOOKUP(T30,insumos2!$AO$2:$AP$34,2,FALSE)/insumos2!$AV$30 -> 0 | Y30: =COUNTIFS(insumos2!$H$2:$H$400000,Hoja4!$T30,insumos2!$J$2:$J$400000,"Aprobado con subsidio") -> 93
A31: 11 | B31: Bogotá | D31: 5002 | E31: Abejorral | T31: 95 | U31: GUAVIARE | V31: =COUNTIFS(insumos2!$H$2:$H$400000,Hoja4!$T31,insumos2!$J$2:$J$400000,"Aprobado con subsidio")/COUNTIFS(insumos2!$J$2:$J$400000,"Aprobado con subsidio") -> 0.0004895139127 | W31: =VLOOKUP(T31,insumos2!$AO$2:$AP$34,2,FALSE)/insumos2!$AV$30 -> 0.001469291801 | Y31: =COUNTIFS(insumos2!$H$2:$H$400000,Hoja4!$T31,insumos2!$J$2:$J$400000,"Aprobado con subsidio") -> 70
A32: 13 | B32: Bolívar | D32: 5004 | E32: Abriaquí | T32: 99 | U32: VICHADA | V32: =COUNTIFS(insumos2!$H$2:$H$400000,Hoja4!$T32,insumos2!$J$2:$J$400000,"Aprobado con subsidio")/COUNTIFS(insumos2!$J$2:$J$400000,"Aprobado con subsidio") -> 0.0001398611179 | W32: =VLOOKUP(T32,insumos2!$AO$2:$AP$34,2,FALSE)/insumos2!$AV$30 -> 0.0005877167205 | Y32: =COUNTIFS(insumos2!$H$2:$H$400000,Hoja4!$T32,insumos2!$J$2:$J$400000,"Aprobado con subsidio") -> 20
A33: 15 | B33: Boyacá | D33: 5021 | E33: Alejandría | T33: 94 | U33: GUAINÍA | V33: =COUNTIFS(insumos2!$H$2:$H$400000,Hoja4!$T33,insumos2!$J$2:$J$400000,"Aprobado con subsidio")/COUNTIFS(insumos2!$J$2:$J$400000,"Aprobado con subsidio") -> 0.000132868062 | W33: =VLOOKUP(T33,insumos2!$AO$2:$AP$34,2,FALSE)/insumos2!$AV$30 -> 0 | Y33: =COUNTIFS(insumos2!$H$2:$H$400000,Hoja4!$T33,insumos2!$J$2:$J$400000,"Aprobado con subsidio") -> 19
A34: 17 | B34: Caldas | D34: 5030 | E34: Amagá | T34: 97 | U34: VAUPÉS | V34: =COUNTIFS(insumos2!$H$2:$H$400000,Hoja4!$T34,insumos2!$J$2:$J$400000,"Aprobado con subsidio")/COUNTIFS(insumos2!$J$2:$J$400000,"Aprobado con subsidio") -> 5.594444716e-05 | W34: =VLOOKUP(T34,insumos2!$AO$2:$AP$34,2,FALSE)/insumos2!$AV$30 -> 0 | Y34: =COUNTIFS(insumos2!$H$2:$H$400000,Hoja4!$T34,insumos2!$J$2:$J$400000,"Aprobado con subsidio") -> 8
A35: 18 | B35: Caquetá | D35: 5031 | E35: Amalfi | U35: Total general | V35: =SUM(V2:V34) -> 1 | W35: 1 | Y35: =SUM(Y2:Y34) -> 142999
A36: 19 | B36: Cauca | D36: 5034 | E36: Andes
A37: 20 | B37: Cesar | D37: 5036 | E37: Angelópolis
A38: 23 | B38: Córdoba | D38: 5038 | E38: Angostura
A39: 25 | B39: Cundinamarca | D39: 5040 | E39: Anorí
A40: 27 | B40: Chocó | D40: 5042 | E40: Santa fé de anti
A41: 41 | B41: Huila | D41: 5044 | E41: Anzá
A42: 44 | B42: La guajira | D42: 5045 | E42: Apartadó
A43: 47 | B43: Magdalena | D43: 5051 | E43: Arboletes
A44: 50 | B44: Meta | D44: 5055 | E44: Argelia
A45: 52 | B45: Nariño | D45: 5059 | E45: Armenia
A46: 54 | B46: Norte de stder | D46: 5079 | E46: Barbosa
A47: 63 | B47: Quindío | D47: 5086 | E47: Belmira
A48: 66 | B48: Risaralda | D48: 5088 | E48: Bello
A49: 68 | B49: Santander | D49: 5091 | E49: Betania
A50: 70 | B50: Sucre | D50: 5093 | E50: Betulia
A51: 73 | B51: Tolima | D51: 5101 | E51: Ciudad bolívar
A52: 76 | B52: Valle del cauca | D52: 5107 | E52: Briceño
A53: 81 | B53: Arauca | D53: 5113 | E53: Buriticá
A54: 85 | B54: Casanare | D54: 5120 | E54: Cáceres
A55: 86 | B55: Putumayo | D55: 5125 | E55: Caicedo
A56: 88 | B56: San Andrés | D56: 5129 | E56: Caldas
A57: 91 | B57: Amazonas | D57: 5134 | E57: Campamento
A58: 94 | B58: Guainía | D58: 5138 | E58: Cañasgordas
A59: 95 | B59: Guaviare | D59: 5142 | E59: Caracolí
A60: 97 | B60: Vaupés | D60: 5145 | E60: Caramanta
A61: 99 | B61: Vichada | D61: 5147 | E61: Carepa
D62: 5148 | E62: El carmen de vib
D63: 5150 | E63: Carolina
D64: 5154 | E64: Caucasia
D65: 5172 | E65: Chigorodó
D66: 5190 | E66: Cisneros
D67: 5197 | E67: Cocorná
D68: 5206 | E68: Concepción
D69: 5209 | E69: Concordia
D70: 5212 | E70: Copacabana
D71: 5234 | E71: Dabeiba
D72: 5237 | E72: Donmatías
D73: 5240 | E73: Ebéjico
D74: 5250 | E74: El bagre
D75: 5264 | E75: Entrerríos
D76: 5266 | E76: Envigado
D77: 5282 | E77: Fredonia
D78: 5284 | E78: Frontino
D79: 5306 | E79: Giraldo
D80: 5308 | E80: Girardota
D81: 5310 | E81: Gómez plata
D82: 5313 | E82: Granada
D83: 5315 | E83: Guadalupe
D84: 5318 | E84: Guarne
D85: 5321 | E85: Guatapé
D86: 5347 | E86: Heliconia
D87: 5353 | E87: Hispania
D88: 5360 | E88: Itagüí
D89: 5361 | E89: Ituango
D90: 5364 | E90: Jardín
D91: 5368 | E91: Jericó
D92: 5376 | E92: La ceja
D93: 5380 | E93: La estrella
D94: 5390 | E94: La pintada
D95: 5400 | E95: La unión
D96: 5411 | E96: Liborina
D97: 5425 | E97: Maceo
D98: 5440 | E98: Marinilla
D99: 5467 | E99: Montebello
D100: 5475 | E100: Murindó
D101: 5480 | E101: Mutatá
D102: 5483 | E102: Nariño
D103: 5490 | E103: Necoclí
D104: 5495 | E104: Nechí
D105: 5501 | E105: Olaya
D106: 5541 | E106: Peñol
D107: 5543 | E107: Peque
D108: 5576 | E108: Pueblorrico
D109: 5579 | E109: Puerto berrío
D110: 5585 | E110: Puerto nare
D111: 5591 | E111: Puerto triunfo
D112: 5604 | E112: Remedios
D113: 5607 | E113: Retiro
D114: 5615 | E114: Rionegro
D115: 5628 | E115: Sabanalarga
D116: 5631 | E116: Sabaneta
D117: 5642 | E117: Salgar
D118: 5647 | E118: San andrés de cu
D119: 5649 | E119: San carlos
D120: 5652 | E120: San francisco
D121: 5656 | E121: San jerónimo
D122: 5658 | E122: San josé de la m
D123: 5659 | E123: San juan de urab
D124: 5660 | E124: San luis
D125: 5664 | E125: San pedro de los
D126: 5665 | E126: San pedro de ura
D127: 5667 | E127: San rafael
D128: 5670 | E128: San roque
D129: 5674 | E129: San vicente ferr
D130: 5679 | E130: Santa bárbara
D131: 5686 | E131: Santa rosa de os
D132: 5690 | E132: Santo domingo
D133: 5697 | E133: El santuario
D134: 5736 | E134: Segovia
D135: 5756 | E135: Sonsón
D136: 5761 | E136: Sopetrán
D137: 5789 | E137: Támesis
D138: 5790 | E138: Tarazá
D139: 5792 | E139: Tarso
D140: 5809 | E140: Titiribí
D141: 5819 | E141: Toledo
D142: 5837 | E142: Turbo
D143: 5842 | E143: Uramita
D144: 5847 | E144: Urrao
D145: 5854 | E145: Valdivia
D146: 5856 | E146: Valparaíso
D147: 5858 | E147: Vegachí
D148: 5861 | E148: Venecia
D149: 5873 | E149: Vigía del fuerte
D150: 5885 | E150: Yalí
D151: 5887 | E151: Yarumal
D152: 5890 | E152: Yolombó
D153: 5893 | E153: Yondó
D154: 5895 | E154: Zaragoza
D155: 8001 | E155: Barranquilla
D156: 8078 | E156: Baranoa
D157: 8137 | E157: Campo de la cruz
D158: 8141 | E158: Candelaria
D159: 8296 | E159: Galapa
D160: 8372 | E160: Juan de acosta
D161: 8421 | E161: Luruaco
D162: 8433 | E162: Malambo
